Workbook

Sheet Disclaimer
B4: Disclaimer
B5: 1 | C5: Neither the U.S. Department of Energy (DOE) National Energy Technology Laboratory (NETL) nor any person acting on behalf of these organizations:
C6: A. Makes any warranty or representation, express or implied, with respect to the accuracy, completeness, or usefulness of the information contained in this document, or that the use of any information, apparatus, method, or process disclosed in this document may not infringe on privately owned rights; or
C7: B. Assumes any liability with this report as to its use, or damages resulting from the use of any information, apparatus, method, or process disclosed in this document.
B8: 2 | C8: Reference herein to any specific commercial product, process, or service by trade name, trademark, manufacturer, or otherwise, does not necessarily constitute or imply its endorsement, recommendation, or favoring by NETL. The views and opinions of the authors expressed herein do not necessarily state or reflect those of NETL.
B10: Contact Information

Sheet Instructions
A1: Worksheet Descriptions
A2: A description of the worksheets that are viewable by default are below. There are various other worksheets that are hidden to simplify the user experience, but they can easily be unhidden to track all of the calculations/data. On all sheets, cells that are intended for user interaction are formatted with an orange background (the Input formatting option in Excel). In most cases, these cells use a drop-down to provide a user with the range of acceptable inputs for those cells.
A4: Worksheets | B4: Description
A5: generation_mix | B5: The generation_mix worksheet allows the user to browse and customize the generation mix for any selected Federal Energy Regulatory Commission (FERC) or Balancing Authority Area (BA) region. This generation mix represents the amount of electricity produced by each power plant type in that region. Note that this can be different than the mix that the region actually uses for electricity (consumption mix). The worksheet provides the various impact categories and the amount of each emission species for the selected FERC or BA, as well as two separate graphs discussed in more detail below.
A6: consumption_mix | B6: The consumption_mix worksheet allows the user to browse the consumption mix for any selected Federal Electricity Reliability Council (FERC) or Balancing Authority Area (BA) region. This consumption mix includes the net imports from the various BAs into the selected region. As a simple example, a given region could be exclusively renewable generation, which would have low CO2 emissions, but that region may also need to import electricity from a neighboring balancing authority area to meet demand. If that neighboring balancing authority area produces exclusively natural gas then the CO2 emissions for the consumption mix will be higher than the generation mix and will also more accurately reflect the electricity that's used in that region.
A7: consumption_vs_generation | B7: This sheet provides a table with a comparison between the generation and consumption mixes of each of the subregions. As noted above, there can be a significant differences between the two, and the consumption mix is a more accurate reflection of the electricity actually being consumed in an area.
A8: custom_mixes | B8: All of the custom mixes saved from the generation_mix tab are saved here - each row is a custom mix. This sheet is editable by default, so users can delete custom mixes that they don't need anymore or manually create a bunch of mixes.
A9: traci_factors | B9: The traci_factors worksheet contains all of the impact factors for the impact methods provided in this tool - Eutrophication Potential, Acidification Potential, Particulate Matter Formation Potential, Photochemical Smog Formation Potential, Ozone Depletion Potential, Water Consumption, and the various factors for Global Warming Potential as discussed below. This sheet is editable by default, so that the user may change or assign impact factors to species as desired.
A12: Generation mix technology options
A15: Technology | B15: Descriptions | C15: Source
A16: Biomass | B16: Power plants where more than 90% of electricity generation is from combusting biomass fuels. | C16: https://github.com/USEPA/ElectricityLCI
A17: Coal | B17: Power plants where more than 90% of electricity generation is from combusting coal. | C17: https://github.com/USEPA/ElectricityLCI
A18: Natural gas | B18: Power plants where more than 90% of electricity generation is from combusting natural gas. | C18: https://github.com/USEPA/ElectricityLCI
A19: Geothermal | B19: Power plants where more than 90% of electricity generation is geothermal energy. | C19: https://github.com/USEPA/ElectricityLCI
A20: Hydro | B20: Power plants where more than 90% of electricity generation is from hydroelectric power. | C20: https://github.com/USEPA/ElectricityLCI
A21: Mixed | B21: Power plants that use some mix of fuel - i.e., they don't reach the 90 percent threshhold for being classified as a single fuel source. As a result, these plants represent different things based on the power plants that exist in the specified area of interest. That is, mixed power plants in CAISO will not have the same inventory as mixed plants in ERCOT. | C21: https://github.com/USEPA/ElectricityLCI
A22: Nuclear | B22: Power plants where more than 90% of electricity generation is from thermonuclear generation. | C22: https://github.com/USEPA/ElectricityLCI
A23: Other fossil | B23: Power plants where more than 90% of electricity generation is from combusting other fossil fuels (blast furnace gas, other gas, tire-derived fuel). | C23: https://github.com/USEPA/ElectricityLCI
A24: Petroleum | B24: Power plants where more than 90% of electricity generation is from combusting petroleum-based fuels (diesel fuel oil or residual fuel oil). | C24: https://github.com/USEPA/ElectricityLCI
A25: Other fuels | B25: Power plants where more than 90% of electricity generation is from "other" fuels, inlcuding nonbiogenic MSW. | C25: https://github.com/USEPA/ElectricityLCI
A26: Solar | B26: Power plants where more than 90% of electricity generation is from solar photovoltaic cells. | C26: https://github.com/USEPA/ElectricityLCI
A27: Solar thermal | B27: Power plants where more than 90% of electricity generation is from solar-thermal generation. | C27: https://github.com/USEPA/ElectricityLCI
A28: Wind | B28: Power plants where more than 90% of electricity generation is from wind turbines. | C28: https://github.com/USEPA/ElectricityLCI
A29: SCPC | B29: Supercritical pulverized coal power plant. | C29: https://netl.doe.gov/energy-analysis/details?id=3236
A30: SCPC w/ CCS | B30: Supercritical pulverized coal power plant with carbon capture and storage in a saline aquifer. | C30: https://netl.doe.gov/energy-analysis/details?id=3236
A31: SubPC | B31: Sub-critical pulverized coal power plant. | C31: https://netl.doe.gov/energy-analysis/details?id=3234
A32: SubPC w/ CCS | B32: Sub-critical pulverized coal power plant with carbon capture and storage in a saline aquifer. | C32: https://netl.doe.gov/energy-analysis/details?id=3234
A33: NGCC | B33: Natural gas combined cycle power plant.
A34: NGCC w/ CCS | B34: Natural gas combined cycle power plant with carbon capture and storage in a saline aquifer.
A35: OxyPC w/ CCS | B35: Oxycombustion pulverized coal power plant with carbon capture and storage in a saline aquifer. | C35: https://netl.doe.gov/energy-analysis/details?id=3235
A36: SOFC Coal Conventional Gasifier w/ CCS | B36: Solid oxide fuel cell with a conventional coal gasifier with carbon capture and storage in a saline aquifer. | C36: https://netl.doe.gov/energy-analysis/details?id=3232
A37: SOFC NG w/ CCS | B37: Solid oxide fuel cell using natural gas with carbon capture and storage in a saline aquifer. | C37: https://netl.doe.gov/energy-analysis/details?id=3232
A38: SubPC w/ CCS w/ NG Aux | B38: Sub-critical pulverized coal power plant with carbon capture and storage in a saline aquifer. The steam and electricity loads for the carbon capture system are provided by a natural gas simple cycle turbine. | C38: Report under review
A40: Global Warming Potential Options
A41: There are several options available for the impact factors associated with global warming potential. This selection is performed in the traci_factors worksheet (the "Global Warming Potential Options" header above is a link to the cell). Short descriptions and sources for the various iterations of factors is available in the table below.
A43: GWP Selection | B43: Description | C43: Source
A44: IPCC TAR, 2001, 20-yr | B44: IPCC Third Assessment Report (TAR) - 20-year time horizon | C44: https://www.ipcc.ch/site/assets/uploads/2018/03/TAR-06.pdf
A45: IPCC TAR, 2001, 100-yr | B45: IPCC Third Assessment Report (TAR) - 100-year time horizon | C45: https://www.ipcc.ch/site/assets/uploads/2018/03/TAR-06.pdf
A46: IPCC AR4, 2007, 20-yr | B46: IPCC Fourth Assessment Report (AR4) - 20-year time horizon | C46: https://www.ipcc.ch/site/assets/uploads/2018/02/ar4-wg1-chapter2-1.pdf
A47: IPCC AR4, 2007, 100-yr | B47: IPCC Fourth Assessment Report (AR4) - 100-year time horizon. This is the default set of values used by the The Tool for the Reduction and Assessment of Chemical and other environmental Impacts (TRACI) version 2.1. | C47: https://www.ipcc.ch/site/assets/uploads/2018/02/ar4-wg1-chapter2-1.pdf
A48: IPCC AR5, 2013, 20-yr, w/o climate carbon feedback | B48: IPCC Fifth Assessment Report (AR5) - 20-year time horizon. | C48: https://www.ipcc.ch/site/assets/uploads/2018/02/WG1AR5_Chapter08_FINAL.pdf
A49: IPCC AR5, 2013, 100-yr, w/o climate carbon feedback | B49: IPCC Fifth Assessment Report (AR5) - 100-year time horizon. | C49: https://www.ipcc.ch/site/assets/uploads/2018/02/WG1AR5_Chapter08_FINAL.pdf
A50: IPCC AR5, 2013, 20-yr, w/ climate carbon feedback | B50: IPCC Fifth Assessment Report (AR5) - 20-year time horizon with climate carbon feedbacks. | C50: https://www.ipcc.ch/site/assets/uploads/2018/07/WGI_AR5.Chap_.8_SM.pdf
A51: IPCC AR5, 2013, 100-yr, w/ climate carbon feedback | B51: IPCC Fifth Assessment Report (AR5) - 100-year time horizon with climate carbon feedbacks. NETL has been using factors with climate carbon feedbacks in impact calculations for reports and journal articles, most importantly the value for methane. Additionally, NETL uses the 1 and 2 kg CO2e adder for fossil-based methane emissions, for 20-yr and 100-yr respectively. NETL considers this set of GWP impacts as the default. | C51: https://www.ipcc.ch/site/assets/uploads/2018/07/WGI_AR5.Chap_.8_SM.pdf
A54: Annual Energy Outlook Mixes (external link)
A55: When loading custom mixes in the generation_mix page, the list includes generation mixes from the Energy Information Administration (EIA) 2019 Annual Energy Outlook (AEO) reference cases. The regions in the AEO are National Energy Modeling System (NEMS) regions, which do not align with Balancing Authority Areas. Because of this the AEO outlooks were manually aligned to FERC regions. As an AEO mix is selected, the FERC region selection will automatically change.
A57: Region and BA Lookup (link will launch tool)
A58: The generation_mix and consumption_mix worksheets have buttons to launch a tool for looking up your FERC or Balancing Authority Area (BA) by zip code. The cross-reference was built by finding the intersections between maps containing zip codes and then each of the region types. The zip code shapes are from a 2010 file, so if you're in an area with a newer post office, your zip code might not be found. There are also areas of the country which have overlapped BAs and even FERC regions - in those cases, the tool will return all of the FERC and BAs that it finds for your region.
A60: Federal Energy Regulatory Commission (FERC) Electric Power Markets (external link)
A61: FERC identifies 10 electricity power markets in the U.S. A map of those markets is available at the link above.
A62: Acronym/Abbreviation | B62: Full Name
A63: CAISO | B63: California Independent System Operator
A64: MISO | B64: Midcontinent Independent System Operator
A65: ISO-NE | B65: Independent System Operator - New England
A66: NYISO | B66: New York Independent System Operator
A67: Northwest | B67: Northwest
A68: PJM | B68: Pennsylvania-New Jersey-Maryland Interconnection
A69: Southeast | B69: Southeast
A70: Southwest | B70: Southwest
A71: SPP | B71: Southwest Power Pool
A72: ERCOT | B72: Electric Reliability Council of Texas
A74: U.S. Power Balancing Authorities (external link)
A75: The above link provides a map of the power balancing authorities in the U.S.
A77: EPA Tool for Reduction and Assessment of Chemicals and Other Environmental Impacts (TRACI) (external link)
A78: The above link provides the reference to the impact assessment used for this tool.
A79: Impact Category Name | B79: Units
A80: Global Warming Potential | B80: kg CO2e
A81: Acidification Potential | B81: kg SO2e
A82: Particulate Matter Formation Potential | B82: kg PM2.5e
A83: Photochemical Smog Formation Potential | B83: kg O3e
A84: Eutrophication Potential | B84: kg Ne
A85: Ozone Depletion Potential | B85: kg CFC-11e
A86: Water Consumption | B86: liters

Sheet generation_mix
A7: FERC Region | B7: US
A8: Balancing Authority | B8: Use FERC
A9: Impact Category for Graph | B9: Global Warming Potential
A10: Sort Graph | B10: by impact potential
A11: Custom mix | B11: Use custom mix
C15: Default mix | D15: Custom mix | E15: Normalized custom mix
B16: Biomass | C16: =INDEX(generation_mix_calcs!$C$19:$Y$19,1,ROW()-ROW($B$15)) -> 0.005866112427 | D16: 0 | E16: =D16/$D$39 -> 0
B17: Coal | C17: =INDEX(generation_mix_calcs!$C$19:$Y$19,1,ROW()-ROW($B$15)) -> 0.2580864582 | D17: 0 | E17: 0
B18: Natural gas | C18: =INDEX(generation_mix_calcs!$C$19:$Y$19,1,ROW()-ROW($B$15)) -> 0.3214273134 | D18: 0 | E18: 0
B19: Geothermal | C19: =INDEX(generation_mix_calcs!$C$19:$Y$19,1,ROW()-ROW($B$15)) -> 0.003892490956 | D19: 0 | E19: 0
B20: Hydro | C20: =INDEX(generation_mix_calcs!$C$19:$Y$19,1,ROW()-ROW($B$15)) -> 0.06616983552 | D20: 0 | E20: 0
B21: Mixed | C21: =INDEX(generation_mix_calcs!$C$19:$Y$19,1,ROW()-ROW($B$15)) -> 0.07960274347 | D21: 0 | E21: 0
B22: Nuclear | C22: =INDEX(generation_mix_calcs!$C$19:$Y$19,1,ROW()-ROW($B$15)) -> 0.1964571229 | D22: 0 | E22: 0
B23: Other fossil | C23: =INDEX(generation_mix_calcs!$C$19:$Y$19,1,ROW()-ROW($B$15)) -> 0.0001303496676 | D23: 0 | E23: 0
B24: Petroleum | C24: =INDEX(generation_mix_calcs!$C$19:$Y$19,1,ROW()-ROW($B$15)) -> 0.002171425045 | D24: 0 | E24: 0
B25: Other fuels | C25: =INDEX(generation_mix_calcs!$C$19:$Y$19,1,ROW()-ROW($B$15)) -> 0.001142959949 | D25: 0 | E25: 0
B26: Solar | C26: =INDEX(generation_mix_calcs!$C$19:$Y$19,1,ROW()-ROW($B$15)) -> 0.00800466145 | D26: 0 | E26: 0
B27: Solar thermal | C27: =INDEX(generation_mix_calcs!$C$19:$Y$19,1,ROW()-ROW($B$15)) -> 0.0007829972347 | D27: 0 | E27: 0
B28: Wind | C28: =INDEX(generation_mix_calcs!$C$19:$Y$19,1,ROW()-ROW($B$15)) -> 0.05626552971 | D28: 1 | E28: 1
B29: SCPC | C29: =INDEX(generation_mix_calcs!$C$19:$Y$19,1,ROW()-ROW($B$15)) -> 0 | D29: 0 | E29: 0
B30: SCPC w/ CCS | C30: =INDEX(generation_mix_calcs!$C$19:$Y$19,1,ROW()-ROW($B$15)) -> 0 | D30: 0 | E30: 0
B31: SubPC | C31: =INDEX(generation_mix_calcs!$C$19:$Y$19,1,ROW()-ROW($B$15)) -> 0 | D31: 0 | E31: 0
B32: SubPC w/ CCS | C32: =INDEX(generation_mix_calcs!$C$19:$Y$19,1,ROW()-ROW($B$15)) -> 0 | D32: 0 | E32: 0
B33: NGCC | C33: =INDEX(generation_mix_calcs!$C$19:$Y$19,1,ROW()-ROW($B$15)) -> 0 | D33: 0 | E33: 0
B34: NGCC w/ CCS | C34: =INDEX(generation_mix_calcs!$C$19:$Y$19,1,ROW()-ROW($B$15)) -> 0 | D34: 0 | E34: 0
B35: OxyPC w/ CCS | C35: =INDEX(generation_mix_calcs!$C$19:$Y$19,1,ROW()-ROW($B$15)) -> 0 | D35: 0 | E35: 0
B36: SOFC Coal Conventional Gasifier w/ CCS | C36: =INDEX(generation_mix_calcs!$C$19:$Y$19,1,ROW()-ROW($B$15)) -> 0 | D36: 0 | E36: 0
B37: SOFC NG w/ CCS | C37: =INDEX(generation_mix_calcs!$C$19:$Y$19,1,ROW()-ROW($B$15)) -> 0 | D37: 0 | E37: 0
B38: SubPC w/ CCS w/ NG Aux | C38: =INDEX(generation_mix_calcs!$C$19:$Y$19,1,ROW()-ROW($B$15)) -> 0 | D38: 0 | E38: 0
B39: Total | C39: =SUM(C16:C38) -> 1 | D39: =SUM(D16:D38) -> 1 | E39: =SUM(E16:E38) -> 1
C45: =INDEX(C$67:C$73,MATCH($B$9,$B$67:$B$73,0),1) -> 26.72649503 | D45: =INDEX(D$67:D$73,MATCH($B$9,$B$67:$B$73,0),1) -> 0 | E45: 0 | F45: 0 | G45: 0 | H45: 0 | I45: 0 | J45: 0 | K45: 0 | L45: 0 | M45: 0 | N45: 0 | O45: 0 | P45: 26.72649503 | Q45: 0 | R45: 0 | S45: 0 | T45: 0 | U45: 0 | V45: 0 | W45: 0 | X45: 0 | Y45: 0 | Z45: 0 | AB45: 217 | AC45: TRUE | AD45: TRUE | AE45: TRUE | AF45: TRUE | AG45: TRUE | AH45: TRUE | AI45: FALSE | AJ45: FALSE | AK45: FALSE | AL45: FALSE | AM45: FALSE | AN45: FALSE | AO45: FALSE | AP45: FALSE | AQ45: FALSE | AR45: FALSE | AS45: FALSE | AT45: FALSE | AU45: FALSE | AV45: FALSE | AW45: FALSE | AX45: FALSE | AY45: FALSE
C46: =ROUND(C45,3-(1+INT($C$47))) -> 26.7 | D46: 0 | E46: 0 | F46: 0 | G46: 0 | H46: 0 | I46: 0 | J46: 0 | K46: 0 | L46: 0 | M46: 0 | N46: 0 | O46: 0 | P46: 26.7 | Q46: 0 | R46: 0 | S46: 0 | T46: 0 | U46: 0 | V46: 0 | W46: 0 | X46: 0 | Y46: 0 | Z46: 0 | AB46: =INDEX(B$66:B$1487,$AB$45,1) -> Carbon dioxide | AC46: =INDEX(D$66:D$1487,$AB$45,1) -> 0 | AD46: 0 | AE46: 0 | AF46: 0 | AG46: 0 | AH46: 0 | AI46: 0 | AJ46: 0 | AK46: 0 | AL46: 0 | AM46: 0 | AN46: 0 | AO46: 24.55589802 | AP46: 0 | AQ46: 0 | AR46: 0 | AS46: 0 | AT46: 0 | AU46: 0 | AV46: 0 | AW46: 0 | AX46: 0 | AY46: 0
C47: =LOG(ABS(C45),10) -> 1.426942008 | AB47: =INDEX(A$66:A$1487,$AB$45,1) -> air | AC47: =D66 -> Biomass | AD47: =E66 -> Coal | AE47: Natural gas | AF47: Geothermal | AG47: Hydro | AH47: Mixed | AI47: Nuclear | AJ47: Other fossil | AK47: Petroleum | AL47: Other fuels | AM47: Solar | AN47: Solar thermal | AO47: Wind | AP47: SCPC | AQ47: SCPC w/ CCS | AR47: SubPC | AS47: SubPC w/ CCS | AT47: NGCC | AU47: NGCC w/ CCS | AV47: OxyPC w/ CCS | AW47: SOFC Coal Conventional Gasifier w/ CCS | AX47: SOFC NG w/ CCS | AY47: SubPC w/ CCS w/ NG Aux
C48: =TEXT(INT(C47),"0#") -> 01 | D48: =D45/$C$45 -> 0 | E48: 0 | F48: 0 | G48: 0 | H48: 0 | I48: 0 | J48: 0 | K48: 0 | L48: 0 | M48: 0 | N48: 0 | O48: 0 | P48: 1 | Q48: 0 | R48: 0 | S48: 0 | T48: 0 | U48: 0 | V48: 0 | W48: 0 | X48: 0 | Y48: 0 | Z48: 0 | AB48: =IF(AND(AB47<>"input",AB45>8),AB46&" emissions to "&AB47,IF(AB45<=8,AB46,"Input of "&AB46)) -> Carbon dioxide emissions to air | AC48: =IF(AC45,AC47,"") -> Biomass | AD48: =IF(AD45,AD47,"") -> Coal | AE48: Natural gas | AF48: Geothermal | AG48: Hydro | AH48: Mixed
C49: =10^(INT(C48)-2) -> 0.1 | D49: =IF(INT($C$47)<-3,TEXT(D45/10^$C$48,"#,0.0#")&"E"&$C$48,) -> 0 | E49: =IF(INT($C$47)<-3,TEXT(E45/10^$C$48,"#,0.0#")&"E"&$C$48,) -> 0 | F49: 0 | G49: 0 | H49: 0 | I49: 0 | J49: 0 | K49: 0 | L49: 0 | M49: 0 | N49: 0 | O49: 0 | P49: 0 | Q49: 0 | R49: 0 | S49: 0 | T49: 0 | U49: 0 | V49: 0 | W49: 0 | X49: 0 | Y49: 0 | Z49: 0 | AC49: =IF(AC45,AC46,"") -> 0 | AD49: =IF(AD45,AD46,"") -> 0 | AE49: 0 | AF49: 0 | AG49: 0 | AH49: 0
C50: =IF(C49<0.001,TEXT(C49,"#.00E+00"),C49) -> 0.1 | D50: =IF(D45=0,0,IF(D45<$C$49,"<"&$C$51,IF(D46<0.001,D49,D46))) -> 0 | E50: =IF(E45=0,0,IF(E45<$C$49,"<"&$C$51,IF(E46<0.001,E49,E46))) -> 0 | F50: 0 | G50: 0 | H50: 0 | I50: 0 | J50: 0 | K50: 0 | L50: 0 | M50: 0 | N50: 0 | O50: 0 | P50: 26.7 | Q50: 0 | R50: 0 | S50: 0 | T50: 0 | U50: 0 | V50: 0 | W50: 0 | X50: 0 | Y50: 0 | Z50: 0 | AC50: =IFERROR(RANK(AC49,$AC$49:$AY$49,0)+COLUMN()/1000,"") -> 1.029 | AD50: =IFERROR(RANK(AD49,$AC$49:$AY$49,0)+COLUMN()/1000,"") -> 1.03 | AE50: 1.031 | AF50: 1.032 | AG50: 1.033 | AH50: 1.034
C51: =IF(INT($C$47)<-3,TEXT(C49/10^$C$48,"#,0.00#")&"E"&$C$48,C49) -> 0.1 | D51: 1 | E51: 2 | F51: 3 | G51: 4 | H51: 5 | I51: 6 | J51: 7 | K51: 8 | L51: 9 | M51: 10 | N51: 11 | O51: 12 | P51: 13 | Q51: 14 | R51: 15 | S51: 16 | T51: 17 | U51: 18 | V51: 19 | W51: 20 | X51: 21 | Y51: 22 | Z51: 23 | AC51: =IFERROR(RANK(AC50,$AC$50:$AY$50,1),"") -> 1 | AD51: =IFERROR(RANK(AD50,$AC$50:$AY$50,1),"") -> 2 | AE51: 3 | AF51: 4 | AG51: 5 | AH51: 6
D52: =IFERROR(IF($B$10=drop_down_data!$O$3,_xlfn.RANK.EQ(INDEX(D$67:D$73,MATCH($B$65,$B$67:$B$73,0)),INDEX($D$67:$BW$73,MATCH($B$65,$B$67:$B$73,0),),0)+COLUMN()/1000,_xlfn.RANK.EQ(D63,$D$63:$Z$63)+COLUMN()/1000),"") -> 2.004 | E52: =IFERROR(IF($B$10=drop_down_data!$O$3,_xlfn.RANK.EQ(INDEX(E$67:E$73,MATCH($B$65,$B$67:$B$73,0)),INDEX($D$67:$BW$73,MATCH($B$65,$B$67:$B$73,0),),0)+COLUMN()/1000,_xlfn.RANK.EQ(E63,$D$63:$Z$63)+COLUMN()/1000),"") -> 2.005 | F52: =IFERROR(IF($B$10=drop_down_data!$O$3,_xlfn.RANK.EQ(INDEX(F$67:F$73,MATCH($B$65,$B$67:$B$73,0)),INDEX($D$67:$BW$73,MATCH($B$65,$B$67:$B$73,0),),0)+COLUMN()/1000,_xlfn.RANK.EQ(F63,$D$63:$Z$63)+COLUMN()/1000),"") -> 2.006 | G52: =IFERROR(IF($B$10=drop_down_data!$O$3,_xlfn.RANK.EQ(INDEX(G$67:G$73,MATCH($B$65,$B$67:$B$73,0)),INDEX($D$67:$BW$73,MATCH($B$65,$B$67:$B$73,0),),0)+COLUMN()/1000,_xlfn.RANK.EQ(G63,$D$63:$Z$63)+COLUMN()/1000),"") -> 2.007 | H52: =IFERROR(IF($B$10=drop_down_data!$O$3,_xlfn.RANK.EQ(INDEX(H$67:H$73,MATCH($B$65,$B$67:$B$73,0)),INDEX($D$67:$BW$73,MATCH($B$65,$B$67:$B$73,0),),0)+COLUMN()/1000,_xlfn.RANK.EQ(H63,$D$63:$Z$63)+COLUMN()/1000),"") -> 2.008 | I52: =IFERROR(IF($B$10=drop_down_data!$O$3,_xlfn.RANK.EQ(INDEX(I$67:I$73,MATCH($B$65,$B$67:$B$73,0)),INDEX($D$67:$BW$73,MATCH($B$65,$B$67:$B$73,0),),0)+COLUMN()/1000,_xlfn.RANK.EQ(I63,$D$63:$Z$63)+COLUMN()/1000),"") -> 2.009 | J52: =IFERROR(IF($B$10=drop_down_data!$O$3,_xlfn.RANK.EQ(INDEX(J$67:J$73,MATCH($B$65,$B$67:$B$73,0)),INDEX($D$67:$BW$73,MATCH($B$65,$B$67:$B$73,0),),0)+COLUMN()/1000,_xlfn.RANK.EQ(J63,$D$63:$Z$63)+COLUMN()/1000),"") -> 2.01 | K52: =IFERROR(IF($B$10=drop_down_data!$O$3,_xlfn.RANK.EQ(INDEX(K$67:K$73,MATCH($B$65,$B$67:$B$73,0)),INDEX($D$67:$BW$73,MATCH($B$65,$B$67:$B$73,0),),0)+COLUMN()/1000,_xlfn.RANK.EQ(K63,$D$63:$Z$63)+COLUMN()/1000),"") -> 2.011 | L52: =IFERROR(IF($B$10=drop_down_data!$O$3,_xlfn.RANK.EQ(INDEX(L$67:L$73,MATCH($B$65,$B$67:$B$73,0)),INDEX($D$67:$BW$73,MATCH($B$65,$B$67:$B$73,0),),0)+COLUMN()/1000,_xlfn.RANK.EQ(L63,$D$63:$Z$63)+COLUMN()/1000),"") -> 2.012 | M52: =IFERROR(IF($B$10=drop_down_data!$O$3,_xlfn.RANK.EQ(INDEX(M$67:M$73,MATCH($B$65,$B$67:$B$73,0)),INDEX($D$67:$BW$73,MATCH($B$65,$B$67:$B$73,0),),0)+COLUMN()/1000,_xlfn.RANK.EQ(M63,$D$63:$Z$63)+COLUMN()/1000),"") -> 2.013 | N52: =IFERROR(IF($B$10=drop_down_data!$O$3,_xlfn.RANK.EQ(INDEX(N$67:N$73,MATCH($B$65,$B$67:$B$73,0)),INDEX($D$67:$BW$73,MATCH($B$65,$B$67:$B$73,0),),0)+COLUMN()/1000,_xlfn.RANK.EQ(N63,$D$63:$Z$63)+COLUMN()/1000),"") -> 2.014 | O52: =IFERROR(IF($B$10=drop_down_data!$O$3,_xlfn.RANK.EQ(INDEX(O$67:O$73,MATCH($B$65,$B$67:$B$73,0)),INDEX($D$67:$BW$73,MATCH($B$65,$B$67:$B$73,0),),0)+COLUMN()/1000,_xlfn.RANK.EQ(O63,$D$63:$Z$63)+COLUMN()/1000),"") -> 2.015 | P52: =IFERROR(IF($B$10=drop_down_data!$O$3,_xlfn.RANK.EQ(INDEX(P$67:P$73,MATCH($B$65,$B$67:$B$73,0)),INDEX($D$67:$BW$73,MATCH($B$65,$B$67:$B$73,0),),0)+COLUMN()/1000,_xlfn.RANK.EQ(P63,$D$63:$Z$63)+COLUMN()/1000),"") -> 1.016 | Q52: =IFERROR(IF($B$10=drop_down_data!$O$3,_xlfn.RANK.EQ(INDEX(Q$67:Q$73,MATCH($B$65,$B$67:$B$73,0)),INDEX($D$67:$BW$73,MATCH($B$65,$B$67:$B$73,0),),0)+COLUMN()/1000,_xlfn.RANK.EQ(Q63,$D$63:$Z$63)+COLUMN()/1000),"") -> 2.017 | R52: =IFERROR(IF($B$10=drop_down_data!$O$3,_xlfn.RANK.EQ(INDEX(R$67:R$73,MATCH($B$65,$B$67:$B$73,0)),INDEX($D$67:$BW$73,MATCH($B$65,$B$67:$B$73,0),),0)+COLUMN()/1000,_xlfn.RANK.EQ(R63,$D$63:$Z$63)+COLUMN()/1000),"") -> 2.018 | S52: =IFERROR(IF($B$10=drop_down_data!$O$3,_xlfn.RANK.EQ(INDEX(S$67:S$73,MATCH($B$65,$B$67:$B$73,0)),INDEX($D$67:$BW$73,MATCH($B$65,$B$67:$B$73,0),),0)+COLUMN()/1000,_xlfn.RANK.EQ(S63,$D$63:$Z$63)+COLUMN()/1000),"") -> 2.019 | T52: =IFERROR(IF($B$10=drop_down_data!$O$3,_xlfn.RANK.EQ(INDEX(T$67:T$73,MATCH($B$65,$B$67:$B$73,0)),INDEX($D$67:$BW$73,MATCH($B$65,$B$67:$B$73,0),),0)+COLUMN()/1000,_xlfn.RANK.EQ(T63,$D$63:$Z$63)+COLUMN()/1000),"") -> 2.02 | U52: =IFERROR(IF($B$10=drop_down_data!$O$3,_xlfn.RANK.EQ(INDEX(U$67:U$73,MATCH($B$65,$B$67:$B$73,0)),INDEX($D$67:$BW$73,MATCH($B$65,$B$67:$B$73,0),),0)+COLUMN()/1000,_xlfn.RANK.EQ(U63,$D$63:$Z$63)+COLUMN()/1000),"") -> 2.021 | V52: =IFERROR(IF($B$10=drop_down_data!$O$3,_xlfn.RANK.EQ(INDEX(V$67:V$73,MATCH($B$65,$B$67:$B$73,0)),INDEX($D$67:$BW$73,MATCH($B$65,$B$67:$B$73,0),),0)+COLUMN()/1000,_xlfn.RANK.EQ(V63,$D$63:$Z$63)+COLUMN()/1000),"") -> 2.022 | W52: =IFERROR(IF($B$10=drop_down_data!$O$3,_xlfn.RANK.EQ(INDEX(W$67:W$73,MATCH($B$65,$B$67:$B$73,0)),INDEX($D$67:$BW$73,MATCH($B$65,$B$67:$B$73,0),),0)+COLUMN()/1000,_xlfn.RANK.EQ(W63,$D$63:$Z$63)+COLUMN()/1000),"") -> 2.023 | X52: =IFERROR(IF($B$10=drop_down_data!$O$3,_xlfn.RANK.EQ(INDEX(X$67:X$73,MATCH($B$65,$B$67:$B$73,0)),INDEX($D$67:$BW$73,MATCH($B$65,$B$67:$B$73,0),),0)+COLUMN()/1000,_xlfn.RANK.EQ(X63,$D$63:$Z$63)+COLUMN()/1000),"") -> 2.024 | Y52: =IFERROR(IF($B$10=drop_down_data!$O$3,_xlfn.RANK.EQ(INDEX(Y$67:Y$73,MATCH($B$65,$B$67:$B$73,0)),INDEX($D$67:$BW$73,MATCH($B$65,$B$67:$B$73,0),),0)+COLUMN()/1000,_xlfn.RANK.EQ(Y63,$D$63:$Z$63)+COLUMN()/1000),"") -> 2.025 | Z52: =IFERROR(IF($B$10=drop_down_data!$O$3,_xlfn.RANK.EQ(INDEX(Z$67:Z$73,MATCH($B$65,$B$67:$B$73,0)),INDEX($D$67:$BW$73,MATCH($B$65,$B$67:$B$73,0),),0)+COLUMN()/1000,_xlfn.RANK.EQ(Z63,$D$63:$Z$63)+COLUMN()/1000),"") -> 2.026 | AC52: 1 | AD52: 2 | AE52: 3 | AF52: 4 | AG52: 5 | AH52: 6 | AI52: 7 | AJ52: 8 | AK52: 9 | AL52: 10 | AM52: 11 | AN52: 12 | AO52: 13 | AP52: 14 | AQ52: 15 | AR52: 16 | AS52: 17 | AT52: 18 | AU52: 19 | AV52: 20 | AW52: 21 | AX52: 22 | AY52: 23
D53: =_xlfn.RANK.EQ(D$52,$D$52:$Z$52,1) -> 2 | E53: =_xlfn.RANK.EQ(E$52,$D$52:$Z$52,1) -> 3 | F53: 4 | G53: 5 | H53: 6 | I53: 7 | J53: 8 | K53: 9 | L53: 10 | M53: 11 | N53: 12 | O53: 13 | P53: 1 | Q53: 14 | R53: 15 | S53: 16 | T53: 17 | U53: 18 | V53: 19 | W53: 20 | X53: 21 | Y53: 22 | Z53: 23 | AC53: =IFERROR(INDEX($AC$48:$AY$48,1,MATCH(AC52,$AC$51:$AY$51,0)),"") -> Biomass | AD53: =IFERROR(INDEX($AC$48:$AY$48,1,MATCH(AD52,$AC$51:$AY$51,0)),"") -> Coal | AE53: Natural gas | AF53: Geothermal | AG53: Hydro | AH53: Mixed
D54: =MATCH(D51,$D$53:$Z$53,0) -> 13 | E54: =MATCH(E51,$D$53:$Z$53,0) -> 1 | F54: 2 | G54: 3 | H54: 4 | I54: 5 | J54: 6 | K54: 7 | L54: 8 | M54: 9 | N54: 10 | O54: 11 | P54: 12 | Q54: 14 | R54: 15 | S54: 16 | T54: 17 | U54: 18 | V54: 19 | W54: 20 | X54: 21 | Y54: 22 | Z54: 23 | AB54: =MAX(COUNTIF($AC$45:$AY$45,TRUE),1) -> 6 | AC54: =IFERROR(INDEX($AC$49:$AY$49,1,MATCH(AC52,$AC$51:$AY$51,0)),"") -> 0 | AD54: 0 | AE54: 0 | AF54: 0 | AG54: 0 | AH54: 0
C55: =IF(C47<=-4,TEXT(C46,"#.##E+00"),C46) -> 26.7 | D55: =INDEX($D$50:$Z$50,1,D54) -> 26.7 | E55: =INDEX($D$50:$Z$50,1,E54) -> 0 | F55: 0 | G55: 0 | H55: 0 | I55: 0 | J55: 0 | K55: 0 | L55: 0 | M55: 0 | N55: 0 | O55: 0 | P55: 0 | Q55: 0 | R55: 0 | S55: 0 | T55: 0 | U55: 0 | V55: 0 | W55: 0 | X55: 0 | Y55: 0 | Z55: 0 | AB55: =LOG(ABS(AC54),10) ->  | AC55: =IFERROR(LOG(ABS(AC54),10),"") ->  | AD55: =IFERROR(LOG(ABS(AD54),10),"") -> 
C56: =B65&" "&IF($B$9="Global Warming Potential",traci_factors!$M$1&" ","")&INDEX(impact_text!B2:B8,MATCH(generation_mix!B65,impact_text!$A$2:$A$8,0),1) -> Global Warming Potential IPCC AR5, 2013, 100-yr, w/ climate carbon feedback kg CO₂-e/MWh delivered | AB56: =10^(INT(AB55)-2) ->  | AC56: =IFERROR(3-(1+INT(AC55)),"") ->  | AD56: =IFERROR(3-(1+INT(AD55)),"") -> 
AB57: =IF($AC$54>0.001,TEXT(AB56,"#,##0"&AC58),TEXT(AB56,"#E+##")) ->  | AC57: =IF(AC56="","",IF(AC54<$AB$56,"<"&TEXT($AB$56,IF($AB$56<0.001,"#E+##","#,###"&AC58)),IF(AC54=0,"0",TEXT(ROUND(AC54,AC56),IF(AC54<0.001,"#.0E+##",IF(AC56=0,"#,###","#.###")))))) ->  | AD57: =IF(AD56="","",IF(AD54<$AB$56,"<"&TEXT($AB$56,IF($AB$56<0.001,"#E+##","#,###"&AD58)),IF(AD54=0,"0",TEXT(ROUND(AD54,AD56),IF(AD54<0.001,"#.0E+##",IF(AD56=0,"#,###","#.###")))))) -> 
AC58: =IF(AC56>=1,"."&REPT("0",$AC$56),"") ->  | AD58: =IF(AD56>=1,"."&REPT("0",$AC$56),"") -> 
AC59: =IF(AC54=0,"0",IF(AC54>$AB$56,IF($AC$54>0.001,TEXT(AC54,"#,##0"&AC58),TEXT(AC54,"#.00E+00")),"<"&$AB$57)) -> 0 | AD59: =IF(AD54=0,"0",IF(AD54>$AB$56,IF($AC$54>0.001,TEXT(AD54,"#,##0"&AD58),TEXT(AD54,"#.00E+00")),"<"&$AB$57)) -> 0 | AE59: 0 | AF59: 0 | AG59: 0 | AH59: 0
C61: =PROPER(C66)&" - "&TEXT(C63,"0.0%") -> Total - 100.0% | D61: Biomass - 0.0% | E61: Coal - 0.0% | F61: Natural Gas - 0.0% | G61: Geothermal - 0.0% | H61: Hydro - 0.0% | I61: Mixed - 0.0% | J61: Nuclear - 0.0% | K61: Other Fossil - 0.0% | L61: Petroleum - 0.0% | M61: Other Fuels - 0.0% | N61: Solar - 0.0% | O61: Solar Thermal - 0.0% | P61: Wind - 100.0% | Q61: =Q66&" - "&TEXT(Q63,"0.0%") -> SCPC - 0.0% | R61: =R66&" - "&TEXT(R63,"0.0%") -> SCPC w/ CCS - 0.0% | S61: SubPC - 0.0% | T61: SubPC w/ CCS - 0.0% | U61: NGCC - 0.0% | V61: NGCC w/ CCS - 0.0% | W61: OxyPC w/ CCS - 0.0% | X61: SOFC Coal Conventional Gasifier w/ CCS - 0.0% | Y61: SOFC NG w/ CCS - 0.0% | Z61: SubPC w/ CCS w/ NG Aux - 0.0%
C62: Total | D62: =PROPER(D64) -> Wind - 100.0% | E62: Biomass - 0.0% | F62: Coal - 0.0% | G62: Natural Gas - 0.0% | H62: Geothermal - 0.0% | I62: Hydro - 0.0% | J62: Mixed - 0.0% | K62: Nuclear - 0.0% | L62: Other Fossil - 0.0% | M62: Petroleum - 0.0% | N62: Other Fuels - 0.0% | O62: Solar - 0.0% | P62: Solar Thermal - 0.0% | Q62: =Q66 -> SCPC | R62: SCPC w/ CCS | S62: SubPC | T62: SubPC w/ CCS | U62: NGCC | V62: NGCC w/ CCS | W62: OxyPC w/ CCS | X62: SOFC Coal Conventional Gasifier w/ CCS | Y62: SOFC NG w/ CCS | Z62: SubPC w/ CCS w/ NG Aux
C63: =SUM(D63:Z63) -> 1 | D63: =generation_mix_calcs!C21 -> 0 | E63: =generation_mix_calcs!D21 -> 0 | F63: =generation_mix_calcs!E21 -> 0 | G63: =generation_mix_calcs!F21 -> 0 | H63: =generation_mix_calcs!G21 -> 0 | I63: =generation_mix_calcs!H21 -> 0 | J63: =generation_mix_calcs!I21 -> 0 | K63: =generation_mix_calcs!J21 -> 0 | L63: =generation_mix_calcs!K21 -> 0 | M63: =generation_mix_calcs!L21 -> 0 | N63: =generation_mix_calcs!M21 -> 0 | O63: =generation_mix_calcs!N21 -> 0 | P63: =generation_mix_calcs!O21 -> 1 | Q63: =generation_mix_calcs!P21 -> 0 | R63: =generation_mix_calcs!Q21 -> 0 | S63: =generation_mix_calcs!R21 -> 0 | T63: =generation_mix_calcs!S21 -> 0 | U63: =generation_mix_calcs!T21 -> 0 | V63: =generation_mix_calcs!U21 -> 0 | W63: =generation_mix_calcs!V21 -> 0 | X63: =generation_mix_calcs!W21 -> 0 | Y63: =generation_mix_calcs!X21 -> 0 | Z63: =generation_mix_calcs!Y21 -> 0
C64: Total | D64: =INDEX($D$61:$Z$61,1,D54) -> Wind - 100.0% | E64: =INDEX($D$61:$BW$61,1,E54) -> Biomass - 0.0% | F64: Coal - 0.0% | G64: Natural Gas - 0.0% | H64: Geothermal - 0.0% | I64: Hydro - 0.0% | J64: Mixed - 0.0% | K64: Nuclear - 0.0% | L64: Other Fossil - 0.0% | M64: Petroleum - 0.0% | N64: Other Fuels - 0.0% | O64: Solar - 0.0% | P64: Solar Thermal - 0.0% | Q64: SCPC - 0.0% | R64: SCPC w/ CCS - 0.0% | S64: SubPC - 0.0% | T64: SubPC w/ CCS - 0.0% | U64: NGCC - 0.0% | V64: NGCC w/ CCS - 0.0% | W64: OxyPC w/ CCS - 0.0% | X64: SOFC Coal Conventional Gasifier w/ CCS - 0.0% | Y64: SOFC NG w/ CCS - 0.0% | Z64: SubPC w/ CCS w/ NG Aux - 0.0%
B65: =INDEX(B$67:B$73,MATCH($B$9,$B$67:$B$73,0),1) -> Global Warming Potential | C65: =C46 -> 26.7 | D65: =INDEX($D$46:$Z$46,1,D54) -> 26.7 | E65: =INDEX($D$46:$Z$46,1,E54) -> 0 | F65: 0 | G65: 0 | H65: 0 | I65: 0 | J65: 0 | K65: 0 | L65: 0 | M65: 0 | N65: 0 | O65: 0 | P65: 0 | Q65: 0 | R65: 0 | S65: 0 | T65: 0 | U65: 0 | V65: 0 | W65: 0 | X65: 0 | Y65: 0 | Z65: 0
B66: Impact Category | C66: Total | D66: Biomass | E66: Coal | F66: Natural gas | G66: Geothermal | H66: Hydro | I66: Mixed | J66: Nuclear | K66: Other fossil | L66: Petroleum | M66: Other fuels | N66: Solar | O66: Solar thermal | P66: Wind | Q66: SCPC | R66: SCPC w/ CCS | S66: SubPC | T66: SubPC w/ CCS | U66: NGCC | V66: NGCC w/ CCS | W66: OxyPC w/ CCS | X66: SOFC Coal Conventional Gasifier w/ CCS | Y66: SOFC NG w/ CCS | Z66: SubPC w/ CCS w/ NG Aux
B67: Eutrophication Potential | C67: =SUM(D67:Z67) -> 0.003386794974 | D67: =generation_mix_calcs!C8 -> 0 | E67: =generation_mix_calcs!D8 -> 0 | F67: =generation_mix_calcs!E8 -> 0 | G67: =generation_mix_calcs!F8 -> 0 | H67: =generation_mix_calcs!G8 -> 0 | I67: =generation_mix_calcs!H8 -> 0 | J67: =generation_mix_calcs!I8 -> 0 | K67: =generation_mix_calcs!J8 -> 0 | L67: =generation_mix_calcs!K8 -> 0 | M67: =generation_mix_calcs!L8 -> 0 | N67: =generation_mix_calcs!M8 -> 0 | O67: =generation_mix_calcs!N8 -> 0 | P67: =generation_mix_calcs!O8 -> 0.003386794974 | Q67: =generation_mix_calcs!P8 -> 0 | R67: =generation_mix_calcs!Q8 -> 0 | S67: =generation_mix_calcs!R8 -> 0 | T67: =generation_mix_calcs!S8 -> 0 | U67: =generation_mix_calcs!T8 -> 0 | V67: =generation_mix_calcs!U8 -> 0 | W67: =generation_mix_calcs!V8 -> 0 | X67: =generation_mix_calcs!W8 -> 0 | Y67: =generation_mix_calcs!X8 -> 0 | Z67: =generation_mix_calcs!Y8 -> 0
B68: Acidification Potential | C68: =SUM(D68:Z68) -> 0.07475713571 | D68: =generation_mix_calcs!C9 -> 0 | E68: =generation_mix_calcs!D9 -> 0 | F68: =generation_mix_calcs!E9 -> 0 | G68: =generation_mix_calcs!F9 -> 0 | H68: =generation_mix_calcs!G9 -> 0 | I68: =generation_mix_calcs!H9 -> 0 | J68: =generation_mix_calcs!I9 -> 0 | K68: =generation_mix_calcs!J9 -> 0 | L68: =generation_mix_calcs!K9 -> 0 | M68: =generation_mix_calcs!L9 -> 0 | N68: =generation_mix_calcs!M9 -> 0 | O68: =generation_mix_calcs!N9 -> 0 | P68: =generation_mix_calcs!O9 -> 0.07475713571 | Q68: =generation_mix_calcs!P9 -> 0 | R68: =generation_mix_calcs!Q9 -> 0 | S68: =generation_mix_calcs!R9 -> 0 | T68: =generation_mix_calcs!S9 -> 0 | U68: =generation_mix_calcs!T9 -> 0 | V68: =generation_mix_calcs!U9 -> 0 | W68: =generation_mix_calcs!V9 -> 0 | X68: =generation_mix_calcs!W9 -> 0 | Y68: =generation_mix_calcs!X9 -> 0 | Z68: =generation_mix_calcs!Y9 -> 0
B69: Particulate Matter Formation Potential | C69: 0.01781950128 | D69: =generation_mix_calcs!C10 -> 0 | E69: =generation_mix_calcs!D10 -> 0 | F69: =generation_mix_calcs!E10 -> 0 | G69: =generation_mix_calcs!F10 -> 0 | H69: =generation_mix_calcs!G10 -> 0 | I69: =generation_mix_calcs!H10 -> 0 | J69: =generation_mix_calcs!I10 -> 0 | K69: =generation_mix_calcs!J10 -> 0 | L69: =generation_mix_calcs!K10 -> 0 | M69: =generation_mix_calcs!L10 -> 0 | N69: =generation_mix_calcs!M10 -> 0 | O69: =generation_mix_calcs!N10 -> 0 | P69: =generation_mix_calcs!O10 -> 0.01781950128 | Q69: =generation_mix_calcs!P10 -> 0 | R69: =generation_mix_calcs!Q10 -> 0 | S69: =generation_mix_calcs!R10 -> 0 | T69: =generation_mix_calcs!S10 -> 0 | U69: =generation_mix_calcs!T10 -> 0 | V69: =generation_mix_calcs!U10 -> 0 | W69: =generation_mix_calcs!V10 -> 0 | X69: =generation_mix_calcs!W10 -> 0 | Y69: =generation_mix_calcs!X10 -> 0 | Z69: =generation_mix_calcs!Y10 -> 0
B70: Photochemical Smog Formation Potential | C70: 0.8076194859 | D70: =generation_mix_calcs!C11 -> 0 | E70: =generation_mix_calcs!D11 -> 0 | F70: =generation_mix_calcs!E11 -> 0 | G70: =generation_mix_calcs!F11 -> 0 | H70: =generation_mix_calcs!G11 -> 0 | I70: =generation_mix_calcs!H11 -> 0 | J70: =generation_mix_calcs!I11 -> 0 | K70: =generation_mix_calcs!J11 -> 0 | L70: =generation_mix_calcs!K11 -> 0 | M70: =generation_mix_calcs!L11 -> 0 | N70: =generation_mix_calcs!M11 -> 0 | O70: =generation_mix_calcs!N11 -> 0 | P70: =generation_mix_calcs!O11 -> 0.8076194859 | Q70: =generation_mix_calcs!P11 -> 0 | R70: =generation_mix_calcs!Q11 -> 0 | S70: =generation_mix_calcs!R11 -> 0 | T70: =generation_mix_calcs!S11 -> 0 | U70: =generation_mix_calcs!T11 -> 0 | V70: =generation_mix_calcs!U11 -> 0 | W70: =generation_mix_calcs!V11 -> 0 | X70: =generation_mix_calcs!W11 -> 0 | Y70: =generation_mix_calcs!X11 -> 0 | Z70: =generation_mix_calcs!Y11 -> 0
B71: Global Warming Potential | C71: 26.72649503 | D71: =generation_mix_calcs!C12 -> 0 | E71: =generation_mix_calcs!D12 -> 0 | F71: =generation_mix_calcs!E12 -> 0 | G71: =generation_mix_calcs!F12 -> 0 | H71: =generation_mix_calcs!G12 -> 0 | I71: =generation_mix_calcs!H12 -> 0 | J71: =generation_mix_calcs!I12 -> 0 | K71: =generation_mix_calcs!J12 -> 0 | L71: =generation_mix_calcs!K12 -> 0 | M71: =generation_mix_calcs!L12 -> 0 | N71: =generation_mix_calcs!M12 -> 0 | O71: =generation_mix_calcs!N12 -> 0 | P71: =generation_mix_calcs!O12 -> 26.72649503 | Q71: =generation_mix_calcs!P12 -> 0 | R71: =generation_mix_calcs!Q12 -> 0 | S71: =generation_mix_calcs!R12 -> 0 | T71: =generation_mix_calcs!S12 -> 0 | U71: =generation_mix_calcs!T12 -> 0 | V71: =generation_mix_calcs!U12 -> 0 | W71: =generation_mix_calcs!V12 -> 0 | X71: =generation_mix_calcs!W12 -> 0 | Y71: =generation_mix_calcs!X12 -> 0 | Z71: =generation_mix_calcs!Y12 -> 0
B72: Ozone Depletion Potential | C72: 1.376360063e-08 | D72: =generation_mix_calcs!C13 -> 0 | E72: =generation_mix_calcs!D13 -> 0 | F72: =generation_mix_calcs!E13 -> 0 | G72: =generation_mix_calcs!F13 -> 0 | H72: =generation_mix_calcs!G13 -> 0 | I72: =generation_mix_calcs!H13 -> 0 | J72: =generation_mix_calcs!I13 -> 0 | K72: =generation_mix_calcs!J13 -> 0 | L72: =generation_mix_calcs!K13 -> 0 | M72: =generation_mix_calcs!L13 -> 0 | N72: =generation_mix_calcs!M13 -> 0 | O72: =generation_mix_calcs!N13 -> 0 | P72: =generation_mix_calcs!O13 -> 1.376360063e-08 | Q72: =generation_mix_calcs!P13 -> 0 | R72: =generation_mix_calcs!Q13 -> 0 | S72: =generation_mix_calcs!R13 -> 0 | T72: =generation_mix_calcs!S13 -> 0 | U72: =generation_mix_calcs!T13 -> 0 | V72: =generation_mix_calcs!U13 -> 0 | W72: =generation_mix_calcs!V13 -> 0 | X72: =generation_mix_calcs!W13 -> 0 | Y72: =generation_mix_calcs!X13 -> 0 | Z72: =generation_mix_calcs!Y13 -> 0
B73: Water Consumption | C73: -10.60079852 | D73: =generation_mix_calcs!C14 -> 0 | E73: =generation_mix_calcs!D14 -> 0 | F73: =generation_mix_calcs!E14 -> 0 | G73: =generation_mix_calcs!F14 -> 0 | H73: =generation_mix_calcs!G14 -> 0 | I73: =generation_mix_calcs!H14 -> 0 | J73: =generation_mix_calcs!I14 -> 0 | K73: =generation_mix_calcs!J14 -> 0 | L73: =generation_mix_calcs!K14 -> 0 | M73: =generation_mix_calcs!L14 -> 0 | N73: =generation_mix_calcs!M14 -> 0 | O73: =generation_mix_calcs!N14 -> 0 | P73: =generation_mix_calcs!O14 -> -10.60079852 | Q73: =generation_mix_calcs!P14 -> 0 | R73: =generation_mix_calcs!Q14 -> 0 | S73: =generation_mix_calcs!R14 -> 0 | T73: =generation_mix_calcs!S14 -> 0 | U73: =generation_mix_calcs!T14 -> 0 | V73: =generation_mix_calcs!U14 -> 0 | W73: =generation_mix_calcs!V14 -> 0 | X73: =generation_mix_calcs!W14 -> 0 | Y73: =generation_mix_calcs!X14 -> 0 | Z73: =generation_mix_calcs!Y14 -> 0
A74: Category | B74: Emission (kg) | C74: Total | D74: Biomass | E74: Coal | F74: Natural gas | G74: Geothermal | H74: Hydro | I74: Mixed | J74: Nuclear | K74: Other fossil | L74: Petroleum | M74: OTHF | N74: Solar | O74: Solar thermal | P74: Wind | Q74: SCPC | R74: SCPC w/ CCS | S74: SubPC | T74: SubPC w/ CCS | U74: NGCC | V74: NGCC w/ CCS | W74: OxyPC w/ CCS | X74: SOFC Coal Conventional Gasifier w/ CCS | Y74: SOFC NG w/ CCS | Z74: SubPC w/ CCS w/ NG Aux
A75: input | B75: Heat | C75: =SUM(D75:Z75) -> 10173.53307 | D75: =generation_mix_calcs!C24 -> 0 | E75: =generation_mix_calcs!D24 -> 0 | F75: =generation_mix_calcs!E24 -> 0 | G75: =generation_mix_calcs!F24 -> 0 | H75: =generation_mix_calcs!G24 -> 0 | I75: =generation_mix_calcs!H24 -> 0 | J75: =generation_mix_calcs!I24 -> 0 | K75: =generation_mix_calcs!J24 -> 0 | L75: =generation_mix_calcs!K24 -> 0 | M75: =generation_mix_calcs!L24 -> 0 | N75: =generation_mix_calcs!M24 -> 0 | O75: =generation_mix_calcs!N24 -> 0 | P75: =generation_mix_calcs!O24 -> 10173.53307 | Q75: =generation_mix_calcs!P24 -> 0 | R75: =generation_mix_calcs!Q24 -> 0 | S75: =generation_mix_calcs!R24 -> 0 | T75: =generation_mix_calcs!S24 -> 0 | U75: =generation_mix_calcs!T24 -> 0 | V75: =generation_mix_calcs!U24 -> 0 | W75: =generation_mix_calcs!V24 -> 0 | X75: =generation_mix_calcs!W24 -> 0 | Y75: =generation_mix_calcs!X24 -> 0 | Z75: =generation_mix_calcs!Y24 -> 0
A76: input | B76: Water | C76: =SUM(D76:Z76) -> 0 | D76: =generation_mix_calcs!C25 -> 0 | E76: =generation_mix_calcs!D25 -> 0 | F76: =generation_mix_calcs!E25 -> 0 | G76: =generation_mix_calcs!F25 -> 0 | H76: =generation_mix_calcs!G25 -> 0 | I76: =generation_mix_calcs!H25 -> 0 | J76: =generation_mix_calcs!I25 -> 0 | K76: =generation_mix_calcs!J25 -> 0 | L76: =generation_mix_calcs!K25 -> 0 | M76: =generation_mix_calcs!L25 -> 0 | N76: =generation_mix_calcs!M25 -> 0 | O76: =generation_mix_calcs!N25 -> 0 | P76: =generation_mix_calcs!O25 -> 0 | Q76: =generation_mix_calcs!P25 -> 0 | R76: =generation_mix_calcs!Q25 -> 0 | S76: =generation_mix_calcs!R25 -> 0 | T76: =generation_mix_calcs!S25 -> 0 | U76: =generation_mix_calcs!T25 -> 0 | V76: =generation_mix_calcs!U25 -> 0 | W76: =generation_mix_calcs!V25 -> 0 | X76: =generation_mix_calcs!W25 -> 0 | Y76: =generation_mix_calcs!X25 -> 0 | Z76: =generation_mix_calcs!Y25 -> 0
A77: input | B77: Water, brackish | C77: 0 | D77: =generation_mix_calcs!C26 -> 0 | E77: =generation_mix_calcs!D26 -> 0 | F77: =generation_mix_calcs!E26 -> 0 | G77: =generation_mix_calcs!F26 -> 0 | H77: =generation_mix_calcs!G26 -> 0 | I77: =generation_mix_calcs!H26 -> 0 | J77: =generation_mix_calcs!I26 -> 0 | K77: =generation_mix_calcs!J26 -> 0 | L77: =generation_mix_calcs!K26 -> 0 | M77: =generation_mix_calcs!L26 -> 0 | N77: =generation_mix_calcs!M26 -> 0 | O77: =generation_mix_calcs!N26 -> 0 | P77: =generation_mix_calcs!O26 -> 0 | Q77: =generation_mix_calcs!P26 -> 0 | R77: =generation_mix_calcs!Q26 -> 0 | S77: =generation_mix_calcs!R26 -> 0 | T77: =generation_mix_calcs!S26 -> 0 | U77: =generation_mix_calcs!T26 -> 0 | V77: =generation_mix_calcs!U26 -> 0 | W77: =generation_mix_calcs!V26 -> 0 | X77: =generation_mix_calcs!W26 -> 0 | Y77: =generation_mix_calcs!X26 -> 0 | Z77: =generation_mix_calcs!Y26 -> 0
A78: input | B78: Water, fresh | C78: 0 | D78: =generation_mix_calcs!C27 -> 0 | E78: =generation_mix_calcs!D27 -> 0 | F78: =generation_mix_calcs!E27 -> 0 | G78: =generation_mix_calcs!F27 -> 0 | H78: =generation_mix_calcs!G27 -> 0 | I78: =generation_mix_calcs!H27 -> 0 | J78: =generation_mix_calcs!I27 -> 0 | K78: =generation_mix_calcs!J27 -> 0 | L78: =generation_mix_calcs!K27 -> 0 | M78: =generation_mix_calcs!L27 -> 0 | N78: =generation_mix_calcs!M27 -> 0 | O78: =generation_mix_calcs!N27 -> 0 | P78: =generation_mix_calcs!O27 -> 0 | Q78: =generation_mix_calcs!P27 -> 0 | R78: =generation_mix_calcs!Q27 -> 0 | S78: =generation_mix_calcs!R27 -> 0 | T78: =generation_mix_calcs!S27 -> 0 | U78: =generation_mix_calcs!T27 -> 0 | V78: =generation_mix_calcs!U27 -> 0 | W78: =generation_mix_calcs!V27 -> 0 | X78: =generation_mix_calcs!W27 -> 0 | Y78: =generation_mix_calcs!X27 -> 0 | Z78: =generation_mix_calcs!Y27 -> 0
A79: input | B79: Water, reclaimed | C79: 0 | D79: =generation_mix_calcs!C28 -> 0 | E79: =generation_mix_calcs!D28 -> 0 | F79: =generation_mix_calcs!E28 -> 0 | G79: =generation_mix_calcs!F28 -> 0 | H79: =generation_mix_calcs!G28 -> 0 | I79: =generation_mix_calcs!H28 -> 0 | J79: =generation_mix_calcs!I28 -> 0 | K79: =generation_mix_calcs!J28 -> 0 | L79: =generation_mix_calcs!K28 -> 0 | M79: =generation_mix_calcs!L28 -> 0 | N79: =generation_mix_calcs!M28 -> 0 | O79: =generation_mix_calcs!N28 -> 0 | P79: =generation_mix_calcs!O28 -> 0 | Q79: =generation_mix_calcs!P28 -> 0 | R79: =generation_mix_calcs!Q28 -> 0 | S79: =generation_mix_calcs!R28 -> 0 | T79: =generation_mix_calcs!S28 -> 0 | U79: =generation_mix_calcs!T28 -> 0 | V79: =generation_mix_calcs!U28 -> 0 | W79: =generation_mix_calcs!V28 -> 0 | X79: =generation_mix_calcs!W28 -> 0 | Y79: =generation_mix_calcs!X28 -> 0 | Z79: =generation_mix_calcs!Y28 -> 0
A80: input | B80: Water, saline | C80: 0 | D80: =generation_mix_calcs!C29 -> 0 | E80: =generation_mix_calcs!D29 -> 0 | F80: =generation_mix_calcs!E29 -> 0 | G80: =generation_mix_calcs!F29 -> 0 | H80: =generation_mix_calcs!G29 -> 0 | I80: =generation_mix_calcs!H29 -> 0 | J80: =generation_mix_calcs!I29 -> 0 | K80: =generation_mix_calcs!J29 -> 0 | L80: =generation_mix_calcs!K29 -> 0 | M80: =generation_mix_calcs!L29 -> 0 | N80: =generation_mix_calcs!M29 -> 0 | O80: =generation_mix_calcs!N29 -> 0 | P80: =generation_mix_calcs!O29 -> 0 | Q80: =generation_mix_calcs!P29 -> 0 | R80: =generation_mix_calcs!Q29 -> 0 | S80: =generation_mix_calcs!R29 -> 0 | T80: =generation_mix_calcs!S29 -> 0 | U80: =generation_mix_calcs!T29 -> 0 | V80: =generation_mix_calcs!U29 -> 0 | W80: =generation_mix_calcs!V29 -> 0 | X80: =generation_mix_calcs!W29 -> 0 | Y80: =generation_mix_calcs!X29 -> 0 | Z80: =generation_mix_calcs!Y29 -> 0
A81: air | B81: (E)-8-Dodecen-1-yl acetate | C81: 7.730685622e-16 | D81: =generation_mix_calcs!C30 -> 0 | E81: =generation_mix_calcs!D30 -> 0 | F81: =generation_mix_calcs!E30 -> 0 | G81: =generation_mix_calcs!F30 -> 0 | H81: =generation_mix_calcs!G30 -> 0 | I81: =generation_mix_calcs!H30 -> 0 | J81: =generation_mix_calcs!I30 -> 0 | K81: =generation_mix_calcs!J30 -> 0 | L81: =generation_mix_calcs!K30 -> 0 | M81: =generation_mix_calcs!L30 -> 0 | N81: =generation_mix_calcs!M30 -> 0 | O81: =generation_mix_calcs!N30 -> 0 | P81: =generation_mix_calcs!O30 -> 7.730685622e-16 | Q81: =generation_mix_calcs!P30 -> 0 | R81: =generation_mix_calcs!Q30 -> 0 | S81: =generation_mix_calcs!R30 -> 0 | T81: =generation_mix_calcs!S30 -> 0 | U81: =generation_mix_calcs!T30 -> 0 | V81: =generation_mix_calcs!U30 -> 0 | W81: =generation_mix_calcs!V30 -> 0 | X81: =generation_mix_calcs!W30 -> 0 | Y81: =generation_mix_calcs!X30 -> 0 | Z81: =generation_mix_calcs!Y30 -> 0
A82: air | B82: (E)-Crotonic acid | C82: 1.426197567e-14 | D82: =generation_mix_calcs!C31 -> 0 | E82: =generation_mix_calcs!D31 -> 0 | F82: =generation_mix_calcs!E31 -> 0 | G82: =generation_mix_calcs!F31 -> 0 | H82: =generation_mix_calcs!G31 -> 0 | I82: =generation_mix_calcs!H31 -> 0 | J82: =generation_mix_calcs!I31 -> 0 | K82: =generation_mix_calcs!J31 -> 0 | L82: =generation_mix_calcs!K31 -> 0 | M82: =generation_mix_calcs!L31 -> 0 | N82: =generation_mix_calcs!M31 -> 0 | O82: =generation_mix_calcs!N31 -> 0 | P82: =generation_mix_calcs!O31 -> 1.426197567e-14 | Q82: =generation_mix_calcs!P31 -> 0 | R82: =generation_mix_calcs!Q31 -> 0 | S82: =generation_mix_calcs!R31 -> 0 | T82: =generation_mix_calcs!S31 -> 0 | U82: =generation_mix_calcs!T31 -> 0 | V82: =generation_mix_calcs!U31 -> 0 | W82: =generation_mix_calcs!V31 -> 0 | X82: =generation_mix_calcs!W31 -> 0 | Y82: =generation_mix_calcs!X31 -> 0 | Z82: =generation_mix_calcs!Y31 -> 0
A83: air | B83: .lambda.-Cyhalothrin | C83: 5.271308473e-12 | D83: =generation_mix_calcs!C32 -> 0 | E83: =generation_mix_calcs!D32 -> 0 | F83: =generation_mix_calcs!E32 -> 0 | G83: =generation_mix_calcs!F32 -> 0 | H83: =generation_mix_calcs!G32 -> 0 | I83: =generation_mix_calcs!H32 -> 0 | J83: =generation_mix_calcs!I32 -> 0 | K83: =generation_mix_calcs!J32 -> 0 | L83: =generation_mix_calcs!K32 -> 0 | M83: =generation_mix_calcs!L32 -> 0 | N83: =generation_mix_calcs!M32 -> 0 | O83: =generation_mix_calcs!N32 -> 0 | P83: =generation_mix_calcs!O32 -> 5.271308473e-12 | Q83: =generation_mix_calcs!P32 -> 0 | R83: =generation_mix_calcs!Q32 -> 0 | S83: =generation_mix_calcs!R32 -> 0 | T83: =generation_mix_calcs!S32 -> 0 | U83: =generation_mix_calcs!T32 -> 0 | V83: =generation_mix_calcs!U32 -> 0 | W83: =generation_mix_calcs!V32 -> 0 | X83: =generation_mix_calcs!W32 -> 0 | Y83: =generation_mix_calcs!X32 -> 0 | Z83: =generation_mix_calcs!Y32 -> 0
A84: air | B84: 1,1,1,2-Tetrachloroethane | C84: 4.88326014e-11 | D84: =generation_mix_calcs!C33 -> 0 | E84: =generation_mix_calcs!D33 -> 0 | F84: =generation_mix_calcs!E33 -> 0 | G84: =generation_mix_calcs!F33 -> 0 | H84: =generation_mix_calcs!G33 -> 0 | I84: =generation_mix_calcs!H33 -> 0 | J84: =generation_mix_calcs!I33 -> 0 | K84: =generation_mix_calcs!J33 -> 0 | L84: =generation_mix_calcs!K33 -> 0 | M84: =generation_mix_calcs!L33 -> 0 | N84: =generation_mix_calcs!M33 -> 0 | O84: =generation_mix_calcs!N33 -> 0 | P84: =generation_mix_calcs!O33 -> 4.88326014e-11 | Q84: =generation_mix_calcs!P33 -> 0 | R84: =generation_mix_calcs!Q33 -> 0 | S84: =generation_mix_calcs!R33 -> 0 | T84: =generation_mix_calcs!S33 -> 0 | U84: =generation_mix_calcs!T33 -> 0 | V84: =generation_mix_calcs!U33 -> 0 | W84: =generation_mix_calcs!V33 -> 0 | X84: =generation_mix_calcs!W33 -> 0 | Y84: =generation_mix_calcs!X33 -> 0 | Z84: =generation_mix_calcs!Y33 -> 0
A85: air | B85: 1,1,1-Trichloroethane | C85: 2.148815849e-08 | D85: =generation_mix_calcs!C34 -> 0 | E85: =generation_mix_calcs!D34 -> 0 | F85: =generation_mix_calcs!E34 -> 0 | G85: =generation_mix_calcs!F34 -> 0 | H85: =generation_mix_calcs!G34 -> 0 | I85: =generation_mix_calcs!H34 -> 0 | J85: =generation_mix_calcs!I34 -> 0 | K85: =generation_mix_calcs!J34 -> 0 | L85: =generation_mix_calcs!K34 -> 0 | M85: =generation_mix_calcs!L34 -> 0 | N85: =generation_mix_calcs!M34 -> 0 | O85: =generation_mix_calcs!N34 -> 0 | P85: =generation_mix_calcs!O34 -> 2.148815849e-08 | Q85: =generation_mix_calcs!P34 -> 0 | R85: =generation_mix_calcs!Q34 -> 0 | S85: =generation_mix_calcs!R34 -> 0 | T85: =generation_mix_calcs!S34 -> 0 | U85: =generation_mix_calcs!T34 -> 0 | V85: =generation_mix_calcs!U34 -> 0 | W85: =generation_mix_calcs!V34 -> 0 | X85: =generation_mix_calcs!W34 -> 0 | Y85: =generation_mix_calcs!X34 -> 0 | Z85: =generation_mix_calcs!Y34 -> 0
A86: air | B86: 1,1,2,2-Tetrachloroethane | C86: 2.478647053e-10 | D86: =generation_mix_calcs!C35 -> 0 | E86: =generation_mix_calcs!D35 -> 0 | F86: =generation_mix_calcs!E35 -> 0 | G86: =generation_mix_calcs!F35 -> 0 | H86: =generation_mix_calcs!G35 -> 0 | I86: =generation_mix_calcs!H35 -> 0 | J86: =generation_mix_calcs!I35 -> 0 | K86: =generation_mix_calcs!J35 -> 0 | L86: =generation_mix_calcs!K35 -> 0 | M86: =generation_mix_calcs!L35 -> 0 | N86: =generation_mix_calcs!M35 -> 0 | O86: =generation_mix_calcs!N35 -> 0 | P86: =generation_mix_calcs!O35 -> 2.478647053e-10 | Q86: =generation_mix_calcs!P35 -> 0 | R86: =generation_mix_calcs!Q35 -> 0 | S86: =generation_mix_calcs!R35 -> 0 | T86: =generation_mix_calcs!S35 -> 0 | U86: =generation_mix_calcs!T35 -> 0 | V86: =generation_mix_calcs!U35 -> 0 | W86: =generation_mix_calcs!V35 -> 0 | X86: =generation_mix_calcs!W35 -> 0 | Y86: =generation_mix_calcs!X35 -> 0 | Z86: =generation_mix_calcs!Y35 -> 0
A87: air | B87: 1,1,2-Trichloroethane | C87: 6.515788753e-10 | D87: =generation_mix_calcs!C36 -> 0 | E87: =generation_mix_calcs!D36 -> 0 | F87: =generation_mix_calcs!E36 -> 0 | G87: =generation_mix_calcs!F36 -> 0 | H87: =generation_mix_calcs!G36 -> 0 | I87: =generation_mix_calcs!H36 -> 0 | J87: =generation_mix_calcs!I36 -> 0 | K87: =generation_mix_calcs!J36 -> 0 | L87: =generation_mix_calcs!K36 -> 0 | M87: =generation_mix_calcs!L36 -> 0 | N87: =generation_mix_calcs!M36 -> 0 | O87: =generation_mix_calcs!N36 -> 0 | P87: =generation_mix_calcs!O36 -> 6.515788753e-10 | Q87: =generation_mix_calcs!P36 -> 0 | R87: =generation_mix_calcs!Q36 -> 0 | S87: =generation_mix_calcs!R36 -> 0 | T87: =generation_mix_calcs!S36 -> 0 | U87: =generation_mix_calcs!T36 -> 0 | V87: =generation_mix_calcs!U36 -> 0 | W87: =generation_mix_calcs!V36 -> 0 | X87: =generation_mix_calcs!W36 -> 0 | Y87: =generation_mix_calcs!X36 -> 0 | Z87: =generation_mix_calcs!Y36 -> 0
A88: air | B88: 1,1-Dichloroethane | C88: 4.011340812e-15 | D88: =generation_mix_calcs!C37 -> 0 | E88: =generation_mix_calcs!D37 -> 0 | F88: =generation_mix_calcs!E37 -> 0 | G88: =generation_mix_calcs!F37 -> 0 | H88: =generation_mix_calcs!G37 -> 0 | I88: =generation_mix_calcs!H37 -> 0 | J88: =generation_mix_calcs!I37 -> 0 | K88: =generation_mix_calcs!J37 -> 0 | L88: =generation_mix_calcs!K37 -> 0 | M88: =generation_mix_calcs!L37 -> 0 | N88: =generation_mix_calcs!M37 -> 0 | O88: =generation_mix_calcs!N37 -> 0 | P88: =generation_mix_calcs!O37 -> 4.011340812e-15 | Q88: =generation_mix_calcs!P37 -> 0 | R88: =generation_mix_calcs!Q37 -> 0 | S88: =generation_mix_calcs!R37 -> 0 | T88: =generation_mix_calcs!S37 -> 0 | U88: =generation_mix_calcs!T37 -> 0 | V88: =generation_mix_calcs!U37 -> 0 | W88: =generation_mix_calcs!V37 -> 0 | X88: =generation_mix_calcs!W37 -> 0 | Y88: =generation_mix_calcs!X37 -> 0 | Z88: =generation_mix_calcs!Y37 -> 0
A89: air | B89: 1,1-Dichloroethylene | C89: 1.102366735e-09 | D89: =generation_mix_calcs!C38 -> 0 | E89: =generation_mix_calcs!D38 -> 0 | F89: =generation_mix_calcs!E38 -> 0 | G89: =generation_mix_calcs!F38 -> 0 | H89: =generation_mix_calcs!G38 -> 0 | I89: =generation_mix_calcs!H38 -> 0 | J89: =generation_mix_calcs!I38 -> 0 | K89: =generation_mix_calcs!J38 -> 0 | L89: =generation_mix_calcs!K38 -> 0 | M89: =generation_mix_calcs!L38 -> 0 | N89: =generation_mix_calcs!M38 -> 0 | O89: =generation_mix_calcs!N38 -> 0 | P89: =generation_mix_calcs!O38 -> 1.102366735e-09 | Q89: =generation_mix_calcs!P38 -> 0 | R89: =generation_mix_calcs!Q38 -> 0 | S89: =generation_mix_calcs!R38 -> 0 | T89: =generation_mix_calcs!S38 -> 0 | U89: =generation_mix_calcs!T38 -> 0 | V89: =generation_mix_calcs!U38 -> 0 | W89: =generation_mix_calcs!V38 -> 0 | X89: =generation_mix_calcs!W38 -> 0 | Y89: =generation_mix_calcs!X38 -> 0 | Z89: =generation_mix_calcs!Y38 -> 0
A90: air | B90: 1,1-Dimethylhydrazine | C90: 1.560296946e-14 | D90: =generation_mix_calcs!C39 -> 0 | E90: =generation_mix_calcs!D39 -> 0 | F90: =generation_mix_calcs!E39 -> 0 | G90: =generation_mix_calcs!F39 -> 0 | H90: =generation_mix_calcs!G39 -> 0 | I90: =generation_mix_calcs!H39 -> 0 | J90: =generation_mix_calcs!I39 -> 0 | K90: =generation_mix_calcs!J39 -> 0 | L90: =generation_mix_calcs!K39 -> 0 | M90: =generation_mix_calcs!L39 -> 0 | N90: =generation_mix_calcs!M39 -> 0 | O90: =generation_mix_calcs!N39 -> 0 | P90: =generation_mix_calcs!O39 -> 1.560296946e-14 | Q90: =generation_mix_calcs!P39 -> 0 | R90: =generation_mix_calcs!Q39 -> 0 | S90: =generation_mix_calcs!R39 -> 0 | T90: =generation_mix_calcs!S39 -> 0 | U90: =generation_mix_calcs!T39 -> 0 | V90: =generation_mix_calcs!U39 -> 0 | W90: =generation_mix_calcs!V39 -> 0 | X90: =generation_mix_calcs!W39 -> 0 | Y90: =generation_mix_calcs!X39 -> 0 | Z90: =generation_mix_calcs!Y39 -> 0
A91: air | B91: 1,2,3,4,6,7,8,9-Octachlorodibenzo-p-dioxin | C91: 9.155776268e-19 | D91: =generation_mix_calcs!C40 -> 0 | E91: =generation_mix_calcs!D40 -> 0 | F91: =generation_mix_calcs!E40 -> 0 | G91: =generation_mix_calcs!F40 -> 0 | H91: =generation_mix_calcs!G40 -> 0 | I91: =generation_mix_calcs!H40 -> 0 | J91: =generation_mix_calcs!I40 -> 0 | K91: =generation_mix_calcs!J40 -> 0 | L91: =generation_mix_calcs!K40 -> 0 | M91: =generation_mix_calcs!L40 -> 0 | N91: =generation_mix_calcs!M40 -> 0 | O91: =generation_mix_calcs!N40 -> 0 | P91: =generation_mix_calcs!O40 -> 9.155776268e-19 | Q91: =generation_mix_calcs!P40 -> 0 | R91: =generation_mix_calcs!Q40 -> 0 | S91: =generation_mix_calcs!R40 -> 0 | T91: =generation_mix_calcs!S40 -> 0 | U91: =generation_mix_calcs!T40 -> 0 | V91: =generation_mix_calcs!U40 -> 0 | W91: =generation_mix_calcs!V40 -> 0 | X91: =generation_mix_calcs!W40 -> 0 | Y91: =generation_mix_calcs!X40 -> 0 | Z91: =generation_mix_calcs!Y40 -> 0
A92: air | B92: 1,2,3,4,6,7,8,9-Octachlorodibenzofuran | C92: 5.938982527e-19 | D92: =generation_mix_calcs!C41 -> 0 | E92: =generation_mix_calcs!D41 -> 0 | F92: =generation_mix_calcs!E41 -> 0 | G92: =generation_mix_calcs!F41 -> 0 | H92: =generation_mix_calcs!G41 -> 0 | I92: =generation_mix_calcs!H41 -> 0 | J92: =generation_mix_calcs!I41 -> 0 | K92: =generation_mix_calcs!J41 -> 0 | L92: =generation_mix_calcs!K41 -> 0 | M92: =generation_mix_calcs!L41 -> 0 | N92: =generation_mix_calcs!M41 -> 0 | O92: =generation_mix_calcs!N41 -> 0 | P92: =generation_mix_calcs!O41 -> 5.938982527e-19 | Q92: =generation_mix_calcs!P41 -> 0 | R92: =generation_mix_calcs!Q41 -> 0 | S92: =generation_mix_calcs!R41 -> 0 | T92: =generation_mix_calcs!S41 -> 0 | U92: =generation_mix_calcs!T41 -> 0 | V92: =generation_mix_calcs!U41 -> 0 | W92: =generation_mix_calcs!V41 -> 0 | X92: =generation_mix_calcs!W41 -> 0 | Y92: =generation_mix_calcs!X41 -> 0 | Z92: =generation_mix_calcs!Y41 -> 0
A93: air | B93: 1,2,3,4,6,7,8-Heptachlorodibenzo-p-dioxin | C93: 5.75449977e-19 | D93: =generation_mix_calcs!C42 -> 0 | E93: =generation_mix_calcs!D42 -> 0 | F93: =generation_mix_calcs!E42 -> 0 | G93: =generation_mix_calcs!F42 -> 0 | H93: =generation_mix_calcs!G42 -> 0 | I93: =generation_mix_calcs!H42 -> 0 | J93: =generation_mix_calcs!I42 -> 0 | K93: =generation_mix_calcs!J42 -> 0 | L93: =generation_mix_calcs!K42 -> 0 | M93: =generation_mix_calcs!L42 -> 0 | N93: =generation_mix_calcs!M42 -> 0 | O93: =generation_mix_calcs!N42 -> 0 | P93: =generation_mix_calcs!O42 -> 5.75449977e-19 | Q93: =generation_mix_calcs!P42 -> 0 | R93: =generation_mix_calcs!Q42 -> 0 | S93: =generation_mix_calcs!R42 -> 0 | T93: =generation_mix_calcs!S42 -> 0 | U93: =generation_mix_calcs!T42 -> 0 | V93: =generation_mix_calcs!U42 -> 0 | W93: =generation_mix_calcs!V42 -> 0 | X93: =generation_mix_calcs!W42 -> 0 | Y93: =generation_mix_calcs!X42 -> 0 | Z93: =generation_mix_calcs!Y42 -> 0
A94: air | B94: 1,2,3,4,6,7,8-Heptachlorodibenzofuran | C94: 2.110923332e-18 | D94: =generation_mix_calcs!C43 -> 0 | E94: =generation_mix_calcs!D43 -> 0 | F94: =generation_mix_calcs!E43 -> 0 | G94: =generation_mix_calcs!F43 -> 0 | H94: =generation_mix_calcs!G43 -> 0 | I94: =generation_mix_calcs!H43 -> 0 | J94: =generation_mix_calcs!I43 -> 0 | K94: =generation_mix_calcs!J43 -> 0 | L94: =generation_mix_calcs!K43 -> 0 | M94: =generation_mix_calcs!L43 -> 0 | N94: =generation_mix_calcs!M43 -> 0 | O94: =generation_mix_calcs!N43 -> 0 | P94: =generation_mix_calcs!O43 -> 2.110923332e-18 | Q94: =generation_mix_calcs!P43 -> 0 | R94: =generation_mix_calcs!Q43 -> 0 | S94: =generation_mix_calcs!R43 -> 0 | T94: =generation_mix_calcs!S43 -> 0 | U94: =generation_mix_calcs!T43 -> 0 | V94: =generation_mix_calcs!U43 -> 0 | W94: =generation_mix_calcs!V43 -> 0 | X94: =generation_mix_calcs!W43 -> 0 | Y94: =generation_mix_calcs!X43 -> 0 | Z94: =generation_mix_calcs!Y43 -> 0
A95: air | B95: 1,2,3,4,7,8,9-Heptachlorodibenzofuran | C95: 3.794732911e-19 | D95: =generation_mix_calcs!C44 -> 0 | E95: =generation_mix_calcs!D44 -> 0 | F95: =generation_mix_calcs!E44 -> 0 | G95: =generation_mix_calcs!F44 -> 0 | H95: =generation_mix_calcs!G44 -> 0 | I95: =generation_mix_calcs!H44 -> 0 | J95: =generation_mix_calcs!I44 -> 0 | K95: =generation_mix_calcs!J44 -> 0 | L95: =generation_mix_calcs!K44 -> 0 | M95: =generation_mix_calcs!L44 -> 0 | N95: =generation_mix_calcs!M44 -> 0 | O95: =generation_mix_calcs!N44 -> 0 | P95: =generation_mix_calcs!O44 -> 3.794732911e-19 | Q95: =generation_mix_calcs!P44 -> 0 | R95: =generation_mix_calcs!Q44 -> 0 | S95: =generation_mix_calcs!R44 -> 0 | T95: =generation_mix_calcs!S44 -> 0 | U95: =generation_mix_calcs!T44 -> 0 | V95: =generation_mix_calcs!U44 -> 0 | W95: =generation_mix_calcs!V44 -> 0 | X95: =generation_mix_calcs!W44 -> 0 | Y95: =generation_mix_calcs!X44 -> 0 | Z95: =generation_mix_calcs!Y44 -> 0
A96: air | B96: 1,2,3,4,7,8-Hexachlorodibenzo-p-dioxin | C96: 1.211253461e-19 | D96: =generation_mix_calcs!C45 -> 0 | E96: =generation_mix_calcs!D45 -> 0 | F96: =generation_mix_calcs!E45 -> 0 | G96: =generation_mix_calcs!F45 -> 0 | H96: =generation_mix_calcs!G45 -> 0 | I96: =generation_mix_calcs!H45 -> 0 | J96: =generation_mix_calcs!I45 -> 0 | K96: =generation_mix_calcs!J45 -> 0 | L96: =generation_mix_calcs!K45 -> 0 | M96: =generation_mix_calcs!L45 -> 0 | N96: =generation_mix_calcs!M45 -> 0 | O96: =generation_mix_calcs!N45 -> 0 | P96: =generation_mix_calcs!O45 -> 1.211253461e-19 | Q96: =generation_mix_calcs!P45 -> 0 | R96: =generation_mix_calcs!Q45 -> 0 | S96: =generation_mix_calcs!R45 -> 0 | T96: =generation_mix_calcs!S45 -> 0 | U96: =generation_mix_calcs!T45 -> 0 | V96: =generation_mix_calcs!U45 -> 0 | W96: =generation_mix_calcs!V45 -> 0 | X96: =generation_mix_calcs!W45 -> 0 | Y96: =generation_mix_calcs!X45 -> 0 | Z96: =generation_mix_calcs!Y45 -> 0
A97: air | B97: 1,2,3,4,7,8-Hexachlorodibenzofuran | C97: 7.759940884e-19 | D97: =generation_mix_calcs!C46 -> 0 | E97: =generation_mix_calcs!D46 -> 0 | F97: =generation_mix_calcs!E46 -> 0 | G97: =generation_mix_calcs!F46 -> 0 | H97: =generation_mix_calcs!G46 -> 0 | I97: =generation_mix_calcs!H46 -> 0 | J97: =generation_mix_calcs!I46 -> 0 | K97: =generation_mix_calcs!J46 -> 0 | L97: =generation_mix_calcs!K46 -> 0 | M97: =generation_mix_calcs!L46 -> 0 | N97: =generation_mix_calcs!M46 -> 0 | O97: =generation_mix_calcs!N46 -> 0 | P97: =generation_mix_calcs!O46 -> 7.759940884e-19 | Q97: =generation_mix_calcs!P46 -> 0 | R97: =generation_mix_calcs!Q46 -> 0 | S97: =generation_mix_calcs!R46 -> 0 | T97: =generation_mix_calcs!S46 -> 0 | U97: =generation_mix_calcs!T46 -> 0 | V97: =generation_mix_calcs!U46 -> 0 | W97: =generation_mix_calcs!V46 -> 0 | X97: =generation_mix_calcs!W46 -> 0 | Y97: =generation_mix_calcs!X46 -> 0 | Z97: =generation_mix_calcs!Y46 -> 0
A98: air | B98: 1,2,3,6,7,8-Hexachlorodibenzo-p-dioxin | C98: 1.748892942e-19 | D98: =generation_mix_calcs!C47 -> 0 | E98: =generation_mix_calcs!D47 -> 0 | F98: =generation_mix_calcs!E47 -> 0 | G98: =generation_mix_calcs!F47 -> 0 | H98: =generation_mix_calcs!G47 -> 0 | I98: =generation_mix_calcs!H47 -> 0 | J98: =generation_mix_calcs!I47 -> 0 | K98: =generation_mix_calcs!J47 -> 0 | L98: =generation_mix_calcs!K47 -> 0 | M98: =generation_mix_calcs!L47 -> 0 | N98: =generation_mix_calcs!M47 -> 0 | O98: =generation_mix_calcs!N47 -> 0 | P98: =generation_mix_calcs!O47 -> 1.748892942e-19 | Q98: =generation_mix_calcs!P47 -> 0 | R98: =generation_mix_calcs!Q47 -> 0 | S98: =generation_mix_calcs!R47 -> 0 | T98: =generation_mix_calcs!S47 -> 0 | U98: =generation_mix_calcs!T47 -> 0 | V98: =generation_mix_calcs!U47 -> 0 | W98: =generation_mix_calcs!V47 -> 0 | X98: =generation_mix_calcs!W47 -> 0 | Y98: =generation_mix_calcs!X47 -> 0 | Z98: =generation_mix_calcs!Y47 -> 0
A99: air | B99: 1,2,3,6,7,8-Hexachlorodibenzofuran | C99: 8.379368341e-19 | D99: =generation_mix_calcs!C48 -> 0 | E99: =generation_mix_calcs!D48 -> 0 | F99: =generation_mix_calcs!E48 -> 0 | G99: =generation_mix_calcs!F48 -> 0 | H99: =generation_mix_calcs!G48 -> 0 | I99: =generation_mix_calcs!H48 -> 0 | J99: =generation_mix_calcs!I48 -> 0 | K99: =generation_mix_calcs!J48 -> 0 | L99: =generation_mix_calcs!K48 -> 0 | M99: =generation_mix_calcs!L48 -> 0 | N99: =generation_mix_calcs!M48 -> 0 | O99: =generation_mix_calcs!N48 -> 0 | P99: =generation_mix_calcs!O48 -> 8.379368341e-19 | Q99: =generation_mix_calcs!P48 -> 0 | R99: =generation_mix_calcs!Q48 -> 0 | S99: =generation_mix_calcs!R48 -> 0 | T99: =generation_mix_calcs!S48 -> 0 | U99: =generation_mix_calcs!T48 -> 0 | V99: =generation_mix_calcs!U48 -> 0 | W99: =generation_mix_calcs!V48 -> 0 | X99: =generation_mix_calcs!W48 -> 0 | Y99: =generation_mix_calcs!X48 -> 0 | Z99: =generation_mix_calcs!Y48 -> 0
A100: air | B100: 1,2,3,7,8,9-Hexachlorodibenzo-p-dioxin | C100: 1.386721805e-19 | D100: =generation_mix_calcs!C49 -> 0 | E100: =generation_mix_calcs!D49 -> 0 | F100: =generation_mix_calcs!E49 -> 0 | G100: =generation_mix_calcs!F49 -> 0 | H100: =generation_mix_calcs!G49 -> 0 | I100: =generation_mix_calcs!H49 -> 0 | J100: =generation_mix_calcs!I49 -> 0 | K100: =generation_mix_calcs!J49 -> 0 | L100: =generation_mix_calcs!K49 -> 0 | M100: =generation_mix_calcs!L49 -> 0 | N100: =generation_mix_calcs!M49 -> 0 | O100: =generation_mix_calcs!N49 -> 0 | P100: =generation_mix_calcs!O49 -> 1.386721805e-19 | Q100: =generation_mix_calcs!P49 -> 0 | R100: =generation_mix_calcs!Q49 -> 0 | S100: =generation_mix_calcs!R49 -> 0 | T100: =generation_mix_calcs!S49 -> 0 | U100: =generation_mix_calcs!T49 -> 0 | V100: =generation_mix_calcs!U49 -> 0 | W100: =generation_mix_calcs!V49 -> 0 | X100: =generation_mix_calcs!W49 -> 0 | Y100: =generation_mix_calcs!X49 -> 0 | Z100: =generation_mix_calcs!Y49 -> 0
A101: air | B101: 1,2,3,7,8,9-Hexachlorodibenzofuran | C101: 3.18375734e-19 | D101: =generation_mix_calcs!C50 -> 0 | E101: =generation_mix_calcs!D50 -> 0 | F101: =generation_mix_calcs!E50 -> 0 | G101: =generation_mix_calcs!F50 -> 0 | H101: =generation_mix_calcs!G50 -> 0 | I101: =generation_mix_calcs!H50 -> 0 | J101: =generation_mix_calcs!I50 -> 0 | K101: =generation_mix_calcs!J50 -> 0 | L101: =generation_mix_calcs!K50 -> 0 | M101: =generation_mix_calcs!L50 -> 0 | N101: =generation_mix_calcs!M50 -> 0 | O101: =generation_mix_calcs!N50 -> 0 | P101: =generation_mix_calcs!O50 -> 3.18375734e-19 | Q101: =generation_mix_calcs!P50 -> 0 | R101: =generation_mix_calcs!Q50 -> 0 | S101: =generation_mix_calcs!R50 -> 0 | T101: =generation_mix_calcs!S50 -> 0 | U101: =generation_mix_calcs!T50 -> 0 | V101: =generation_mix_calcs!U50 -> 0 | W101: =generation_mix_calcs!V50 -> 0 | X101: =generation_mix_calcs!W50 -> 0 | Y101: =generation_mix_calcs!X50 -> 0 | Z101: =generation_mix_calcs!Y50 -> 0
A102: air | B102: 1,2,3,7,8-Pentachlorodibenzo-p-dioxin | C102: 1.22871064e-19 | D102: =generation_mix_calcs!C51 -> 0 | E102: =generation_mix_calcs!D51 -> 0 | F102: =generation_mix_calcs!E51 -> 0 | G102: =generation_mix_calcs!F51 -> 0 | H102: =generation_mix_calcs!G51 -> 0 | I102: =generation_mix_calcs!H51 -> 0 | J102: =generation_mix_calcs!I51 -> 0 | K102: =generation_mix_calcs!J51 -> 0 | L102: =generation_mix_calcs!K51 -> 0 | M102: =generation_mix_calcs!L51 -> 0 | N102: =generation_mix_calcs!M51 -> 0 | O102: =generation_mix_calcs!N51 -> 0 | P102: =generation_mix_calcs!O51 -> 1.22871064e-19 | Q102: =generation_mix_calcs!P51 -> 0 | R102: =generation_mix_calcs!Q51 -> 0 | S102: =generation_mix_calcs!R51 -> 0 | T102: =generation_mix_calcs!S51 -> 0 | U102: =generation_mix_calcs!T51 -> 0 | V102: =generation_mix_calcs!U51 -> 0 | W102: =generation_mix_calcs!V51 -> 0 | X102: =generation_mix_calcs!W51 -> 0 | Y102: =generation_mix_calcs!X51 -> 0 | Z102: =generation_mix_calcs!Y51 -> 0
A103: air | B103: 1,2,3,7,8-Pentachlorodibenzofuran | C103: 7.495677798e-19 | D103: =generation_mix_calcs!C52 -> 0 | E103: =generation_mix_calcs!D52 -> 0 | F103: =generation_mix_calcs!E52 -> 0 | G103: =generation_mix_calcs!F52 -> 0 | H103: =generation_mix_calcs!G52 -> 0 | I103: =generation_mix_calcs!H52 -> 0 | J103: =generation_mix_calcs!I52 -> 0 | K103: =generation_mix_calcs!J52 -> 0 | L103: =generation_mix_calcs!K52 -> 0 | M103: =generation_mix_calcs!L52 -> 0 | N103: =generation_mix_calcs!M52 -> 0 | O103: =generation_mix_calcs!N52 -> 0 | P103: =generation_mix_calcs!O52 -> 7.495677798e-19 | Q103: =generation_mix_calcs!P52 -> 0 | R103: =generation_mix_calcs!Q52 -> 0 | S103: =generation_mix_calcs!R52 -> 0 | T103: =generation_mix_calcs!S52 -> 0 | U103: =generation_mix_calcs!T52 -> 0 | V103: =generation_mix_calcs!U52 -> 0 | W103: =generation_mix_calcs!V52 -> 0 | X103: =generation_mix_calcs!W52 -> 0 | Y103: =generation_mix_calcs!X52 -> 0 | Z103: =generation_mix_calcs!Y52 -> 0
A104: air | B104: 1,2,3-Trichloropropane | C104: 0 | D104: =generation_mix_calcs!C53 -> 0 | E104: =generation_mix_calcs!D53 -> 0 | F104: =generation_mix_calcs!E53 -> 0 | G104: =generation_mix_calcs!F53 -> 0 | H104: =generation_mix_calcs!G53 -> 0 | I104: =generation_mix_calcs!H53 -> 0 | J104: =generation_mix_calcs!I53 -> 0 | K104: =generation_mix_calcs!J53 -> 0 | L104: =generation_mix_calcs!K53 -> 0 | M104: =generation_mix_calcs!L53 -> 0 | N104: =generation_mix_calcs!M53 -> 0 | O104: =generation_mix_calcs!N53 -> 0 | P104: =generation_mix_calcs!O53 -> 0 | Q104: =generation_mix_calcs!P53 -> 0 | R104: =generation_mix_calcs!Q53 -> 0 | S104: =generation_mix_calcs!R53 -> 0 | T104: =generation_mix_calcs!S53 -> 0 | U104: =generation_mix_calcs!T53 -> 0 | V104: =generation_mix_calcs!U53 -> 0 | W104: =generation_mix_calcs!V53 -> 0 | X104: =generation_mix_calcs!W53 -> 0 | Y104: =generation_mix_calcs!X53 -> 0 | Z104: =generation_mix_calcs!Y53 -> 0
A105: air | B105: 1,2,3-Trimethylbenzene | C105: 2.834754639e-23 | D105: =generation_mix_calcs!C54 -> 0 | E105: =generation_mix_calcs!D54 -> 0 | F105: =generation_mix_calcs!E54 -> 0 | G105: =generation_mix_calcs!F54 -> 0 | H105: =generation_mix_calcs!G54 -> 0 | I105: =generation_mix_calcs!H54 -> 0 | J105: =generation_mix_calcs!I54 -> 0 | K105: =generation_mix_calcs!J54 -> 0 | L105: =generation_mix_calcs!K54 -> 0 | M105: =generation_mix_calcs!L54 -> 0 | N105: =generation_mix_calcs!M54 -> 0 | O105: =generation_mix_calcs!N54 -> 0 | P105: =generation_mix_calcs!O54 -> 2.834754639e-23 | Q105: =generation_mix_calcs!P54 -> 0 | R105: =generation_mix_calcs!Q54 -> 0 | S105: =generation_mix_calcs!R54 -> 0 | T105: =generation_mix_calcs!S54 -> 0 | U105: =generation_mix_calcs!T54 -> 0 | V105: =generation_mix_calcs!U54 -> 0 | W105: =generation_mix_calcs!V54 -> 0 | X105: =generation_mix_calcs!W54 -> 0 | Y105: =generation_mix_calcs!X54 -> 0 | Z105: =generation_mix_calcs!Y54 -> 0
A106: air | B106: 1,2,4-Trichlorobenzene | C106: 1.864258838e-10 | D106: =generation_mix_calcs!C55 -> 0 | E106: =generation_mix_calcs!D55 -> 0 | F106: =generation_mix_calcs!E55 -> 0 | G106: =generation_mix_calcs!F55 -> 0 | H106: =generation_mix_calcs!G55 -> 0 | I106: =generation_mix_calcs!H55 -> 0 | J106: =generation_mix_calcs!I55 -> 0 | K106: =generation_mix_calcs!J55 -> 0 | L106: =generation_mix_calcs!K55 -> 0 | M106: =generation_mix_calcs!L55 -> 0 | N106: =generation_mix_calcs!M55 -> 0 | O106: =generation_mix_calcs!N55 -> 0 | P106: =generation_mix_calcs!O55 -> 1.864258838e-10 | Q106: =generation_mix_calcs!P55 -> 0 | R106: =generation_mix_calcs!Q55 -> 0 | S106: =generation_mix_calcs!R55 -> 0 | T106: =generation_mix_calcs!S55 -> 0 | U106: =generation_mix_calcs!T55 -> 0 | V106: =generation_mix_calcs!U55 -> 0 | W106: =generation_mix_calcs!V55 -> 0 | X106: =generation_mix_calcs!W55 -> 0 | Y106: =generation_mix_calcs!X55 -> 0 | Z106: =generation_mix_calcs!Y55 -> 0
A107: air | B107: 1,2,4-Trimethylbenzene | C107: 9.152899593e-07 | D107: =generation_mix_calcs!C56 -> 0 | E107: =generation_mix_calcs!D56 -> 0 | F107: =generation_mix_calcs!E56 -> 0 | G107: =generation_mix_calcs!F56 -> 0 | H107: =generation_mix_calcs!G56 -> 0 | I107: =generation_mix_calcs!H56 -> 0 | J107: =generation_mix_calcs!I56 -> 0 | K107: =generation_mix_calcs!J56 -> 0 | L107: =generation_mix_calcs!K56 -> 0 | M107: =generation_mix_calcs!L56 -> 0 | N107: =generation_mix_calcs!M56 -> 0 | O107: =generation_mix_calcs!N56 -> 0 | P107: =generation_mix_calcs!O56 -> 9.152899593e-07 | Q107: =generation_mix_calcs!P56 -> 0 | R107: =generation_mix_calcs!Q56 -> 0 | S107: =generation_mix_calcs!R56 -> 0 | T107: =generation_mix_calcs!S56 -> 0 | U107: =generation_mix_calcs!T56 -> 0 | V107: =generation_mix_calcs!U56 -> 0 | W107: =generation_mix_calcs!V56 -> 0 | X107: =generation_mix_calcs!W56 -> 0 | Y107: =generation_mix_calcs!X56 -> 0 | Z107: =generation_mix_calcs!Y56 -> 0
A108: air | B108: 1,2-Butylene oxide | C108: 2.869449364e-10 | D108: =generation_mix_calcs!C57 -> 0 | E108: =generation_mix_calcs!D57 -> 0 | F108: =generation_mix_calcs!E57 -> 0 | G108: =generation_mix_calcs!F57 -> 0 | H108: =generation_mix_calcs!G57 -> 0 | I108: =generation_mix_calcs!H57 -> 0 | J108: =generation_mix_calcs!I57 -> 0 | K108: =generation_mix_calcs!J57 -> 0 | L108: =generation_mix_calcs!K57 -> 0 | M108: =generation_mix_calcs!L57 -> 0 | N108: =generation_mix_calcs!M57 -> 0 | O108: =generation_mix_calcs!N57 -> 0 | P108: =generation_mix_calcs!O57 -> 2.869449364e-10 | Q108: =generation_mix_calcs!P57 -> 0 | R108: =generation_mix_calcs!Q57 -> 0 | S108: =generation_mix_calcs!R57 -> 0 | T108: =generation_mix_calcs!S57 -> 0 | U108: =generation_mix_calcs!T57 -> 0 | V108: =generation_mix_calcs!U57 -> 0 | W108: =generation_mix_calcs!V57 -> 0 | X108: =generation_mix_calcs!W57 -> 0 | Y108: =generation_mix_calcs!X57 -> 0 | Z108: =generation_mix_calcs!Y57 -> 0
A109: air | B109: 1,2-Dibromo-3-chloropropane | C109: 2.324501853e-13 | D109: =generation_mix_calcs!C58 -> 0 | E109: =generation_mix_calcs!D58 -> 0 | F109: =generation_mix_calcs!E58 -> 0 | G109: =generation_mix_calcs!F58 -> 0 | H109: =generation_mix_calcs!G58 -> 0 | I109: =generation_mix_calcs!H58 -> 0 | J109: =generation_mix_calcs!I58 -> 0 | K109: =generation_mix_calcs!J58 -> 0 | L109: =generation_mix_calcs!K58 -> 0 | M109: =generation_mix_calcs!L58 -> 0 | N109: =generation_mix_calcs!M58 -> 0 | O109: =generation_mix_calcs!N58 -> 0 | P109: =generation_mix_calcs!O58 -> 2.324501853e-13 | Q109: =generation_mix_calcs!P58 -> 0 | R109: =generation_mix_calcs!Q58 -> 0 | S109: =generation_mix_calcs!R58 -> 0 | T109: =generation_mix_calcs!S58 -> 0 | U109: =generation_mix_calcs!T58 -> 0 | V109: =generation_mix_calcs!U58 -> 0 | W109: =generation_mix_calcs!V58 -> 0 | X109: =generation_mix_calcs!W58 -> 0 | Y109: =generation_mix_calcs!X58 -> 0 | Z109: =generation_mix_calcs!Y58 -> 0
A110: air | B110: 1,2-Dichloroethane | C110: 7.698399271e-09 | D110: =generation_mix_calcs!C59 -> 0 | E110: =generation_mix_calcs!D59 -> 0 | F110: =generation_mix_calcs!E59 -> 0 | G110: =generation_mix_calcs!F59 -> 0 | H110: =generation_mix_calcs!G59 -> 0 | I110: =generation_mix_calcs!H59 -> 0 | J110: =generation_mix_calcs!I59 -> 0 | K110: =generation_mix_calcs!J59 -> 0 | L110: =generation_mix_calcs!K59 -> 0 | M110: =generation_mix_calcs!L59 -> 0 | N110: =generation_mix_calcs!M59 -> 0 | O110: =generation_mix_calcs!N59 -> 0 | P110: =generation_mix_calcs!O59 -> 7.698399271e-09 | Q110: =generation_mix_calcs!P59 -> 0 | R110: =generation_mix_calcs!Q59 -> 0 | S110: =generation_mix_calcs!R59 -> 0 | T110: =generation_mix_calcs!S59 -> 0 | U110: =generation_mix_calcs!T59 -> 0 | V110: =generation_mix_calcs!U59 -> 0 | W110: =generation_mix_calcs!V59 -> 0 | X110: =generation_mix_calcs!W59 -> 0 | Y110: =generation_mix_calcs!X59 -> 0 | Z110: =generation_mix_calcs!Y59 -> 0
A111: air | B111: 1,2-Dichloroethylene | C111: 5.998765184e-09 | D111: =generation_mix_calcs!C60 -> 0 | E111: =generation_mix_calcs!D60 -> 0 | F111: =generation_mix_calcs!E60 -> 0 | G111: =generation_mix_calcs!F60 -> 0 | H111: =generation_mix_calcs!G60 -> 0 | I111: =generation_mix_calcs!H60 -> 0 | J111: =generation_mix_calcs!I60 -> 0 | K111: =generation_mix_calcs!J60 -> 0 | L111: =generation_mix_calcs!K60 -> 0 | M111: =generation_mix_calcs!L60 -> 0 | N111: =generation_mix_calcs!M60 -> 0 | O111: =generation_mix_calcs!N60 -> 0 | P111: =generation_mix_calcs!O60 -> 5.998765184e-09 | Q111: =generation_mix_calcs!P60 -> 0 | R111: =generation_mix_calcs!Q60 -> 0 | S111: =generation_mix_calcs!R60 -> 0 | T111: =generation_mix_calcs!S60 -> 0 | U111: =generation_mix_calcs!T60 -> 0 | V111: =generation_mix_calcs!U60 -> 0 | W111: =generation_mix_calcs!V60 -> 0 | X111: =generation_mix_calcs!W60 -> 0 | Y111: =generation_mix_calcs!X60 -> 0 | Z111: =generation_mix_calcs!Y60 -> 0
A112: air | B112: 1,2-Dichloropropane | C112: 8.98218321e-11 | D112: =generation_mix_calcs!C61 -> 0 | E112: =generation_mix_calcs!D61 -> 0 | F112: =generation_mix_calcs!E61 -> 0 | G112: =generation_mix_calcs!F61 -> 0 | H112: =generation_mix_calcs!G61 -> 0 | I112: =generation_mix_calcs!H61 -> 0 | J112: =generation_mix_calcs!I61 -> 0 | K112: =generation_mix_calcs!J61 -> 0 | L112: =generation_mix_calcs!K61 -> 0 | M112: =generation_mix_calcs!L61 -> 0 | N112: =generation_mix_calcs!M61 -> 0 | O112: =generation_mix_calcs!N61 -> 0 | P112: =generation_mix_calcs!O61 -> 8.98218321e-11 | Q112: =generation_mix_calcs!P61 -> 0 | R112: =generation_mix_calcs!Q61 -> 0 | S112: =generation_mix_calcs!R61 -> 0 | T112: =generation_mix_calcs!S61 -> 0 | U112: =generation_mix_calcs!T61 -> 0 | V112: =generation_mix_calcs!U61 -> 0 | W112: =generation_mix_calcs!V61 -> 0 | X112: =generation_mix_calcs!W61 -> 0 | Y112: =generation_mix_calcs!X61 -> 0 | Z112: =generation_mix_calcs!Y61 -> 0
A113: air | B113: 1,2-Diphenylhydrazine | C113: 5.104876778e-15 | D113: =generation_mix_calcs!C62 -> 0 | E113: =generation_mix_calcs!D62 -> 0 | F113: =generation_mix_calcs!E62 -> 0 | G113: =generation_mix_calcs!F62 -> 0 | H113: =generation_mix_calcs!G62 -> 0 | I113: =generation_mix_calcs!H62 -> 0 | J113: =generation_mix_calcs!I62 -> 0 | K113: =generation_mix_calcs!J62 -> 0 | L113: =generation_mix_calcs!K62 -> 0 | M113: =generation_mix_calcs!L62 -> 0 | N113: =generation_mix_calcs!M62 -> 0 | O113: =generation_mix_calcs!N62 -> 0 | P113: =generation_mix_calcs!O62 -> 5.104876778e-15 | Q113: =generation_mix_calcs!P62 -> 0 | R113: =generation_mix_calcs!Q62 -> 0 | S113: =generation_mix_calcs!R62 -> 0 | T113: =generation_mix_calcs!S62 -> 0 | U113: =generation_mix_calcs!T62 -> 0 | V113: =generation_mix_calcs!U62 -> 0 | W113: =generation_mix_calcs!V62 -> 0 | X113: =generation_mix_calcs!W62 -> 0 | Y113: =generation_mix_calcs!X62 -> 0 | Z113: =generation_mix_calcs!Y62 -> 0
A114: air | B114: 1,2-Phenylenediamine | C114: 1.236736593e-12 | D114: =generation_mix_calcs!C63 -> 0 | E114: =generation_mix_calcs!D63 -> 0 | F114: =generation_mix_calcs!E63 -> 0 | G114: =generation_mix_calcs!F63 -> 0 | H114: =generation_mix_calcs!G63 -> 0 | I114: =generation_mix_calcs!H63 -> 0 | J114: =generation_mix_calcs!I63 -> 0 | K114: =generation_mix_calcs!J63 -> 0 | L114: =generation_mix_calcs!K63 -> 0 | M114: =generation_mix_calcs!L63 -> 0 | N114: =generation_mix_calcs!M63 -> 0 | O114: =generation_mix_calcs!N63 -> 0 | P114: =generation_mix_calcs!O63 -> 1.236736593e-12 | Q114: =generation_mix_calcs!P63 -> 0 | R114: =generation_mix_calcs!Q63 -> 0 | S114: =generation_mix_calcs!R63 -> 0 | T114: =generation_mix_calcs!S63 -> 0 | U114: =generation_mix_calcs!T63 -> 0 | V114: =generation_mix_calcs!U63 -> 0 | W114: =generation_mix_calcs!V63 -> 0 | X114: =generation_mix_calcs!W63 -> 0 | Y114: =generation_mix_calcs!X63 -> 0 | Z114: =generation_mix_calcs!Y63 -> 0
A115: air | B115: 1,3,5-Trimethylbenzene | C115: 5.636580204e-13 | D115: =generation_mix_calcs!C64 -> 0 | E115: =generation_mix_calcs!D64 -> 0 | F115: =generation_mix_calcs!E64 -> 0 | G115: =generation_mix_calcs!F64 -> 0 | H115: =generation_mix_calcs!G64 -> 0 | I115: =generation_mix_calcs!H64 -> 0 | J115: =generation_mix_calcs!I64 -> 0 | K115: =generation_mix_calcs!J64 -> 0 | L115: =generation_mix_calcs!K64 -> 0 | M115: =generation_mix_calcs!L64 -> 0 | N115: =generation_mix_calcs!M64 -> 0 | O115: =generation_mix_calcs!N64 -> 0 | P115: =generation_mix_calcs!O64 -> 5.636580204e-13 | Q115: =generation_mix_calcs!P64 -> 0 | R115: =generation_mix_calcs!Q64 -> 0 | S115: =generation_mix_calcs!R64 -> 0 | T115: =generation_mix_calcs!S64 -> 0 | U115: =generation_mix_calcs!T64 -> 0 | V115: =generation_mix_calcs!U64 -> 0 | W115: =generation_mix_calcs!V64 -> 0 | X115: =generation_mix_calcs!W64 -> 0 | Y115: =generation_mix_calcs!X64 -> 0 | Z115: =generation_mix_calcs!Y64 -> 0
A116: air | B116: 1,3-Butadiene | C116: 1.552644535e-08 | D116: =generation_mix_calcs!C65 -> 0 | E116: =generation_mix_calcs!D65 -> 0 | F116: =generation_mix_calcs!E65 -> 0 | G116: =generation_mix_calcs!F65 -> 0 | H116: =generation_mix_calcs!G65 -> 0 | I116: =generation_mix_calcs!H65 -> 0 | J116: =generation_mix_calcs!I65 -> 0 | K116: =generation_mix_calcs!J65 -> 0 | L116: =generation_mix_calcs!K65 -> 0 | M116: =generation_mix_calcs!L65 -> 0 | N116: =generation_mix_calcs!M65 -> 0 | O116: =generation_mix_calcs!N65 -> 0 | P116: =generation_mix_calcs!O65 -> 1.552644535e-08 | Q116: =generation_mix_calcs!P65 -> 0 | R116: =generation_mix_calcs!Q65 -> 0 | S116: =generation_mix_calcs!R65 -> 0 | T116: =generation_mix_calcs!S65 -> 0 | U116: =generation_mix_calcs!T65 -> 0 | V116: =generation_mix_calcs!U65 -> 0 | W116: =generation_mix_calcs!V65 -> 0 | X116: =generation_mix_calcs!W65 -> 0 | Y116: =generation_mix_calcs!X65 -> 0 | Z116: =generation_mix_calcs!Y65 -> 0
A117: air | B117: 1,3-Dichloropropene | C117: 7.920884967e-11 | D117: =generation_mix_calcs!C66 -> 0 | E117: =generation_mix_calcs!D66 -> 0 | F117: =generation_mix_calcs!E66 -> 0 | G117: =generation_mix_calcs!F66 -> 0 | H117: =generation_mix_calcs!G66 -> 0 | I117: =generation_mix_calcs!H66 -> 0 | J117: =generation_mix_calcs!I66 -> 0 | K117: =generation_mix_calcs!J66 -> 0 | L117: =generation_mix_calcs!K66 -> 0 | M117: =generation_mix_calcs!L66 -> 0 | N117: =generation_mix_calcs!M66 -> 0 | O117: =generation_mix_calcs!N66 -> 0 | P117: =generation_mix_calcs!O66 -> 7.920884967e-11 | Q117: =generation_mix_calcs!P66 -> 0 | R117: =generation_mix_calcs!Q66 -> 0 | S117: =generation_mix_calcs!R66 -> 0 | T117: =generation_mix_calcs!S66 -> 0 | U117: =generation_mix_calcs!T66 -> 0 | V117: =generation_mix_calcs!U66 -> 0 | W117: =generation_mix_calcs!V66 -> 0 | X117: =generation_mix_calcs!W66 -> 0 | Y117: =generation_mix_calcs!X66 -> 0 | Z117: =generation_mix_calcs!Y66 -> 0
A118: air | B118: 1,3-Phenylenediamine | C118: 2.065226797e-12 | D118: =generation_mix_calcs!C67 -> 0 | E118: =generation_mix_calcs!D67 -> 0 | F118: =generation_mix_calcs!E67 -> 0 | G118: =generation_mix_calcs!F67 -> 0 | H118: =generation_mix_calcs!G67 -> 0 | I118: =generation_mix_calcs!H67 -> 0 | J118: =generation_mix_calcs!I67 -> 0 | K118: =generation_mix_calcs!J67 -> 0 | L118: =generation_mix_calcs!K67 -> 0 | M118: =generation_mix_calcs!L67 -> 0 | N118: =generation_mix_calcs!M67 -> 0 | O118: =generation_mix_calcs!N67 -> 0 | P118: =generation_mix_calcs!O67 -> 2.065226797e-12 | Q118: =generation_mix_calcs!P67 -> 0 | R118: =generation_mix_calcs!Q67 -> 0 | S118: =generation_mix_calcs!R67 -> 0 | T118: =generation_mix_calcs!S67 -> 0 | U118: =generation_mix_calcs!T67 -> 0 | V118: =generation_mix_calcs!U67 -> 0 | W118: =generation_mix_calcs!V67 -> 0 | X118: =generation_mix_calcs!W67 -> 0 | Y118: =generation_mix_calcs!X67 -> 0 | Z118: =generation_mix_calcs!Y67 -> 0
A119: air | B119: 1,3-Propane sultone | C119: 6.949614776e-14 | D119: =generation_mix_calcs!C68 -> 0 | E119: =generation_mix_calcs!D68 -> 0 | F119: =generation_mix_calcs!E68 -> 0 | G119: =generation_mix_calcs!F68 -> 0 | H119: =generation_mix_calcs!G68 -> 0 | I119: =generation_mix_calcs!H68 -> 0 | J119: =generation_mix_calcs!I68 -> 0 | K119: =generation_mix_calcs!J68 -> 0 | L119: =generation_mix_calcs!K68 -> 0 | M119: =generation_mix_calcs!L68 -> 0 | N119: =generation_mix_calcs!M68 -> 0 | O119: =generation_mix_calcs!N68 -> 0 | P119: =generation_mix_calcs!O68 -> 6.949614776e-14 | Q119: =generation_mix_calcs!P68 -> 0 | R119: =generation_mix_calcs!Q68 -> 0 | S119: =generation_mix_calcs!R68 -> 0 | T119: =generation_mix_calcs!S68 -> 0 | U119: =generation_mix_calcs!T68 -> 0 | V119: =generation_mix_calcs!U68 -> 0 | W119: =generation_mix_calcs!V68 -> 0 | X119: =generation_mix_calcs!W68 -> 0 | Y119: =generation_mix_calcs!X68 -> 0 | Z119: =generation_mix_calcs!Y68 -> 0
A120: air | B120: 1,4-Dichloro-2-butene | C120: 8.098997244e-13 | D120: =generation_mix_calcs!C69 -> 0 | E120: =generation_mix_calcs!D69 -> 0 | F120: =generation_mix_calcs!E69 -> 0 | G120: =generation_mix_calcs!F69 -> 0 | H120: =generation_mix_calcs!G69 -> 0 | I120: =generation_mix_calcs!H69 -> 0 | J120: =generation_mix_calcs!I69 -> 0 | K120: =generation_mix_calcs!J69 -> 0 | L120: =generation_mix_calcs!K69 -> 0 | M120: =generation_mix_calcs!L69 -> 0 | N120: =generation_mix_calcs!M69 -> 0 | O120: =generation_mix_calcs!N69 -> 0 | P120: =generation_mix_calcs!O69 -> 8.098997244e-13 | Q120: =generation_mix_calcs!P69 -> 0 | R120: =generation_mix_calcs!Q69 -> 0 | S120: =generation_mix_calcs!R69 -> 0 | T120: =generation_mix_calcs!S69 -> 0 | U120: =generation_mix_calcs!T69 -> 0 | V120: =generation_mix_calcs!U69 -> 0 | W120: =generation_mix_calcs!V69 -> 0 | X120: =generation_mix_calcs!W69 -> 0 | Y120: =generation_mix_calcs!X69 -> 0 | Z120: =generation_mix_calcs!Y69 -> 0
A121: air | B121: 1,4-Dioxane | C121: 2.642621476e-10 | D121: =generation_mix_calcs!C70 -> 0 | E121: =generation_mix_calcs!D70 -> 0 | F121: =generation_mix_calcs!E70 -> 0 | G121: =generation_mix_calcs!F70 -> 0 | H121: =generation_mix_calcs!G70 -> 0 | I121: =generation_mix_calcs!H70 -> 0 | J121: =generation_mix_calcs!I70 -> 0 | K121: =generation_mix_calcs!J70 -> 0 | L121: =generation_mix_calcs!K70 -> 0 | M121: =generation_mix_calcs!L70 -> 0 | N121: =generation_mix_calcs!M70 -> 0 | O121: =generation_mix_calcs!N70 -> 0 | P121: =generation_mix_calcs!O70 -> 2.642621476e-10 | Q121: =generation_mix_calcs!P70 -> 0 | R121: =generation_mix_calcs!Q70 -> 0 | S121: =generation_mix_calcs!R70 -> 0 | T121: =generation_mix_calcs!S70 -> 0 | U121: =generation_mix_calcs!T70 -> 0 | V121: =generation_mix_calcs!U70 -> 0 | W121: =generation_mix_calcs!V70 -> 0 | X121: =generation_mix_calcs!W70 -> 0 | Y121: =generation_mix_calcs!X70 -> 0 | Z121: =generation_mix_calcs!Y70 -> 0
A122: air | B122: 1-Butanol | C122: 2.386468134e-07 | D122: =generation_mix_calcs!C71 -> 0 | E122: =generation_mix_calcs!D71 -> 0 | F122: =generation_mix_calcs!E71 -> 0 | G122: =generation_mix_calcs!F71 -> 0 | H122: =generation_mix_calcs!G71 -> 0 | I122: =generation_mix_calcs!H71 -> 0 | J122: =generation_mix_calcs!I71 -> 0 | K122: =generation_mix_calcs!J71 -> 0 | L122: =generation_mix_calcs!K71 -> 0 | M122: =generation_mix_calcs!L71 -> 0 | N122: =generation_mix_calcs!M71 -> 0 | O122: =generation_mix_calcs!N71 -> 0 | P122: =generation_mix_calcs!O71 -> 2.386468134e-07 | Q122: =generation_mix_calcs!P71 -> 0 | R122: =generation_mix_calcs!Q71 -> 0 | S122: =generation_mix_calcs!R71 -> 0 | T122: =generation_mix_calcs!S71 -> 0 | U122: =generation_mix_calcs!T71 -> 0 | V122: =generation_mix_calcs!U71 -> 0 | W122: =generation_mix_calcs!V71 -> 0 | X122: =generation_mix_calcs!W71 -> 0 | Y122: =generation_mix_calcs!X71 -> 0 | Z122: =generation_mix_calcs!Y71 -> 0
A123: air | B123: 1-Butene | C123: 1.600897359e-08 | D123: =generation_mix_calcs!C72 -> 0 | E123: =generation_mix_calcs!D72 -> 0 | F123: =generation_mix_calcs!E72 -> 0 | G123: =generation_mix_calcs!F72 -> 0 | H123: =generation_mix_calcs!G72 -> 0 | I123: =generation_mix_calcs!H72 -> 0 | J123: =generation_mix_calcs!I72 -> 0 | K123: =generation_mix_calcs!J72 -> 0 | L123: =generation_mix_calcs!K72 -> 0 | M123: =generation_mix_calcs!L72 -> 0 | N123: =generation_mix_calcs!M72 -> 0 | O123: =generation_mix_calcs!N72 -> 0 | P123: =generation_mix_calcs!O72 -> 1.600897359e-08 | Q123: =generation_mix_calcs!P72 -> 0 | R123: =generation_mix_calcs!Q72 -> 0 | S123: =generation_mix_calcs!R72 -> 0 | T123: =generation_mix_calcs!S72 -> 0 | U123: =generation_mix_calcs!T72 -> 0 | V123: =generation_mix_calcs!U72 -> 0 | W123: =generation_mix_calcs!V72 -> 0 | X123: =generation_mix_calcs!W72 -> 0 | Y123: =generation_mix_calcs!X72 -> 0 | Z123: =generation_mix_calcs!Y72 -> 0
A124: air | B124: 1-Dodecanol | C124: 7.594083533e-15 | D124: =generation_mix_calcs!C73 -> 0 | E124: =generation_mix_calcs!D73 -> 0 | F124: =generation_mix_calcs!E73 -> 0 | G124: =generation_mix_calcs!F73 -> 0 | H124: =generation_mix_calcs!G73 -> 0 | I124: =generation_mix_calcs!H73 -> 0 | J124: =generation_mix_calcs!I73 -> 0 | K124: =generation_mix_calcs!J73 -> 0 | L124: =generation_mix_calcs!K73 -> 0 | M124: =generation_mix_calcs!L73 -> 0 | N124: =generation_mix_calcs!M73 -> 0 | O124: =generation_mix_calcs!N73 -> 0 | P124: =generation_mix_calcs!O73 -> 7.594083533e-15 | Q124: =generation_mix_calcs!P73 -> 0 | R124: =generation_mix_calcs!Q73 -> 0 | S124: =generation_mix_calcs!R73 -> 0 | T124: =generation_mix_calcs!S73 -> 0 | U124: =generation_mix_calcs!T73 -> 0 | V124: =generation_mix_calcs!U73 -> 0 | W124: =generation_mix_calcs!V73 -> 0 | X124: =generation_mix_calcs!W73 -> 0 | Y124: =generation_mix_calcs!X73 -> 0 | Z124: =generation_mix_calcs!Y73 -> 0
A125: air | B125: 1-Methoxy-2-propyl acetate | C125: 2.196035778e-09 | D125: =generation_mix_calcs!C74 -> 0 | E125: =generation_mix_calcs!D74 -> 0 | F125: =generation_mix_calcs!E74 -> 0 | G125: =generation_mix_calcs!F74 -> 0 | H125: =generation_mix_calcs!G74 -> 0 | I125: =generation_mix_calcs!H74 -> 0 | J125: =generation_mix_calcs!I74 -> 0 | K125: =generation_mix_calcs!J74 -> 0 | L125: =generation_mix_calcs!K74 -> 0 | M125: =generation_mix_calcs!L74 -> 0 | N125: =generation_mix_calcs!M74 -> 0 | O125: =generation_mix_calcs!N74 -> 0 | P125: =generation_mix_calcs!O74 -> 2.196035778e-09 | Q125: =generation_mix_calcs!P74 -> 0 | R125: =generation_mix_calcs!Q74 -> 0 | S125: =generation_mix_calcs!R74 -> 0 | T125: =generation_mix_calcs!S74 -> 0 | U125: =generation_mix_calcs!T74 -> 0 | V125: =generation_mix_calcs!U74 -> 0 | W125: =generation_mix_calcs!V74 -> 0 | X125: =generation_mix_calcs!W74 -> 0 | Y125: =generation_mix_calcs!X74 -> 0 | Z125: =generation_mix_calcs!Y74 -> 0
... 156 more rows

Sheet consumption_mix
A7: FERC Region | B7: US
A8: Balancing Authority | B8: Use FERC
A9: Impact Category for Graph | B9: Water Consumption
Q13: =INDEX(distribution_losses!$B$2:$B$78,MATCH(Q$16,distribution_losses!$A$2:$A$78,0)) -> 0.04441079207 | R13: =INDEX(distribution_losses!$B$2:$B$78,MATCH(R$16,distribution_losses!$A$2:$A$78,0)) -> 0.0479800517 | S13: =INDEX(distribution_losses!$B$2:$B$78,MATCH(S$16,distribution_losses!$A$2:$A$78,0)) -> 0.04885206689 | T13: =INDEX(distribution_losses!$B$2:$B$78,MATCH(T$16,distribution_losses!$A$2:$A$78,0)) -> 0.04629347316 | U13: =INDEX(distribution_losses!$B$2:$B$78,MATCH(U$16,distribution_losses!$A$2:$A$78,0)) -> 0.04159310567
P14: 8 | Q14: 12 | R14: 2 | S14: 3 | T14: 5 | U14: 8
P15: =INDEX(B$54:B$1475,$P$14,1) -> Water Consumption | Q15: =IFERROR(IF(AND(Q14>1),MAX(Q30:Q32),"")*(1+Q$13),"") -> 605.8078632 | R15: =IFERROR(IF(AND(R14>1),MAX(R30:R32),"")*(1+R$13),"") -> 218.4063056 | S15: 681.8762489 | T15: 875.4934411 | U15: 471.4689782
P16: =INDEX(A$54:A$1475,$P$14,1) -> 0 | Q16: =IF(Q14>1,INDEX(ba_ferc_mapping!cons_labels,Q14,1),"") -> US | R16: =IF(R14>1,INDEX(ba_ferc_mapping!cons_labels,R14,1),"") -> CAISO | S16: =IF(S14>1,INDEX(ba_ferc_mapping!cons_labels,S14,1),"") -> ERCOT | T16: =IF(T14>1,INDEX(ba_ferc_mapping!cons_labels,T14,1),"") -> MISO | U16: =IF(U14>1,INDEX(ba_ferc_mapping!cons_labels,U14,1),"") -> PJM
D17: 1 | E17: 2 | F17: 3 | G17: 4 | H17: 5 | I17: 6 | J17: 7 | K17: 8 | L17: 9 | M17: 10 | N17: 11 | P17: =IF(AND(P16<>"input",P14>8),P15&" emissions to "&P16,IF(P14<=8,P15,"Input of "&P15)) -> Water Consumption
D18: =IFERROR(_xlfn.RANK.EQ(INDEX(D$55:D$61,MATCH($B$37,$B$55:$B$61,0)),INDEX($D$55:$BX$61,MATCH($B$37,$B$55:$B$61,0),),0)+COLUMN()/1000,"") -> 52.004 | E18: =IFERROR(_xlfn.RANK.EQ(INDEX(E$55:E$61,MATCH($B$37,$B$55:$B$61,0)),INDEX($D$55:$BX$61,MATCH($B$37,$B$55:$B$61,0),),0)+COLUMN()/1000,"") -> 19.005 | F18: 40.006 | G18: 31.007 | H18: 46.008 | I18: 45.009 | J18: 54.01 | K18: 16.011 | L18: 24.012 | M18: 53.013 | N18: 18.014 | O18: =IFERROR(_xlfn.RANK.EQ(INDEX(O$55:O$60,MATCH($B$37,$B$55:$B$60,0)),INDEX($D$55:$BX$60,MATCH($B$37,$B$55:$B$60,0),),0)+COLUMN()/1000,"") ->  | BQ18: =IFERROR(_xlfn.RANK.EQ(INDEX(BQ$55:BQ$60,MATCH($B$37,$B$55:$B$60,0)),INDEX($D$55:$BX$60,MATCH($B$37,$B$55:$B$60,0),),0)+COLUMN()/1000,"") -> 
D19: =SMALL($D$18:$BX$18,D$17) -> 16.011 | E19: =SMALL($D$18:$BX$18,E$17) -> 18.014 | F19: 19.005 | G19: 24.012 | H19: 31.007 | I19: 40.006 | J19: 45.009 | K19: 46.008 | L19: 52.004 | M19: 53.013 | N19: 54.01
D20: =MATCH(D19,$D$18:$BX$18,0) -> 8 | E20: =MATCH(E19,$D$18:$BX$18,0) -> 11 | F20: 2 | G20: 9 | H20: 4 | I20: 3 | J20: 6 | K20: 5 | L20: 1 | M20: 10 | N20: 7 | P20: =MAX(COUNT(Q15:U15),1) -> 5 | Q20: =IFERROR(_xlfn.RANK.EQ(Q15,$Q$15:$U$15,0)+COLUMN()/1000,"") -> 3.017 | R20: =IFERROR(_xlfn.RANK.EQ(R15,$Q$15:$U$15,0)+COLUMN()/1000,"") -> 5.018 | S20: 2.019 | T20: 1.02 | U20: 4.021
C21: =B37&" "&IF($B$9="Global Warming Potential",traci_factors!$M$1&" ","")&INDEX(impact_text!B2:B8,MATCH(consumption_mix!B37,impact_text!$A$2:$A$8,0),1) -> Water Consumption l/MWh delivered | Q21: =RANK(Q20,$Q$20:$U$20,1) -> 3 | R21: =RANK(R20,$Q$20:$U$20,1) -> 5 | S21: 2 | T21: 1 | U21: 4
C22: =IF(INT($C$29)<-3,TEXT(C25/10^$C$23,"#,0.00#")&"E"&$C$23,C25) -> 1 | D22: =IF(INT($C$29)<-3,TEXT(D27/10^$C$23,"#,0.0#")&"E"&$C$23,) -> 0 | E22: =IF(INT($C$29)<-3,TEXT(E27/10^$C$23,"#,0.0#")&"E"&$C$23,) -> 0 | F22: 0 | G22: 0 | H22: 0 | I22: 0 | J22: =IF(INT($C$29)<-3,TEXT(J27/10^$C$23,"#,0.0#")&"E"&$C$23,$C$24) -> 1 | K22: =IF(INT($C$29)<-3,TEXT(K27/10^$C$23,"#,0.0#")&"E"&$C$23,$C$24) -> 1 | L22: 1 | M22: 1 | N22: 1 | Q22: 1 | R22: 2 | S22: 3 | T22: 4 | U22: 5
C23: =TEXT(INT(C29),"0#") -> 02 | Q23: =IFERROR(INDEX($Q$16:$U$16,1,MATCH(Q22,$Q$21:$U$21,0)),"") -> MISO | R23: =IFERROR(INDEX($Q$16:$U$16,1,MATCH(R22,$Q$21:$U$21,0)),"") -> ERCOT | S23: US | T23: PJM | U23: CAISO
C24: =IF(C25<0.001,TEXT(C25,"#.00E+00"),C25) -> 1 | Q24: =IFERROR(INDEX($Q$15:$U$15,1,MATCH(Q22,$Q$21:$U$21,0)),"") -> 875.4934411 | R24: =IFERROR(INDEX($Q$15:$U$15,1,MATCH(R22,$Q$21:$U$21,0)),"") -> 681.8762489 | S24: 605.8078632 | T24: 471.4689782 | U24: 218.4063056
C25: =10^(INT(C29)-2) -> 1 | P25: =LOG10(ABS(Q24)) -> 2.942252897 | Q25: =IFERROR(LOG(ABS(Q24),10),"") -> 2.942252897 | R25: =IFERROR(LOG(ABS(R24),10),"") -> 2.833705563 | S25: 2.782334906 | T25: 2.673453122 | U25: 2.339265173
D26: =D28/$C$28 -> 0.01485148515 | E26: =E28/$C$28 -> 0.01155115512 | F26: 0.01155115512 | G26: 0.00495049505 | H26: 0.001650165017 | I26: 0 | J26: 0 | K26: 0 | L26: 0 | M26: 0 | N26: 0 | P26: =10^(INT(P25)-2) -> 1 | Q26: =IFERROR(3-(1+INT(Q25)),"") -> 0 | R26: =IFERROR(3-(1+INT(R25)),"") -> 0 | S26: 0 | T26: 0 | U26: 0
C27: =INDEX(C$55:C$61,MATCH($B$9,$B$55:$B$61,0),1) -> 605.6697662 | D27: =INDEX($D$55:$BX$61,MATCH($B$37,$B$55:$B$61,0),D20) -> 8.587463552 | E27: =INDEX($D$55:$BX$61,MATCH($B$37,$B$55:$B$61,0),E20) -> 7.335329082 | F27: 7.266812022 | G27: 3.106019439 | H27: 1.255157353 | I27: 0.4005333712 | J27: 0.1760907724 | K27: 0.1119756716 | L27: 0.01119824058 | M27: 0.01097682653 | N27: 0.005692702501 | P27: =IF($Q$24>0.001,TEXT(P26,"#,##0"&Q28),TEXT(P26,"#E+##")) -> 1 | Q27: =IF(Q26="","",IF(Q24<$AB$56,"<"&TEXT($AB$56,IF($AB$56<0.001,"#E+##","#,###"&Q28)),IF(Q24=0,"0",TEXT(ROUND(Q24,Q26),IF(Q24<0.001,"#.0E+##",IF(Q26=0,"#,###","#.###")))))) -> 875 | R27: =IF(R26="","",IF(R24<$AB$56,"<"&TEXT($AB$56,IF($AB$56<0.001,"#E+##","#,###"&R28)),IF(R24=0,"0",TEXT(ROUND(R24,R26),IF(R24<0.001,"#.0E+##",IF(R26=0,"#,###","#.###")))))) -> 682 | S27: 606 | T27: 471 | U27: 218
C28: =ROUND(C27,3-(1+INT($C$29))) -> 606 | D28: =ROUND(D27,3-(1+INT($C$29))) -> 9 | E28: =ROUND(E27,3-(1+INT($C$29))) -> 7 | F28: 7 | G28: 3 | H28: 1 | I28: 0 | J28: 0 | K28: 0 | L28: 0 | M28: 0 | N28: 0 | P28: =IFERROR(3-(1+INT(P27)),"") -> 1 | Q28: =IF(Q26>=1,"."&REPT("0",$Q$26),"") ->  | R28: =IF(R26>=1,"."&REPT("0",$Q$26),"") -> 
C29: =LOG(ABS(C27),10) -> 2.782235895 | P29: =IF($AC$54>0.001,TEXT(P28,"#,##0"&Q30),TEXT(P28,"#E+##")) -> 1 | Q29: =IF(Q24=0,"0",IF(Q24>$P$26,IF($Q$24>0.001,TEXT(Q24,"#,##0"&Q28),TEXT(Q24,"#.00E+00")),"<"&$P$27)) -> 875 | R29: =IF(R24=0,"0",IF(R24>$P$26,IF($Q$24>0.001,TEXT(R24,"#,##0"&R28),TEXT(R24,"#.00E+00")),"<"&$P$27)) -> 682 | S29: 606 | T29: 471 | U29: 218
Q30: =IF($B$8="Use FERC",IF($P14>9,(TRANSPOSE(MMULT(INDEX(ferc_consumption_mix_data!$B$2:$BV$12,MATCH(consumption_mix!Q$16,ferc_consumption_mix_data!$A$2:$A$12,0),),TRANSPOSE(INDEX(ba_genmix_inventory!$C$2:$BW$1414,$P14-9,))))),""),IF($P14>9,(TRANSPOSE(MMULT(INDEX(ferc_consumption_mix_data!$B$2:$L$12,MATCH(consumption_mix!Q$16,ba_consumption_mix_data!$A$2:$A$69,0),),TRANSPOSE(INDEX(ferc_genmix_inventory!$C$2:$BW$1414,$P14-9,))))),"")) ->  | R30: =IF($B$8="Use FERC",IF($P14>9,(TRANSPOSE(MMULT(INDEX(ferc_consumption_mix_data!$B$2:$BV$12,MATCH(consumption_mix!R$16,ferc_consumption_mix_data!$A$2:$A$12,0),),TRANSPOSE(INDEX(ba_genmix_inventory!$C$2:$BW$1414,$P14-9,))))),""),IF($P14>9,(TRANSPOSE(MMULT(INDEX(ferc_consumption_mix_data!$B$2:$L$12,MATCH(consumption_mix!R$16,ba_consumption_mix_data!$A$2:$A$69,0),),TRANSPOSE(INDEX(ferc_genmix_inventory!$C$2:$BW$1414,$P14-9,))))),"")) ->  | S30: =IF($B$8="Use FERC",IF($P14>9,(TRANSPOSE(MMULT(INDEX(ferc_consumption_mix_data!$B$2:$BV$12,MATCH(consumption_mix!S$16,ferc_consumption_mix_data!$A$2:$A$12,0),),TRANSPOSE(INDEX(ba_genmix_inventory!$C$2:$BW$1414,$P14-9,))))),""),IF($P14>9,(TRANSPOSE(MMULT(INDEX(ferc_consumption_mix_data!$B$2:$L$12,MATCH(consumption_mix!S$16,ba_consumption_mix_data!$A$2:$A$69,0),),TRANSPOSE(INDEX(ferc_genmix_inventory!$C$2:$BW$1414,$P14-9,))))),"")) ->  | T30: =IF($B$8="Use FERC",IF($P14>9,(TRANSPOSE(MMULT(INDEX(ferc_consumption_mix_data!$B$2:$BV$12,MATCH(consumption_mix!T$16,ferc_consumption_mix_data!$A$2:$A$12,0),),TRANSPOSE(INDEX(ba_genmix_inventory!$C$2:$BW$1414,$P14-9,))))),""),IF($P14>9,(TRANSPOSE(MMULT(INDEX(ferc_consumption_mix_data!$B$2:$L$12,MATCH(consumption_mix!T$16,ba_consumption_mix_data!$A$2:$A$69,0),),TRANSPOSE(INDEX(ferc_genmix_inventory!$C$2:$BW$1414,$P14-9,))))),"")) ->  | U30: =IF($B$8="Use FERC",IF($P14>9,(TRANSPOSE(MMULT(INDEX(ferc_consumption_mix_data!$B$2:$BV$12,MATCH(consumption_mix!U$16,ferc_consumption_mix_data!$A$2:$A$12,0),),TRANSPOSE(INDEX(ba_genmix_inventory!$C$2:$BW$1414,$P14-9,))))),""),IF($P14>9,(TRANSPOSE(MMULT(INDEX(ferc_consumption_mix_data!$B$2:$L$12,MATCH(consumption_mix!U$16,ba_consumption_mix_data!$A$2:$A$69,0),),TRANSPOSE(INDEX(ferc_genmix_inventory!$C$2:$BW$1414,$P14-9,))))),"")) -> 
C31: =SUM(D31:N31) -> 0.1225907955 | D31: =INDEX($D$35:$BX$35,1,D$20) -> 0.03145564552 | E31: =INDEX($D$35:$BX$35,1,E$20) -> 0.02478003774 | F31: 0.004781042871 | G31: 0.04514111805 | H31: 0.005478771458 | I31: 0.0004290514423 | J31: 0.003092309584 | K31: 0.002179723574 | L31: 0.0004814543214 | M31: 0.001186238264 | N31: 0.003585402633 | Q31: =IF($B$8="Use FERC",IF($P14<9,SUMPRODUCT(TRANSPOSE(MMULT(INDEX(ferc_consumption_mix_data!$B$2:$BV$12,MATCH(consumption_mix!Q$16,ferc_consumption_mix_data!$A$2:$A$12,0),),TRANSPOSE(ba_genmix_inventory!$C$2:$BW$1414))),INDEX(traci_factors!$E$2:$K$1414,,MATCH(consumption_mix!$P$15,traci_factors!$E$1:$K$1,0))),""),"") -> 580.0474945 | R31: =IF($B$8="Use FERC",IF($P14<9,SUMPRODUCT(TRANSPOSE(MMULT(INDEX(ferc_consumption_mix_data!$B$2:$BV$12,MATCH(consumption_mix!R$16,ferc_consumption_mix_data!$A$2:$A$12,0),),TRANSPOSE(ba_genmix_inventory!$C$2:$BW$1414))),INDEX(traci_factors!$E$2:$K$1414,,MATCH(consumption_mix!$P$15,traci_factors!$E$1:$K$1,0))),""),"") -> 208.4069303 | S31: =IF($B$8="Use FERC",IF($P14<9,SUMPRODUCT(TRANSPOSE(MMULT(INDEX(ferc_consumption_mix_data!$B$2:$BV$12,MATCH(consumption_mix!S$16,ferc_consumption_mix_data!$A$2:$A$12,0),),TRANSPOSE(ba_genmix_inventory!$C$2:$BW$1414))),INDEX(traci_factors!$E$2:$K$1414,,MATCH(consumption_mix!$P$15,traci_factors!$E$1:$K$1,0))),""),"") -> 650.1167042 | T31: =IF($B$8="Use FERC",IF($P14<9,SUMPRODUCT(TRANSPOSE(MMULT(INDEX(ferc_consumption_mix_data!$B$2:$BV$12,MATCH(consumption_mix!T$16,ferc_consumption_mix_data!$A$2:$A$12,0),),TRANSPOSE(ba_genmix_inventory!$C$2:$BW$1414))),INDEX(traci_factors!$E$2:$K$1414,,MATCH(consumption_mix!$P$15,traci_factors!$E$1:$K$1,0))),""),"") -> 836.757051 | U31: =IF($B$8="Use FERC",IF($P14<9,SUMPRODUCT(TRANSPOSE(MMULT(INDEX(ferc_consumption_mix_data!$B$2:$BV$12,MATCH(consumption_mix!U$16,ferc_consumption_mix_data!$A$2:$A$12,0),),TRANSPOSE(ba_genmix_inventory!$C$2:$BW$1414))),INDEX(traci_factors!$E$2:$K$1414,,MATCH(consumption_mix!$P$15,traci_factors!$E$1:$K$1,0))),""),"") -> 452.642184
C32: =IF(C28<0.001,TEXT(C28,"0.00E+00"),C28) -> 606 | D32: =IF(D28=0,0,IF(D27<$C$25,"<"&$C$22,IF(D28<0.001,D22,D28))) -> 9 | E32: =IF(E28=0,0,IF(E27<$C$25,"<"&$C$22,IF(E28<0.001,E22,E28))) -> 7 | F32: 7 | G32: 3 | H32: 1 | I32: 0 | J32: 0 | K32: 0 | L32: 0 | M32: 0 | N32: 0 | Q32: =IFERROR(IF($B$8<>"Use FERC",IF($P14<9,SUMPRODUCT(TRANSPOSE(MMULT(INDEX(ba_consumption_mix_data!$B$2:$BV$69,MATCH(consumption_mix!Q$16,ba_consumption_mix_data!$A$2:$A$69,0),),TRANSPOSE(ba_genmix_inventory!$C$2:$BW$1414))),INDEX(traci_factors!$E$2:$K$1414,,MATCH(consumption_mix!$P$15,traci_factors!$E$1:$K$1,0))),""),""),NA()) ->  | R32: =IFERROR(IF($B$8<>"Use FERC",IF($P14<9,SUMPRODUCT(TRANSPOSE(MMULT(INDEX(ba_consumption_mix_data!$B$2:$BV$69,MATCH(consumption_mix!R$16,ba_consumption_mix_data!$A$2:$A$69,0),),TRANSPOSE(ba_genmix_inventory!$C$2:$BW$1414))),INDEX(traci_factors!$E$2:$K$1414,,MATCH(consumption_mix!$P$15,traci_factors!$E$1:$K$1,0))),""),""),"") ->  | S32: =IFERROR(IF($B$8<>"Use FERC",IF($P14<9,SUMPRODUCT(TRANSPOSE(MMULT(INDEX(ba_consumption_mix_data!$B$2:$BV$69,MATCH(consumption_mix!S$16,ba_consumption_mix_data!$A$2:$A$69,0),),TRANSPOSE(ba_genmix_inventory!$C$2:$BW$1414))),INDEX(traci_factors!$E$2:$K$1414,,MATCH(consumption_mix!$P$15,traci_factors!$E$1:$K$1,0))),""),""),"") ->  | T32: =IFERROR(IF($B$8<>"Use FERC",IF($P14<9,SUMPRODUCT(TRANSPOSE(MMULT(INDEX(ba_consumption_mix_data!$B$2:$BV$69,MATCH(consumption_mix!T$16,ba_consumption_mix_data!$A$2:$A$69,0),),TRANSPOSE(ba_genmix_inventory!$C$2:$BW$1414))),INDEX(traci_factors!$E$2:$K$1414,,MATCH(consumption_mix!$P$15,traci_factors!$E$1:$K$1,0))),""),""),"") ->  | U32: =IFERROR(IF($B$8<>"Use FERC",IF($P14<9,SUMPRODUCT(TRANSPOSE(MMULT(INDEX(ba_consumption_mix_data!$B$2:$BV$69,MATCH(consumption_mix!U$16,ba_consumption_mix_data!$A$2:$A$69,0),),TRANSPOSE(ba_genmix_inventory!$C$2:$BW$1414))),INDEX(traci_factors!$E$2:$K$1414,,MATCH(consumption_mix!$P$15,traci_factors!$E$1:$K$1,0))),""),""),"") -> 
C33: =C36&" - "&TEXT(C$31,"0.0%") -> Total - 12.3% | D33: =D36&" - "&TEXT(D$31,"0.0%") -> Bonneville Power Administration (Northwest) - 3.1% | E33: =E36&" - "&TEXT(E$31,"0.0%") -> Duke Energy Carolinas (Southeast) - 2.5% | F33: Arizona Public Service Company (Southwest) - 0.5% | G33: California Independent System Operator (CAISO) - 4.5% | H33: Associated Electric Cooperative, Inc. (MISO) - 0.5% | I33: Arlington Valley, LLC - AVBA (Southwest) - 0.0% | J33: B.C. Hydro & Power Authority (Canada) - 0.3% | K33: Avista Corporation (Northwest) - 0.2% | L33: Alcoa Power Generating, Inc. - Yadkin Division (Southeast) - 0.0% | M33: City of Tacoma, Department of Public Utilities, Light Division (Northwest) - 0.1% | N33: Balancing Authority of Northern California (CAISO) - 0.4%
C34: Total | D34: =D54 -> Alcoa Power Generating, Inc. - Yadkin Division (Southeast) | E34: =E54 -> Arizona Public Service Company (Southwest) | F34: Arlington Valley, LLC - AVBA (Southwest) | G34: Associated Electric Cooperative, Inc. (MISO) | H34: Avista Corporation (Northwest) | I34: B.C. Hydro & Power Authority (Canada) | J34: Balancing Authority of Northern California (CAISO) | K34: Bonneville Power Administration (Northwest) | L34: California Independent System Operator (CAISO) | M34: City of Tacoma, Department of Public Utilities, Light Division (Northwest) | N34: Duke Energy Carolinas (Southeast)
C35: =SUM(D35:BX35) -> 1 | D35: =IF(consumption_mix_calcs!C20<>"",consumption_mix_calcs!C20,"") -> 0.0004814543214 | E35: =IF(consumption_mix_calcs!D20<>"",consumption_mix_calcs!D20,"") -> 0.004781042871 | F35: =IF(consumption_mix_calcs!E20<>"",consumption_mix_calcs!E20,"") -> 0.0004290514423 | G35: =IF(consumption_mix_calcs!F20<>"",consumption_mix_calcs!F20,"") -> 0.005478771458 | H35: =IF(consumption_mix_calcs!G20<>"",consumption_mix_calcs!G20,"") -> 0.002179723574 | I35: =IF(consumption_mix_calcs!H20<>"",consumption_mix_calcs!H20,"") -> 0.003092309584 | J35: =IF(consumption_mix_calcs!I20<>"",consumption_mix_calcs!I20,"") -> 0.003585402633 | K35: =IF(consumption_mix_calcs!J20<>"",consumption_mix_calcs!J20,"") -> 0.03145564552 | L35: =IF(consumption_mix_calcs!K20<>"",consumption_mix_calcs!K20,"") -> 0.04514111805 | M35: =IF(consumption_mix_calcs!L20<>"",consumption_mix_calcs!L20,"") -> 0.001186238264 | N35: =IF(consumption_mix_calcs!M20<>"",consumption_mix_calcs!M20,"") -> 0.02478003774 | O35: =IF(consumption_mix_calcs!N20<>"",consumption_mix_calcs!N20,"") -> 0.01104737976 | P35: =IF(consumption_mix_calcs!O20<>"",consumption_mix_calcs!O20,"") -> 0.01532657253 | Q35: =IF(consumption_mix_calcs!P20<>"",consumption_mix_calcs!P20,"") -> 0.0006727140534 | R35: =IF(consumption_mix_calcs!Q20<>"",consumption_mix_calcs!Q20,"") -> 0.002303580845 | S35: =IF(consumption_mix_calcs!R20<>"",consumption_mix_calcs!R20,"") -> 0.0007144795216 | T35: =IF(consumption_mix_calcs!S20<>"",consumption_mix_calcs!S20,"") -> 0.07965222489 | U35: =IF(consumption_mix_calcs!T20<>"",consumption_mix_calcs!T20,"") -> 0.005482529059 | V35: =IF(consumption_mix_calcs!U20<>"",consumption_mix_calcs!U20,"") -> 0.02976439701 | W35: =IF(consumption_mix_calcs!V20<>"",consumption_mix_calcs!V20,"") -> 0.0004799267059 | X35: =IF(consumption_mix_calcs!W20<>"",consumption_mix_calcs!W20,"") -> 0.00159544435 | Y35: =IF(consumption_mix_calcs!X20<>"",consumption_mix_calcs!X20,"") -> 0.0007233612192 | Z35: =IF(consumption_mix_calcs!Y20<>"",consumption_mix_calcs!Y20,"") -> 0 | AA35: =IF(consumption_mix_calcs!Z20<>"",consumption_mix_calcs!Z20,"") -> 0.0004734507932 | AB35: =IF(consumption_mix_calcs!AA20<>"",consumption_mix_calcs!AA20,"") -> 1.502538739e-06 | AC35: =IF(consumption_mix_calcs!AB20<>"",consumption_mix_calcs!AB20,"") -> 0.005825286283 | AD35: =IF(consumption_mix_calcs!AC20<>"",consumption_mix_calcs!AC20,"") -> 0.02799422006 | AE35: =IF(consumption_mix_calcs!AD20<>"",consumption_mix_calcs!AD20,"") -> 0.003384182241 | AF35: =IF(consumption_mix_calcs!AE20<>"",consumption_mix_calcs!AE20,"") -> 0.001283318046 | AG35: =IF(consumption_mix_calcs!AF20<>"",consumption_mix_calcs!AF20,"") -> 0.00664685187 | AH35: =IF(consumption_mix_calcs!AG20<>"",consumption_mix_calcs!AG20,"") -> 0.008789674641 | AI35: =IF(consumption_mix_calcs!AH20<>"",consumption_mix_calcs!AH20,"") -> 0.009248721664 | AJ35: =IF(consumption_mix_calcs!AI20<>"",consumption_mix_calcs!AI20,"") -> 0.002251412556 | AK35: =IF(consumption_mix_calcs!AJ20<>"",consumption_mix_calcs!AJ20,"") -> 0.1499942248 | AL35: =IF(consumption_mix_calcs!AK20<>"",consumption_mix_calcs!AK20,"") -> 0.001048468665 | AM35: =IF(consumption_mix_calcs!AL20<>"",consumption_mix_calcs!AL20,"") -> 0.0001498108137 | AN35: =IF(consumption_mix_calcs!AM20<>"",consumption_mix_calcs!AM20,"") -> 0.007097496985 | AO35: =IF(consumption_mix_calcs!AN20<>"",consumption_mix_calcs!AN20,"") -> 0.0004006430144 | AP35: =IF(consumption_mix_calcs!AO20<>"",consumption_mix_calcs!AO20,"") -> 0.0007679043057 | AQ35: =IF(consumption_mix_calcs!AP20<>"",consumption_mix_calcs!AP20,"") -> 0 | AR35: =IF(consumption_mix_calcs!AQ20<>"",consumption_mix_calcs!AQ20,"") -> 0.03559578121 | AS35: =IF(consumption_mix_calcs!AR20<>"",consumption_mix_calcs!AR20,"") -> 0.005653220479 | AT35: =IF(consumption_mix_calcs!AS20<>"",consumption_mix_calcs!AS20,"") -> 0.002271974328 | AU35: =IF(consumption_mix_calcs!AT20<>"",consumption_mix_calcs!AT20,"") -> 0.004672632355 | AV35: =IF(consumption_mix_calcs!AU20<>"",consumption_mix_calcs!AU20,"") -> 0.1881391518 | AW35: =IF(consumption_mix_calcs!AV20<>"",consumption_mix_calcs!AV20,"") -> 0.0009165446265 | AX35: =IF(consumption_mix_calcs!AW20<>"",consumption_mix_calcs!AW20,"") -> 0.01577511637 | AY35: =IF(consumption_mix_calcs!AX20<>"",consumption_mix_calcs!AX20,"") -> 0.006150708321 | AZ35: =IF(consumption_mix_calcs!AY20<>"",consumption_mix_calcs!AY20,"") -> 0.003242756562 | BA35: =IF(consumption_mix_calcs!AZ20<>"",consumption_mix_calcs!AZ20,"") -> 0.002669467817 | BB35: =IF(consumption_mix_calcs!BA20<>"",consumption_mix_calcs!BA20,"") -> 0.009445639424 | BC35: =IF(consumption_mix_calcs!BB20<>"",consumption_mix_calcs!BB20,"") -> 0.005071966507 | BD35: =IF(consumption_mix_calcs!BC20<>"",consumption_mix_calcs!BC20,"") -> 0.002291028135 | BE35: =IF(consumption_mix_calcs!BD20<>"",consumption_mix_calcs!BD20,"") -> 0.002134120935 | BF35: =IF(consumption_mix_calcs!BE20<>"",consumption_mix_calcs!BE20,"") -> 0.003501028527 | BG35: =IF(consumption_mix_calcs!BF20<>"",consumption_mix_calcs!BF20,"") -> 0.01697257062 | BH35: =IF(consumption_mix_calcs!BG20<>"",consumption_mix_calcs!BG20,"") -> 0.002229644786 | BI35: =IF(consumption_mix_calcs!BH20<>"",consumption_mix_calcs!BH20,"") -> 0.002608191473 | BJ35: =IF(consumption_mix_calcs!BI20<>"",consumption_mix_calcs!BI20,"") -> 0.006765010551 | BK35: =IF(consumption_mix_calcs!BJ20<>"",consumption_mix_calcs!BJ20,"") -> 0.005984124584 | BL35: =IF(consumption_mix_calcs!BK20<>"",consumption_mix_calcs!BK20,"") -> 0.0008298440556 | BM35: =IF(consumption_mix_calcs!BL20<>"",consumption_mix_calcs!BL20,"") -> 0.05666431622 | BN35: =IF(consumption_mix_calcs!BM20<>"",consumption_mix_calcs!BM20,"") -> 0.05884594052 | BO35: =IF(consumption_mix_calcs!BN20<>"",consumption_mix_calcs!BN20,"") -> 0.001454954743 | BP35: =IF(consumption_mix_calcs!BO20<>"",consumption_mix_calcs!BO20,"") -> 0.0008824056732 | BQ35: =IF(consumption_mix_calcs!BP20<>"",consumption_mix_calcs!BP20,"") -> 0.005429877141 | BR35: =IF(consumption_mix_calcs!BQ20<>"",consumption_mix_calcs!BQ20,"") -> 0.03696506561 | BS35: =IF(consumption_mix_calcs!BR20<>"",consumption_mix_calcs!BR20,"") -> 0.002697662112 | BT35: =IF(consumption_mix_calcs!BS20<>"",consumption_mix_calcs!BS20,"") -> 0.001541017689 | BU35: =IF(consumption_mix_calcs!BT20<>"",consumption_mix_calcs!BT20,"") -> 0.007165332024 | BV35: =IF(consumption_mix_calcs!BU20<>"",consumption_mix_calcs!BU20,"") -> 0.008694890519 | BW35: =IF(consumption_mix_calcs!BV20<>"",consumption_mix_calcs!BV20,"") -> 0 | BX35: =IF(consumption_mix_calcs!BW20<>"",consumption_mix_calcs!BW20,"") -> 0.001027439673
C36: Total | D36: =INDEX($D$54:$BX$54,1,D20) -> Bonneville Power Administration (Northwest) | E36: =INDEX($D$54:$BX$54,1,E20) -> Duke Energy Carolinas (Southeast) | F36: Arizona Public Service Company (Southwest) | G36: California Independent System Operator (CAISO) | H36: Associated Electric Cooperative, Inc. (MISO) | I36: Arlington Valley, LLC - AVBA (Southwest) | J36: B.C. Hydro & Power Authority (Canada) | K36: Avista Corporation (Northwest) | L36: Alcoa Power Generating, Inc. - Yadkin Division (Southeast) | M36: City of Tacoma, Department of Public Utilities, Light Division (Northwest) | N36: Balancing Authority of Northern California (CAISO)
B37: =INDEX(B$55:B$61,MATCH($B$9,$B$55:$B$61,0),1) -> Water Consumption | C37: =C28 -> 606 | D37: =D28 -> 9 | E37: 7 | F37: 7 | G37: 3 | H37: 1 | I37: 0 | J37: 0 | K37: 0 | L37: 0 | M37: 0 | N37: 0
B54: Impact Category | C54: Total | D54: =IF(consumption_mix_calcs!C22<>"",consumption_mix_calcs!C22&" ("&IFERROR(INDEX(ba_ferc_mapping!$B$2:$B$71,MATCH(consumption_mix_calcs!C22,ba_ferc_mapping!$A$2:$A$71,0),1)&")","Canada)"),"") -> Alcoa Power Generating, Inc. - Yadkin Division (Southeast) | E54: =IF(consumption_mix_calcs!D22<>"",consumption_mix_calcs!D22&" ("&IFERROR(INDEX(ba_ferc_mapping!$B$2:$B$71,MATCH(consumption_mix_calcs!D22,ba_ferc_mapping!$A$2:$A$71,0),1)&")","Canada)"),"") -> Arizona Public Service Company (Southwest) | F54: =IF(consumption_mix_calcs!E22<>"",consumption_mix_calcs!E22&" ("&IFERROR(INDEX(ba_ferc_mapping!$B$2:$B$71,MATCH(consumption_mix_calcs!E22,ba_ferc_mapping!$A$2:$A$71,0),1)&")","Canada)"),"") -> Arlington Valley, LLC - AVBA (Southwest) | G54: =IF(consumption_mix_calcs!F22<>"",consumption_mix_calcs!F22&" ("&IFERROR(INDEX(ba_ferc_mapping!$B$2:$B$71,MATCH(consumption_mix_calcs!F22,ba_ferc_mapping!$A$2:$A$71,0),1)&")","Canada)"),"") -> Associated Electric Cooperative, Inc. (MISO) | H54: =IF(consumption_mix_calcs!G22<>"",consumption_mix_calcs!G22&" ("&IFERROR(INDEX(ba_ferc_mapping!$B$2:$B$71,MATCH(consumption_mix_calcs!G22,ba_ferc_mapping!$A$2:$A$71,0),1)&")","Canada)"),"") -> Avista Corporation (Northwest) | I54: =IF(consumption_mix_calcs!H22<>"",consumption_mix_calcs!H22&" ("&IFERROR(INDEX(ba_ferc_mapping!$B$2:$B$71,MATCH(consumption_mix_calcs!H22,ba_ferc_mapping!$A$2:$A$71,0),1)&")","Canada)"),"") -> B.C. Hydro & Power Authority (Canada) | J54: =IF(consumption_mix_calcs!I22<>"",consumption_mix_calcs!I22&" ("&IFERROR(INDEX(ba_ferc_mapping!$B$2:$B$71,MATCH(consumption_mix_calcs!I22,ba_ferc_mapping!$A$2:$A$71,0),1)&")","Canada)"),"") -> Balancing Authority of Northern California (CAISO) | K54: =IF(consumption_mix_calcs!J22<>"",consumption_mix_calcs!J22&" ("&IFERROR(INDEX(ba_ferc_mapping!$B$2:$B$71,MATCH(consumption_mix_calcs!J22,ba_ferc_mapping!$A$2:$A$71,0),1)&")","Canada)"),"") -> Bonneville Power Administration (Northwest) | L54: =IF(consumption_mix_calcs!K22<>"",consumption_mix_calcs!K22&" ("&IFERROR(INDEX(ba_ferc_mapping!$B$2:$B$71,MATCH(consumption_mix_calcs!K22,ba_ferc_mapping!$A$2:$A$71,0),1)&")","Canada)"),"") -> California Independent System Operator (CAISO) | M54: =IF(consumption_mix_calcs!L22<>"",consumption_mix_calcs!L22&" ("&IFERROR(INDEX(ba_ferc_mapping!$B$2:$B$71,MATCH(consumption_mix_calcs!L22,ba_ferc_mapping!$A$2:$A$71,0),1)&")","Canada)"),"") -> City of Tacoma, Department of Public Utilities, Light Division (Northwest) | N54: =IF(consumption_mix_calcs!M22<>"",consumption_mix_calcs!M22&" ("&IFERROR(INDEX(ba_ferc_mapping!$B$2:$B$71,MATCH(consumption_mix_calcs!M22,ba_ferc_mapping!$A$2:$A$71,0),1)&")","Canada)"),"") -> Duke Energy Carolinas (Southeast) | O54: =IF(consumption_mix_calcs!N22<>"",consumption_mix_calcs!N22&" ("&IFERROR(INDEX(ba_ferc_mapping!$B$2:$B$71,MATCH(consumption_mix_calcs!N22,ba_ferc_mapping!$A$2:$A$71,0),1)&")","Canada)"),"") -> Duke Energy Florida, Inc. (Southeast) | P54: =IF(consumption_mix_calcs!O22<>"",consumption_mix_calcs!O22&" ("&IFERROR(INDEX(ba_ferc_mapping!$B$2:$B$71,MATCH(consumption_mix_calcs!O22,ba_ferc_mapping!$A$2:$A$71,0),1)&")","Canada)"),"") -> Duke Energy Progress East (Southeast) | Q54: =IF(consumption_mix_calcs!P22<>"",consumption_mix_calcs!P22&" ("&IFERROR(INDEX(ba_ferc_mapping!$B$2:$B$71,MATCH(consumption_mix_calcs!P22,ba_ferc_mapping!$A$2:$A$71,0),1)&")","Canada)"),"") -> Duke Energy Progress West (Southeast) | R54: =IF(consumption_mix_calcs!Q22<>"",consumption_mix_calcs!Q22&" ("&IFERROR(INDEX(ba_ferc_mapping!$B$2:$B$71,MATCH(consumption_mix_calcs!Q22,ba_ferc_mapping!$A$2:$A$71,0),1)&")","Canada)"),"") -> El Paso Electric Company (Southwest) | S54: =IF(consumption_mix_calcs!R22<>"",consumption_mix_calcs!R22&" ("&IFERROR(INDEX(ba_ferc_mapping!$B$2:$B$71,MATCH(consumption_mix_calcs!R22,ba_ferc_mapping!$A$2:$A$71,0),1)&")","Canada)"),"") -> Electric Energy, Inc. (MISO) | T54: =IF(consumption_mix_calcs!S22<>"",consumption_mix_calcs!S22&" ("&IFERROR(INDEX(ba_ferc_mapping!$B$2:$B$71,MATCH(consumption_mix_calcs!S22,ba_ferc_mapping!$A$2:$A$71,0),1)&")","Canada)"),"") -> Electric Reliability Council of Texas, Inc. (ERCOT) | U54: =IF(consumption_mix_calcs!T22<>"",consumption_mix_calcs!T22&" ("&IFERROR(INDEX(ba_ferc_mapping!$B$2:$B$71,MATCH(consumption_mix_calcs!T22,ba_ferc_mapping!$A$2:$A$71,0),1)&")","Canada)"),"") -> Florida Municipal Power Pool (Southeast) | V54: =IF(consumption_mix_calcs!U22<>"",consumption_mix_calcs!U22&" ("&IFERROR(INDEX(ba_ferc_mapping!$B$2:$B$71,MATCH(consumption_mix_calcs!U22,ba_ferc_mapping!$A$2:$A$71,0),1)&")","Canada)"),"") -> Florida Power & Light Co. (Southeast) | W54: =IF(consumption_mix_calcs!V22<>"",consumption_mix_calcs!V22&" ("&IFERROR(INDEX(ba_ferc_mapping!$B$2:$B$71,MATCH(consumption_mix_calcs!V22,ba_ferc_mapping!$A$2:$A$71,0),1)&")","Canada)"),"") -> Gainesville Regional Utilities (Southeast) | X54: =IF(consumption_mix_calcs!W22<>"",consumption_mix_calcs!W22&" ("&IFERROR(INDEX(ba_ferc_mapping!$B$2:$B$71,MATCH(consumption_mix_calcs!W22,ba_ferc_mapping!$A$2:$A$71,0),1)&")","Canada)"),"") -> Gila River Power, LLC (Southwest) | Y54: =IF(consumption_mix_calcs!X22<>"",consumption_mix_calcs!X22&" ("&IFERROR(INDEX(ba_ferc_mapping!$B$2:$B$71,MATCH(consumption_mix_calcs!X22,ba_ferc_mapping!$A$2:$A$71,0),1)&")","Canada)"),"") -> Gridforce Energy Management, LLC (Northwest) | Z54: =IF(consumption_mix_calcs!Y22<>"",consumption_mix_calcs!Y22&" ("&IFERROR(INDEX(ba_ferc_mapping!$B$2:$B$71,MATCH(consumption_mix_calcs!Y22,ba_ferc_mapping!$A$2:$A$71,0),1)&")","Canada)"),"") -> Gridforce South (Southwest) | AA54: =IF(consumption_mix_calcs!Z22<>"",consumption_mix_calcs!Z22&" ("&IFERROR(INDEX(ba_ferc_mapping!$B$2:$B$71,MATCH(consumption_mix_calcs!Z22,ba_ferc_mapping!$A$2:$A$71,0),1)&")","Canada)"),"") -> Griffith Energy, LLC (Southwest) | AB54: =IF(consumption_mix_calcs!AA22<>"",consumption_mix_calcs!AA22&" ("&IFERROR(INDEX(ba_ferc_mapping!$B$2:$B$71,MATCH(consumption_mix_calcs!AA22,ba_ferc_mapping!$A$2:$A$71,0),1)&")","Canada)"),"") -> Homestead, City of (Southeast) | AC54: =IF(consumption_mix_calcs!AB22<>"",consumption_mix_calcs!AB22&" ("&IFERROR(INDEX(ba_ferc_mapping!$B$2:$B$71,MATCH(consumption_mix_calcs!AB22,ba_ferc_mapping!$A$2:$A$71,0),1)&")","Canada)"),"") -> Hydro-Quebec TransEnergie (Canada) | AD54: =IF(consumption_mix_calcs!AC22<>"",consumption_mix_calcs!AC22&" ("&IFERROR(INDEX(ba_ferc_mapping!$B$2:$B$71,MATCH(consumption_mix_calcs!AC22,ba_ferc_mapping!$A$2:$A$71,0),1)&")","Canada)"),"") -> ISO-NE (ISO-NE) | AE54: =IF(consumption_mix_calcs!AD22<>"",consumption_mix_calcs!AD22&" ("&IFERROR(INDEX(ba_ferc_mapping!$B$2:$B$71,MATCH(consumption_mix_calcs!AD22,ba_ferc_mapping!$A$2:$A$71,0),1)&")","Canada)"),"") -> Idaho Power Company (Northwest) | AF54: =IF(consumption_mix_calcs!AE22<>"",consumption_mix_calcs!AE22&" ("&IFERROR(INDEX(ba_ferc_mapping!$B$2:$B$71,MATCH(consumption_mix_calcs!AE22,ba_ferc_mapping!$A$2:$A$71,0),1)&")","Canada)"),"") -> Imperial Irrigation District (CAISO) | AG54: =IF(consumption_mix_calcs!AF22<>"",consumption_mix_calcs!AF22&" ("&IFERROR(INDEX(ba_ferc_mapping!$B$2:$B$71,MATCH(consumption_mix_calcs!AF22,ba_ferc_mapping!$A$2:$A$71,0),1)&")","Canada)"),"") -> JEA (Southeast) | AH54: =IF(consumption_mix_calcs!AG22<>"",consumption_mix_calcs!AG22&" ("&IFERROR(INDEX(ba_ferc_mapping!$B$2:$B$71,MATCH(consumption_mix_calcs!AG22,ba_ferc_mapping!$A$2:$A$71,0),1)&")","Canada)"),"") -> LG&E and KU Services Company as agent for Louisville Gas and Electric Company and Kentucky Utilities Company (MISO) | AI54: =IF(consumption_mix_calcs!AH22<>"",consumption_mix_calcs!AH22&" ("&IFERROR(INDEX(ba_ferc_mapping!$B$2:$B$71,MATCH(consumption_mix_calcs!AH22,ba_ferc_mapping!$A$2:$A$71,0),1)&")","Canada)"),"") -> Los Angeles Department of Water and Power (CAISO) | AJ54: =IF(consumption_mix_calcs!AI22<>"",consumption_mix_calcs!AI22&" ("&IFERROR(INDEX(ba_ferc_mapping!$B$2:$B$71,MATCH(consumption_mix_calcs!AI22,ba_ferc_mapping!$A$2:$A$71,0),1)&")","Canada)"),"") -> Manitoba Hydro (Canada) | AK54: =IF(consumption_mix_calcs!AJ22<>"",consumption_mix_calcs!AJ22&" ("&IFERROR(INDEX(ba_ferc_mapping!$B$2:$B$71,MATCH(consumption_mix_calcs!AJ22,ba_ferc_mapping!$A$2:$A$71,0),1)&")","Canada)"),"") -> Midcontinent Independent System Operator, Inc. (MISO) | AL54: =IF(consumption_mix_calcs!AK22<>"",consumption_mix_calcs!AK22&" ("&IFERROR(INDEX(ba_ferc_mapping!$B$2:$B$71,MATCH(consumption_mix_calcs!AK22,ba_ferc_mapping!$A$2:$A$71,0),1)&")","Canada)"),"") -> NaturEner Power Watch, LLC (GWA) (Northwest) | AM54: =IF(consumption_mix_calcs!AL22<>"",consumption_mix_calcs!AL22&" ("&IFERROR(INDEX(ba_ferc_mapping!$B$2:$B$71,MATCH(consumption_mix_calcs!AL22,ba_ferc_mapping!$A$2:$A$71,0),1)&")","Canada)"),"") -> NaturEner Wind Watch, LLC (Northwest) | AN54: =IF(consumption_mix_calcs!AM22<>"",consumption_mix_calcs!AM22&" ("&IFERROR(INDEX(ba_ferc_mapping!$B$2:$B$71,MATCH(consumption_mix_calcs!AM22,ba_ferc_mapping!$A$2:$A$71,0),1)&")","Canada)"),"") -> Nevada Power Company (Northwest) | AO54: =IF(consumption_mix_calcs!AN22<>"",consumption_mix_calcs!AN22&" ("&IFERROR(INDEX(ba_ferc_mapping!$B$2:$B$71,MATCH(consumption_mix_calcs!AN22,ba_ferc_mapping!$A$2:$A$71,0),1)&")","Canada)"),"") -> New Brunswick System Operator (Canada) | AP54: =IF(consumption_mix_calcs!AO22<>"",consumption_mix_calcs!AO22&" ("&IFERROR(INDEX(ba_ferc_mapping!$B$2:$B$71,MATCH(consumption_mix_calcs!AO22,ba_ferc_mapping!$A$2:$A$71,0),1)&")","Canada)"),"") -> New Harquahala Generating Company, LLC - HGBA (Southwest) | AQ54: =IF(consumption_mix_calcs!AP22<>"",consumption_mix_calcs!AP22&" ("&IFERROR(INDEX(ba_ferc_mapping!$B$2:$B$71,MATCH(consumption_mix_calcs!AP22,ba_ferc_mapping!$A$2:$A$71,0),1)&")","Canada)"),"") -> New Smyrna Beach, Utilities Commission of (Southeast) | AR54: =IF(consumption_mix_calcs!AQ22<>"",consumption_mix_calcs!AQ22&" ("&IFERROR(INDEX(ba_ferc_mapping!$B$2:$B$71,MATCH(consumption_mix_calcs!AQ22,ba_ferc_mapping!$A$2:$A$71,0),1)&")","Canada)"),"") -> New York Independent System Operator (NYISO) | AS54: =IF(consumption_mix_calcs!AR22<>"",consumption_mix_calcs!AR22&" ("&IFERROR(INDEX(ba_ferc_mapping!$B$2:$B$71,MATCH(consumption_mix_calcs!AR22,ba_ferc_mapping!$A$2:$A$71,0),1)&")","Canada)"),"") -> NorthWestern Corporation (Northwest) | AT54: =IF(consumption_mix_calcs!AS22<>"",consumption_mix_calcs!AS22&" ("&IFERROR(INDEX(ba_ferc_mapping!$B$2:$B$71,MATCH(consumption_mix_calcs!AS22,ba_ferc_mapping!$A$2:$A$71,0),1)&")","Canada)"),"") -> Ohio Valley Electric Corporation (PJM) | AU54: =IF(consumption_mix_calcs!AT22<>"",consumption_mix_calcs!AT22&" ("&IFERROR(INDEX(ba_ferc_mapping!$B$2:$B$71,MATCH(consumption_mix_calcs!AT22,ba_ferc_mapping!$A$2:$A$71,0),1)&")","Canada)"),"") -> Ontario IESO (Canada) | AV54: =IF(consumption_mix_calcs!AU22<>"",consumption_mix_calcs!AU22&" ("&IFERROR(INDEX(ba_ferc_mapping!$B$2:$B$71,MATCH(consumption_mix_calcs!AU22,ba_ferc_mapping!$A$2:$A$71,0),1)&")","Canada)"),"") -> PJM Interconnection, LLC (PJM) | AW54: =IF(consumption_mix_calcs!AV22<>"",consumption_mix_calcs!AV22&" ("&IFERROR(INDEX(ba_ferc_mapping!$B$2:$B$71,MATCH(consumption_mix_calcs!AV22,ba_ferc_mapping!$A$2:$A$71,0),1)&")","Canada)"),"") -> PUD No. 1 of Douglas County (Northwest) | AX54: =IF(consumption_mix_calcs!AW22<>"",consumption_mix_calcs!AW22&" ("&IFERROR(INDEX(ba_ferc_mapping!$B$2:$B$71,MATCH(consumption_mix_calcs!AW22,ba_ferc_mapping!$A$2:$A$71,0),1)&")","Canada)"),"") -> PacifiCorp East (Northwest) | AY54: =IF(consumption_mix_calcs!AX22<>"",consumption_mix_calcs!AX22&" ("&IFERROR(INDEX(ba_ferc_mapping!$B$2:$B$71,MATCH(consumption_mix_calcs!AX22,ba_ferc_mapping!$A$2:$A$71,0),1)&")","Canada)"),"") -> PacifiCorp West (Northwest) | AZ54: =IF(consumption_mix_calcs!AY22<>"",consumption_mix_calcs!AY22&" ("&IFERROR(INDEX(ba_ferc_mapping!$B$2:$B$71,MATCH(consumption_mix_calcs!AY22,ba_ferc_mapping!$A$2:$A$71,0),1)&")","Canada)"),"") -> Portland General Electric Company (Northwest) | BA54: =IF(consumption_mix_calcs!AZ22<>"",consumption_mix_calcs!AZ22&" ("&IFERROR(INDEX(ba_ferc_mapping!$B$2:$B$71,MATCH(consumption_mix_calcs!AZ22,ba_ferc_mapping!$A$2:$A$71,0),1)&")","Canada)"),"") -> PowerSouth Energy Cooperative (Southeast) | BB54: =IF(consumption_mix_calcs!BA22<>"",consumption_mix_calcs!BA22&" ("&IFERROR(INDEX(ba_ferc_mapping!$B$2:$B$71,MATCH(consumption_mix_calcs!BA22,ba_ferc_mapping!$A$2:$A$71,0),1)&")","Canada)"),"") -> Public Service Company of Colorado (Northwest) | BC54: =IF(consumption_mix_calcs!BB22<>"",consumption_mix_calcs!BB22&" ("&IFERROR(INDEX(ba_ferc_mapping!$B$2:$B$71,MATCH(consumption_mix_calcs!BB22,ba_ferc_mapping!$A$2:$A$71,0),1)&")","Canada)"),"") -> Public Service Company of New Mexico (Southwest) | BD54: =IF(consumption_mix_calcs!BC22<>"",consumption_mix_calcs!BC22&" ("&IFERROR(INDEX(ba_ferc_mapping!$B$2:$B$71,MATCH(consumption_mix_calcs!BC22,ba_ferc_mapping!$A$2:$A$71,0),1)&")","Canada)"),"") -> Public Utility District No. 1 of Chelan County (Northwest) | BE54: =IF(consumption_mix_calcs!BD22<>"",consumption_mix_calcs!BD22&" ("&IFERROR(INDEX(ba_ferc_mapping!$B$2:$B$71,MATCH(consumption_mix_calcs!BD22,ba_ferc_mapping!$A$2:$A$71,0),1)&")","Canada)"),"") -> Public Utility District No. 2 of Grant County, Washington (Northwest) | BF54: =IF(consumption_mix_calcs!BE22<>"",consumption_mix_calcs!BE22&" ("&IFERROR(INDEX(ba_ferc_mapping!$B$2:$B$71,MATCH(consumption_mix_calcs!BE22,ba_ferc_mapping!$A$2:$A$71,0),1)&")","Canada)"),"") -> Puget Sound Energy, Inc. (Northwest) | BG54: =IF(consumption_mix_calcs!BF22<>"",consumption_mix_calcs!BF22&" ("&IFERROR(INDEX(ba_ferc_mapping!$B$2:$B$71,MATCH(consumption_mix_calcs!BF22,ba_ferc_mapping!$A$2:$A$71,0),1)&")","Canada)"),"") -> Salt River Project Agricultural Improvement and Power District (Southwest) | BH54: =IF(consumption_mix_calcs!BG22<>"",consumption_mix_calcs!BG22&" ("&IFERROR(INDEX(ba_ferc_mapping!$B$2:$B$71,MATCH(consumption_mix_calcs!BG22,ba_ferc_mapping!$A$2:$A$71,0),1)&")","Canada)"),"") -> Seattle City Light (Northwest) | BI54: =IF(consumption_mix_calcs!BH22<>"",consumption_mix_calcs!BH22&" ("&IFERROR(INDEX(ba_ferc_mapping!$B$2:$B$71,MATCH(consumption_mix_calcs!BH22,ba_ferc_mapping!$A$2:$A$71,0),1)&")","Canada)"),"") -> Seminole Electric Cooperative (Southeast) | BJ54: =IF(consumption_mix_calcs!BI22<>"",consumption_mix_calcs!BI22&" ("&IFERROR(INDEX(ba_ferc_mapping!$B$2:$B$71,MATCH(consumption_mix_calcs!BI22,ba_ferc_mapping!$A$2:$A$71,0),1)&")","Canada)"),"") -> South Carolina Electric & Gas Company (Southeast) | BK54: =IF(consumption_mix_calcs!BJ22<>"",consumption_mix_calcs!BJ22&" ("&IFERROR(INDEX(ba_ferc_mapping!$B$2:$B$71,MATCH(consumption_mix_calcs!BJ22,ba_ferc_mapping!$A$2:$A$71,0),1)&")","Canada)"),"") -> South Carolina Public Service Authority (Southeast) | BL54: =IF(consumption_mix_calcs!BK22<>"",consumption_mix_calcs!BK22&" ("&IFERROR(INDEX(ba_ferc_mapping!$B$2:$B$71,MATCH(consumption_mix_calcs!BK22,ba_ferc_mapping!$A$2:$A$71,0),1)&")","Canada)"),"") -> Southeastern Power Administration (Southeast) | BM54: =IF(consumption_mix_calcs!BL22<>"",consumption_mix_calcs!BL22&" ("&IFERROR(INDEX(ba_ferc_mapping!$B$2:$B$71,MATCH(consumption_mix_calcs!BL22,ba_ferc_mapping!$A$2:$A$71,0),1)&")","Canada)"),"") -> Southern Company Services, Inc. - Trans (Southeast) | BN54: =IF(consumption_mix_calcs!BM22<>"",consumption_mix_calcs!BM22&" ("&IFERROR(INDEX(ba_ferc_mapping!$B$2:$B$71,MATCH(consumption_mix_calcs!BM22,ba_ferc_mapping!$A$2:$A$71,0),1)&")","Canada)"),"") -> Southwest Power Pool (SPP) | BO54: =IF(consumption_mix_calcs!BN22<>"",consumption_mix_calcs!BN22&" ("&IFERROR(INDEX(ba_ferc_mapping!$B$2:$B$71,MATCH(consumption_mix_calcs!BN22,ba_ferc_mapping!$A$2:$A$71,0),1)&")","Canada)"),"") -> Southwestern Power Administration (SPP) | BP54: =IF(consumption_mix_calcs!BO22<>"",consumption_mix_calcs!BO22&" ("&IFERROR(INDEX(ba_ferc_mapping!$B$2:$B$71,MATCH(consumption_mix_calcs!BO22,ba_ferc_mapping!$A$2:$A$71,0),1)&")","Canada)"),"") -> Tallahassee, City of (Southeast) | BQ54: =IF(consumption_mix_calcs!BP22<>"",consumption_mix_calcs!BP22&" ("&IFERROR(INDEX(ba_ferc_mapping!$B$2:$B$71,MATCH(consumption_mix_calcs!BP22,ba_ferc_mapping!$A$2:$A$71,0),1)&")","Canada)"),"") -> Tampa Electric Company (Southeast) | BR54: =IF(consumption_mix_calcs!BQ22<>"",consumption_mix_calcs!BQ22&" ("&IFERROR(INDEX(ba_ferc_mapping!$B$2:$B$71,MATCH(consumption_mix_calcs!BQ22,ba_ferc_mapping!$A$2:$A$71,0),1)&")","Canada)"),"") -> Tennessee Valley Authority (Southeast) | BS54: =IF(consumption_mix_calcs!BR22<>"",consumption_mix_calcs!BR22&" ("&IFERROR(INDEX(ba_ferc_mapping!$B$2:$B$71,MATCH(consumption_mix_calcs!BR22,ba_ferc_mapping!$A$2:$A$71,0),1)&")","Canada)"),"") -> Tucson Electric Power (Southwest) | BT54: =IF(consumption_mix_calcs!BS22<>"",consumption_mix_calcs!BS22&" ("&IFERROR(INDEX(ba_ferc_mapping!$B$2:$B$71,MATCH(consumption_mix_calcs!BS22,ba_ferc_mapping!$A$2:$A$71,0),1)&")","Canada)"),"") -> Turlock Irrigation District (CAISO) | BU54: =IF(consumption_mix_calcs!BT22<>"",consumption_mix_calcs!BT22&" ("&IFERROR(INDEX(ba_ferc_mapping!$B$2:$B$71,MATCH(consumption_mix_calcs!BT22,ba_ferc_mapping!$A$2:$A$71,0),1)&")","Canada)"),"") -> Western Area Power Administration - Desert Southwest Region (Southwest) | BV54: =IF(consumption_mix_calcs!BU22<>"",consumption_mix_calcs!BU22&" ("&IFERROR(INDEX(ba_ferc_mapping!$B$2:$B$71,MATCH(consumption_mix_calcs!BU22,ba_ferc_mapping!$A$2:$A$71,0),1)&")","Canada)"),"") -> Western Area Power Administration - Rocky Mountain Region (Northwest) | BW54: =IF(consumption_mix_calcs!BV22<>"",consumption_mix_calcs!BV22&" ("&IFERROR(INDEX(ba_ferc_mapping!$B$2:$B$71,MATCH(consumption_mix_calcs!BV22,ba_ferc_mapping!$A$2:$A$71,0),1)&")","Canada)"),"") -> Western Area Power Administration - Upper Great Plains East (Northwest) | BX54: =IF(consumption_mix_calcs!BW22<>"",consumption_mix_calcs!BW22&" ("&IFERROR(INDEX(ba_ferc_mapping!$B$2:$B$71,MATCH(consumption_mix_calcs!BW22,ba_ferc_mapping!$A$2:$A$71,0),1)&")","Canada)"),"") -> Western Area Power Administration - Upper Great Plains West (Northwest)
B55: Eutrophication Potential | C55: =SUM(D55:BX55) -> 0.08190612445 | D55: =IF(consumption_mix_calcs!C8<>"",consumption_mix_calcs!C8,"") -> 1.199661733e-25 | E55: =IF(consumption_mix_calcs!D8<>"",consumption_mix_calcs!D8,"") -> 0.0005304324191 | F55: =IF(consumption_mix_calcs!E8<>"",consumption_mix_calcs!E8,"") -> 4.706652382e-05 | G55: =IF(consumption_mix_calcs!F8<>"",consumption_mix_calcs!F8,"") -> 0.0006538952104 | H55: =IF(consumption_mix_calcs!G8<>"",consumption_mix_calcs!G8,"") -> 5.986277882e-05 | I55: =IF(consumption_mix_calcs!H8<>"",consumption_mix_calcs!H8,"") -> 8.010595279e-05 | J55: =IF(consumption_mix_calcs!I8<>"",consumption_mix_calcs!I8,"") -> 0.0003020109344 | K55: =IF(consumption_mix_calcs!J8<>"",consumption_mix_calcs!J8,"") -> 0.0008257334694 | L55: =IF(consumption_mix_calcs!K8<>"",consumption_mix_calcs!K8,"") -> 0.002962749738 | M55: =IF(consumption_mix_calcs!L8<>"",consumption_mix_calcs!L8,"") -> 8.729279376e-06 | N55: =IF(consumption_mix_calcs!M8<>"",consumption_mix_calcs!M8,"") -> 0.001261222094 | O55: =IF(consumption_mix_calcs!N8<>"",consumption_mix_calcs!N8,"") -> 0.001176769693 | P55: =IF(consumption_mix_calcs!O8<>"",consumption_mix_calcs!O8,"") -> 0.0009045455214 | Q55: =IF(consumption_mix_calcs!P8<>"",consumption_mix_calcs!P8,"") -> 0 | R55: =IF(consumption_mix_calcs!Q8<>"",consumption_mix_calcs!Q8,"") -> 0.0003213137381 | S55: =IF(consumption_mix_calcs!R8<>"",consumption_mix_calcs!R8,"") -> 0.0001422720765 | T55: =IF(consumption_mix_calcs!S8<>"",consumption_mix_calcs!S8,"") -> 0.008960794164 | U55: =IF(consumption_mix_calcs!T8<>"",consumption_mix_calcs!T8,"") -> 0.0005424632455 | V55: =IF(consumption_mix_calcs!U8<>"",consumption_mix_calcs!U8,"") -> 0.002668547411 | W55: =IF(consumption_mix_calcs!V8<>"",consumption_mix_calcs!V8,"") -> 5.600987626e-05 | X55: =IF(consumption_mix_calcs!W8<>"",consumption_mix_calcs!W8,"") -> 0.0001769855075 | Y55: =IF(consumption_mix_calcs!X8<>"",consumption_mix_calcs!X8,"") -> 0 | Z55: =IF(consumption_mix_calcs!Y8<>"",consumption_mix_calcs!Y8,"") -> 0 | AA55: =IF(consumption_mix_calcs!Z8<>"",consumption_mix_calcs!Z8,"") -> 5.089277236e-05 | AB55: =IF(consumption_mix_calcs!AA8<>"",consumption_mix_calcs!AA8,"") -> 2.037619984e-06 | AC55: =IF(consumption_mix_calcs!AB8<>"",consumption_mix_calcs!AB8,"") -> 1.677785446e-05 | AD55: =IF(consumption_mix_calcs!AC8<>"",consumption_mix_calcs!AC8,"") -> 0.00200111704 | AE55: =IF(consumption_mix_calcs!AD8<>"",consumption_mix_calcs!AD8,"") -> 8.826855475e-05 | AF55: =IF(consumption_mix_calcs!AE8<>"",consumption_mix_calcs!AE8,"") -> 3.619186798e-05 | AG55: =IF(consumption_mix_calcs!AF8<>"",consumption_mix_calcs!AF8,"") -> 0.0006728374383 | AH55: =IF(consumption_mix_calcs!AG8<>"",consumption_mix_calcs!AG8,"") -> 0.0007567966188 | AI55: =IF(consumption_mix_calcs!AH8<>"",consumption_mix_calcs!AH8,"") -> 0.00128719861 | AJ55: =IF(consumption_mix_calcs!AI8<>"",consumption_mix_calcs!AI8,"") -> 0 | AK55: =IF(consumption_mix_calcs!AJ8<>"",consumption_mix_calcs!AJ8,"") -> 0.01637680868 | AL55: =IF(consumption_mix_calcs!AK8<>"",consumption_mix_calcs!AK8,"") -> 3.461600562e-06 | AM55: =IF(consumption_mix_calcs!AL8<>"",consumption_mix_calcs!AL8,"") -> 3.827206438e-07 | AN55: =IF(consumption_mix_calcs!AM8<>"",consumption_mix_calcs!AM8,"") -> 0.0006602372297 | AO55: =IF(consumption_mix_calcs!AN8<>"",consumption_mix_calcs!AN8,"") -> 2.799308554e-05 | AP55: =IF(consumption_mix_calcs!AO8<>"",consumption_mix_calcs!AO8,"") -> 8.592825228e-05 | AQ55: =IF(consumption_mix_calcs!AP8<>"",consumption_mix_calcs!AP8,"") -> 0 | AR55: =IF(consumption_mix_calcs!AQ8<>"",consumption_mix_calcs!AQ8,"") -> 0.002248910366 | AS55: =IF(consumption_mix_calcs!AR8<>"",consumption_mix_calcs!AR8,"") -> 0.0005440804282 | AT55: =IF(consumption_mix_calcs!AS8<>"",consumption_mix_calcs!AS8,"") -> 0.0002654879738 | AU55: =IF(consumption_mix_calcs!AT8<>"",consumption_mix_calcs!AT8,"") -> 0.0001163350735 | AV55: =IF(consumption_mix_calcs!AU8<>"",consumption_mix_calcs!AU8,"") -> 0.012047779 | AW55: =IF(consumption_mix_calcs!AV8<>"",consumption_mix_calcs!AV8,"") -> 9.81179784e-27 | AX55: =IF(consumption_mix_calcs!AW8<>"",consumption_mix_calcs!AW8,"") -> 0.001960559564 | AY55: =IF(consumption_mix_calcs!AX8<>"",consumption_mix_calcs!AX8,"") -> 0.0003569957169 | AZ55: =IF(consumption_mix_calcs!AY8<>"",consumption_mix_calcs!AY8,"") -> 0.000185793435 | BA55: =IF(consumption_mix_calcs!AZ8<>"",consumption_mix_calcs!AZ8,"") -> 0.0002905251732 | BB55: =IF(consumption_mix_calcs!BA8<>"",consumption_mix_calcs!BA8,"") -> 0.0006178875014 | BC55: =IF(consumption_mix_calcs!BB8<>"",consumption_mix_calcs!BB8,"") -> 0.0006367022425 | BD55: =IF(consumption_mix_calcs!BC8<>"",consumption_mix_calcs!BC8,"") -> 3.463873785e-26 | BE55: =IF(consumption_mix_calcs!BD8<>"",consumption_mix_calcs!BD8,"") -> 5.5329148e-26 | BF55: =IF(consumption_mix_calcs!BE8<>"",consumption_mix_calcs!BE8,"") -> 0.0002646852719 | BG55: =IF(consumption_mix_calcs!BF8<>"",consumption_mix_calcs!BF8,"") -> 0.001223656289 | BH55: =IF(consumption_mix_calcs!BG8<>"",consumption_mix_calcs!BG8,"") -> 5.180905387e-06 | BI55: =IF(consumption_mix_calcs!BH8<>"",consumption_mix_calcs!BH8,"") -> 0.0001740052881 | BJ55: =IF(consumption_mix_calcs!BI8<>"",consumption_mix_calcs!BI8,"") -> 0.0004595155179 | BK55: =IF(consumption_mix_calcs!BJ8<>"",consumption_mix_calcs!BJ8,"") -> 0.0004844674339 | BL55: =IF(consumption_mix_calcs!BK8<>"",consumption_mix_calcs!BK8,"") -> 2.053743668e-07 | BM55: =IF(consumption_mix_calcs!BL8<>"",consumption_mix_calcs!BL8,"") -> 0.005193803529 | BN55: =IF(consumption_mix_calcs!BM8<>"",consumption_mix_calcs!BM8,"") -> 0.005968075592 | BO55: =IF(consumption_mix_calcs!BN8<>"",consumption_mix_calcs!BN8,"") -> 2.142318592e-05 | BP55: =IF(consumption_mix_calcs!BO8<>"",consumption_mix_calcs!BO8,"") -> 0.0001009787276 | BQ55: =IF(consumption_mix_calcs!BP8<>"",consumption_mix_calcs!BP8,"") -> 0.0005277627777 | BR55: =IF(consumption_mix_calcs!BQ8<>"",consumption_mix_calcs!BQ8,"") -> 0.00252045716 | BS55: =IF(consumption_mix_calcs!BR8<>"",consumption_mix_calcs!BR8,"") -> 0.0002751633663 | BT55: =IF(consumption_mix_calcs!BS8<>"",consumption_mix_calcs!BS8,"") -> 0.0001461076473 | BU55: =IF(consumption_mix_calcs!BT8<>"",consumption_mix_calcs!BT8,"") -> 0.0002879825798 | BV55: =IF(consumption_mix_calcs!BU8<>"",consumption_mix_calcs!BU8,"") -> 0.001233157757 | BW55: =IF(consumption_mix_calcs!BV8<>"",consumption_mix_calcs!BV8,"") -> 0 | BX55: =IF(consumption_mix_calcs!BW8<>"",consumption_mix_calcs!BW8,"") -> 0
B56: Acidification Potential | C56: =SUM(D56:BX56) -> 1.741906946 | D56: =IF(consumption_mix_calcs!C9<>"",consumption_mix_calcs!C9,"") -> 4.604707487e-24 | E56: =IF(consumption_mix_calcs!D9<>"",consumption_mix_calcs!D9,"") -> 0.00924448866 | F56: =IF(consumption_mix_calcs!E9<>"",consumption_mix_calcs!E9,"") -> 0.0006917015084 | G56: =IF(consumption_mix_calcs!F9<>"",consumption_mix_calcs!F9,"") -> 0.01717662246 | H56: =IF(consumption_mix_calcs!G9<>"",consumption_mix_calcs!G9,"") -> 0.001142645091 | I56: =IF(consumption_mix_calcs!H9<>"",consumption_mix_calcs!H9,"") -> 0.001348379879 | J56: =IF(consumption_mix_calcs!I9<>"",consumption_mix_calcs!I9,"") -> 0.004556892856 | K56: =IF(consumption_mix_calcs!J9<>"",consumption_mix_calcs!J9,"") -> 0.01355279116 | L56: =IF(consumption_mix_calcs!K9<>"",consumption_mix_calcs!K9,"") -> 0.04375730652 | M56: =IF(consumption_mix_calcs!L9<>"",consumption_mix_calcs!L9,"") -> 0.0007429690898 | N56: =IF(consumption_mix_calcs!M9<>"",consumption_mix_calcs!M9,"") -> 0.01858419641 | O56: =IF(consumption_mix_calcs!N9<>"",consumption_mix_calcs!N9,"") -> 0.02137474301 | P56: =IF(consumption_mix_calcs!O9<>"",consumption_mix_calcs!O9,"") -> 0.01524757981 | Q56: =IF(consumption_mix_calcs!P9<>"",consumption_mix_calcs!P9,"") -> 0 | R56: =IF(consumption_mix_calcs!Q9<>"",consumption_mix_calcs!Q9,"") -> 0.004758749924 | S56: =IF(consumption_mix_calcs!R9<>"",consumption_mix_calcs!R9,"") -> 0.004064337877 | T56: =IF(consumption_mix_calcs!S9<>"",consumption_mix_calcs!S9,"") -> 0.169484006 | U56: =IF(consumption_mix_calcs!T9<>"",consumption_mix_calcs!T9,"") -> 0.009332297511 | V56: =IF(consumption_mix_calcs!U9<>"",consumption_mix_calcs!U9,"") -> 0.04091510558 | W56: =IF(consumption_mix_calcs!V9<>"",consumption_mix_calcs!V9,"") -> 0.0008440826198 | X56: =IF(consumption_mix_calcs!W9<>"",consumption_mix_calcs!W9,"") -> 0.002695742756 | Y56: =IF(consumption_mix_calcs!X9<>"",consumption_mix_calcs!X9,"") -> 0 | Z56: =IF(consumption_mix_calcs!Y9<>"",consumption_mix_calcs!Y9,"") -> 0 | AA56: =IF(consumption_mix_calcs!Z9<>"",consumption_mix_calcs!Z9,"") -> 0.0007577907808 | AB56: =IF(consumption_mix_calcs!AA9<>"",consumption_mix_calcs!AA9,"") -> 2.90948877e-05 | AC56: =IF(consumption_mix_calcs!AB9<>"",consumption_mix_calcs!AB9,"") -> 0.0002876473048 | AD56: =IF(consumption_mix_calcs!AC9<>"",consumption_mix_calcs!AC9,"") -> 0.03216941046 | AE56: =IF(consumption_mix_calcs!AD9<>"",consumption_mix_calcs!AD9,"") -> 0.001343326588 | AF56: =IF(consumption_mix_calcs!AE9<>"",consumption_mix_calcs!AE9,"") -> 0.0005764228939 | AG56: =IF(consumption_mix_calcs!AF9<>"",consumption_mix_calcs!AF9,"") -> 0.01410713042 | AH56: =IF(consumption_mix_calcs!AG9<>"",consumption_mix_calcs!AG9,"") -> 0.01554302898 | AI56: =IF(consumption_mix_calcs!AH9<>"",consumption_mix_calcs!AH9,"") -> 0.02057080806 | AJ56: =IF(consumption_mix_calcs!AI9<>"",consumption_mix_calcs!AI9,"") -> 0 | AK56: =IF(consumption_mix_calcs!AJ9<>"",consumption_mix_calcs!AJ9,"") -> 0.4086070163 | AL56: =IF(consumption_mix_calcs!AK9<>"",consumption_mix_calcs!AK9,"") -> 7.786725893e-05 | AM56: =IF(consumption_mix_calcs!AL9<>"",consumption_mix_calcs!AL9,"") -> 8.613612887e-06 | AN56: =IF(consumption_mix_calcs!AM9<>"",consumption_mix_calcs!AM9,"") -> 0.01110427716 | AO56: =IF(consumption_mix_calcs!AN9<>"",consumption_mix_calcs!AN9,"") -> 0.0006442630402 | AP56: =IF(consumption_mix_calcs!AO9<>"",consumption_mix_calcs!AO9,"") -> 0.001260178989 | AQ56: =IF(consumption_mix_calcs!AP9<>"",consumption_mix_calcs!AP9,"") -> 0 | AR56: =IF(consumption_mix_calcs!AQ9<>"",consumption_mix_calcs!AQ9,"") -> 0.03478343568 | AS56: =IF(consumption_mix_calcs!AR9<>"",consumption_mix_calcs!AR9,"") -> 0.01357565914 | AT56: =IF(consumption_mix_calcs!AS9<>"",consumption_mix_calcs!AS9,"") -> 0.005624215361 | AU56: =IF(consumption_mix_calcs!AT9<>"",consumption_mix_calcs!AT9,"") -> 0.00159863522 | AV56: =IF(consumption_mix_calcs!AU9<>"",consumption_mix_calcs!AU9,"") -> 0.2891505311 | AW56: =IF(consumption_mix_calcs!AV9<>"",consumption_mix_calcs!AV9,"") -> 3.766099871e-25 | AX56: =IF(consumption_mix_calcs!AW9<>"",consumption_mix_calcs!AW9,"") -> 0.04252185176 | AY56: =IF(consumption_mix_calcs!AX9<>"",consumption_mix_calcs!AX9,"") -> 0.005533920561 | AZ56: =IF(consumption_mix_calcs!AY9<>"",consumption_mix_calcs!AY9,"") -> 0.002712059743 | BA56: =IF(consumption_mix_calcs!AZ9<>"",consumption_mix_calcs!AZ9,"") -> 0.005311230258 | BB56: =IF(consumption_mix_calcs!BA9<>"",consumption_mix_calcs!BA9,"") -> 0.01059924944 | BC56: =IF(consumption_mix_calcs!BB9<>"",consumption_mix_calcs!BB9,"") -> 0.01145590824 | BD56: =IF(consumption_mix_calcs!BC9<>"",consumption_mix_calcs!BC9,"") -> 1.329551916e-24 | BE56: =IF(consumption_mix_calcs!BD9<>"",consumption_mix_calcs!BD9,"") -> 2.123719838e-24 | BF56: =IF(consumption_mix_calcs!BE9<>"",consumption_mix_calcs!BE9,"") -> 0.003953517519 | BG56: =IF(consumption_mix_calcs!BF9<>"",consumption_mix_calcs!BF9,"") -> 0.01912914193 | BH56: =IF(consumption_mix_calcs!BG9<>"",consumption_mix_calcs!BG9,"") -> 8.20561907e-05 | BI56: =IF(consumption_mix_calcs!BH9<>"",consumption_mix_calcs!BH9,"") -> 0.00411617421 | BJ56: =IF(consumption_mix_calcs!BI9<>"",consumption_mix_calcs!BI9,"") -> 0.007670683511 | BK56: =IF(consumption_mix_calcs!BJ9<>"",consumption_mix_calcs!BJ9,"") -> 0.00904246901 | BL56: =IF(consumption_mix_calcs!BK9<>"",consumption_mix_calcs!BK9,"") -> 3.433922683e-06 | BM56: =IF(consumption_mix_calcs!BL9<>"",consumption_mix_calcs!BL9,"") -> 0.1231393972 | BN56: =IF(consumption_mix_calcs!BM9<>"",consumption_mix_calcs!BM9,"") -> 0.1438677682 | BO56: =IF(consumption_mix_calcs!BN9<>"",consumption_mix_calcs!BN9,"") -> 0.001349216041 | BP56: =IF(consumption_mix_calcs!BO9<>"",consumption_mix_calcs!BO9,"") -> 0.001491087992 | BQ56: =IF(consumption_mix_calcs!BP9<>"",consumption_mix_calcs!BP9,"") -> 0.01773539745 | BR56: =IF(consumption_mix_calcs!BQ9<>"",consumption_mix_calcs!BQ9,"") -> 0.05636033437 | BS56: =IF(consumption_mix_calcs!BR9<>"",consumption_mix_calcs!BR9,"") -> 0.00542621562 | BT56: =IF(consumption_mix_calcs!BS9<>"",consumption_mix_calcs!BS9,"") -> 0.002144410639 | BU56: =IF(consumption_mix_calcs!BT9<>"",consumption_mix_calcs!BT9,"") -> 0.004918190461 | BV56: =IF(consumption_mix_calcs!BU9<>"",consumption_mix_calcs!BU9,"") -> 0.03200924006 | BW56: =IF(consumption_mix_calcs!BV9<>"",consumption_mix_calcs!BV9,"") -> 0 | BX56: =IF(consumption_mix_calcs!BW9<>"",consumption_mix_calcs!BW9,"") -> 0
B57: Particulate Matter Formation Potential | C57: 0.1318910086 | D57: =IF(consumption_mix_calcs!C10<>"",consumption_mix_calcs!C10,"") -> 1.850911833e-25 | E57: =IF(consumption_mix_calcs!D10<>"",consumption_mix_calcs!D10,"") -> 0.0004965966744 | F57: =IF(consumption_mix_calcs!E10<>"",consumption_mix_calcs!E10,"") -> 1.054042626e-05 | G57: =IF(consumption_mix_calcs!F10<>"",consumption_mix_calcs!F10,"") -> 0.0007589410631 | H57: =IF(consumption_mix_calcs!G10<>"",consumption_mix_calcs!G10,"") -> 4.714937379e-05 | I57: =IF(consumption_mix_calcs!H10<>"",consumption_mix_calcs!H10,"") -> 8.220770778e-05 | J57: =IF(consumption_mix_calcs!I10<>"",consumption_mix_calcs!I10,"") -> 7.012669484e-05 | K57: =IF(consumption_mix_calcs!J10<>"",consumption_mix_calcs!J10,"") -> 0.0003759533515 | L57: =IF(consumption_mix_calcs!K10<>"",consumption_mix_calcs!K10,"") -> 0.006215984453 | M57: =IF(consumption_mix_calcs!L10<>"",consumption_mix_calcs!L10,"") -> 3.839513296e-05 | N57: =IF(consumption_mix_calcs!M10<>"",consumption_mix_calcs!M10,"") -> 0.000915783684 | O57: =IF(consumption_mix_calcs!N10<>"",consumption_mix_calcs!N10,"") -> 0.001083927999 | P57: =IF(consumption_mix_calcs!O10<>"",consumption_mix_calcs!O10,"") -> 0.04075298111 | Q57: =IF(consumption_mix_calcs!P10<>"",consumption_mix_calcs!P10,"") -> 0 | R57: =IF(consumption_mix_calcs!Q10<>"",consumption_mix_calcs!Q10,"") -> 0.0001122883334 | S57: =IF(consumption_mix_calcs!R10<>"",consumption_mix_calcs!R10,"") -> 0.0001644253787 | T57: =IF(consumption_mix_calcs!S10<>"",consumption_mix_calcs!S10,"") -> 0.006624591208 | U57: =IF(consumption_mix_calcs!T10<>"",consumption_mix_calcs!T10,"") -> 0.0004719610015 | V57: =IF(consumption_mix_calcs!U10<>"",consumption_mix_calcs!U10,"") -> 0.001178203539 | W57: =IF(consumption_mix_calcs!V10<>"",consumption_mix_calcs!V10,"") -> 3.968735435e-05 | X57: =IF(consumption_mix_calcs!W10<>"",consumption_mix_calcs!W10,"") -> 7.22478251e-05 | Y57: =IF(consumption_mix_calcs!X10<>"",consumption_mix_calcs!X10,"") -> 0 | Z57: =IF(consumption_mix_calcs!Y10<>"",consumption_mix_calcs!Y10,"") -> 0 | AA57: =IF(consumption_mix_calcs!Z10<>"",consumption_mix_calcs!Z10,"") -> 1.118074947e-05 | AB57: =IF(consumption_mix_calcs!AA10<>"",consumption_mix_calcs!AA10,"") -> 4.576305564e-07 | AC57: =IF(consumption_mix_calcs!AB10<>"",consumption_mix_calcs!AB10,"") -> 4.12806277e-05 | AD57: =IF(consumption_mix_calcs!AC10<>"",consumption_mix_calcs!AC10,"") -> 0.001017390892 | AE57: =IF(consumption_mix_calcs!AD10<>"",consumption_mix_calcs!AD10,"") -> 4.276362325e-05 | AF57: =IF(consumption_mix_calcs!AE10<>"",consumption_mix_calcs!AE10,"") -> 1.325226506e-05 | AG57: =IF(consumption_mix_calcs!AF10<>"",consumption_mix_calcs!AF10,"") -> 0.00139383573 | AH57: =IF(consumption_mix_calcs!AG10<>"",consumption_mix_calcs!AG10,"") -> 0.001398568 | AI57: =IF(consumption_mix_calcs!AH10<>"",consumption_mix_calcs!AH10,"") -> 0.0007467241358 | AJ57: =IF(consumption_mix_calcs!AI10<>"",consumption_mix_calcs!AI10,"") -> 0 | AK57: =IF(consumption_mix_calcs!AJ10<>"",consumption_mix_calcs!AJ10,"") -> 0.0192264054 | AL57: =IF(consumption_mix_calcs!AK10<>"",consumption_mix_calcs!AK10,"") -> 3.23135461e-06 | AM57: =IF(consumption_mix_calcs!AL10<>"",consumption_mix_calcs!AL10,"") -> 3.572589201e-07 | AN57: =IF(consumption_mix_calcs!AM10<>"",consumption_mix_calcs!AM10,"") -> 0.0004032277352 | AO57: =IF(consumption_mix_calcs!AN10<>"",consumption_mix_calcs!AN10,"") -> 3.476426194e-05 | AP57: =IF(consumption_mix_calcs!AO10<>"",consumption_mix_calcs!AO10,"") -> 2.003941605e-05 | AQ57: =IF(consumption_mix_calcs!AP10<>"",consumption_mix_calcs!AP10,"") -> 0 | AR57: =IF(consumption_mix_calcs!AQ10<>"",consumption_mix_calcs!AQ10,"") -> 0.001050235791 | AS57: =IF(consumption_mix_calcs!AR10<>"",consumption_mix_calcs!AR10,"") -> 0.0008830790339 | AT57: =IF(consumption_mix_calcs!AS10<>"",consumption_mix_calcs!AS10,"") -> 0.0002690519773 | AU57: =IF(consumption_mix_calcs!AT10<>"",consumption_mix_calcs!AT10,"") -> 0.0007716772603 | AV57: =IF(consumption_mix_calcs!AU10<>"",consumption_mix_calcs!AU10,"") -> 0.01688485415 | AW57: =IF(consumption_mix_calcs!AV10<>"",consumption_mix_calcs!AV10,"") -> 1.513824458e-26 | AX57: =IF(consumption_mix_calcs!AW10<>"",consumption_mix_calcs!AW10,"") -> 0.001918734824 | AY57: =IF(consumption_mix_calcs!AX10<>"",consumption_mix_calcs!AX10,"") -> 0.001757832855 | AZ57: =IF(consumption_mix_calcs!AY10<>"",consumption_mix_calcs!AY10,"") -> 0.000236899908 | BA57: =IF(consumption_mix_calcs!AZ10<>"",consumption_mix_calcs!AZ10,"") -> 0.0002416398938 | BB57: =IF(consumption_mix_calcs!BA10<>"",consumption_mix_calcs!BA10,"") -> 0.001264739239 | BC57: =IF(consumption_mix_calcs!BB10<>"",consumption_mix_calcs!BB10,"") -> 0.0004254222541 | BD57: =IF(consumption_mix_calcs!BC10<>"",consumption_mix_calcs!BC10,"") -> 5.344277308e-26 | BE57: =IF(consumption_mix_calcs!BD10<>"",consumption_mix_calcs!BD10,"") -> 8.536520916e-26 | BF57: =IF(consumption_mix_calcs!BE10<>"",consumption_mix_calcs!BE10,"") -> 8.058442726e-05 | BG57: =IF(consumption_mix_calcs!BF10<>"",consumption_mix_calcs!BF10,"") -> 0.001180953616 | BH57: =IF(consumption_mix_calcs!BG10<>"",consumption_mix_calcs!BG10,"") -> 1.230534785e-06 | BI57: =IF(consumption_mix_calcs!BH10<>"",consumption_mix_calcs!BH10,"") -> 0.0003572407537 | BJ57: =IF(consumption_mix_calcs!BI10<>"",consumption_mix_calcs!BI10,"") -> 0.0003122543853 | BK57: =IF(consumption_mix_calcs!BJ10<>"",consumption_mix_calcs!BJ10,"") -> 0.0005483563393 | BL57: =IF(consumption_mix_calcs!BK10<>"",consumption_mix_calcs!BK10,"") -> 1.202560541e-07 | BM57: =IF(consumption_mix_calcs!BL10<>"",consumption_mix_calcs!BL10,"") -> 0.006196762209 | BN57: =IF(consumption_mix_calcs!BM10<>"",consumption_mix_calcs!BM10,"") -> 0.006109574572 | BO57: =IF(consumption_mix_calcs!BN10<>"",consumption_mix_calcs!BN10,"") -> 0.0001405073978 | BP57: =IF(consumption_mix_calcs!BO10<>"",consumption_mix_calcs!BO10,"") -> 4.08258468e-05 | BQ57: =IF(consumption_mix_calcs!BP10<>"",consumption_mix_calcs!BP10,"") -> 0.0009149565049 | BR57: =IF(consumption_mix_calcs!BQ10<>"",consumption_mix_calcs!BQ10,"") -> 0.004545392749 | BS57: =IF(consumption_mix_calcs!BR10<>"",consumption_mix_calcs!BR10,"") -> 0.0003831077582 | BT57: =IF(consumption_mix_calcs!BS10<>"",consumption_mix_calcs!BS10,"") -> 6.828572802e-05 | BU57: =IF(consumption_mix_calcs!BT10<>"",consumption_mix_calcs!BT10,"") -> 0.0001301850996 | BV57: =IF(consumption_mix_calcs!BU10<>"",consumption_mix_calcs!BU10,"") -> 0.001311031896 | BW57: =IF(consumption_mix_calcs!BV10<>"",consumption_mix_calcs!BV10,"") -> 0 | BX57: =IF(consumption_mix_calcs!BW10<>"",consumption_mix_calcs!BW10,"") -> 0
B58: Photochemical Smog Formation Potential | C58: 38.33062389 | D58: =IF(consumption_mix_calcs!C11<>"",consumption_mix_calcs!C11,"") -> 6.708417289e-08 | E58: =IF(consumption_mix_calcs!D11<>"",consumption_mix_calcs!D11,"") -> 0.2624334421 | F58: =IF(consumption_mix_calcs!E11<>"",consumption_mix_calcs!E11,"") -> 0.02425669638 | G58: =IF(consumption_mix_calcs!F11<>"",consumption_mix_calcs!F11,"") -> 0.3068257838 | H58: =IF(consumption_mix_calcs!G11<>"",consumption_mix_calcs!G11,"") -> 0.03108866301 | I58: =IF(consumption_mix_calcs!H11<>"",consumption_mix_calcs!H11,"") -> 0.04380270701 | J58: =IF(consumption_mix_calcs!I11<>"",consumption_mix_calcs!I11,"") -> 0.1564874151 | K58: =IF(consumption_mix_calcs!J11<>"",consumption_mix_calcs!J11,"") -> 0.3875190627 | L58: =IF(consumption_mix_calcs!K11<>"",consumption_mix_calcs!K11,"") -> 1.452288384 | M58: =IF(consumption_mix_calcs!L11<>"",consumption_mix_calcs!L11,"") -> 0.00503172503 | N58: =IF(consumption_mix_calcs!M11<>"",consumption_mix_calcs!M11,"") -> 0.4657731331 | O58: =IF(consumption_mix_calcs!N11<>"",consumption_mix_calcs!N11,"") -> 0.5828800802 | P58: =IF(consumption_mix_calcs!O11<>"",consumption_mix_calcs!O11,"") -> 0.3782328512 | Q58: =IF(consumption_mix_calcs!P11<>"",consumption_mix_calcs!P11,"") -> 0 | R58: =IF(consumption_mix_calcs!Q11<>"",consumption_mix_calcs!Q11,"") -> 0.1590896729 | S58: =IF(consumption_mix_calcs!R11<>"",consumption_mix_calcs!R11,"") -> 0.06774042835 | T58: =IF(consumption_mix_calcs!S11<>"",consumption_mix_calcs!S11,"") -> 4.440629711 | U58: =IF(consumption_mix_calcs!T11<>"",consumption_mix_calcs!T11,"") -> 0.2719126086 | V58: =IF(consumption_mix_calcs!U11<>"",consumption_mix_calcs!U11,"") -> 1.30975592 | W58: =IF(consumption_mix_calcs!V11<>"",consumption_mix_calcs!V11,"") -> 0.02756415013 | X58: =IF(consumption_mix_calcs!W11<>"",consumption_mix_calcs!W11,"") -> 0.09376114426 | Y58: =IF(consumption_mix_calcs!X11<>"",consumption_mix_calcs!X11,"") -> 0 | Z58: =IF(consumption_mix_calcs!Y11<>"",consumption_mix_calcs!Y11,"") -> 0 | AA58: =IF(consumption_mix_calcs!Z11<>"",consumption_mix_calcs!Z11,"") -> 0.02658080086 | AB58: =IF(consumption_mix_calcs!AA11<>"",consumption_mix_calcs!AA11,"") -> 0.001010532239 | AC58: =IF(consumption_mix_calcs!AB11<>"",consumption_mix_calcs!AB11,"") -> 0.008664409606 | AD58: =IF(consumption_mix_calcs!AC11<>"",consumption_mix_calcs!AC11,"") -> 0.9270415471 | AE58: =IF(consumption_mix_calcs!AD11<>"",consumption_mix_calcs!AD11,"") -> 0.04550051873 | AF58: =IF(consumption_mix_calcs!AE11<>"",consumption_mix_calcs!AE11,"") -> 0.01804088371 | AG58: =IF(consumption_mix_calcs!AF11<>"",consumption_mix_calcs!AF11,"") -> 0.3207860515 | AH58: =IF(consumption_mix_calcs!AG11<>"",consumption_mix_calcs!AG11,"") -> 0.3538363686 | AI58: =IF(consumption_mix_calcs!AH11<>"",consumption_mix_calcs!AH11,"") -> 0.6571249732 | AJ58: =IF(consumption_mix_calcs!AI11<>"",consumption_mix_calcs!AI11,"") -> 0 | AK58: =IF(consumption_mix_calcs!AJ11<>"",consumption_mix_calcs!AJ11,"") -> 7.679509975 | AL58: =IF(consumption_mix_calcs!AK11<>"",consumption_mix_calcs!AK11,"") -> 0.0008291951051 | AM58: =IF(consumption_mix_calcs!AL11<>"",consumption_mix_calcs!AL11,"") -> 9.165974327e-05 | AN58: =IF(consumption_mix_calcs!AM11<>"",consumption_mix_calcs!AM11,"") -> 0.3336373184 | AO58: =IF(consumption_mix_calcs!AN11<>"",consumption_mix_calcs!AN11,"") -> 0.01207981518 | AP58: =IF(consumption_mix_calcs!AO11<>"",consumption_mix_calcs!AO11,"") -> 0.04271818998 | AQ58: =IF(consumption_mix_calcs!AP11<>"",consumption_mix_calcs!AP11,"") -> 0 | AR58: =IF(consumption_mix_calcs!AQ11<>"",consumption_mix_calcs!AQ11,"") -> 1.047708645 | AS58: =IF(consumption_mix_calcs!AR11<>"",consumption_mix_calcs!AR11,"") -> 0.2783430095 | AT58: =IF(consumption_mix_calcs!AS11<>"",consumption_mix_calcs!AS11,"") -> 0.1298236548 | AU58: =IF(consumption_mix_calcs!AT11<>"",consumption_mix_calcs!AT11,"") -> 0.0363995705 | AV58: =IF(consumption_mix_calcs!AU11<>"",consumption_mix_calcs!AU11,"") -> 5.146094861 | AW58: =IF(consumption_mix_calcs!AV11<>"",consumption_mix_calcs!AV11,"") -> 4.030804552e-09 | AX58: =IF(consumption_mix_calcs!AW11<>"",consumption_mix_calcs!AW11,"") -> 1.014457283 | AY58: =IF(consumption_mix_calcs!AX11<>"",consumption_mix_calcs!AX11,"") -> 0.200395072 | AZ58: =IF(consumption_mix_calcs!AY11<>"",consumption_mix_calcs!AY11,"") -> 0.09458320592 | BA58: =IF(consumption_mix_calcs!AZ11<>"",consumption_mix_calcs!AZ11,"") -> 0.1444130391 | BB58: =IF(consumption_mix_calcs!BA11<>"",consumption_mix_calcs!BA11,"") -> 0.2931052877 | BC58: =IF(consumption_mix_calcs!BB11<>"",consumption_mix_calcs!BB11,"") -> 0.3237459105 | BD58: =IF(consumption_mix_calcs!BC11<>"",consumption_mix_calcs!BC11,"") -> 5.273373121e-08 | BE58: =IF(consumption_mix_calcs!BD11<>"",consumption_mix_calcs!BD11,"") -> 5.003771237e-08 | BF58: =IF(consumption_mix_calcs!BE11<>"",consumption_mix_calcs!BE11,"") -> 0.1345745205 | BG58: =IF(consumption_mix_calcs!BF11<>"",consumption_mix_calcs!BF11,"") -> 0.548114885 | BH58: =IF(consumption_mix_calcs!BG11<>"",consumption_mix_calcs!BG11,"") -> 0.002907570306 | BI58: =IF(consumption_mix_calcs!BH11<>"",consumption_mix_calcs!BH11,"") -> 0.07670520501 | BJ58: =IF(consumption_mix_calcs!BI11<>"",consumption_mix_calcs!BI11,"") -> 0.1843843394 | BK58: =IF(consumption_mix_calcs!BJ11<>"",consumption_mix_calcs!BJ11,"") -> 0.1875777576 | BL58: =IF(consumption_mix_calcs!BK11<>"",consumption_mix_calcs!BK11,"") -> 5.48068338e-05 | BM58: =IF(consumption_mix_calcs!BL11<>"",consumption_mix_calcs!BL11,"") -> 2.401186652 | BN58: =IF(consumption_mix_calcs!BM11<>"",consumption_mix_calcs!BM11,"") -> 2.823030032 | BO58: =IF(consumption_mix_calcs!BN11<>"",consumption_mix_calcs!BN11,"") -> 0.007677207335 | BP58: =IF(consumption_mix_calcs!BO11<>"",consumption_mix_calcs!BO11,"") -> 0.05135730599 | BQ58: =IF(consumption_mix_calcs!BP11<>"",consumption_mix_calcs!BP11,"") -> 0.2539038322 | BR58: =IF(consumption_mix_calcs!BQ11<>"",consumption_mix_calcs!BQ11,"") -> 1.115819149 | BS58: =IF(consumption_mix_calcs!BR11<>"",consumption_mix_calcs!BR11,"") -> 0.1245044318 | BT58: =IF(consumption_mix_calcs!BS11<>"",consumption_mix_calcs!BS11,"") -> 0.0727257373 | BU58: =IF(consumption_mix_calcs!BT11<>"",consumption_mix_calcs!BT11,"") -> 0.136471094 | BV58: =IF(consumption_mix_calcs!BU11<>"",consumption_mix_calcs!BU11,"") -> 0.606033836 | BW58: =IF(consumption_mix_calcs!BV11<>"",consumption_mix_calcs!BV11,"") -> 0 | BX58: =IF(consumption_mix_calcs!BW11<>"",consumption_mix_calcs!BW11,"") -> 0
B59: Global Warming Potential | C59: 545.5444365 | D59: =IF(consumption_mix_calcs!C12<>"",consumption_mix_calcs!C12,"") -> 0.002335383569 | E59: =IF(consumption_mix_calcs!D12<>"",consumption_mix_calcs!D12,"") -> 3.75121088 | F59: =IF(consumption_mix_calcs!E12<>"",consumption_mix_calcs!E12,"") -> 0.2546432217 | G59: =IF(consumption_mix_calcs!F12<>"",consumption_mix_calcs!F12,"") -> 4.161169215 | H59: =IF(consumption_mix_calcs!G12<>"",consumption_mix_calcs!G12,"") -> 0.5415233989 | I59: =IF(consumption_mix_calcs!H12<>"",consumption_mix_calcs!H12,"") -> 0.40523643 | J59: =IF(consumption_mix_calcs!I12<>"",consumption_mix_calcs!I12,"") -> 1.50319357 | K59: =IF(consumption_mix_calcs!J12<>"",consumption_mix_calcs!J12,"") -> 4.003149845 | L59: =IF(consumption_mix_calcs!K12<>"",consumption_mix_calcs!K12,"") -> 16.55709097 | M59: =IF(consumption_mix_calcs!L12<>"",consumption_mix_calcs!L12,"") -> 0.3368959131 | N59: =IF(consumption_mix_calcs!M12<>"",consumption_mix_calcs!M12,"") -> 8.618224148 | O59: =IF(consumption_mix_calcs!N12<>"",consumption_mix_calcs!N12,"") -> 7.721445192 | P59: =IF(consumption_mix_calcs!O12<>"",consumption_mix_calcs!O12,"") -> 6.374608111 | Q59: =IF(consumption_mix_calcs!P12<>"",consumption_mix_calcs!P12,"") -> 0 | R59: =IF(consumption_mix_calcs!Q12<>"",consumption_mix_calcs!Q12,"") -> 1.617027731 | S59: =IF(consumption_mix_calcs!R12<>"",consumption_mix_calcs!R12,"") -> 0.7488665972 | T59: =IF(consumption_mix_calcs!S12<>"",consumption_mix_calcs!S12,"") -> 48.50319019 | U59: =IF(consumption_mix_calcs!T12<>"",consumption_mix_calcs!T12,"") -> 3.777331703 | V59: =IF(consumption_mix_calcs!U12<>"",consumption_mix_calcs!U12,"") -> 12.59769323 | W59: =IF(consumption_mix_calcs!V12<>"",consumption_mix_calcs!V12,"") -> 0.4013037857 | X59: =IF(consumption_mix_calcs!W12<>"",consumption_mix_calcs!W12,"") -> 0.993977294 | Y59: =IF(consumption_mix_calcs!X12<>"",consumption_mix_calcs!X12,"") -> 0 | Z59: =IF(consumption_mix_calcs!Y12<>"",consumption_mix_calcs!Y12,"") -> 0 | AA59: =IF(consumption_mix_calcs!Z12<>"",consumption_mix_calcs!Z12,"") -> 0.280069198 | AB59: =IF(consumption_mix_calcs!AA12<>"",consumption_mix_calcs!AA12,"") -> 0.002292501589 | AC59: =IF(consumption_mix_calcs!AB12<>"",consumption_mix_calcs!AB12,"") -> 0.1437257335 | AD59: =IF(consumption_mix_calcs!AC12<>"",consumption_mix_calcs!AC12,"") -> 11.49605311 | AE59: =IF(consumption_mix_calcs!AD12<>"",consumption_mix_calcs!AD12,"") -> 0.366298485 | AF59: =IF(consumption_mix_calcs!AE12<>"",consumption_mix_calcs!AE12,"") -> 0.4080975569 | AG59: =IF(consumption_mix_calcs!AF12<>"",consumption_mix_calcs!AF12,"") -> 6.439944865 | AH59: =IF(consumption_mix_calcs!AG12<>"",consumption_mix_calcs!AG12,"") -> 7.947687699 | AI59: =IF(consumption_mix_calcs!AH12<>"",consumption_mix_calcs!AH12,"") -> 6.845247365 | AJ59: =IF(consumption_mix_calcs!AI12<>"",consumption_mix_calcs!AI12,"") -> 0 | AK59: =IF(consumption_mix_calcs!AJ12<>"",consumption_mix_calcs!AJ12,"") -> 108.2361789 | AL59: =IF(consumption_mix_calcs!AK12<>"",consumption_mix_calcs!AK12,"") -> 0.02775296948 | AM59: =IF(consumption_mix_calcs!AL12<>"",consumption_mix_calcs!AL12,"") -> 0.003072145201 | AN59: =IF(consumption_mix_calcs!AM12<>"",consumption_mix_calcs!AM12,"") -> 3.961598577 | AO59: =IF(consumption_mix_calcs!AN12<>"",consumption_mix_calcs!AN12,"") -> 0.1659236691 | AP59: =IF(consumption_mix_calcs!AO12<>"",consumption_mix_calcs!AO12,"") -> 0.4298638025 | AQ59: =IF(consumption_mix_calcs!AP12<>"",consumption_mix_calcs!AP12,"") -> 0 | AR59: =IF(consumption_mix_calcs!AQ12<>"",consumption_mix_calcs!AQ12,"") -> 11.26462744 | AS59: =IF(consumption_mix_calcs!AR12<>"",consumption_mix_calcs!AR12,"") -> 4.738051835 | AT59: =IF(consumption_mix_calcs!AS12<>"",consumption_mix_calcs!AS12,"") -> 2.654931606 | AU59: =IF(consumption_mix_calcs!AT12<>"",consumption_mix_calcs!AT12,"") -> 0.3535080995 | AV59: =IF(consumption_mix_calcs!AU12<>"",consumption_mix_calcs!AU12,"") -> 99.70043257 | AW59: =IF(consumption_mix_calcs!AV12<>"",consumption_mix_calcs!AV12,"") -> 0.0006676925995 | AX59: =IF(consumption_mix_calcs!AW12<>"",consumption_mix_calcs!AW12,"") -> 13.11434655 | AY59: =IF(consumption_mix_calcs!AX12<>"",consumption_mix_calcs!AX12,"") -> 2.121044371 | AZ59: =IF(consumption_mix_calcs!AY12<>"",consumption_mix_calcs!AY12,"") -> 1.084003839 | BA59: =IF(consumption_mix_calcs!AZ12<>"",consumption_mix_calcs!AZ12,"") -> 1.934670157 | BB59: =IF(consumption_mix_calcs!BA12<>"",consumption_mix_calcs!BA12,"") -> 5.494224176 | BC59: =IF(consumption_mix_calcs!BB12<>"",consumption_mix_calcs!BB12,"") -> 4.383085286 | BD59: =IF(consumption_mix_calcs!BC12<>"",consumption_mix_calcs!BC12,"") -> 0.004670388547 | BE59: =IF(consumption_mix_calcs!BD12<>"",consumption_mix_calcs!BD12,"") -> 0.008164534202 | BF59: =IF(consumption_mix_calcs!BE12<>"",consumption_mix_calcs!BE12,"") -> 1.605247241 | BG59: =IF(consumption_mix_calcs!BF12<>"",consumption_mix_calcs!BF12,"") -> 7.272112605 | BH59: =IF(consumption_mix_calcs!BG12<>"",consumption_mix_calcs!BG12,"") -> 0.006586504046 | BI59: =IF(consumption_mix_calcs!BH12<>"",consumption_mix_calcs!BH12,"") -> 2.192454784 | BJ59: =IF(consumption_mix_calcs!BI12<>"",consumption_mix_calcs!BI12,"") -> 3.715466418 | BK59: =IF(consumption_mix_calcs!BJ12<>"",consumption_mix_calcs!BJ12,"") -> 5.73267259 | BL59: =IF(consumption_mix_calcs!BK12<>"",consumption_mix_calcs!BK12,"") -> 0.001112252414 | BM59: =IF(consumption_mix_calcs!BL12<>"",consumption_mix_calcs!BL12,"") -> 34.36861032 | BN59: =IF(consumption_mix_calcs!BM12<>"",consumption_mix_calcs!BM12,"") -> 38.37009805 | BO59: =IF(consumption_mix_calcs!BN12<>"",consumption_mix_calcs!BN12,"") -> 0.4007327769 | BP59: =IF(consumption_mix_calcs!BO12<>"",consumption_mix_calcs!BO12,"") -> 0.4892419852 | BQ59: =IF(consumption_mix_calcs!BP12<>"",consumption_mix_calcs!BP12,"") -> 3.927112486 | BR59: =IF(consumption_mix_calcs!BQ12<>"",consumption_mix_calcs!BQ12,"") -> 18.06722092 | BS59: =IF(consumption_mix_calcs!BR12<>"",consumption_mix_calcs!BR12,"") -> 2.537393054 | BT59: =IF(consumption_mix_calcs!BS12<>"",consumption_mix_calcs!BS12,"") -> 0.7836258509 | BU59: =IF(consumption_mix_calcs!BT12<>"",consumption_mix_calcs!BT12,"") -> 1.496453559 | BV59: =IF(consumption_mix_calcs!BU12<>"",consumption_mix_calcs!BU12,"") -> 8.097943145 | BW59: =IF(consumption_mix_calcs!BV12<>"",consumption_mix_calcs!BV12,"") -> 0 | BX59: =IF(consumption_mix_calcs!BW12<>"",consumption_mix_calcs!BW12,"") -> 0
B60: Ozone Depletion Potential | C60: 8.401984717e-06 | D60: =IF(consumption_mix_calcs!C13<>"",consumption_mix_calcs!C13,"") -> 0 | E60: =IF(consumption_mix_calcs!D13<>"",consumption_mix_calcs!D13,"") -> 5.888838791e-08 | F60: =IF(consumption_mix_calcs!E13<>"",consumption_mix_calcs!E13,"") -> 2.948528058e-10 | G60: =IF(consumption_mix_calcs!F13<>"",consumption_mix_calcs!F13,"") -> 9.284445868e-08 | H60: =IF(consumption_mix_calcs!G13<>"",consumption_mix_calcs!G13,"") -> 2.357843996e-08 | I60: =IF(consumption_mix_calcs!H13<>"",consumption_mix_calcs!H13,"") -> 1.63715364e-08 | J60: =IF(consumption_mix_calcs!I13<>"",consumption_mix_calcs!I13,"") -> 1.372235412e-09 | K60: =IF(consumption_mix_calcs!J13<>"",consumption_mix_calcs!J13,"") -> 6.584788839e-08 | L60: =IF(consumption_mix_calcs!K13<>"",consumption_mix_calcs!K13,"") -> 2.730729708e-08 | M60: =IF(consumption_mix_calcs!L13<>"",consumption_mix_calcs!L13,"") -> 7.595688148e-24 | N60: =IF(consumption_mix_calcs!M13<>"",consumption_mix_calcs!M13,"") -> 1.150960592e-07 | O60: =IF(consumption_mix_calcs!N13<>"",consumption_mix_calcs!N13,"") -> 7.076892338e-08 | P60: =IF(consumption_mix_calcs!O13<>"",consumption_mix_calcs!O13,"") -> 1.054317226e-07 | Q60: =IF(consumption_mix_calcs!P13<>"",consumption_mix_calcs!P13,"") -> 0 | R60: =IF(consumption_mix_calcs!Q13<>"",consumption_mix_calcs!Q13,"") -> 1.922527412e-09 | S60: =IF(consumption_mix_calcs!R13<>"",consumption_mix_calcs!R13,"") -> 2.193515318e-08 | T60: =IF(consumption_mix_calcs!S13<>"",consumption_mix_calcs!S13,"") -> 5.730291307e-07 | U60: =IF(consumption_mix_calcs!T13<>"",consumption_mix_calcs!T13,"") -> 4.476056149e-08 | V60: =IF(consumption_mix_calcs!U13<>"",consumption_mix_calcs!U13,"") -> 1.919545024e-08 | W60: =IF(consumption_mix_calcs!V13<>"",consumption_mix_calcs!V13,"") -> 4.255736137e-09 | X60: =IF(consumption_mix_calcs!W13<>"",consumption_mix_calcs!W13,"") -> 6.317940237e-10 | Y60: =IF(consumption_mix_calcs!X13<>"",consumption_mix_calcs!X13,"") -> 0 | Z60: =IF(consumption_mix_calcs!Y13<>"",consumption_mix_calcs!Y13,"") -> 0 | AA60: =IF(consumption_mix_calcs!Z13<>"",consumption_mix_calcs!Z13,"") -> 2.701208772e-10 | AB60: =IF(consumption_mix_calcs!AA13<>"",consumption_mix_calcs!AA13,"") -> 1.765737393e-11 | AC60: =IF(consumption_mix_calcs!AB13<>"",consumption_mix_calcs!AB13,"") -> 3.412057351e-09 | AD60: =IF(consumption_mix_calcs!AC13<>"",consumption_mix_calcs!AC13,"") -> 2.0303871e-07 | AE60: =IF(consumption_mix_calcs!AD13<>"",consumption_mix_calcs!AD13,"") -> 4.327101974e-10 | AF60: =IF(consumption_mix_calcs!AE13<>"",consumption_mix_calcs!AE13,"") -> 2.876595057e-10 | AG60: =IF(consumption_mix_calcs!AF13<>"",consumption_mix_calcs!AF13,"") -> 2.903070349e-07 | AH60: =IF(consumption_mix_calcs!AG13<>"",consumption_mix_calcs!AG13,"") -> 1.015566737e-07 | AI60: =IF(consumption_mix_calcs!AH13<>"",consumption_mix_calcs!AH13,"") -> 9.29571799e-08 | AJ60: =IF(consumption_mix_calcs!AI13<>"",consumption_mix_calcs!AI13,"") -> 0 | AK60: =IF(consumption_mix_calcs!AJ13<>"",consumption_mix_calcs!AJ13,"") -> 2.282046292e-06 | AL60: =IF(consumption_mix_calcs!AK13<>"",consumption_mix_calcs!AK13,"") -> 1.268475118e-11 | AM60: =IF(consumption_mix_calcs!AL13<>"",consumption_mix_calcs!AL13,"") -> 1.373144793e-12 | AN60: =IF(consumption_mix_calcs!AM13<>"",consumption_mix_calcs!AM13,"") -> 1.93784525e-08 | AO60: =IF(consumption_mix_calcs!AN13<>"",consumption_mix_calcs!AN13,"") -> 3.350767544e-09 | AP60: =IF(consumption_mix_calcs!AO13<>"",consumption_mix_calcs!AO13,"") -> 5.482187121e-10 | AQ60: =IF(consumption_mix_calcs!AP13<>"",consumption_mix_calcs!AP13,"") -> 0 | AR60: =IF(consumption_mix_calcs!AQ13<>"",consumption_mix_calcs!AQ13,"") -> 3.844609416e-08 | AS60: =IF(consumption_mix_calcs!AR13<>"",consumption_mix_calcs!AR13,"") -> 1.197667055e-07 | AT60: =IF(consumption_mix_calcs!AS13<>"",consumption_mix_calcs!AS13,"") -> 5.603925392e-08 | AU60: =IF(consumption_mix_calcs!AT13<>"",consumption_mix_calcs!AT13,"") -> 3.436487419e-09 | AV60: =IF(consumption_mix_calcs!AU13<>"",consumption_mix_calcs!AU13,"") -> 1.268578898e-06 | AW60: =IF(consumption_mix_calcs!AV13<>"",consumption_mix_calcs!AV13,"") -> 0 | AX60: =IF(consumption_mix_calcs!AW13<>"",consumption_mix_calcs!AW13,"") -> 2.939278953e-07 | AY60: =IF(consumption_mix_calcs!AX13<>"",consumption_mix_calcs!AX13,"") -> 1.093198289e-08 | AZ60: =IF(consumption_mix_calcs!AY13<>"",consumption_mix_calcs!AY13,"") -> 1.277446639e-09 | BA60: =IF(consumption_mix_calcs!AZ13<>"",consumption_mix_calcs!AZ13,"") -> 1.942128897e-08 | BB60: =IF(consumption_mix_calcs!BA13<>"",consumption_mix_calcs!BA13,"") -> 9.04711388e-08 | BC60: =IF(consumption_mix_calcs!BB13<>"",consumption_mix_calcs!BB13,"") -> 1.029915909e-07 | BD60: =IF(consumption_mix_calcs!BC13<>"",consumption_mix_calcs!BC13,"") -> 0 | BE60: =IF(consumption_mix_calcs!BD13<>"",consumption_mix_calcs!BD13,"") -> 0 | BF60: =IF(consumption_mix_calcs!BE13<>"",consumption_mix_calcs!BE13,"") -> 1.60769187e-09 | BG60: =IF(consumption_mix_calcs!BF13<>"",consumption_mix_calcs!BF13,"") -> 1.136832092e-07 | BH60: =IF(consumption_mix_calcs!BG13<>"",consumption_mix_calcs!BG13,"") -> 0 | BI60: =IF(consumption_mix_calcs!BH13<>"",consumption_mix_calcs!BH13,"") -> 3.520024681e-08 | BJ60: =IF(consumption_mix_calcs!BI13<>"",consumption_mix_calcs!BI13,"") -> 4.141655889e-08 | BK60: =IF(consumption_mix_calcs!BJ13<>"",consumption_mix_calcs!BJ13,"") -> 1.168283539e-07 | BL60: =IF(consumption_mix_calcs!BK13<>"",consumption_mix_calcs!BK13,"") -> 2.52686334e-11 | BM60: =IF(consumption_mix_calcs!BL13<>"",consumption_mix_calcs!BL13,"") -> 3.869203422e-07 | BN60: =IF(consumption_mix_calcs!BM13<>"",consumption_mix_calcs!BM13,"") -> 8.54086237e-07 | BO60: =IF(consumption_mix_calcs!BN13<>"",consumption_mix_calcs!BN13,"") -> 9.655871788e-09 | BP60: =IF(consumption_mix_calcs!BO13<>"",consumption_mix_calcs!BO13,"") -> 6.092614195e-10 | BQ60: =IF(consumption_mix_calcs!BP13<>"",consumption_mix_calcs!BP13,"") -> 3.515530632e-08 | BR60: =IF(consumption_mix_calcs!BQ13<>"",consumption_mix_calcs!BQ13,"") -> 2.854548534e-07 | BS60: =IF(consumption_mix_calcs!BR13<>"",consumption_mix_calcs!BR13,"") -> 6.377414002e-08 | BT60: =IF(consumption_mix_calcs!BS13<>"",consumption_mix_calcs!BS13,"") -> 9.383302723e-10 | BU60: =IF(consumption_mix_calcs!BT13<>"",consumption_mix_calcs!BT13,"") -> 2.90097816e-08 | BV60: =IF(consumption_mix_calcs!BU13<>"",consumption_mix_calcs!BU13,"") -> 1.811807336e-07 | BW60: =IF(consumption_mix_calcs!BV13<>"",consumption_mix_calcs!BV13,"") -> 0 | BX60: =IF(consumption_mix_calcs!BW13<>"",consumption_mix_calcs!BW13,"") -> 0
B61: Water Consumption | C61: 605.6697662 | D61: =IF(consumption_mix_calcs!C14<>"",consumption_mix_calcs!C14,"") -> 0.01119824058 | E61: =IF(consumption_mix_calcs!D14<>"",consumption_mix_calcs!D14,"") -> 7.266812022 | F61: =IF(consumption_mix_calcs!E14<>"",consumption_mix_calcs!E14,"") -> 0.4005333712 | G61: =IF(consumption_mix_calcs!F14<>"",consumption_mix_calcs!F14,"") -> 1.255157353 | H61: =IF(consumption_mix_calcs!G14<>"",consumption_mix_calcs!G14,"") -> 0.1119756716 | I61: =IF(consumption_mix_calcs!H14<>"",consumption_mix_calcs!H14,"") -> 0.1760907724 | J61: =IF(consumption_mix_calcs!I14<>"",consumption_mix_calcs!I14,"") -> 0.005692702501 | K61: =IF(consumption_mix_calcs!J14<>"",consumption_mix_calcs!J14,"") -> 8.587463552 | L61: =IF(consumption_mix_calcs!K14<>"",consumption_mix_calcs!K14,"") -> 3.106019439 | M61: =IF(consumption_mix_calcs!L14<>"",consumption_mix_calcs!L14,"") -> 0.01097682653 | N61: =IF(consumption_mix_calcs!M14<>"",consumption_mix_calcs!M14,"") -> 7.335329082 | O61: =IF(consumption_mix_calcs!N14<>"",consumption_mix_calcs!N14,"") -> 31.10893109 | P61: =IF(consumption_mix_calcs!O14<>"",consumption_mix_calcs!O14,"") -> 10.54630905 | Q61: =IF(consumption_mix_calcs!P14<>"",consumption_mix_calcs!P14,"") -> 0 | R61: =IF(consumption_mix_calcs!Q14<>"",consumption_mix_calcs!Q14,"") -> 6.148754628 | S61: =IF(consumption_mix_calcs!R14<>"",consumption_mix_calcs!R14,"") -> 0 | T61: =IF(consumption_mix_calcs!S14<>"",consumption_mix_calcs!S14,"") -> 54.08297671 | U61: =IF(consumption_mix_calcs!T14<>"",consumption_mix_calcs!T14,"") -> 0 | V61: =IF(consumption_mix_calcs!U14<>"",consumption_mix_calcs!U14,"") -> 16.3174982 | W61: =IF(consumption_mix_calcs!V14<>"",consumption_mix_calcs!V14,"") -> 0.01283497414 | X61: =IF(consumption_mix_calcs!W14<>"",consumption_mix_calcs!W14,"") -> 0 | Y61: =IF(consumption_mix_calcs!X14<>"",consumption_mix_calcs!X14,"") -> 0 | Z61: =IF(consumption_mix_calcs!Y14<>"",consumption_mix_calcs!Y14,"") -> 0 | AA61: =IF(consumption_mix_calcs!Z14<>"",consumption_mix_calcs!Z14,"") -> 0.4378875851 | AB61: =IF(consumption_mix_calcs!AA14<>"",consumption_mix_calcs!AA14,"") -> 0 | AC61: =IF(consumption_mix_calcs!AB14<>"",consumption_mix_calcs!AB14,"") -> 0.2743215855 | AD61: =IF(consumption_mix_calcs!AC14<>"",consumption_mix_calcs!AC14,"") -> 1.933607714 | AE61: =IF(consumption_mix_calcs!AD14<>"",consumption_mix_calcs!AD14,"") -> 0.4557020611 | AF61: =IF(consumption_mix_calcs!AE14<>"",consumption_mix_calcs!AE14,"") -> 0.2869686531 | AG61: =IF(consumption_mix_calcs!AF14<>"",consumption_mix_calcs!AF14,"") -> 0.6130564764 | AH61: =IF(consumption_mix_calcs!AG14<>"",consumption_mix_calcs!AG14,"") -> 10.24432653 | AI61: =IF(consumption_mix_calcs!AH14<>"",consumption_mix_calcs!AH14,"") -> 7.039903831 | AJ61: =IF(consumption_mix_calcs!AI14<>"",consumption_mix_calcs!AI14,"") -> 0.228201693 | AK61: =IF(consumption_mix_calcs!AJ14<>"",consumption_mix_calcs!AJ14,"") -> 136.3770273 | AL61: =IF(consumption_mix_calcs!AK14<>"",consumption_mix_calcs!AK14,"") -> -0.01073009437 | AM61: =IF(consumption_mix_calcs!AL14<>"",consumption_mix_calcs!AL14,"") -> -0.001214938351 | AN61: =IF(consumption_mix_calcs!AM14<>"",consumption_mix_calcs!AM14,"") -> 2.239003512 | AO61: =IF(consumption_mix_calcs!AN14<>"",consumption_mix_calcs!AN14,"") -> 0.1904577033 | AP61: =IF(consumption_mix_calcs!AO14<>"",consumption_mix_calcs!AO14,"") -> 0.6372875714 | AQ61: =IF(consumption_mix_calcs!AP14<>"",consumption_mix_calcs!AP14,"") -> 0 | AR61: =IF(consumption_mix_calcs!AQ14<>"",consumption_mix_calcs!AQ14,"") -> 8.852871374 | AS61: =IF(consumption_mix_calcs!AR14<>"",consumption_mix_calcs!AR14,"") -> 42.88899357 | AT61: =IF(consumption_mix_calcs!AS14<>"",consumption_mix_calcs!AS14,"") -> 0 | AU61: =IF(consumption_mix_calcs!AT14<>"",consumption_mix_calcs!AT14,"") -> 1.74628485 | AV61: =IF(consumption_mix_calcs!AU14<>"",consumption_mix_calcs!AU14,"") -> 89.88319985 | AW61: =IF(consumption_mix_calcs!AV14<>"",consumption_mix_calcs!AV14,"") -> 0.002016459845 | AX61: =IF(consumption_mix_calcs!AW14<>"",consumption_mix_calcs!AW14,"") -> 19.20151761 | AY61: =IF(consumption_mix_calcs!AX14<>"",consumption_mix_calcs!AX14,"") -> 0.002757872354 | AZ61: =IF(consumption_mix_calcs!AY14<>"",consumption_mix_calcs!AY14,"") -> 1.550815205 | BA61: =IF(consumption_mix_calcs!AZ14<>"",consumption_mix_calcs!AZ14,"") -> 2.018135587 | BB61: =IF(consumption_mix_calcs!BA14<>"",consumption_mix_calcs!BA14,"") -> 3.698962055 | BC61: =IF(consumption_mix_calcs!BB14<>"",consumption_mix_calcs!BB14,"") -> 7.143599901 | BD61: =IF(consumption_mix_calcs!BC14<>"",consumption_mix_calcs!BC14,"") -> 0.02725965381 | BE61: =IF(consumption_mix_calcs!BD14<>"",consumption_mix_calcs!BD14,"") -> 0.02584809534 | BF61: =IF(consumption_mix_calcs!BE14<>"",consumption_mix_calcs!BE14,"") -> 0.003610758432 | BG61: =IF(consumption_mix_calcs!BF14<>"",consumption_mix_calcs!BF14,"") -> 9.047491842 | BH61: =IF(consumption_mix_calcs!BG14<>"",consumption_mix_calcs!BG14,"") -> 0.01158303893 | BI61: =IF(consumption_mix_calcs!BH14<>"",consumption_mix_calcs!BH14,"") -> 2.62157226 | BJ61: =IF(consumption_mix_calcs!BI14<>"",consumption_mix_calcs!BI14,"") -> 0.7623792368 | BK61: =IF(consumption_mix_calcs!BJ14<>"",consumption_mix_calcs!BJ14,"") -> 9.305714926 | BL61: =IF(consumption_mix_calcs!BK14<>"",consumption_mix_calcs!BK14,"") -> -9.448553212e-06 | BM61: =IF(consumption_mix_calcs!BL14<>"",consumption_mix_calcs!BL14,"") -> 35.44714854 | BN61: =IF(consumption_mix_calcs!BM14<>"",consumption_mix_calcs!BM14,"") -> 36.13561646 | BO61: =IF(consumption_mix_calcs!BN14<>"",consumption_mix_calcs!BN14,"") -> 0.8419892069 | BP61: =IF(consumption_mix_calcs!BO14<>"",consumption_mix_calcs!BO14,"") -> 0.5378990403 | BQ61: =IF(consumption_mix_calcs!BP14<>"",consumption_mix_calcs!BP14,"") -> -1.549781963e-06 | BR61: =IF(consumption_mix_calcs!BQ14<>"",consumption_mix_calcs!BQ14,"") -> 18.20071324 | BS61: =IF(consumption_mix_calcs!BR14<>"",consumption_mix_calcs!BR14,"") -> -1.488638097e-05 | BT61: =IF(consumption_mix_calcs!BS14<>"",consumption_mix_calcs!BS14,"") -> 0.02391106288 | BU61: =IF(consumption_mix_calcs!BT14<>"",consumption_mix_calcs!BT14,"") -> 0.6758079269 | BV61: =IF(consumption_mix_calcs!BU14<>"",consumption_mix_calcs!BU14,"") -> 7.581731569 | BW61: =IF(consumption_mix_calcs!BV14<>"",consumption_mix_calcs!BV14,"") -> 0 | BX61: =IF(consumption_mix_calcs!BW14<>"",consumption_mix_calcs!BW14,"") -> 0
A62: Category | B62: Emission | C62: Total | D62: =IF(consumption_mix_calcs!C22<>"",consumption_mix_calcs!C22&" ("&IFERROR(INDEX(ba_ferc_mapping!$B$2:$B$71,MATCH(consumption_mix_calcs!C22,ba_ferc_mapping!$A$2:$A$71,0),1)&")","Canada)"),"") -> Alcoa Power Generating, Inc. - Yadkin Division (Southeast) | E62: =IF(consumption_mix_calcs!D22<>"",consumption_mix_calcs!D22&" ("&IFERROR(INDEX(ba_ferc_mapping!$B$2:$B$71,MATCH(consumption_mix_calcs!D22,ba_ferc_mapping!$A$2:$A$71,0),1)&")","Canada)"),"") -> Arizona Public Service Company (Southwest) | F62: =IF(consumption_mix_calcs!E22<>"",consumption_mix_calcs!E22&" ("&IFERROR(INDEX(ba_ferc_mapping!$B$2:$B$71,MATCH(consumption_mix_calcs!E22,ba_ferc_mapping!$A$2:$A$71,0),1)&")","Canada)"),"") -> Arlington Valley, LLC - AVBA (Southwest) | G62: =IF(consumption_mix_calcs!F22<>"",consumption_mix_calcs!F22&" ("&IFERROR(INDEX(ba_ferc_mapping!$B$2:$B$71,MATCH(consumption_mix_calcs!F22,ba_ferc_mapping!$A$2:$A$71,0),1)&")","Canada)"),"") -> Associated Electric Cooperative, Inc. (MISO) | H62: =IF(consumption_mix_calcs!G22<>"",consumption_mix_calcs!G22&" ("&IFERROR(INDEX(ba_ferc_mapping!$B$2:$B$71,MATCH(consumption_mix_calcs!G22,ba_ferc_mapping!$A$2:$A$71,0),1)&")","Canada)"),"") -> Avista Corporation (Northwest) | I62: =IF(consumption_mix_calcs!H22<>"",consumption_mix_calcs!H22&" ("&IFERROR(INDEX(ba_ferc_mapping!$B$2:$B$71,MATCH(consumption_mix_calcs!H22,ba_ferc_mapping!$A$2:$A$71,0),1)&")","Canada)"),"") -> B.C. Hydro & Power Authority (Canada) | J62: =IF(consumption_mix_calcs!I22<>"",consumption_mix_calcs!I22&" ("&IFERROR(INDEX(ba_ferc_mapping!$B$2:$B$71,MATCH(consumption_mix_calcs!I22,ba_ferc_mapping!$A$2:$A$71,0),1)&")","Canada)"),"") -> Balancing Authority of Northern California (CAISO) | K62: =IF(consumption_mix_calcs!J22<>"",consumption_mix_calcs!J22&" ("&IFERROR(INDEX(ba_ferc_mapping!$B$2:$B$71,MATCH(consumption_mix_calcs!J22,ba_ferc_mapping!$A$2:$A$71,0),1)&")","Canada)"),"") -> Bonneville Power Administration (Northwest) | L62: =IF(consumption_mix_calcs!K22<>"",consumption_mix_calcs!K22&" ("&IFERROR(INDEX(ba_ferc_mapping!$B$2:$B$71,MATCH(consumption_mix_calcs!K22,ba_ferc_mapping!$A$2:$A$71,0),1)&")","Canada)"),"") -> California Independent System Operator (CAISO) | M62: =IF(consumption_mix_calcs!L22<>"",consumption_mix_calcs!L22&" ("&IFERROR(INDEX(ba_ferc_mapping!$B$2:$B$71,MATCH(consumption_mix_calcs!L22,ba_ferc_mapping!$A$2:$A$71,0),1)&")","Canada)"),"") -> City of Tacoma, Department of Public Utilities, Light Division (Northwest) | N62: =IF(consumption_mix_calcs!M22<>"",consumption_mix_calcs!M22&" ("&IFERROR(INDEX(ba_ferc_mapping!$B$2:$B$71,MATCH(consumption_mix_calcs!M22,ba_ferc_mapping!$A$2:$A$71,0),1)&")","Canada)"),"") -> Duke Energy Carolinas (Southeast) | O62: =IF(consumption_mix_calcs!N22<>"",consumption_mix_calcs!N22&" ("&IFERROR(INDEX(ba_ferc_mapping!$B$2:$B$71,MATCH(consumption_mix_calcs!N22,ba_ferc_mapping!$A$2:$A$71,0),1)&")","Canada)"),"") -> Duke Energy Florida, Inc. (Southeast) | P62: =IF(consumption_mix_calcs!O22<>"",consumption_mix_calcs!O22&" ("&IFERROR(INDEX(ba_ferc_mapping!$B$2:$B$71,MATCH(consumption_mix_calcs!O22,ba_ferc_mapping!$A$2:$A$71,0),1)&")","Canada)"),"") -> Duke Energy Progress East (Southeast) | Q62: =IF(consumption_mix_calcs!P22<>"",consumption_mix_calcs!P22&" ("&IFERROR(INDEX(ba_ferc_mapping!$B$2:$B$71,MATCH(consumption_mix_calcs!P22,ba_ferc_mapping!$A$2:$A$71,0),1)&")","Canada)"),"") -> Duke Energy Progress West (Southeast) | R62: =IF(consumption_mix_calcs!Q22<>"",consumption_mix_calcs!Q22&" ("&IFERROR(INDEX(ba_ferc_mapping!$B$2:$B$71,MATCH(consumption_mix_calcs!Q22,ba_ferc_mapping!$A$2:$A$71,0),1)&")","Canada)"),"") -> El Paso Electric Company (Southwest) | S62: =IF(consumption_mix_calcs!R22<>"",consumption_mix_calcs!R22&" ("&IFERROR(INDEX(ba_ferc_mapping!$B$2:$B$71,MATCH(consumption_mix_calcs!R22,ba_ferc_mapping!$A$2:$A$71,0),1)&")","Canada)"),"") -> Electric Energy, Inc. (MISO) | T62: =IF(consumption_mix_calcs!S22<>"",consumption_mix_calcs!S22&" ("&IFERROR(INDEX(ba_ferc_mapping!$B$2:$B$71,MATCH(consumption_mix_calcs!S22,ba_ferc_mapping!$A$2:$A$71,0),1)&")","Canada)"),"") -> Electric Reliability Council of Texas, Inc. (ERCOT) | U62: =IF(consumption_mix_calcs!T22<>"",consumption_mix_calcs!T22&" ("&IFERROR(INDEX(ba_ferc_mapping!$B$2:$B$71,MATCH(consumption_mix_calcs!T22,ba_ferc_mapping!$A$2:$A$71,0),1)&")","Canada)"),"") -> Florida Municipal Power Pool (Southeast) | V62: =IF(consumption_mix_calcs!U22<>"",consumption_mix_calcs!U22&" ("&IFERROR(INDEX(ba_ferc_mapping!$B$2:$B$71,MATCH(consumption_mix_calcs!U22,ba_ferc_mapping!$A$2:$A$71,0),1)&")","Canada)"),"") -> Florida Power & Light Co. (Southeast) | W62: =IF(consumption_mix_calcs!V22<>"",consumption_mix_calcs!V22&" ("&IFERROR(INDEX(ba_ferc_mapping!$B$2:$B$71,MATCH(consumption_mix_calcs!V22,ba_ferc_mapping!$A$2:$A$71,0),1)&")","Canada)"),"") -> Gainesville Regional Utilities (Southeast) | X62: =IF(consumption_mix_calcs!W22<>"",consumption_mix_calcs!W22&" ("&IFERROR(INDEX(ba_ferc_mapping!$B$2:$B$71,MATCH(consumption_mix_calcs!W22,ba_ferc_mapping!$A$2:$A$71,0),1)&")","Canada)"),"") -> Gila River Power, LLC (Southwest) | Y62: =IF(consumption_mix_calcs!X22<>"",consumption_mix_calcs!X22&" ("&IFERROR(INDEX(ba_ferc_mapping!$B$2:$B$71,MATCH(consumption_mix_calcs!X22,ba_ferc_mapping!$A$2:$A$71,0),1)&")","Canada)"),"") -> Gridforce Energy Management, LLC (Northwest) | Z62: =IF(consumption_mix_calcs!Y22<>"",consumption_mix_calcs!Y22&" ("&IFERROR(INDEX(ba_ferc_mapping!$B$2:$B$71,MATCH(consumption_mix_calcs!Y22,ba_ferc_mapping!$A$2:$A$71,0),1)&")","Canada)"),"") -> Gridforce South (Southwest) | AA62: =IF(consumption_mix_calcs!Z22<>"",consumption_mix_calcs!Z22&" ("&IFERROR(INDEX(ba_ferc_mapping!$B$2:$B$71,MATCH(consumption_mix_calcs!Z22,ba_ferc_mapping!$A$2:$A$71,0),1)&")","Canada)"),"") -> Griffith Energy, LLC (Southwest) | AB62: =IF(consumption_mix_calcs!AA22<>"",consumption_mix_calcs!AA22&" ("&IFERROR(INDEX(ba_ferc_mapping!$B$2:$B$71,MATCH(consumption_mix_calcs!AA22,ba_ferc_mapping!$A$2:$A$71,0),1)&")","Canada)"),"") -> Homestead, City of (Southeast) | AC62: =IF(consumption_mix_calcs!AB22<>"",consumption_mix_calcs!AB22&" ("&IFERROR(INDEX(ba_ferc_mapping!$B$2:$B$71,MATCH(consumption_mix_calcs!AB22,ba_ferc_mapping!$A$2:$A$71,0),1)&")","Canada)"),"") -> Hydro-Quebec TransEnergie (Canada) | AD62: =IF(consumption_mix_calcs!AC22<>"",consumption_mix_calcs!AC22&" ("&IFERROR(INDEX(ba_ferc_mapping!$B$2:$B$71,MATCH(consumption_mix_calcs!AC22,ba_ferc_mapping!$A$2:$A$71,0),1)&")","Canada)"),"") -> ISO-NE (ISO-NE) | AE62: =IF(consumption_mix_calcs!AD22<>"",consumption_mix_calcs!AD22&" ("&IFERROR(INDEX(ba_ferc_mapping!$B$2:$B$71,MATCH(consumption_mix_calcs!AD22,ba_ferc_mapping!$A$2:$A$71,0),1)&")","Canada)"),"") -> Idaho Power Company (Northwest) | AF62: =IF(consumption_mix_calcs!AE22<>"",consumption_mix_calcs!AE22&" ("&IFERROR(INDEX(ba_ferc_mapping!$B$2:$B$71,MATCH(consumption_mix_calcs!AE22,ba_ferc_mapping!$A$2:$A$71,0),1)&")","Canada)"),"") -> Imperial Irrigation District (CAISO) | AG62: =IF(consumption_mix_calcs!AF22<>"",consumption_mix_calcs!AF22&" ("&IFERROR(INDEX(ba_ferc_mapping!$B$2:$B$71,MATCH(consumption_mix_calcs!AF22,ba_ferc_mapping!$A$2:$A$71,0),1)&")","Canada)"),"") -> JEA (Southeast) | AH62: =IF(consumption_mix_calcs!AG22<>"",consumption_mix_calcs!AG22&" ("&IFERROR(INDEX(ba_ferc_mapping!$B$2:$B$71,MATCH(consumption_mix_calcs!AG22,ba_ferc_mapping!$A$2:$A$71,0),1)&")","Canada)"),"") -> LG&E and KU Services Company as agent for Louisville Gas and Electric Company and Kentucky Utilities Company (MISO) | AI62: =IF(consumption_mix_calcs!AH22<>"",consumption_mix_calcs!AH22&" ("&IFERROR(INDEX(ba_ferc_mapping!$B$2:$B$71,MATCH(consumption_mix_calcs!AH22,ba_ferc_mapping!$A$2:$A$71,0),1)&")","Canada)"),"") -> Los Angeles Department of Water and Power (CAISO) | AJ62: =IF(consumption_mix_calcs!AI22<>"",consumption_mix_calcs!AI22&" ("&IFERROR(INDEX(ba_ferc_mapping!$B$2:$B$71,MATCH(consumption_mix_calcs!AI22,ba_ferc_mapping!$A$2:$A$71,0),1)&")","Canada)"),"") -> Manitoba Hydro (Canada) | AK62: =IF(consumption_mix_calcs!AJ22<>"",consumption_mix_calcs!AJ22&" ("&IFERROR(INDEX(ba_ferc_mapping!$B$2:$B$71,MATCH(consumption_mix_calcs!AJ22,ba_ferc_mapping!$A$2:$A$71,0),1)&")","Canada)"),"") -> Midcontinent Independent System Operator, Inc. (MISO) | AL62: =IF(consumption_mix_calcs!AK22<>"",consumption_mix_calcs!AK22&" ("&IFERROR(INDEX(ba_ferc_mapping!$B$2:$B$71,MATCH(consumption_mix_calcs!AK22,ba_ferc_mapping!$A$2:$A$71,0),1)&")","Canada)"),"") -> NaturEner Power Watch, LLC (GWA) (Northwest) | AM62: =IF(consumption_mix_calcs!AL22<>"",consumption_mix_calcs!AL22&" ("&IFERROR(INDEX(ba_ferc_mapping!$B$2:$B$71,MATCH(consumption_mix_calcs!AL22,ba_ferc_mapping!$A$2:$A$71,0),1)&")","Canada)"),"") -> NaturEner Wind Watch, LLC (Northwest) | AN62: =IF(consumption_mix_calcs!AM22<>"",consumption_mix_calcs!AM22&" ("&IFERROR(INDEX(ba_ferc_mapping!$B$2:$B$71,MATCH(consumption_mix_calcs!AM22,ba_ferc_mapping!$A$2:$A$71,0),1)&")","Canada)"),"") -> Nevada Power Company (Northwest) | AO62: =IF(consumption_mix_calcs!AN22<>"",consumption_mix_calcs!AN22&" ("&IFERROR(INDEX(ba_ferc_mapping!$B$2:$B$71,MATCH(consumption_mix_calcs!AN22,ba_ferc_mapping!$A$2:$A$71,0),1)&")","Canada)"),"") -> New Brunswick System Operator (Canada) | AP62: =IF(consumption_mix_calcs!AO22<>"",consumption_mix_calcs!AO22&" ("&IFERROR(INDEX(ba_ferc_mapping!$B$2:$B$71,MATCH(consumption_mix_calcs!AO22,ba_ferc_mapping!$A$2:$A$71,0),1)&")","Canada)"),"") -> New Harquahala Generating Company, LLC - HGBA (Southwest) | AQ62: =IF(consumption_mix_calcs!AP22<>"",consumption_mix_calcs!AP22&" ("&IFERROR(INDEX(ba_ferc_mapping!$B$2:$B$71,MATCH(consumption_mix_calcs!AP22,ba_ferc_mapping!$A$2:$A$71,0),1)&")","Canada)"),"") -> New Smyrna Beach, Utilities Commission of (Southeast) | AR62: =IF(consumption_mix_calcs!AQ22<>"",consumption_mix_calcs!AQ22&" ("&IFERROR(INDEX(ba_ferc_mapping!$B$2:$B$71,MATCH(consumption_mix_calcs!AQ22,ba_ferc_mapping!$A$2:$A$71,0),1)&")","Canada)"),"") -> New York Independent System Operator (NYISO) | AS62: =IF(consumption_mix_calcs!AR22<>"",consumption_mix_calcs!AR22&" ("&IFERROR(INDEX(ba_ferc_mapping!$B$2:$B$71,MATCH(consumption_mix_calcs!AR22,ba_ferc_mapping!$A$2:$A$71,0),1)&")","Canada)"),"") -> NorthWestern Corporation (Northwest) | AT62: =IF(consumption_mix_calcs!AS22<>"",consumption_mix_calcs!AS22&" ("&IFERROR(INDEX(ba_ferc_mapping!$B$2:$B$71,MATCH(consumption_mix_calcs!AS22,ba_ferc_mapping!$A$2:$A$71,0),1)&")","Canada)"),"") -> Ohio Valley Electric Corporation (PJM) | AU62: =IF(consumption_mix_calcs!AT22<>"",consumption_mix_calcs!AT22&" ("&IFERROR(INDEX(ba_ferc_mapping!$B$2:$B$71,MATCH(consumption_mix_calcs!AT22,ba_ferc_mapping!$A$2:$A$71,0),1)&")","Canada)"),"") -> Ontario IESO (Canada) | AV62: =IF(consumption_mix_calcs!AU22<>"",consumption_mix_calcs!AU22&" ("&IFERROR(INDEX(ba_ferc_mapping!$B$2:$B$71,MATCH(consumption_mix_calcs!AU22,ba_ferc_mapping!$A$2:$A$71,0),1)&")","Canada)"),"") -> PJM Interconnection, LLC (PJM) | AW62: =IF(consumption_mix_calcs!AV22<>"",consumption_mix_calcs!AV22&" ("&IFERROR(INDEX(ba_ferc_mapping!$B$2:$B$71,MATCH(consumption_mix_calcs!AV22,ba_ferc_mapping!$A$2:$A$71,0),1)&")","Canada)"),"") -> PUD No. 1 of Douglas County (Northwest) | AX62: =IF(consumption_mix_calcs!AW22<>"",consumption_mix_calcs!AW22&" ("&IFERROR(INDEX(ba_ferc_mapping!$B$2:$B$71,MATCH(consumption_mix_calcs!AW22,ba_ferc_mapping!$A$2:$A$71,0),1)&")","Canada)"),"") -> PacifiCorp East (Northwest) | AY62: =IF(consumption_mix_calcs!AX22<>"",consumption_mix_calcs!AX22&" ("&IFERROR(INDEX(ba_ferc_mapping!$B$2:$B$71,MATCH(consumption_mix_calcs!AX22,ba_ferc_mapping!$A$2:$A$71,0),1)&")","Canada)"),"") -> PacifiCorp West (Northwest) | AZ62: =IF(consumption_mix_calcs!AY22<>"",consumption_mix_calcs!AY22&" ("&IFERROR(INDEX(ba_ferc_mapping!$B$2:$B$71,MATCH(consumption_mix_calcs!AY22,ba_ferc_mapping!$A$2:$A$71,0),1)&")","Canada)"),"") -> Portland General Electric Company (Northwest) | BA62: =IF(consumption_mix_calcs!AZ22<>"",consumption_mix_calcs!AZ22&" ("&IFERROR(INDEX(ba_ferc_mapping!$B$2:$B$71,MATCH(consumption_mix_calcs!AZ22,ba_ferc_mapping!$A$2:$A$71,0),1)&")","Canada)"),"") -> PowerSouth Energy Cooperative (Southeast) | BB62: =IF(consumption_mix_calcs!BA22<>"",consumption_mix_calcs!BA22&" ("&IFERROR(INDEX(ba_ferc_mapping!$B$2:$B$71,MATCH(consumption_mix_calcs!BA22,ba_ferc_mapping!$A$2:$A$71,0),1)&")","Canada)"),"") -> Public Service Company of Colorado (Northwest) | BC62: =IF(consumption_mix_calcs!BB22<>"",consumption_mix_calcs!BB22&" ("&IFERROR(INDEX(ba_ferc_mapping!$B$2:$B$71,MATCH(consumption_mix_calcs!BB22,ba_ferc_mapping!$A$2:$A$71,0),1)&")","Canada)"),"") -> Public Service Company of New Mexico (Southwest) | BD62: =IF(consumption_mix_calcs!BC22<>"",consumption_mix_calcs!BC22&" ("&IFERROR(INDEX(ba_ferc_mapping!$B$2:$B$71,MATCH(consumption_mix_calcs!BC22,ba_ferc_mapping!$A$2:$A$71,0),1)&")","Canada)"),"") -> Public Utility District No. 1 of Chelan County (Northwest) | BE62: =IF(consumption_mix_calcs!BD22<>"",consumption_mix_calcs!BD22&" ("&IFERROR(INDEX(ba_ferc_mapping!$B$2:$B$71,MATCH(consumption_mix_calcs!BD22,ba_ferc_mapping!$A$2:$A$71,0),1)&")","Canada)"),"") -> Public Utility District No. 2 of Grant County, Washington (Northwest) | BF62: =IF(consumption_mix_calcs!BE22<>"",consumption_mix_calcs!BE22&" ("&IFERROR(INDEX(ba_ferc_mapping!$B$2:$B$71,MATCH(consumption_mix_calcs!BE22,ba_ferc_mapping!$A$2:$A$71,0),1)&")","Canada)"),"") -> Puget Sound Energy, Inc. (Northwest) | BG62: =IF(consumption_mix_calcs!BF22<>"",consumption_mix_calcs!BF22&" ("&IFERROR(INDEX(ba_ferc_mapping!$B$2:$B$71,MATCH(consumption_mix_calcs!BF22,ba_ferc_mapping!$A$2:$A$71,0),1)&")","Canada)"),"") -> Salt River Project Agricultural Improvement and Power District (Southwest) | BH62: =IF(consumption_mix_calcs!BG22<>"",consumption_mix_calcs!BG22&" ("&IFERROR(INDEX(ba_ferc_mapping!$B$2:$B$71,MATCH(consumption_mix_calcs!BG22,ba_ferc_mapping!$A$2:$A$71,0),1)&")","Canada)"),"") -> Seattle City Light (Northwest) | BI62: =IF(consumption_mix_calcs!BH22<>"",consumption_mix_calcs!BH22&" ("&IFERROR(INDEX(ba_ferc_mapping!$B$2:$B$71,MATCH(consumption_mix_calcs!BH22,ba_ferc_mapping!$A$2:$A$71,0),1)&")","Canada)"),"") -> Seminole Electric Cooperative (Southeast) | BJ62: =IF(consumption_mix_calcs!BI22<>"",consumption_mix_calcs!BI22&" ("&IFERROR(INDEX(ba_ferc_mapping!$B$2:$B$71,MATCH(consumption_mix_calcs!BI22,ba_ferc_mapping!$A$2:$A$71,0),1)&")","Canada)"),"") -> South Carolina Electric & Gas Company (Southeast) | BK62: =IF(consumption_mix_calcs!BJ22<>"",consumption_mix_calcs!BJ22&" ("&IFERROR(INDEX(ba_ferc_mapping!$B$2:$B$71,MATCH(consumption_mix_calcs!BJ22,ba_ferc_mapping!$A$2:$A$71,0),1)&")","Canada)"),"") -> South Carolina Public Service Authority (Southeast) | BL62: =IF(consumption_mix_calcs!BK22<>"",consumption_mix_calcs!BK22&" ("&IFERROR(INDEX(ba_ferc_mapping!$B$2:$B$71,MATCH(consumption_mix_calcs!BK22,ba_ferc_mapping!$A$2:$A$71,0),1)&")","Canada)"),"") -> Southeastern Power Administration (Southeast) | BM62: =IF(consumption_mix_calcs!BL22<>"",consumption_mix_calcs!BL22&" ("&IFERROR(INDEX(ba_ferc_mapping!$B$2:$B$71,MATCH(consumption_mix_calcs!BL22,ba_ferc_mapping!$A$2:$A$71,0),1)&")","Canada)"),"") -> Southern Company Services, Inc. - Trans (Southeast) | BN62: =IF(consumption_mix_calcs!BM22<>"",consumption_mix_calcs!BM22&" ("&IFERROR(INDEX(ba_ferc_mapping!$B$2:$B$71,MATCH(consumption_mix_calcs!BM22,ba_ferc_mapping!$A$2:$A$71,0),1)&")","Canada)"),"") -> Southwest Power Pool (SPP) | BO62: =IF(consumption_mix_calcs!BN22<>"",consumption_mix_calcs!BN22&" ("&IFERROR(INDEX(ba_ferc_mapping!$B$2:$B$71,MATCH(consumption_mix_calcs!BN22,ba_ferc_mapping!$A$2:$A$71,0),1)&")","Canada)"),"") -> Southwestern Power Administration (SPP) | BP62: =IF(consumption_mix_calcs!BO22<>"",consumption_mix_calcs!BO22&" ("&IFERROR(INDEX(ba_ferc_mapping!$B$2:$B$71,MATCH(consumption_mix_calcs!BO22,ba_ferc_mapping!$A$2:$A$71,0),1)&")","Canada)"),"") -> Tallahassee, City of (Southeast) | BQ62: =IF(consumption_mix_calcs!BP22<>"",consumption_mix_calcs!BP22&" ("&IFERROR(INDEX(ba_ferc_mapping!$B$2:$B$71,MATCH(consumption_mix_calcs!BP22,ba_ferc_mapping!$A$2:$A$71,0),1)&")","Canada)"),"") -> Tampa Electric Company (Southeast) | BR62: =IF(consumption_mix_calcs!BQ22<>"",consumption_mix_calcs!BQ22&" ("&IFERROR(INDEX(ba_ferc_mapping!$B$2:$B$71,MATCH(consumption_mix_calcs!BQ22,ba_ferc_mapping!$A$2:$A$71,0),1)&")","Canada)"),"") -> Tennessee Valley Authority (Southeast) | BS62: =IF(consumption_mix_calcs!BR22<>"",consumption_mix_calcs!BR22&" ("&IFERROR(INDEX(ba_ferc_mapping!$B$2:$B$71,MATCH(consumption_mix_calcs!BR22,ba_ferc_mapping!$A$2:$A$71,0),1)&")","Canada)"),"") -> Tucson Electric Power (Southwest) | BT62: =IF(consumption_mix_calcs!BS22<>"",consumption_mix_calcs!BS22&" ("&IFERROR(INDEX(ba_ferc_mapping!$B$2:$B$71,MATCH(consumption_mix_calcs!BS22,ba_ferc_mapping!$A$2:$A$71,0),1)&")","Canada)"),"") -> Turlock Irrigation District (CAISO) | BU62: =IF(consumption_mix_calcs!BT22<>"",consumption_mix_calcs!BT22&" ("&IFERROR(INDEX(ba_ferc_mapping!$B$2:$B$71,MATCH(consumption_mix_calcs!BT22,ba_ferc_mapping!$A$2:$A$71,0),1)&")","Canada)"),"") -> Western Area Power Administration - Desert Southwest Region (Southwest) | BV62: =IF(consumption_mix_calcs!BU22<>"",consumption_mix_calcs!BU22&" ("&IFERROR(INDEX(ba_ferc_mapping!$B$2:$B$71,MATCH(consumption_mix_calcs!BU22,ba_ferc_mapping!$A$2:$A$71,0),1)&")","Canada)"),"") -> Western Area Power Administration - Rocky Mountain Region (Northwest) | BW62: =IF(consumption_mix_calcs!BV22<>"",consumption_mix_calcs!BV22&" ("&IFERROR(INDEX(ba_ferc_mapping!$B$2:$B$71,MATCH(consumption_mix_calcs!BV22,ba_ferc_mapping!$A$2:$A$71,0),1)&")","Canada)"),"") -> Western Area Power Administration - Upper Great Plains East (Northwest) | BX62: =IF(consumption_mix_calcs!BW22<>"",consumption_mix_calcs!BW22&" ("&IFERROR(INDEX(ba_ferc_mapping!$B$2:$B$71,MATCH(consumption_mix_calcs!BW22,ba_ferc_mapping!$A$2:$A$71,0),1)&")","Canada)"),"") -> Western Area Power Administration - Upper Great Plains West (Northwest)
A63: input | B63: Heat | C63: =SUM(D63:BX63) -> 10311.66602 | D63: =IF(consumption_mix_calcs!C23<>"",consumption_mix_calcs!C23,"") -> 4.897763778 | E63: =IF(consumption_mix_calcs!D23<>"",consumption_mix_calcs!D23,"") -> 49.23438924 | F63: =IF(consumption_mix_calcs!E23<>"",consumption_mix_calcs!E23,"") -> 3.508113247 | G63: =IF(consumption_mix_calcs!F23<>"",consumption_mix_calcs!F23,"") -> 54.00362215 | H63: =IF(consumption_mix_calcs!G23<>"",consumption_mix_calcs!G23,"") -> 21.79879532 | I63: =IF(consumption_mix_calcs!H23<>"",consumption_mix_calcs!H23,"") -> 32.59665313 | J63: =IF(consumption_mix_calcs!I23<>"",consumption_mix_calcs!I23,"") -> 31.05239957 | K63: =IF(consumption_mix_calcs!J23<>"",consumption_mix_calcs!J23,"") -> 322.4336838 | L63: =IF(consumption_mix_calcs!K23<>"",consumption_mix_calcs!K23,"") -> 421.0762244 | M63: =IF(consumption_mix_calcs!L23<>"",consumption_mix_calcs!L23,"") -> 11.80433025 | N63: =IF(consumption_mix_calcs!M23<>"",consumption_mix_calcs!M23,"") -> 264.490521 | O63: =IF(consumption_mix_calcs!N23<>"",consumption_mix_calcs!N23,"") -> 110.5758188 | P63: =IF(consumption_mix_calcs!O23<>"",consumption_mix_calcs!O23,"") -> 165.5144354 | Q63: =IF(consumption_mix_calcs!P23<>"",consumption_mix_calcs!P23,"") -> 0 | R63: =IF(consumption_mix_calcs!Q23<>"",consumption_mix_calcs!Q23,"") -> 27.71885527 | S63: =IF(consumption_mix_calcs!R23<>"",consumption_mix_calcs!R23,"") -> 8.789910242 | T63: =IF(consumption_mix_calcs!S23<>"",consumption_mix_calcs!S23,"") -> 762.6934746 | U63: =IF(consumption_mix_calcs!T23<>"",consumption_mix_calcs!T23,"") -> 50.71220852 | V63: =IF(consumption_mix_calcs!U23<>"",consumption_mix_calcs!U23,"") -> 268.8107314 | W63: =IF(consumption_mix_calcs!V23<>"",consumption_mix_calcs!V23,"") -> 5.422469186 | X63: =IF(consumption_mix_calcs!W23<>"",consumption_mix_calcs!W23,"") -> 33.43089258 | Y63: =IF(consumption_mix_calcs!X23<>"",consumption_mix_calcs!X23,"") -> 0 | Z63: =IF(consumption_mix_calcs!Y23<>"",consumption_mix_calcs!Y23,"") -> 0 | AA63: =IF(consumption_mix_calcs!Z23<>"",consumption_mix_calcs!Z23,"") -> 3.8555237 | AB63: =IF(consumption_mix_calcs!AA23<>"",consumption_mix_calcs!AA23,"") -> 0.02800517327 | AC63: =IF(consumption_mix_calcs!AB23<>"",consumption_mix_calcs!AB23,"") -> 59.60088545 | AD63: =IF(consumption_mix_calcs!AC23<>"",consumption_mix_calcs!AC23,"") -> 278.2867825 | AE63: =IF(consumption_mix_calcs!AD23<>"",consumption_mix_calcs!AD23,"") -> 33.34785942 | AF63: =IF(consumption_mix_calcs!AE23<>"",consumption_mix_calcs!AE23,"") -> 13.51635814 | AG63: =IF(consumption_mix_calcs!AF23<>"",consumption_mix_calcs!AF23,"") -> 72.18313497 | AH63: =IF(consumption_mix_calcs!AG23<>"",consumption_mix_calcs!AG23,"") -> 94.74799748 | AI63: =IF(consumption_mix_calcs!AH23<>"",consumption_mix_calcs!AH23,"") -> 91.66180761 | AJ63: =IF(consumption_mix_calcs!AI23<>"",consumption_mix_calcs!AI23,"") -> 0 | AK63: =IF(consumption_mix_calcs!AJ23<>"",consumption_mix_calcs!AJ23,"") -> 1585.3589 | AL63: =IF(consumption_mix_calcs!AK23<>"",consumption_mix_calcs!AK23,"") -> 10.66591295 | AM63: =IF(consumption_mix_calcs!AL23<>"",consumption_mix_calcs!AL23,"") -> 1.52400279 | AN63: =IF(consumption_mix_calcs!AM23<>"",consumption_mix_calcs!AM23,"") -> 60.82860628 | AO63: =IF(consumption_mix_calcs!AN23<>"",consumption_mix_calcs!AN23,"") -> 4.381931158 | AP63: =IF(consumption_mix_calcs!AO23<>"",consumption_mix_calcs!AO23,"") -> 5.889818005 | AQ63: =IF(consumption_mix_calcs!AP23<>"",consumption_mix_calcs!AP23,"") -> 0 | AR63: =IF(consumption_mix_calcs!AQ23<>"",consumption_mix_calcs!AQ23,"") -> 361.6941927 | AS63: =IF(consumption_mix_calcs!AR23<>"",consumption_mix_calcs!AR23,"") -> 66.03245361 | AT63: =IF(consumption_mix_calcs!AS23<>"",consumption_mix_calcs!AS23,"") -> 27.47408054 | AU63: =IF(consumption_mix_calcs!AT23<>"",consumption_mix_calcs!AT23,"") -> 50.77197074 | AV63: =IF(consumption_mix_calcs!AU23<>"",consumption_mix_calcs!AU23,"") -> 2006.605267 | AW63: =IF(consumption_mix_calcs!AV23<>"",consumption_mix_calcs!AV23,"") -> 9.323871168 | AX63: =IF(consumption_mix_calcs!AW23<>"",consumption_mix_calcs!AW23,"") -> 172.7216403 | AY63: =IF(consumption_mix_calcs!AX23<>"",consumption_mix_calcs!AX23,"") -> 58.96388148 | AZ63: =IF(consumption_mix_calcs!AY23<>"",consumption_mix_calcs!AY23,"") -> 31.57399828 | BA63: =IF(consumption_mix_calcs!AZ23<>"",consumption_mix_calcs!AZ23,"") -> 26.57523569 | BB63: =IF(consumption_mix_calcs!BA23<>"",consumption_mix_calcs!BA23,"") -> 100.8000896 | BC63: =IF(consumption_mix_calcs!BB23<>"",consumption_mix_calcs!BB23,"") -> 59.36511893 | BD63: =IF(consumption_mix_calcs!BC23<>"",consumption_mix_calcs!BC23,"") -> 23.30628645 | BE63: =IF(consumption_mix_calcs!BD23<>"",consumption_mix_calcs!BD23,"") -> 21.71009346 | BF63: =IF(consumption_mix_calcs!BE23<>"",consumption_mix_calcs!BE23,"") -> 31.36747179 | BG63: =IF(consumption_mix_calcs!BF23<>"",consumption_mix_calcs!BF23,"") -> 191.0048821 | BH63: =IF(consumption_mix_calcs!BG23<>"",consumption_mix_calcs!BG23,"") -> 22.66227614 | BI63: =IF(consumption_mix_calcs!BH23<>"",consumption_mix_calcs!BH23,"") -> 26.39591169 | BJ63: =IF(consumption_mix_calcs!BI23<>"",consumption_mix_calcs!BI23,"") -> 67.50386767 | BK63: =IF(consumption_mix_calcs!BJ23<>"",consumption_mix_calcs!BJ23,"") -> 68.94525433 | BL63: =IF(consumption_mix_calcs!BK23<>"",consumption_mix_calcs!BK23,"") -> 9.269240411 | BM63: =IF(consumption_mix_calcs!BL23<>"",consumption_mix_calcs!BL23,"") -> 572.020359 | BN63: =IF(consumption_mix_calcs!BM23<>"",consumption_mix_calcs!BM23,"") -> 645.9968965 | BO63: =IF(consumption_mix_calcs!BN23<>"",consumption_mix_calcs!BN23,"") -> 12.97102416 | BP63: =IF(consumption_mix_calcs!BO23<>"",consumption_mix_calcs!BO23,"") -> 7.802218435 | BQ63: =IF(consumption_mix_calcs!BP23<>"",consumption_mix_calcs!BP23,"") -> 55.24494033 | BR63: =IF(consumption_mix_calcs!BQ23<>"",consumption_mix_calcs!BQ23,"") -> 394.5837535 | BS63: =IF(consumption_mix_calcs!BR23<>"",consumption_mix_calcs!BR23,"") -> 29.88769442 | BT63: =IF(consumption_mix_calcs!BS23<>"",consumption_mix_calcs!BS23,"") -> 14.58138448 | BU63: =IF(consumption_mix_calcs!BT23<>"",consumption_mix_calcs!BT23,"") -> 75.96367542 | BV63: =IF(consumption_mix_calcs!BU23<>"",consumption_mix_calcs!BU23,"") -> 102.1041677 | BW63: =IF(consumption_mix_calcs!BV23<>"",consumption_mix_calcs!BV23,"") -> 0 | BX63: =IF(consumption_mix_calcs!BW23<>"",consumption_mix_calcs!BW23,"") -> 0
A64: input | B64: Water | C64: =SUM(D64:BX64) -> 323.9023012 | D64: =IF(consumption_mix_calcs!C24<>"",consumption_mix_calcs!C24,"") -> 0 | E64: =IF(consumption_mix_calcs!D24<>"",consumption_mix_calcs!D24,"") -> 0 | F64: =IF(consumption_mix_calcs!E24<>"",consumption_mix_calcs!E24,"") -> 0 | G64: =IF(consumption_mix_calcs!F24<>"",consumption_mix_calcs!F24,"") -> 0 | H64: =IF(consumption_mix_calcs!G24<>"",consumption_mix_calcs!G24,"") -> 0 | I64: =IF(consumption_mix_calcs!H24<>"",consumption_mix_calcs!H24,"") -> 0.03782630528 | J64: =IF(consumption_mix_calcs!I24<>"",consumption_mix_calcs!I24,"") -> 0 | K64: =IF(consumption_mix_calcs!J24<>"",consumption_mix_calcs!J24,"") -> 0.2121762962 | L64: =IF(consumption_mix_calcs!K24<>"",consumption_mix_calcs!K24,"") -> 0.8276763433 | M64: =IF(consumption_mix_calcs!L24<>"",consumption_mix_calcs!L24,"") -> 0 | N64: =IF(consumption_mix_calcs!M24<>"",consumption_mix_calcs!M24,"") -> 1.161806933 | O64: =IF(consumption_mix_calcs!N24<>"",consumption_mix_calcs!N24,"") -> 0 | P64: =IF(consumption_mix_calcs!O24<>"",consumption_mix_calcs!O24,"") -> 0.3062824315 | Q64: =IF(consumption_mix_calcs!P24<>"",consumption_mix_calcs!P24,"") -> 0 | R64: =IF(consumption_mix_calcs!Q24<>"",consumption_mix_calcs!Q24,"") -> 0 | S64: =IF(consumption_mix_calcs!R24<>"",consumption_mix_calcs!R24,"") -> 0 | T64: =IF(consumption_mix_calcs!S24<>"",consumption_mix_calcs!S24,"") -> 1.471801559 | U64: =IF(consumption_mix_calcs!T24<>"",consumption_mix_calcs!T24,"") -> 0 | V64: =IF(consumption_mix_calcs!U24<>"",consumption_mix_calcs!U24,"") -> 0 | W64: =IF(consumption_mix_calcs!V24<>"",consumption_mix_calcs!V24,"") -> 0 | X64: =IF(consumption_mix_calcs!W24<>"",consumption_mix_calcs!W24,"") -> 0 | Y64: =IF(consumption_mix_calcs!X24<>"",consumption_mix_calcs!X24,"") -> 0 | Z64: =IF(consumption_mix_calcs!Y24<>"",consumption_mix_calcs!Y24,"") -> 0 | AA64: =IF(consumption_mix_calcs!Z24<>"",consumption_mix_calcs!Z24,"") -> 0 | AB64: =IF(consumption_mix_calcs!AA24<>"",consumption_mix_calcs!AA24,"") -> 0 | AC64: =IF(consumption_mix_calcs!AB24<>"",consumption_mix_calcs!AB24,"") -> 0 | AD64: =IF(consumption_mix_calcs!AC24<>"",consumption_mix_calcs!AC24,"") -> 0.09447167746 | AE64: =IF(consumption_mix_calcs!AD24<>"",consumption_mix_calcs!AD24,"") -> 0 | AF64: =IF(consumption_mix_calcs!AE24<>"",consumption_mix_calcs!AE24,"") -> 0 | AG64: =IF(consumption_mix_calcs!AF24<>"",consumption_mix_calcs!AF24,"") -> 0 | AH64: =IF(consumption_mix_calcs!AG24<>"",consumption_mix_calcs!AG24,"") -> 0 | AI64: =IF(consumption_mix_calcs!AH24<>"",consumption_mix_calcs!AH24,"") -> 316.8776215 | AJ64: =IF(consumption_mix_calcs!AI24<>"",consumption_mix_calcs!AI24,"") -> 0.004702799142 | AK64: =IF(consumption_mix_calcs!AJ24<>"",consumption_mix_calcs!AJ24,"") -> 0.8600214384 | AL64: =IF(consumption_mix_calcs!AK24<>"",consumption_mix_calcs!AK24,"") -> 0 | AM64: =IF(consumption_mix_calcs!AL24<>"",consumption_mix_calcs!AL24,"") -> 0 | AN64: =IF(consumption_mix_calcs!AM24<>"",consumption_mix_calcs!AM24,"") -> 0.1887650141 | AO64: =IF(consumption_mix_calcs!AN24<>"",consumption_mix_calcs!AN24,"") -> 0.03936707572 | AP64: =IF(consumption_mix_calcs!AO24<>"",consumption_mix_calcs!AO24,"") -> 0 | AQ64: =IF(consumption_mix_calcs!AP24<>"",consumption_mix_calcs!AP24,"") -> 0 | AR64: =IF(consumption_mix_calcs!AQ24<>"",consumption_mix_calcs!AQ24,"") -> 0 | AS64: =IF(consumption_mix_calcs!AR24<>"",consumption_mix_calcs!AR24,"") -> 0 | AT64: =IF(consumption_mix_calcs!AS24<>"",consumption_mix_calcs!AS24,"") -> 0 | AU64: =IF(consumption_mix_calcs!AT24<>"",consumption_mix_calcs!AT24,"") -> 0.2286296544 | AV64: =IF(consumption_mix_calcs!AU24<>"",consumption_mix_calcs!AU24,"") -> 0.5377345324 | AW64: =IF(consumption_mix_calcs!AV24<>"",consumption_mix_calcs!AV24,"") -> 0 | AX64: =IF(consumption_mix_calcs!AW24<>"",consumption_mix_calcs!AW24,"") -> 0 | AY64: =IF(consumption_mix_calcs!AX24<>"",consumption_mix_calcs!AX24,"") -> 0 | AZ64: =IF(consumption_mix_calcs!AY24<>"",consumption_mix_calcs!AY24,"") -> 0 | BA64: =IF(consumption_mix_calcs!AZ24<>"",consumption_mix_calcs!AZ24,"") -> 0 | BB64: =IF(consumption_mix_calcs!BA24<>"",consumption_mix_calcs!BA24,"") -> 0 | BC64: =IF(consumption_mix_calcs!BB24<>"",consumption_mix_calcs!BB24,"") -> 0 | BD64: =IF(consumption_mix_calcs!BC24<>"",consumption_mix_calcs!BC24,"") -> 0 | BE64: =IF(consumption_mix_calcs!BD24<>"",consumption_mix_calcs!BD24,"") -> 0 | BF64: =IF(consumption_mix_calcs!BE24<>"",consumption_mix_calcs!BE24,"") -> 0 | BG64: =IF(consumption_mix_calcs!BF24<>"",consumption_mix_calcs!BF24,"") -> 0 | BH64: =IF(consumption_mix_calcs!BG24<>"",consumption_mix_calcs!BG24,"") -> 0 | BI64: =IF(consumption_mix_calcs!BH24<>"",consumption_mix_calcs!BH24,"") -> 0 | BJ64: =IF(consumption_mix_calcs!BI24<>"",consumption_mix_calcs!BI24,"") -> 0 | BK64: =IF(consumption_mix_calcs!BJ24<>"",consumption_mix_calcs!BJ24,"") -> 0 | BL64: =IF(consumption_mix_calcs!BK24<>"",consumption_mix_calcs!BK24,"") -> 0 | BM64: =IF(consumption_mix_calcs!BL24<>"",consumption_mix_calcs!BL24,"") -> 0 | BN64: =IF(consumption_mix_calcs!BM24<>"",consumption_mix_calcs!BM24,"") -> 1.05341767 | BO64: =IF(consumption_mix_calcs!BN24<>"",consumption_mix_calcs!BN24,"") -> 0 | BP64: =IF(consumption_mix_calcs!BO24<>"",consumption_mix_calcs!BO24,"") -> 0 | BQ64: =IF(consumption_mix_calcs!BP24<>"",consumption_mix_calcs!BP24,"") -> 0 | BR64: =IF(consumption_mix_calcs!BQ24<>"",consumption_mix_calcs!BQ24,"") -> 0 | BS64: =IF(consumption_mix_calcs!BR24<>"",consumption_mix_calcs!BR24,"") -> 0 | BT64: =IF(consumption_mix_calcs!BS24<>"",consumption_mix_calcs!BS24,"") -> 0 | BU64: =IF(consumption_mix_calcs!BT24<>"",consumption_mix_calcs!BT24,"") -> 0 | BV64: =IF(consumption_mix_calcs!BU24<>"",consumption_mix_calcs!BU24,"") -> 0 | BW64: =IF(consumption_mix_calcs!BV24<>"",consumption_mix_calcs!BV24,"") -> 0 | BX64: =IF(consumption_mix_calcs!BW24<>"",consumption_mix_calcs!BW24,"") -> 0
A65: input | B65: Water, brackish | C65: 3131.950535 | D65: =IF(consumption_mix_calcs!C25<>"",consumption_mix_calcs!C25,"") -> 0 | E65: =IF(consumption_mix_calcs!D25<>"",consumption_mix_calcs!D25,"") -> 0 | F65: =IF(consumption_mix_calcs!E25<>"",consumption_mix_calcs!E25,"") -> 0 | G65: =IF(consumption_mix_calcs!F25<>"",consumption_mix_calcs!F25,"") -> 0 | H65: =IF(consumption_mix_calcs!G25<>"",consumption_mix_calcs!G25,"") -> 0 | I65: =IF(consumption_mix_calcs!H25<>"",consumption_mix_calcs!H25,"") -> 0.5728350105 | J65: =IF(consumption_mix_calcs!I25<>"",consumption_mix_calcs!I25,"") -> 0 | K65: =IF(consumption_mix_calcs!J25<>"",consumption_mix_calcs!J25,"") -> 0 | L65: =IF(consumption_mix_calcs!K25<>"",consumption_mix_calcs!K25,"") -> 8.852717067 | M65: =IF(consumption_mix_calcs!L25<>"",consumption_mix_calcs!L25,"") -> 0 | N65: =IF(consumption_mix_calcs!M25<>"",consumption_mix_calcs!M25,"") -> 0 | O65: =IF(consumption_mix_calcs!N25<>"",consumption_mix_calcs!N25,"") -> 182.5994198 | P65: =IF(consumption_mix_calcs!O25<>"",consumption_mix_calcs!O25,"") -> 0 | Q65: =IF(consumption_mix_calcs!P25<>"",consumption_mix_calcs!P25,"") -> 0 | R65: =IF(consumption_mix_calcs!Q25<>"",consumption_mix_calcs!Q25,"") -> 0 | S65: =IF(consumption_mix_calcs!R25<>"",consumption_mix_calcs!R25,"") -> 0 | T65: =IF(consumption_mix_calcs!S25<>"",consumption_mix_calcs!S25,"") -> 0 | U65: =IF(consumption_mix_calcs!T25<>"",consumption_mix_calcs!T25,"") -> 0 | V65: =IF(consumption_mix_calcs!U25<>"",consumption_mix_calcs!U25,"") -> 925.7802084 | W65: =IF(consumption_mix_calcs!V25<>"",consumption_mix_calcs!V25,"") -> 0 | X65: =IF(consumption_mix_calcs!W25<>"",consumption_mix_calcs!W25,"") -> 0 | Y65: =IF(consumption_mix_calcs!X25<>"",consumption_mix_calcs!X25,"") -> 0 | Z65: =IF(consumption_mix_calcs!Y25<>"",consumption_mix_calcs!Y25,"") -> 0 | AA65: =IF(consumption_mix_calcs!Z25<>"",consumption_mix_calcs!Z25,"") -> 0 | AB65: =IF(consumption_mix_calcs!AA25<>"",consumption_mix_calcs!AA25,"") -> 0 | AC65: =IF(consumption_mix_calcs!AB25<>"",consumption_mix_calcs!AB25,"") -> 0 | AD65: =IF(consumption_mix_calcs!AC25<>"",consumption_mix_calcs!AC25,"") -> 1514.296716 | AE65: =IF(consumption_mix_calcs!AD25<>"",consumption_mix_calcs!AD25,"") -> 0 | AF65: =IF(consumption_mix_calcs!AE25<>"",consumption_mix_calcs!AE25,"") -> 0 | AG65: =IF(consumption_mix_calcs!AF25<>"",consumption_mix_calcs!AF25,"") -> 0 | AH65: =IF(consumption_mix_calcs!AG25<>"",consumption_mix_calcs!AG25,"") -> 0 | AI65: =IF(consumption_mix_calcs!AH25<>"",consumption_mix_calcs!AH25,"") -> 0 | AJ65: =IF(consumption_mix_calcs!AI25<>"",consumption_mix_calcs!AI25,"") -> 0.004702799142 | AK65: =IF(consumption_mix_calcs!AJ25<>"",consumption_mix_calcs!AJ25,"") -> 227.9029038 | AL65: =IF(consumption_mix_calcs!AK25<>"",consumption_mix_calcs!AK25,"") -> 0 | AM65: =IF(consumption_mix_calcs!AL25<>"",consumption_mix_calcs!AL25,"") -> 0 | AN65: =IF(consumption_mix_calcs!AM25<>"",consumption_mix_calcs!AM25,"") -> 0 | AO65: =IF(consumption_mix_calcs!AN25<>"",consumption_mix_calcs!AN25,"") -> 0.6656308085 | AP65: =IF(consumption_mix_calcs!AO25<>"",consumption_mix_calcs!AO25,"") -> 0 | AQ65: =IF(consumption_mix_calcs!AP25<>"",consumption_mix_calcs!AP25,"") -> 0 | AR65: =IF(consumption_mix_calcs!AQ25<>"",consumption_mix_calcs!AQ25,"") -> 0 | AS65: =IF(consumption_mix_calcs!AR25<>"",consumption_mix_calcs!AR25,"") -> 0 | AT65: =IF(consumption_mix_calcs!AS25<>"",consumption_mix_calcs!AS25,"") -> 0 | AU65: =IF(consumption_mix_calcs!AT25<>"",consumption_mix_calcs!AT25,"") -> 3.626665237 | AV65: =IF(consumption_mix_calcs!AU25<>"",consumption_mix_calcs!AU25,"") -> 246.4671513 | AW65: =IF(consumption_mix_calcs!AV25<>"",consumption_mix_calcs!AV25,"") -> 0 | AX65: =IF(consumption_mix_calcs!AW25<>"",consumption_mix_calcs!AW25,"") -> 0 | AY65: =IF(consumption_mix_calcs!AX25<>"",consumption_mix_calcs!AX25,"") -> 0 | AZ65: =IF(consumption_mix_calcs!AY25<>"",consumption_mix_calcs!AY25,"") -> 0 | BA65: =IF(consumption_mix_calcs!AZ25<>"",consumption_mix_calcs!AZ25,"") -> 0 | BB65: =IF(consumption_mix_calcs!BA25<>"",consumption_mix_calcs!BA25,"") -> 0 | BC65: =IF(consumption_mix_calcs!BB25<>"",consumption_mix_calcs!BB25,"") -> 0 | BD65: =IF(consumption_mix_calcs!BC25<>"",consumption_mix_calcs!BC25,"") -> 0 | BE65: =IF(consumption_mix_calcs!BD25<>"",consumption_mix_calcs!BD25,"") -> 0 | BF65: =IF(consumption_mix_calcs!BE25<>"",consumption_mix_calcs!BE25,"") -> 0 | BG65: =IF(consumption_mix_calcs!BF25<>"",consumption_mix_calcs!BF25,"") -> 0 | BH65: =IF(consumption_mix_calcs!BG25<>"",consumption_mix_calcs!BG25,"") -> 0 | BI65: =IF(consumption_mix_calcs!BH25<>"",consumption_mix_calcs!BH25,"") -> 0 | BJ65: =IF(consumption_mix_calcs!BI25<>"",consumption_mix_calcs!BI25,"") -> 0 | BK65: =IF(consumption_mix_calcs!BJ25<>"",consumption_mix_calcs!BJ25,"") -> 0 | BL65: =IF(consumption_mix_calcs!BK25<>"",consumption_mix_calcs!BK25,"") -> 0 | BM65: =IF(consumption_mix_calcs!BL25<>"",consumption_mix_calcs!BL25,"") -> 20.19141459 | BN65: =IF(consumption_mix_calcs!BM25<>"",consumption_mix_calcs!BM25,"") -> 0 | BO65: =IF(consumption_mix_calcs!BN25<>"",consumption_mix_calcs!BN25,"") -> 0 | BP65: =IF(consumption_mix_calcs!BO25<>"",consumption_mix_calcs!BO25,"") -> 0.314385816 | BQ65: =IF(consumption_mix_calcs!BP25<>"",consumption_mix_calcs!BP25,"") -> 0 | BR65: =IF(consumption_mix_calcs!BQ25<>"",consumption_mix_calcs!BQ25,"") -> 0.6757841418 | BS65: =IF(consumption_mix_calcs!BR25<>"",consumption_mix_calcs!BR25,"") -> 0 | BT65: =IF(consumption_mix_calcs!BS25<>"",consumption_mix_calcs!BS25,"") -> 0 | BU65: =IF(consumption_mix_calcs!BT25<>"",consumption_mix_calcs!BT25,"") -> 0 | BV65: =IF(consumption_mix_calcs!BU25<>"",consumption_mix_calcs!BU25,"") -> 0 | BW65: =IF(consumption_mix_calcs!BV25<>"",consumption_mix_calcs!BV25,"") -> 0 | BX65: =IF(consumption_mix_calcs!BW25<>"",consumption_mix_calcs!BW25,"") -> 0
A66: input | B66: Water, fresh | C66: 23131.46047 | D66: =IF(consumption_mix_calcs!C26<>"",consumption_mix_calcs!C26,"") -> 0.01119824058 | E66: =IF(consumption_mix_calcs!D26<>"",consumption_mix_calcs!D26,"") -> 12.24026763 | F66: =IF(consumption_mix_calcs!E26<>"",consumption_mix_calcs!E26,"") -> 0.439469086 | G66: =IF(consumption_mix_calcs!F26<>"",consumption_mix_calcs!F26,"") -> 424.8246131 | H66: =IF(consumption_mix_calcs!G26<>"",consumption_mix_calcs!G26,"") -> 0.1269227391 | I66: =IF(consumption_mix_calcs!H26<>"",consumption_mix_calcs!H26,"") -> 1.583932748 | J66: =IF(consumption_mix_calcs!I26<>"",consumption_mix_calcs!I26,"") -> 0.005709935448 | K66: =IF(consumption_mix_calcs!J26<>"",consumption_mix_calcs!J26,"") -> 10.6005176 | L66: =IF(consumption_mix_calcs!K26<>"",consumption_mix_calcs!K26,"") -> 2.462501179 | M66: =IF(consumption_mix_calcs!L26<>"",consumption_mix_calcs!L26,"") -> 0.01097682653 | N66: =IF(consumption_mix_calcs!M26<>"",consumption_mix_calcs!M26,"") -> 1282.774862 | O66: =IF(consumption_mix_calcs!N26<>"",consumption_mix_calcs!N26,"") -> 35.02635215 | P66: =IF(consumption_mix_calcs!O26<>"",consumption_mix_calcs!O26,"") -> 246.2354996 | Q66: =IF(consumption_mix_calcs!P26<>"",consumption_mix_calcs!P26,"") -> 0 | R66: =IF(consumption_mix_calcs!Q26<>"",consumption_mix_calcs!Q26,"") -> 7.688042233 | S66: =IF(consumption_mix_calcs!R26<>"",consumption_mix_calcs!R26,"") -> 0 | T66: =IF(consumption_mix_calcs!S26<>"",consumption_mix_calcs!S26,"") -> 2988.117233 | U66: =IF(consumption_mix_calcs!T26<>"",consumption_mix_calcs!T26,"") -> 0 | V66: =IF(consumption_mix_calcs!U26<>"",consumption_mix_calcs!U26,"") -> 3475.75072 | W66: =IF(consumption_mix_calcs!V26<>"",consumption_mix_calcs!V26,"") -> 0.01283547682 | X66: =IF(consumption_mix_calcs!W26<>"",consumption_mix_calcs!W26,"") -> 0 | Y66: =IF(consumption_mix_calcs!X26<>"",consumption_mix_calcs!X26,"") -> 0 | Z66: =IF(consumption_mix_calcs!Y26<>"",consumption_mix_calcs!Y26,"") -> 0 | AA66: =IF(consumption_mix_calcs!Z26<>"",consumption_mix_calcs!Z26,"") -> 0.4808966967 | AB66: =IF(consumption_mix_calcs!AA26<>"",consumption_mix_calcs!AA26,"") -> 0 | AC66: =IF(consumption_mix_calcs!AB26<>"",consumption_mix_calcs!AB26,"") -> 0.2770285247 | AD66: =IF(consumption_mix_calcs!AC26<>"",consumption_mix_calcs!AC26,"") -> 27.71442786 | AE66: =IF(consumption_mix_calcs!AD26<>"",consumption_mix_calcs!AD26,"") -> 0.4623835959 | AF66: =IF(consumption_mix_calcs!AE26<>"",consumption_mix_calcs!AE26,"") -> 0.3298637191 | AG66: =IF(consumption_mix_calcs!AF26<>"",consumption_mix_calcs!AF26,"") -> 0.8231391158 | AH66: =IF(consumption_mix_calcs!AG26<>"",consumption_mix_calcs!AG26,"") -> 83.96516551 | AI66: =IF(consumption_mix_calcs!AH26<>"",consumption_mix_calcs!AH26,"") -> 5.827073384 | AJ66: =IF(consumption_mix_calcs!AI26<>"",consumption_mix_calcs!AI26,"") -> 0.2234988939 | AK66: =IF(consumption_mix_calcs!AJ26<>"",consumption_mix_calcs!AJ26,"") -> 5794.18605 | AL66: =IF(consumption_mix_calcs!AK26<>"",consumption_mix_calcs!AK26,"") -> 0 | AM66: =IF(consumption_mix_calcs!AL26<>"",consumption_mix_calcs!AL26,"") -> 0 | AN66: =IF(consumption_mix_calcs!AM26<>"",consumption_mix_calcs!AM26,"") -> 239.6774086 | AO66: =IF(consumption_mix_calcs!AN26<>"",consumption_mix_calcs!AN26,"") -> 7.650129307 | AP66: =IF(consumption_mix_calcs!AO26<>"",consumption_mix_calcs!AO26,"") -> 0.6979213912 | AQ66: =IF(consumption_mix_calcs!AP26<>"",consumption_mix_calcs!AP26,"") -> 0 | AR66: =IF(consumption_mix_calcs!AQ26<>"",consumption_mix_calcs!AQ26,"") -> 49.78074778 | AS66: =IF(consumption_mix_calcs!AR26<>"",consumption_mix_calcs!AR26,"") -> 45.27063753 | AT66: =IF(consumption_mix_calcs!AS26<>"",consumption_mix_calcs!AS26,"") -> 0 | AU66: =IF(consumption_mix_calcs!AT26<>"",consumption_mix_calcs!AT26,"") -> 76.25854069 | AV66: =IF(consumption_mix_calcs!AU26<>"",consumption_mix_calcs!AU26,"") -> 2540.587844 | AW66: =IF(consumption_mix_calcs!AV26<>"",consumption_mix_calcs!AV26,"") -> 0.002016459845 | AX66: =IF(consumption_mix_calcs!AW26<>"",consumption_mix_calcs!AW26,"") -> 82.36215697 | AY66: =IF(consumption_mix_calcs!AX26<>"",consumption_mix_calcs!AX26,"") -> 0.01516177195 | AZ66: =IF(consumption_mix_calcs!AY26<>"",consumption_mix_calcs!AY26,"") -> 1.708271132 | BA66: =IF(consumption_mix_calcs!AZ26<>"",consumption_mix_calcs!AZ26,"") -> 2.143214366 | BB66: =IF(consumption_mix_calcs!BA26<>"",consumption_mix_calcs!BA26,"") -> 16.80329005 | BC66: =IF(consumption_mix_calcs!BB26<>"",consumption_mix_calcs!BB26,"") -> 8.497862718 | BD66: =IF(consumption_mix_calcs!BC26<>"",consumption_mix_calcs!BC26,"") -> 0.02725965381 | BE66: =IF(consumption_mix_calcs!BD26<>"",consumption_mix_calcs!BD26,"") -> 0.02584809534 | BF66: =IF(consumption_mix_calcs!BE26<>"",consumption_mix_calcs!BE26,"") -> 0.01015117171 | BG66: =IF(consumption_mix_calcs!BF26<>"",consumption_mix_calcs!BF26,"") -> 10.07836296 | BH66: =IF(consumption_mix_calcs!BG26<>"",consumption_mix_calcs!BG26,"") -> 0.01158303893 | BI66: =IF(consumption_mix_calcs!BH26<>"",consumption_mix_calcs!BH26,"") -> 4.046724455 | BJ66: =IF(consumption_mix_calcs!BI26<>"",consumption_mix_calcs!BI26,"") -> 229.7223342 | BK66: =IF(consumption_mix_calcs!BJ26<>"",consumption_mix_calcs!BJ26,"") -> 65.77198897 | BL66: =IF(consumption_mix_calcs!BK26<>"",consumption_mix_calcs!BK26,"") -> 0 | BM66: =IF(consumption_mix_calcs!BL26<>"",consumption_mix_calcs!BL26,"") -> 328.7279726 | BN66: =IF(consumption_mix_calcs!BM26<>"",consumption_mix_calcs!BM26,"") -> 2676.654464 | BO66: =IF(consumption_mix_calcs!BN26<>"",consumption_mix_calcs!BN26,"") -> 1.165600225 | BP66: =IF(consumption_mix_calcs!BO26<>"",consumption_mix_calcs!BO26,"") -> 0.6015623906 | BQ66: =IF(consumption_mix_calcs!BP26<>"",consumption_mix_calcs!BP26,"") -> 0 | BR66: =IF(consumption_mix_calcs!BQ26<>"",consumption_mix_calcs!BQ26,"") -> 2332.667692 | BS66: =IF(consumption_mix_calcs!BR26<>"",consumption_mix_calcs!BR26,"") -> 0 | BT66: =IF(consumption_mix_calcs!BS26<>"",consumption_mix_calcs!BS26,"") -> 0.02391106288 | BU66: =IF(consumption_mix_calcs!BT26<>"",consumption_mix_calcs!BT26,"") -> 0.6758079269 | BV66: =IF(consumption_mix_calcs!BU26<>"",consumption_mix_calcs!BU26,"") -> 7.59282577 | BW66: =IF(consumption_mix_calcs!BV26<>"",consumption_mix_calcs!BV26,"") -> 0 | BX66: =IF(consumption_mix_calcs!BW26<>"",consumption_mix_calcs!BW26,"") -> 0
A67: input | B67: Water, reclaimed | C67: 607.9420561 | D67: =IF(consumption_mix_calcs!C27<>"",consumption_mix_calcs!C27,"") -> 0 | E67: =IF(consumption_mix_calcs!D27<>"",consumption_mix_calcs!D27,"") -> 0 | F67: =IF(consumption_mix_calcs!E27<>"",consumption_mix_calcs!E27,"") -> 0 | G67: =IF(consumption_mix_calcs!F27<>"",consumption_mix_calcs!F27,"") -> 0 | H67: =IF(consumption_mix_calcs!G27<>"",consumption_mix_calcs!G27,"") -> 0 | I67: =IF(consumption_mix_calcs!H27<>"",consumption_mix_calcs!H27,"") -> 0.005843968976 | J67: =IF(consumption_mix_calcs!I27<>"",consumption_mix_calcs!I27,"") -> 0 | K67: =IF(consumption_mix_calcs!J27<>"",consumption_mix_calcs!J27,"") -> 0 | L67: =IF(consumption_mix_calcs!K27<>"",consumption_mix_calcs!K27,"") -> 2.949486818 | M67: =IF(consumption_mix_calcs!L27<>"",consumption_mix_calcs!L27,"") -> 0 | N67: =IF(consumption_mix_calcs!M27<>"",consumption_mix_calcs!M27,"") -> 0 | O67: =IF(consumption_mix_calcs!N27<>"",consumption_mix_calcs!N27,"") -> 0 | P67: =IF(consumption_mix_calcs!O27<>"",consumption_mix_calcs!O27,"") -> 0 | Q67: =IF(consumption_mix_calcs!P27<>"",consumption_mix_calcs!P27,"") -> 0 | R67: =IF(consumption_mix_calcs!Q27<>"",consumption_mix_calcs!Q27,"") -> 0 | S67: =IF(consumption_mix_calcs!R27<>"",consumption_mix_calcs!R27,"") -> 0 | T67: =IF(consumption_mix_calcs!S27<>"",consumption_mix_calcs!S27,"") -> 5.149471025 | U67: =IF(consumption_mix_calcs!T27<>"",consumption_mix_calcs!T27,"") -> 14.40399501 | V67: =IF(consumption_mix_calcs!U27<>"",consumption_mix_calcs!U27,"") -> 407.0795951 | W67: =IF(consumption_mix_calcs!V27<>"",consumption_mix_calcs!V27,"") -> 0 | X67: =IF(consumption_mix_calcs!W27<>"",consumption_mix_calcs!W27,"") -> 0 | Y67: =IF(consumption_mix_calcs!X27<>"",consumption_mix_calcs!X27,"") -> 0 | Z67: =IF(consumption_mix_calcs!Y27<>"",consumption_mix_calcs!Y27,"") -> 0 | AA67: =IF(consumption_mix_calcs!Z27<>"",consumption_mix_calcs!Z27,"") -> 0 | AB67: =IF(consumption_mix_calcs!AA27<>"",consumption_mix_calcs!AA27,"") -> 0 | AC67: =IF(consumption_mix_calcs!AB27<>"",consumption_mix_calcs!AB27,"") -> 0 | AD67: =IF(consumption_mix_calcs!AC27<>"",consumption_mix_calcs!AC27,"") -> 2.109289077 | AE67: =IF(consumption_mix_calcs!AD27<>"",consumption_mix_calcs!AD27,"") -> 0 | AF67: =IF(consumption_mix_calcs!AE27<>"",consumption_mix_calcs!AE27,"") -> 0 | AG67: =IF(consumption_mix_calcs!AF27<>"",consumption_mix_calcs!AF27,"") -> 0 | AH67: =IF(consumption_mix_calcs!AG27<>"",consumption_mix_calcs!AG27,"") -> 0 | AI67: =IF(consumption_mix_calcs!AH27<>"",consumption_mix_calcs!AH27,"") -> 0.6536783245 | AJ67: =IF(consumption_mix_calcs!AI27<>"",consumption_mix_calcs!AI27,"") -> 0.004702799142 | AK67: =IF(consumption_mix_calcs!AJ27<>"",consumption_mix_calcs!AJ27,"") -> 1.438137254 | AL67: =IF(consumption_mix_calcs!AK27<>"",consumption_mix_calcs!AK27,"") -> 0 | AM67: =IF(consumption_mix_calcs!AL27<>"",consumption_mix_calcs!AL27,"") -> 0 | AN67: =IF(consumption_mix_calcs!AM27<>"",consumption_mix_calcs!AM27,"") -> 0.19122833 | AO67: =IF(consumption_mix_calcs!AN27<>"",consumption_mix_calcs!AN27,"") -> 0.05310606686 | AP67: =IF(consumption_mix_calcs!AO27<>"",consumption_mix_calcs!AO27,"") -> 0 | AQ67: =IF(consumption_mix_calcs!AP27<>"",consumption_mix_calcs!AP27,"") -> 0 | AR67: =IF(consumption_mix_calcs!AQ27<>"",consumption_mix_calcs!AQ27,"") -> 2.975903738e-25 | AS67: =IF(consumption_mix_calcs!AR27<>"",consumption_mix_calcs!AR27,"") -> 0 | AT67: =IF(consumption_mix_calcs!AS27<>"",consumption_mix_calcs!AS27,"") -> 0 | AU67: =IF(consumption_mix_calcs!AT27<>"",consumption_mix_calcs!AT27,"") -> 0.3580434124 | AV67: =IF(consumption_mix_calcs!AU27<>"",consumption_mix_calcs!AU27,"") -> 0.5698520388 | AW67: =IF(consumption_mix_calcs!AV27<>"",consumption_mix_calcs!AV27,"") -> 0 | AX67: =IF(consumption_mix_calcs!AW27<>"",consumption_mix_calcs!AW27,"") -> 0 | AY67: =IF(consumption_mix_calcs!AX27<>"",consumption_mix_calcs!AX27,"") -> 0 | AZ67: =IF(consumption_mix_calcs!AY27<>"",consumption_mix_calcs!AY27,"") -> 0 | BA67: =IF(consumption_mix_calcs!AZ27<>"",consumption_mix_calcs!AZ27,"") -> 0 | BB67: =IF(consumption_mix_calcs!BA27<>"",consumption_mix_calcs!BA27,"") -> 128.2042675 | BC67: =IF(consumption_mix_calcs!BB27<>"",consumption_mix_calcs!BB27,"") -> 0 | BD67: =IF(consumption_mix_calcs!BC27<>"",consumption_mix_calcs!BC27,"") -> 0 | BE67: =IF(consumption_mix_calcs!BD27<>"",consumption_mix_calcs!BD27,"") -> 0 | BF67: =IF(consumption_mix_calcs!BE27<>"",consumption_mix_calcs!BE27,"") -> 0 | BG67: =IF(consumption_mix_calcs!BF27<>"",consumption_mix_calcs!BF27,"") -> 26.24074732 | BH67: =IF(consumption_mix_calcs!BG27<>"",consumption_mix_calcs!BG27,"") -> 0 | BI67: =IF(consumption_mix_calcs!BH27<>"",consumption_mix_calcs!BH27,"") -> 0 | BJ67: =IF(consumption_mix_calcs!BI27<>"",consumption_mix_calcs!BI27,"") -> 0 | BK67: =IF(consumption_mix_calcs!BJ27<>"",consumption_mix_calcs!BJ27,"") -> 0 | BL67: =IF(consumption_mix_calcs!BK27<>"",consumption_mix_calcs!BK27,"") -> 0 | BM67: =IF(consumption_mix_calcs!BL27<>"",consumption_mix_calcs!BL27,"") -> 5.132998273 | BN67: =IF(consumption_mix_calcs!BM27<>"",consumption_mix_calcs!BM27,"") -> 11.66020477 | BO67: =IF(consumption_mix_calcs!BN27<>"",consumption_mix_calcs!BN27,"") -> 0 | BP67: =IF(consumption_mix_calcs!BO27<>"",consumption_mix_calcs!BO27,"") -> 0 | BQ67: =IF(consumption_mix_calcs!BP27<>"",consumption_mix_calcs!BP27,"") -> 0.6968676004 | BR67: =IF(consumption_mix_calcs!BQ27<>"",consumption_mix_calcs!BQ27,"") -> 0.8638970101 | BS67: =IF(consumption_mix_calcs!BR27<>"",consumption_mix_calcs!BR27,"") -> 0 | BT67: =IF(consumption_mix_calcs!BS27<>"",consumption_mix_calcs!BS27,"") -> 0 | BU67: =IF(consumption_mix_calcs!BT27<>"",consumption_mix_calcs!BT27,"") -> 0 | BV67: =IF(consumption_mix_calcs!BU27<>"",consumption_mix_calcs!BU27,"") -> 0.1766444273 | BW67: =IF(consumption_mix_calcs!BV27<>"",consumption_mix_calcs!BV27,"") -> 0 | BX67: =IF(consumption_mix_calcs!BW27<>"",consumption_mix_calcs!BW27,"") -> 0
A68: input | B68: Water, saline | C68: 3176.516485 | D68: =IF(consumption_mix_calcs!C28<>"",consumption_mix_calcs!C28,"") -> 0 | E68: =IF(consumption_mix_calcs!D28<>"",consumption_mix_calcs!D28,"") -> 0 | F68: =IF(consumption_mix_calcs!E28<>"",consumption_mix_calcs!E28,"") -> 0 | G68: =IF(consumption_mix_calcs!F28<>"",consumption_mix_calcs!F28,"") -> 0 | H68: =IF(consumption_mix_calcs!G28<>"",consumption_mix_calcs!G28,"") -> 0 | I68: =IF(consumption_mix_calcs!H28<>"",consumption_mix_calcs!H28,"") -> 0.3023789355 | J68: =IF(consumption_mix_calcs!I28<>"",consumption_mix_calcs!I28,"") -> 0 | K68: =IF(consumption_mix_calcs!J28<>"",consumption_mix_calcs!J28,"") -> 0 | L68: =IF(consumption_mix_calcs!K28<>"",consumption_mix_calcs!K28,"") -> 712.3258217 | M68: =IF(consumption_mix_calcs!L28<>"",consumption_mix_calcs!L28,"") -> 0 | N68: =IF(consumption_mix_calcs!M28<>"",consumption_mix_calcs!M28,"") -> 0 | O68: =IF(consumption_mix_calcs!N28<>"",consumption_mix_calcs!N28,"") -> 46.34425375 | P68: =IF(consumption_mix_calcs!O28<>"",consumption_mix_calcs!O28,"") -> 481.7722479 | Q68: =IF(consumption_mix_calcs!P28<>"",consumption_mix_calcs!P28,"") -> 0 | R68: =IF(consumption_mix_calcs!Q28<>"",consumption_mix_calcs!Q28,"") -> 0 | S68: =IF(consumption_mix_calcs!R28<>"",consumption_mix_calcs!R28,"") -> 0 | T68: =IF(consumption_mix_calcs!S28<>"",consumption_mix_calcs!S28,"") -> 2.854060912 | U68: =IF(consumption_mix_calcs!T28<>"",consumption_mix_calcs!T28,"") -> 1.138575813 | V68: =IF(consumption_mix_calcs!U28<>"",consumption_mix_calcs!U28,"") -> 919.921278 | W68: =IF(consumption_mix_calcs!V28<>"",consumption_mix_calcs!V28,"") -> 0 | X68: =IF(consumption_mix_calcs!W28<>"",consumption_mix_calcs!W28,"") -> 0 | Y68: =IF(consumption_mix_calcs!X28<>"",consumption_mix_calcs!X28,"") -> 0 | Z68: =IF(consumption_mix_calcs!Y28<>"",consumption_mix_calcs!Y28,"") -> 0 | AA68: =IF(consumption_mix_calcs!Z28<>"",consumption_mix_calcs!Z28,"") -> 0 | AB68: =IF(consumption_mix_calcs!AA28<>"",consumption_mix_calcs!AA28,"") -> 0 | AC68: =IF(consumption_mix_calcs!AB28<>"",consumption_mix_calcs!AB28,"") -> 0 | AD68: =IF(consumption_mix_calcs!AC28<>"",consumption_mix_calcs!AC28,"") -> 40.71895193 | AE68: =IF(consumption_mix_calcs!AD28<>"",consumption_mix_calcs!AD28,"") -> 0 | AF68: =IF(consumption_mix_calcs!AE28<>"",consumption_mix_calcs!AE28,"") -> 0 | AG68: =IF(consumption_mix_calcs!AF28<>"",consumption_mix_calcs!AF28,"") -> 5.438514278 | AH68: =IF(consumption_mix_calcs!AG28<>"",consumption_mix_calcs!AG28,"") -> 0 | AI68: =IF(consumption_mix_calcs!AH28<>"",consumption_mix_calcs!AH28,"") -> 0 | AJ68: =IF(consumption_mix_calcs!AI28<>"",consumption_mix_calcs!AI28,"") -> 0.004702799142 | AK68: =IF(consumption_mix_calcs!AJ28<>"",consumption_mix_calcs!AJ28,"") -> 0 | AL68: =IF(consumption_mix_calcs!AK28<>"",consumption_mix_calcs!AK28,"") -> 0 | AM68: =IF(consumption_mix_calcs!AL28<>"",consumption_mix_calcs!AL28,"") -> 0 | AN68: =IF(consumption_mix_calcs!AM28<>"",consumption_mix_calcs!AM28,"") -> 0 | AO68: =IF(consumption_mix_calcs!AN28<>"",consumption_mix_calcs!AN28,"") -> 1.419214878 | AP68: =IF(consumption_mix_calcs!AO28<>"",consumption_mix_calcs!AO28,"") -> 0 | AQ68: =IF(consumption_mix_calcs!AP28<>"",consumption_mix_calcs!AP28,"") -> 0 | AR68: =IF(consumption_mix_calcs!AQ28<>"",consumption_mix_calcs!AQ28,"") -> 249.8151306 | AS68: =IF(consumption_mix_calcs!AR28<>"",consumption_mix_calcs!AR28,"") -> 0 | AT68: =IF(consumption_mix_calcs!AS28<>"",consumption_mix_calcs!AS28,"") -> 0 | AU68: =IF(consumption_mix_calcs!AT28<>"",consumption_mix_calcs!AT28,"") -> 16.90587918 | AV68: =IF(consumption_mix_calcs!AU28<>"",consumption_mix_calcs!AU28,"") -> 15.3519915 | AW68: =IF(consumption_mix_calcs!AV28<>"",consumption_mix_calcs!AV28,"") -> 0 | AX68: =IF(consumption_mix_calcs!AW28<>"",consumption_mix_calcs!AW28,"") -> 0 | AY68: =IF(consumption_mix_calcs!AX28<>"",consumption_mix_calcs!AX28,"") -> 0 | AZ68: =IF(consumption_mix_calcs!AY28<>"",consumption_mix_calcs!AY28,"") -> 0 | BA68: =IF(consumption_mix_calcs!AZ28<>"",consumption_mix_calcs!AZ28,"") -> 0 | BB68: =IF(consumption_mix_calcs!BA28<>"",consumption_mix_calcs!BA28,"") -> 0 | BC68: =IF(consumption_mix_calcs!BB28<>"",consumption_mix_calcs!BB28,"") -> 0 | BD68: =IF(consumption_mix_calcs!BC28<>"",consumption_mix_calcs!BC28,"") -> 0 | BE68: =IF(consumption_mix_calcs!BD28<>"",consumption_mix_calcs!BD28,"") -> 0 | BF68: =IF(consumption_mix_calcs!BE28<>"",consumption_mix_calcs!BE28,"") -> 0 | BG68: =IF(consumption_mix_calcs!BF28<>"",consumption_mix_calcs!BF28,"") -> 0 | BH68: =IF(consumption_mix_calcs!BG28<>"",consumption_mix_calcs!BG28,"") -> 0 | BI68: =IF(consumption_mix_calcs!BH28<>"",consumption_mix_calcs!BH28,"") -> 0 | BJ68: =IF(consumption_mix_calcs!BI28<>"",consumption_mix_calcs!BI28,"") -> 0 | BK68: =IF(consumption_mix_calcs!BJ28<>"",consumption_mix_calcs!BJ28,"") -> 0 | BL68: =IF(consumption_mix_calcs!BK28<>"",consumption_mix_calcs!BK28,"") -> 0 | BM68: =IF(consumption_mix_calcs!BL28<>"",consumption_mix_calcs!BL28,"") -> 0 | BN68: =IF(consumption_mix_calcs!BM28<>"",consumption_mix_calcs!BM28,"") -> 0 | BO68: =IF(consumption_mix_calcs!BN28<>"",consumption_mix_calcs!BN28,"") -> 0 | BP68: =IF(consumption_mix_calcs!BO28<>"",consumption_mix_calcs!BO28,"") -> 0 | BQ68: =IF(consumption_mix_calcs!BP28<>"",consumption_mix_calcs!BP28,"") -> 682.2034827 | BR68: =IF(consumption_mix_calcs!BQ28<>"",consumption_mix_calcs!BQ28,"") -> 0 | BS68: =IF(consumption_mix_calcs!BR28<>"",consumption_mix_calcs!BR28,"") -> 0 | BT68: =IF(consumption_mix_calcs!BS28<>"",consumption_mix_calcs!BS28,"") -> 0 | BU68: =IF(consumption_mix_calcs!BT28<>"",consumption_mix_calcs!BT28,"") -> 0 | BV68: =IF(consumption_mix_calcs!BU28<>"",consumption_mix_calcs!BU28,"") -> 0 | BW68: =IF(consumption_mix_calcs!BV28<>"",consumption_mix_calcs!BV28,"") -> 0 | BX68: =IF(consumption_mix_calcs!BW28<>"",consumption_mix_calcs!BW28,"") -> 0
A69: air | B69: (E)-8-Dodecen-1-yl acetate | C69: 2.585489799e-13 | D69: =IF(consumption_mix_calcs!C29<>"",consumption_mix_calcs!C29,"") -> 0 | E69: =IF(consumption_mix_calcs!D29<>"",consumption_mix_calcs!D29,"") -> 2.461771736e-15 | F69: =IF(consumption_mix_calcs!E29<>"",consumption_mix_calcs!E29,"") -> 1.173551566e-16 | G69: =IF(consumption_mix_calcs!F29<>"",consumption_mix_calcs!F29,"") -> 2.141851172e-15 | H69: =IF(consumption_mix_calcs!G29<>"",consumption_mix_calcs!G29,"") -> 1.255510281e-16 | I69: =IF(consumption_mix_calcs!H29<>"",consumption_mix_calcs!H29,"") -> 1.732365325e-17 | J69: =IF(consumption_mix_calcs!I29<>"",consumption_mix_calcs!I29,"") -> 5.343306855e-16 | K69: =IF(consumption_mix_calcs!J29<>"",consumption_mix_calcs!J29,"") -> 2.025196679e-15 | L69: =IF(consumption_mix_calcs!K29<>"",consumption_mix_calcs!K29,"") -> 7.144422404e-15 | M69: =IF(consumption_mix_calcs!L29<>"",consumption_mix_calcs!L29,"") -> 0 | N69: =IF(consumption_mix_calcs!M29<>"",consumption_mix_calcs!M29,"") -> 5.085587416e-15 | O69: =IF(consumption_mix_calcs!N29<>"",consumption_mix_calcs!N29,"") -> 3.493709776e-15 | P69: =IF(consumption_mix_calcs!O29<>"",consumption_mix_calcs!O29,"") -> 3.447629256e-15 | Q69: =IF(consumption_mix_calcs!P29<>"",consumption_mix_calcs!P29,"") -> 0 | R69: =IF(consumption_mix_calcs!Q29<>"",consumption_mix_calcs!Q29,"") -> 7.483853684e-16 | S69: =IF(consumption_mix_calcs!R29<>"",consumption_mix_calcs!R29,"") -> 6.090134761e-16 | T69: =IF(consumption_mix_calcs!S29<>"",consumption_mix_calcs!S29,"") -> 1.943018035e-14 | U69: =IF(consumption_mix_calcs!T29<>"",consumption_mix_calcs!T29,"") -> 1.885209074e-15 | V69: =IF(consumption_mix_calcs!U29<>"",consumption_mix_calcs!U29,"") -> 4.809411623e-15 | W69: =IF(consumption_mix_calcs!V29<>"",consumption_mix_calcs!V29,"") -> 2.641510188e-16 | X69: =IF(consumption_mix_calcs!W29<>"",consumption_mix_calcs!W29,"") -> 2.514620352e-16 | Y69: =IF(consumption_mix_calcs!X29<>"",consumption_mix_calcs!X29,"") -> 0 | Z69: =IF(consumption_mix_calcs!Y29<>"",consumption_mix_calcs!Y29,"") -> 0 | AA69: =IF(consumption_mix_calcs!Z29<>"",consumption_mix_calcs!Z29,"") -> 1.075115353e-16 | AB69: =IF(consumption_mix_calcs!AA29<>"",consumption_mix_calcs!AA29,"") -> 7.008498134e-18 | AC69: =IF(consumption_mix_calcs!AB29<>"",consumption_mix_calcs!AB29,"") -> 2.663208427e-18 | AD69: =IF(consumption_mix_calcs!AC29<>"",consumption_mix_calcs!AC29,"") -> 5.402060349e-15 | AE69: =IF(consumption_mix_calcs!AD29<>"",consumption_mix_calcs!AD29,"") -> 1.686138267e-16 | AF69: =IF(consumption_mix_calcs!AE29<>"",consumption_mix_calcs!AE29,"") -> 1.03587273e-16 | AG69: =IF(consumption_mix_calcs!AF29<>"",consumption_mix_calcs!AF29,"") -> 3.068709428e-15 | AH69: =IF(consumption_mix_calcs!AG29<>"",consumption_mix_calcs!AG29,"") -> 4.282901064e-15 | AI69: =IF(consumption_mix_calcs!AH29<>"",consumption_mix_calcs!AH29,"") -> 3.36422189e-15 | AJ69: =IF(consumption_mix_calcs!AI29<>"",consumption_mix_calcs!AI29,"") -> 0 | AK69: =IF(consumption_mix_calcs!AJ29<>"",consumption_mix_calcs!AJ29,"") -> 4.977166611e-14 | AL69: =IF(consumption_mix_calcs!AK29<>"",consumption_mix_calcs!AK29,"") -> 0 | AM69: =IF(consumption_mix_calcs!AL29<>"",consumption_mix_calcs!AL29,"") -> 0 | AN69: =IF(consumption_mix_calcs!AM29<>"",consumption_mix_calcs!AM29,"") -> 1.71582871e-15 | AO69: =IF(consumption_mix_calcs!AN29<>"",consumption_mix_calcs!AN29,"") -> 1.153695383e-16 | AP69: =IF(consumption_mix_calcs!AO29<>"",consumption_mix_calcs!AO29,"") -> 2.18198001e-16 | AQ69: =IF(consumption_mix_calcs!AP29<>"",consumption_mix_calcs!AP29,"") -> 0 | AR69: =IF(consumption_mix_calcs!AQ29<>"",consumption_mix_calcs!AQ29,"") -> 5.378339994e-15 | AS69: =IF(consumption_mix_calcs!AR29<>"",consumption_mix_calcs!AR29,"") -> 1.822015553e-15 | AT69: =IF(consumption_mix_calcs!AS29<>"",consumption_mix_calcs!AS29,"") -> 1.336418913e-15 | AU69: =IF(consumption_mix_calcs!AT29<>"",consumption_mix_calcs!AT29,"") -> 9.568659896e-17 | AV69: =IF(consumption_mix_calcs!AU29<>"",consumption_mix_calcs!AU29,"") -> 5.018257602e-14 | AW69: =IF(consumption_mix_calcs!AV29<>"",consumption_mix_calcs!AV29,"") -> 0 | AX69: =IF(consumption_mix_calcs!AW29<>"",consumption_mix_calcs!AW29,"") -> 5.817667872e-15 | AY69: =IF(consumption_mix_calcs!AX29<>"",consumption_mix_calcs!AX29,"") -> 4.680022499e-16 | AZ69: =IF(consumption_mix_calcs!AY29<>"",consumption_mix_calcs!AY29,"") -> 5.069850556e-16 | BA69: =IF(consumption_mix_calcs!AZ29<>"",consumption_mix_calcs!AZ29,"") -> 1.077070309e-15 | BB69: =IF(consumption_mix_calcs!BA29<>"",consumption_mix_calcs!BA29,"") -> 2.961241817e-15 | BC69: =IF(consumption_mix_calcs!BB29<>"",consumption_mix_calcs!BB29,"") -> 1.844732949e-15 | BD69: =IF(consumption_mix_calcs!BC29<>"",consumption_mix_calcs!BC29,"") -> 0 | BE69: =IF(consumption_mix_calcs!BD29<>"",consumption_mix_calcs!BD29,"") -> 0 | BF69: =IF(consumption_mix_calcs!BE29<>"",consumption_mix_calcs!BE29,"") -> 6.363634376e-16 | BG69: =IF(consumption_mix_calcs!BF29<>"",consumption_mix_calcs!BF29,"") -> 3.249336926e-15 | BH69: =IF(consumption_mix_calcs!BG29<>"",consumption_mix_calcs!BG29,"") -> 0 | BI69: =IF(consumption_mix_calcs!BH29<>"",consumption_mix_calcs!BH29,"") -> 1.023529589e-15 | BJ69: =IF(consumption_mix_calcs!BI29<>"",consumption_mix_calcs!BI29,"") -> 1.667565032e-15 | BK69: =IF(consumption_mix_calcs!BJ29<>"",consumption_mix_calcs!BJ29,"") -> 3.238269321e-15 | BL69: =IF(consumption_mix_calcs!BK29<>"",consumption_mix_calcs!BK29,"") -> 0 | BM69: =IF(consumption_mix_calcs!BL29<>"",consumption_mix_calcs!BL29,"") -> 1.565243384e-14 | BN69: =IF(consumption_mix_calcs!BM29<>"",consumption_mix_calcs!BM29,"") -> 2.087124883e-14 | BO69: =IF(consumption_mix_calcs!BN29<>"",consumption_mix_calcs!BN29,"") -> 1.42621697e-16 | BP69: =IF(consumption_mix_calcs!BO29<>"",consumption_mix_calcs!BO29,"") -> 2.424607021e-16 | BQ69: =IF(consumption_mix_calcs!BP29<>"",consumption_mix_calcs!BP29,"") -> 1.873780381e-15 | BR69: =IF(consumption_mix_calcs!BQ29<>"",consumption_mix_calcs!BQ29,"") -> 9.220482959e-15 | BS69: =IF(consumption_mix_calcs!BR29<>"",consumption_mix_calcs!BR29,"") -> 1.397651793e-15 | BT69: =IF(consumption_mix_calcs!BS29<>"",consumption_mix_calcs!BS29,"") -> 3.734673502e-16 | BU69: =IF(consumption_mix_calcs!BT29<>"",consumption_mix_calcs!BT29,"") -> 1.216295278e-15 | BV69: =IF(consumption_mix_calcs!BU29<>"",consumption_mix_calcs!BU29,"") -> 3.331854127e-15 | BW69: =IF(consumption_mix_calcs!BV29<>"",consumption_mix_calcs!BV29,"") -> 0 | BX69: =IF(consumption_mix_calcs!BW29<>"",consumption_mix_calcs!BW29,"") -> 0
A70: air | B70: (E)-Crotonic acid | C70: 4.769848943e-12 | D70: =IF(consumption_mix_calcs!C30<>"",consumption_mix_calcs!C30,"") -> 0 | E70: =IF(consumption_mix_calcs!D30<>"",consumption_mix_calcs!D30,"") -> 4.541605504e-14 | F70: =IF(consumption_mix_calcs!E30<>"",consumption_mix_calcs!E30,"") -> 2.165033533e-15 | G70: =IF(consumption_mix_calcs!F30<>"",consumption_mix_calcs!F30,"") -> 3.951399944e-14 | H70: =IF(consumption_mix_calcs!G30<>"",consumption_mix_calcs!G30,"") -> 2.316235551e-15 | I70: =IF(consumption_mix_calcs!H30<>"",consumption_mix_calcs!H30,"") -> 3.195964376e-16 | J70: =IF(consumption_mix_calcs!I30<>"",consumption_mix_calcs!I30,"") -> 9.857631183e-15 | K70: =IF(consumption_mix_calcs!J30<>"",consumption_mix_calcs!J30,"") -> 3.736190161e-14 | L70: =IF(consumption_mix_calcs!K30<>"",consumption_mix_calcs!K30,"") -> 1.318042975e-13 | M70: =IF(consumption_mix_calcs!L30<>"",consumption_mix_calcs!L30,"") -> 0 | N70: =IF(consumption_mix_calcs!M30<>"",consumption_mix_calcs!M30,"") -> 9.382159058e-14 | O70: =IF(consumption_mix_calcs!N30<>"",consumption_mix_calcs!N30,"") -> 6.445384151e-14 | P70: =IF(consumption_mix_calcs!O30<>"",consumption_mix_calcs!O30,"") -> 6.360369267e-14 | Q70: =IF(consumption_mix_calcs!P30<>"",consumption_mix_calcs!P30,"") -> 0 | R70: =IF(consumption_mix_calcs!Q30<>"",consumption_mix_calcs!Q30,"") -> 1.380663163e-14 | S70: =IF(consumption_mix_calcs!R30<>"",consumption_mix_calcs!R30,"") -> 1.123539443e-14 | T70: =IF(consumption_mix_calcs!S30<>"",consumption_mix_calcs!S30,"") -> 3.584583919e-13 | U70: =IF(consumption_mix_calcs!T30<>"",consumption_mix_calcs!T30,"") -> 3.477933898e-14 | V70: =IF(consumption_mix_calcs!U30<>"",consumption_mix_calcs!U30,"") -> 8.872670351e-14 | W70: =IF(consumption_mix_calcs!V30<>"",consumption_mix_calcs!V30,"") -> 4.873197617e-15 | X70: =IF(consumption_mix_calcs!W30<>"",consumption_mix_calcs!W30,"") -> 4.639112195e-15 | Y70: =IF(consumption_mix_calcs!X30<>"",consumption_mix_calcs!X30,"") -> 0 | Z70: =IF(consumption_mix_calcs!Y30<>"",consumption_mix_calcs!Y30,"") -> 0 | AA70: =IF(consumption_mix_calcs!Z30<>"",consumption_mix_calcs!Z30,"") -> 1.983432904e-15 | AB70: =IF(consumption_mix_calcs!AA30<>"",consumption_mix_calcs!AA30,"") -> 1.292966914e-16 | AC70: =IF(consumption_mix_calcs!AB30<>"",consumption_mix_calcs!AB30,"") -> 4.913235192e-17 | AD70: =IF(consumption_mix_calcs!AC30<>"",consumption_mix_calcs!AC30,"") -> 9.966017063e-14 | AE70: =IF(consumption_mix_calcs!AD30<>"",consumption_mix_calcs!AD30,"") -> 3.110682133e-15 | AF70: =IF(consumption_mix_calcs!AE30<>"",consumption_mix_calcs!AE30,"") -> 1.911035919e-15 | AG70: =IF(consumption_mix_calcs!AF30<>"",consumption_mix_calcs!AF30,"") -> 5.661316881e-14 | AH70: =IF(consumption_mix_calcs!AG30<>"",consumption_mix_calcs!AG30,"") -> 7.901319038e-14 | AI70: =IF(consumption_mix_calcs!AH30<>"",consumption_mix_calcs!AH30,"") -> 6.206496618e-14 | AJ70: =IF(consumption_mix_calcs!AI30<>"",consumption_mix_calcs!AI30,"") -> 0 | AK70: =IF(consumption_mix_calcs!AJ30<>"",consumption_mix_calcs!AJ30,"") -> 9.182138985e-13 | AL70: =IF(consumption_mix_calcs!AK30<>"",consumption_mix_calcs!AK30,"") -> 0 | AM70: =IF(consumption_mix_calcs!AL30<>"",consumption_mix_calcs!AL30,"") -> 0 | AN70: =IF(consumption_mix_calcs!AM30<>"",consumption_mix_calcs!AM30,"") -> 3.16545439e-14 | AO70: =IF(consumption_mix_calcs!AN30<>"",consumption_mix_calcs!AN30,"") -> 2.128399722e-15 | AP70: =IF(consumption_mix_calcs!AO30<>"",consumption_mix_calcs!AO30,"") -> 4.025438698e-15 | AQ70: =IF(consumption_mix_calcs!AP30<>"",consumption_mix_calcs!AP30,"") -> 0 | AR70: =IF(consumption_mix_calcs!AQ30<>"",consumption_mix_calcs!AQ30,"") -> 9.922259461e-14 | AS70: =IF(consumption_mix_calcs!AR30<>"",consumption_mix_calcs!AR30,"") -> 3.361348493e-14 | AT70: =IF(consumption_mix_calcs!AS30<>"",consumption_mix_calcs!AS30,"") -> 2.465494474e-14 | AU70: =IF(consumption_mix_calcs!AT30<>"",consumption_mix_calcs!AT30,"") -> 1.765279853e-15 | AV70: =IF(consumption_mix_calcs!AU30<>"",consumption_mix_calcs!AU30,"") -> 9.257946678e-13 | AW70: =IF(consumption_mix_calcs!AV30<>"",consumption_mix_calcs!AV30,"") -> 0 | AX70: =IF(consumption_mix_calcs!AW30<>"",consumption_mix_calcs!AW30,"") -> 1.073273629e-13 | AY70: =IF(consumption_mix_calcs!AX30<>"",consumption_mix_calcs!AX30,"") -> 8.633967124e-15 | AZ70: =IF(consumption_mix_calcs!AY30<>"",consumption_mix_calcs!AY30,"") -> 9.353143716e-15 | BA70: =IF(consumption_mix_calcs!AZ30<>"",consumption_mix_calcs!AZ30,"") -> 1.987036793e-14 | BB70: =IF(consumption_mix_calcs!BA30<>"",consumption_mix_calcs!BA30,"") -> 5.463057563e-14 | BC70: =IF(consumption_mix_calcs!BB30<>"",consumption_mix_calcs!BB30,"") -> 3.403260189e-14 | BD70: =IF(consumption_mix_calcs!BC30<>"",consumption_mix_calcs!BC30,"") -> 0 | BE70: =IF(consumption_mix_calcs!BD30<>"",consumption_mix_calcs!BD30,"") -> 0 | BF70: =IF(consumption_mix_calcs!BE30<>"",consumption_mix_calcs!BE30,"") -> 1.173998843e-14 | BG70: =IF(consumption_mix_calcs!BF30<>"",consumption_mix_calcs!BF30,"") -> 5.994549428e-14 | BH70: =IF(consumption_mix_calcs!BG30<>"",consumption_mix_calcs!BG30,"") -> 0 | BI70: =IF(consumption_mix_calcs!BH30<>"",consumption_mix_calcs!BH30,"") -> 1.888260809e-14 | BJ70: =IF(consumption_mix_calcs!BI30<>"",consumption_mix_calcs!BI30,"") -> 3.076412219e-14 | BK70: =IF(consumption_mix_calcs!BJ30<>"",consumption_mix_calcs!BJ30,"") -> 5.974127266e-14 | BL70: =IF(consumption_mix_calcs!BK30<>"",consumption_mix_calcs!BK30,"") -> 0 | BM70: =IF(consumption_mix_calcs!BL30<>"",consumption_mix_calcs!BL30,"") -> 2.887644092e-13 | BN70: =IF(consumption_mix_calcs!BM30<>"",consumption_mix_calcs!BM30,"") -> 3.850438198e-13 | BO70: =IF(consumption_mix_calcs!BN30<>"",consumption_mix_calcs!BN30,"") -> 2.631158725e-15 | BP70: =IF(consumption_mix_calcs!BO30<>"",consumption_mix_calcs!BO30,"") -> 4.473050571e-15 | BQ70: =IF(consumption_mix_calcs!BP30<>"",consumption_mix_calcs!BP30,"") -> 3.456849894e-14 | BR70: =IF(consumption_mix_calcs!BQ30<>"",consumption_mix_calcs!BQ30,"") -> 1.701043279e-13 | BS70: =IF(consumption_mix_calcs!BR30<>"",consumption_mix_calcs!BR30,"") -> 2.578461385e-14 | BT70: =IF(consumption_mix_calcs!BS30<>"",consumption_mix_calcs!BS30,"") -> 6.889934449e-15 | BU70: =IF(consumption_mix_calcs!BT30<>"",consumption_mix_calcs!BT30,"") -> 2.243887471e-14 | BV70: =IF(consumption_mix_calcs!BU30<>"",consumption_mix_calcs!BU30,"") -> 6.146777551e-14 | BW70: =IF(consumption_mix_calcs!BV30<>"",consumption_mix_calcs!BV30,"") -> 0 | BX70: =IF(consumption_mix_calcs!BW30<>"",consumption_mix_calcs!BW30,"") -> 0
A71: air | B71: .lambda.-Cyhalothrin | C71: 1.758977659e-09 | D71: =IF(consumption_mix_calcs!C31<>"",consumption_mix_calcs!C31,"") -> 0 | E71: =IF(consumption_mix_calcs!D31<>"",consumption_mix_calcs!D31,"") -> 1.680291249e-11 | F71: =IF(consumption_mix_calcs!E31<>"",consumption_mix_calcs!E31,"") -> 7.88389436e-13 | G71: =IF(consumption_mix_calcs!F31<>"",consumption_mix_calcs!F31,"") -> 1.459893309e-11 | H71: =IF(consumption_mix_calcs!G31<>"",consumption_mix_calcs!G31,"") -> 8.434491254e-13 | I71: =IF(consumption_mix_calcs!H31<>"",consumption_mix_calcs!H31,"") -> 1.163848571e-13 | J71: =IF(consumption_mix_calcs!I31<>"",consumption_mix_calcs!I31,"") -> 3.589622134e-12 | K71: =IF(consumption_mix_calcs!J31<>"",consumption_mix_calcs!J31,"") -> 1.378616675e-11 | L71: =IF(consumption_mix_calcs!K31<>"",consumption_mix_calcs!K31,"") -> 4.799861266e-11 | M71: =IF(consumption_mix_calcs!L31<>"",consumption_mix_calcs!L31,"") -> 0 | N71: =IF(consumption_mix_calcs!M31<>"",consumption_mix_calcs!M31,"") -> 3.468447108e-11 | O71: =IF(consumption_mix_calcs!N31<>"",consumption_mix_calcs!N31,"") -> 2.368427205e-11 | P71: =IF(consumption_mix_calcs!O31<>"",consumption_mix_calcs!O31,"") -> 2.34658613e-11 | Q71: =IF(consumption_mix_calcs!P31<>"",consumption_mix_calcs!P31,"") -> 0 | R71: =IF(consumption_mix_calcs!Q31<>"",consumption_mix_calcs!Q31,"") -> 5.027636922e-12 | S71: =IF(consumption_mix_calcs!R31<>"",consumption_mix_calcs!R31,"") -> 4.173216035e-12 | T71: =IF(consumption_mix_calcs!S31<>"",consumption_mix_calcs!S31,"") -> 1.318749229e-10 | U71: =IF(consumption_mix_calcs!T31<>"",consumption_mix_calcs!T31,"") -> 1.28242857e-11 | V71: =IF(consumption_mix_calcs!U31<>"",consumption_mix_calcs!U31,"") -> 3.234218049e-11 | W71: =IF(consumption_mix_calcs!V31<>"",consumption_mix_calcs!V31,"") -> 1.79929146e-12 | X71: =IF(consumption_mix_calcs!W31<>"",consumption_mix_calcs!W31,"") -> 1.689316582e-12 | Y71: =IF(consumption_mix_calcs!X31<>"",consumption_mix_calcs!X31,"") -> 0 | Z71: =IF(consumption_mix_calcs!Y31<>"",consumption_mix_calcs!Y31,"") -> 0 | AA71: =IF(consumption_mix_calcs!Z31<>"",consumption_mix_calcs!Z31,"") -> 7.222601983e-13 | AB71: =IF(consumption_mix_calcs!AA31<>"",consumption_mix_calcs!AA31,"") -> 4.708294078e-14 | AC71: =IF(consumption_mix_calcs!AB31<>"",consumption_mix_calcs!AB31,"") -> 1.790951737e-14 | AD71: =IF(consumption_mix_calcs!AC31<>"",consumption_mix_calcs!AC31,"") -> 3.647083225e-11 | AE71: =IF(consumption_mix_calcs!AD31<>"",consumption_mix_calcs!AD31,"") -> 1.132744087e-12 | AF71: =IF(consumption_mix_calcs!AE31<>"",consumption_mix_calcs!AE31,"") -> 6.958970877e-13 | AG71: =IF(consumption_mix_calcs!AF31<>"",consumption_mix_calcs!AF31,"") -> 2.09173941e-11 | AH71: =IF(consumption_mix_calcs!AG31<>"",consumption_mix_calcs!AG31,"") -> 2.92725712e-11 | AI71: =IF(consumption_mix_calcs!AH31<>"",consumption_mix_calcs!AH31,"") -> 2.284644924e-11 | AJ71: =IF(consumption_mix_calcs!AI31<>"",consumption_mix_calcs!AI31,"") -> 0 | AK71: =IF(consumption_mix_calcs!AJ31<>"",consumption_mix_calcs!AJ31,"") -> 3.39348801e-10 | AL71: =IF(consumption_mix_calcs!AK31<>"",consumption_mix_calcs!AK31,"") -> 0 | AM71: =IF(consumption_mix_calcs!AL31<>"",consumption_mix_calcs!AL31,"") -> 0 | AN71: =IF(consumption_mix_calcs!AM31<>"",consumption_mix_calcs!AM31,"") -> 1.159858443e-11 | AO71: =IF(consumption_mix_calcs!AN31<>"",consumption_mix_calcs!AN31,"") -> 7.812373671e-13 | AP71: =IF(consumption_mix_calcs!AO31<>"",consumption_mix_calcs!AO31,"") -> 1.465849511e-12 | AQ71: =IF(consumption_mix_calcs!AP31<>"",consumption_mix_calcs!AP31,"") -> 0 | AR71: =IF(consumption_mix_calcs!AQ31<>"",consumption_mix_calcs!AQ31,"") -> 3.62181601e-11 | AS71: =IF(consumption_mix_calcs!AR31<>"",consumption_mix_calcs!AR31,"") -> 1.247556774e-11 | AT71: =IF(consumption_mix_calcs!AS31<>"",consumption_mix_calcs!AS31,"") -> 9.157703489e-12 | AU71: =IF(consumption_mix_calcs!AT31<>"",consumption_mix_calcs!AT31,"") -> 6.428648439e-13 | AV71: =IF(consumption_mix_calcs!AU31<>"",consumption_mix_calcs!AU31,"") -> 3.418834494e-10 | AW71: =IF(consumption_mix_calcs!AV31<>"",consumption_mix_calcs!AV31,"") -> 0 | AX71: =IF(consumption_mix_calcs!AW31<>"",consumption_mix_calcs!AW31,"") -> 3.977844878e-11 | AY71: =IF(consumption_mix_calcs!AX31<>"",consumption_mix_calcs!AX31,"") -> 3.14402912e-12 | AZ71: =IF(consumption_mix_calcs!AY31<>"",consumption_mix_calcs!AY31,"") -> 3.405914776e-12 | BA71: =IF(consumption_mix_calcs!AZ31<>"",consumption_mix_calcs!AZ31,"") -> 7.319469854e-12 | BB71: =IF(consumption_mix_calcs!BA31<>"",consumption_mix_calcs!BA31,"") -> 2.010503276e-11 | BC71: =IF(consumption_mix_calcs!BB31<>"",consumption_mix_calcs!BB31,"") -> 1.258592225e-11 | BD71: =IF(consumption_mix_calcs!BC31<>"",consumption_mix_calcs!BC31,"") -> 0 | BE71: =IF(consumption_mix_calcs!BD31<>"",consumption_mix_calcs!BD31,"") -> 0 | BF71: =IF(consumption_mix_calcs!BE31<>"",consumption_mix_calcs!BE31,"") -> 4.275075983e-12 | BG71: =IF(consumption_mix_calcs!BF31<>"",consumption_mix_calcs!BF31,"") -> 2.210495043e-11 | BH71: =IF(consumption_mix_calcs!BG31<>"",consumption_mix_calcs!BG31,"") -> 0 | BI71: =IF(consumption_mix_calcs!BH31<>"",consumption_mix_calcs!BH31,"") -> 6.992683938e-12 | BJ71: =IF(consumption_mix_calcs!BI31<>"",consumption_mix_calcs!BI31,"") -> 1.135552117e-11 | BK71: =IF(consumption_mix_calcs!BJ31<>"",consumption_mix_calcs!BJ31,"") -> 2.215437621e-11 | BL71: =IF(consumption_mix_calcs!BK31<>"",consumption_mix_calcs!BK31,"") -> 0 | BM71: =IF(consumption_mix_calcs!BL31<>"",consumption_mix_calcs!BL31,"") -> 1.065060032e-10 | BN71: =IF(consumption_mix_calcs!BM31<>"",consumption_mix_calcs!BM31,"") -> 1.421989157e-10 | BO71: =IF(consumption_mix_calcs!BN31<>"",consumption_mix_calcs!BN31,"") -> 9.767889789e-13 | BP71: =IF(consumption_mix_calcs!BO31<>"",consumption_mix_calcs!BO31,"") -> 1.628845819e-12 | BQ71: =IF(consumption_mix_calcs!BP31<>"",consumption_mix_calcs!BP31,"") -> 1.273865638e-11 | BR71: =IF(consumption_mix_calcs!BQ31<>"",consumption_mix_calcs!BQ31,"") -> 6.28534206e-11 | BS71: =IF(consumption_mix_calcs!BR31<>"",consumption_mix_calcs!BR31,"") -> 9.536152556e-12 | BT71: =IF(consumption_mix_calcs!BS31<>"",consumption_mix_calcs!BS31,"") -> 2.508945683e-12 | BU71: =IF(consumption_mix_calcs!BT31<>"",consumption_mix_calcs!BT31,"") -> 8.234078087e-12 | BV71: =IF(consumption_mix_calcs!BU31<>"",consumption_mix_calcs!BU31,"") -> 2.278914289e-11 | BW71: =IF(consumption_mix_calcs!BV31<>"",consumption_mix_calcs!BV31,"") -> 0 | BX71: =IF(consumption_mix_calcs!BW31<>"",consumption_mix_calcs!BW31,"") -> 0
A72: air | B72: 1,1,1,2-Tetrachloroethane | C72: 6.181563837e-10 | D72: =IF(consumption_mix_calcs!C32<>"",consumption_mix_calcs!C32,"") -> 0 | E72: =IF(consumption_mix_calcs!D32<>"",consumption_mix_calcs!D32,"") -> 6.448045138e-12 | F72: =IF(consumption_mix_calcs!E32<>"",consumption_mix_calcs!E32,"") -> 1.803644245e-13 | G72: =IF(consumption_mix_calcs!F32<>"",consumption_mix_calcs!F32,"") -> 5.374259407e-12 | H72: =IF(consumption_mix_calcs!G32<>"",consumption_mix_calcs!G32,"") -> 1.970101777e-13 | I72: =IF(consumption_mix_calcs!H32<>"",consumption_mix_calcs!H32,"") -> 2.812294734e-14 | J72: =IF(consumption_mix_calcs!I32<>"",consumption_mix_calcs!I32,"") -> 8.38328269e-13 | K72: =IF(consumption_mix_calcs!J32<>"",consumption_mix_calcs!J32,"") -> 5.057341837e-12 | L72: =IF(consumption_mix_calcs!K32<>"",consumption_mix_calcs!K32,"") -> 1.16730035e-11 | M72: =IF(consumption_mix_calcs!L32<>"",consumption_mix_calcs!L32,"") -> 0 | N72: =IF(consumption_mix_calcs!M32<>"",consumption_mix_calcs!M32,"") -> 1.302513184e-11 | O72: =IF(consumption_mix_calcs!N32<>"",consumption_mix_calcs!N32,"") -> 7.473492333e-12 | P72: =IF(consumption_mix_calcs!O32<>"",consumption_mix_calcs!O32,"") -> 8.41807727e-12 | Q72: =IF(consumption_mix_calcs!P32<>"",consumption_mix_calcs!P32,"") -> 0 | R72: =IF(consumption_mix_calcs!Q32<>"",consumption_mix_calcs!Q32,"") -> 1.166977236e-12 | S72: =IF(consumption_mix_calcs!R32<>"",consumption_mix_calcs!R32,"") -> 1.740090918e-12 | T72: =IF(consumption_mix_calcs!S32<>"",consumption_mix_calcs!S32,"") -> 4.354078175e-11 | U72: =IF(consumption_mix_calcs!T32<>"",consumption_mix_calcs!T32,"") -> 4.463728987e-12 | V72: =IF(consumption_mix_calcs!U32<>"",consumption_mix_calcs!U32,"") -> 7.718682096e-12 | W72: =IF(consumption_mix_calcs!V32<>"",consumption_mix_calcs!V32,"") -> 6.49432098e-13 | X72: =IF(consumption_mix_calcs!W32<>"",consumption_mix_calcs!W32,"") -> 3.864747537e-13 | Y72: =IF(consumption_mix_calcs!X32<>"",consumption_mix_calcs!X32,"") -> 0 | Z72: =IF(consumption_mix_calcs!Y32<>"",consumption_mix_calcs!Y32,"") -> 0 | AA72: =IF(consumption_mix_calcs!Z32<>"",consumption_mix_calcs!Z32,"") -> 1.652356552e-13 | AB72: =IF(consumption_mix_calcs!AA32<>"",consumption_mix_calcs!AA32,"") -> 1.077143748e-14 | AC72: =IF(consumption_mix_calcs!AB32<>"",consumption_mix_calcs!AB32,"") -> 1.519481985e-14 | AD72: =IF(consumption_mix_calcs!AC32<>"",consumption_mix_calcs!AC32,"") -> 1.023480385e-11 | AE72: =IF(consumption_mix_calcs!AD32<>"",consumption_mix_calcs!AD32,"") -> 3.016973191e-13 | AF72: =IF(consumption_mix_calcs!AE32<>"",consumption_mix_calcs!AE32,"") -> 1.782626084e-13 | AG72: =IF(consumption_mix_calcs!AF32<>"",consumption_mix_calcs!AF32,"") -> 7.68103639e-12 | AH72: =IF(consumption_mix_calcs!AG32<>"",consumption_mix_calcs!AG32,"") -> 1.149800754e-11 | AI72: =IF(consumption_mix_calcs!AH32<>"",consumption_mix_calcs!AH32,"") -> 7.697462972e-12 | AJ72: =IF(consumption_mix_calcs!AI32<>"",consumption_mix_calcs!AI32,"") -> 0 | AK72: =IF(consumption_mix_calcs!AJ32<>"",consumption_mix_calcs!AJ32,"") -> 1.260064482e-10 | AL72: =IF(consumption_mix_calcs!AK32<>"",consumption_mix_calcs!AK32,"") -> 4.863953875e-14 | AM72: =IF(consumption_mix_calcs!AL32<>"",consumption_mix_calcs!AL32,"") -> 5.045328896e-15 | AN72: =IF(consumption_mix_calcs!AM32<>"",consumption_mix_calcs!AM32,"") -> 3.366382241e-12 | AO72: =IF(consumption_mix_calcs!AN32<>"",consumption_mix_calcs!AN32,"") -> 2.392034995e-13 | AP72: =IF(consumption_mix_calcs!AO32<>"",consumption_mix_calcs!AO32,"") -> 3.353508957e-13 | AQ72: =IF(consumption_mix_calcs!AP32<>"",consumption_mix_calcs!AP32,"") -> 0 | AR72: =IF(consumption_mix_calcs!AQ32<>"",consumption_mix_calcs!AQ32,"") -> 9.197037724e-12 | AS72: =IF(consumption_mix_calcs!AR32<>"",consumption_mix_calcs!AR32,"") -> 5.1240895e-12 | AT72: =IF(consumption_mix_calcs!AS32<>"",consumption_mix_calcs!AS32,"") -> 3.818454769e-12 | AU72: =IF(consumption_mix_calcs!AT32<>"",consumption_mix_calcs!AT32,"") -> 1.804575514e-13 | AV72: =IF(consumption_mix_calcs!AU32<>"",consumption_mix_calcs!AU32,"") -> 1.242987344e-10 | AW72: =IF(consumption_mix_calcs!AV32<>"",consumption_mix_calcs!AV32,"") -> 0 | AX72: =IF(consumption_mix_calcs!AW32<>"",consumption_mix_calcs!AW32,"") -> 1.591819957e-11 | AY72: =IF(consumption_mix_calcs!AX32<>"",consumption_mix_calcs!AX32,"") -> 7.832067209e-13 | AZ72: =IF(consumption_mix_calcs!AY32<>"",consumption_mix_calcs!AY32,"") -> 7.818986637e-13 | BA72: =IF(consumption_mix_calcs!AZ32<>"",consumption_mix_calcs!AZ32,"") -> 2.477699703e-12 | BB72: =IF(consumption_mix_calcs!BA32<>"",consumption_mix_calcs!BA32,"") -> 6.78023366e-12 | BC72: =IF(consumption_mix_calcs!BB32<>"",consumption_mix_calcs!BB32,"") -> 4.755603741e-12 | BD72: =IF(consumption_mix_calcs!BC32<>"",consumption_mix_calcs!BC32,"") -> 0 | BE72: =IF(consumption_mix_calcs!BD32<>"",consumption_mix_calcs!BD32,"") -> 0 | BF72: =IF(consumption_mix_calcs!BE32<>"",consumption_mix_calcs!BE32,"") -> 1.008921103e-12 | BG72: =IF(consumption_mix_calcs!BF32<>"",consumption_mix_calcs!BF32,"") -> 7.736561681e-12 | BH72: =IF(consumption_mix_calcs!BG32<>"",consumption_mix_calcs!BG32,"") -> 0 | BI72: =IF(consumption_mix_calcs!BH32<>"",consumption_mix_calcs!BH32,"") -> 2.718511258e-12 | BJ72: =IF(consumption_mix_calcs!BI32<>"",consumption_mix_calcs!BI32,"") -> 4.064053765e-12 | BK72: =IF(consumption_mix_calcs!BJ32<>"",consumption_mix_calcs!BJ32,"") -> 8.903407494e-12 | BL72: =IF(consumption_mix_calcs!BK32<>"",consumption_mix_calcs!BK32,"") -> 9.650922577e-15 | BM72: =IF(consumption_mix_calcs!BL32<>"",consumption_mix_calcs!BL32,"") -> 3.741591562e-11 | BN72: =IF(consumption_mix_calcs!BM32<>"",consumption_mix_calcs!BM32,"") -> 5.197812755e-11 | BO72: =IF(consumption_mix_calcs!BN32<>"",consumption_mix_calcs!BN32,"") -> 4.024474034e-13 | BP72: =IF(consumption_mix_calcs!BO32<>"",consumption_mix_calcs!BO32,"") -> 3.726405065e-13 | BQ72: =IF(consumption_mix_calcs!BP32<>"",consumption_mix_calcs!BP32,"") -> 4.361028888e-12 | BR72: =IF(consumption_mix_calcs!BQ32<>"",consumption_mix_calcs!BQ32,"") -> 2.312668553e-11 | BS72: =IF(consumption_mix_calcs!BR32<>"",consumption_mix_calcs!BR32,"") -> 3.602851637e-12 | BT72: =IF(consumption_mix_calcs!BS32<>"",consumption_mix_calcs!BS32,"") -> 5.739860576e-13 | BU72: =IF(consumption_mix_calcs!BT32<>"",consumption_mix_calcs!BT32,"") -> 2.488364939e-12 | BV72: =IF(consumption_mix_calcs!BU32<>"",consumption_mix_calcs!BU32,"") -> 9.114726097e-12 | BW72: =IF(consumption_mix_calcs!BV32<>"",consumption_mix_calcs!BV32,"") -> 0 | BX72: =IF(consumption_mix_calcs!BW32<>"",consumption_mix_calcs!BW32,"") -> 0
A73: air | B73: 1,1,1-Trichloroethane | C73: 3.632187002e-06 | D73: =IF(consumption_mix_calcs!C33<>"",consumption_mix_calcs!C33,"") -> 0 | E73: =IF(consumption_mix_calcs!D33<>"",consumption_mix_calcs!D33,"") -> 1.658014266e-08 | F73: =IF(consumption_mix_calcs!E33<>"",consumption_mix_calcs!E33,"") -> 7.72490588e-10 | G73: =IF(consumption_mix_calcs!F33<>"",consumption_mix_calcs!F33,"") -> 1.30025231e-08 | H73: =IF(consumption_mix_calcs!G33<>"",consumption_mix_calcs!G33,"") -> 2.773285014e-08 | I73: =IF(consumption_mix_calcs!H33<>"",consumption_mix_calcs!H33,"") -> 5.426107055e-08 | J73: =IF(consumption_mix_calcs!I33<>"",consumption_mix_calcs!I33,"") -> 3.737335483e-09 | K73: =IF(consumption_mix_calcs!J33<>"",consumption_mix_calcs!J33,"") -> 2.897322033e-08 | L73: =IF(consumption_mix_calcs!K33<>"",consumption_mix_calcs!K33,"") -> 8.71542196e-08 | M73: =IF(consumption_mix_calcs!L33<>"",consumption_mix_calcs!L33,"") -> 3.540783213e-25 | N73: =IF(consumption_mix_calcs!M33<>"",consumption_mix_calcs!M33,"") -> 1.195199723e-07 | O73: =IF(consumption_mix_calcs!N33<>"",consumption_mix_calcs!N33,"") -> 3.115769732e-08 | P73: =IF(consumption_mix_calcs!O33<>"",consumption_mix_calcs!O33,"") -> 1.488783715e-07 | Q73: =IF(consumption_mix_calcs!P33<>"",consumption_mix_calcs!P33,"") -> 0 | R73: =IF(consumption_mix_calcs!Q33<>"",consumption_mix_calcs!Q33,"") -> 5.243214189e-09 | S73: =IF(consumption_mix_calcs!R33<>"",consumption_mix_calcs!R33,"") -> 3.57821239e-09 | T73: =IF(consumption_mix_calcs!S33<>"",consumption_mix_calcs!S33,"") -> 1.220203247e-07 | U73: =IF(consumption_mix_calcs!T33<>"",consumption_mix_calcs!T33,"") -> 1.15709999e-08 | V73: =IF(consumption_mix_calcs!U33<>"",consumption_mix_calcs!U33,"") -> 3.395386068e-08 | W73: =IF(consumption_mix_calcs!V33<>"",consumption_mix_calcs!V33,"") -> 1.614493836e-09 | X73: =IF(consumption_mix_calcs!W33<>"",consumption_mix_calcs!W33,"") -> 1.655249424e-09 | Y73: =IF(consumption_mix_calcs!X33<>"",consumption_mix_calcs!X33,"") -> 0 | Z73: =IF(consumption_mix_calcs!Y33<>"",consumption_mix_calcs!Y33,"") -> 0 | AA73: =IF(consumption_mix_calcs!Z33<>"",consumption_mix_calcs!Z33,"") -> 7.076949281e-10 | AB73: =IF(consumption_mix_calcs!AA33<>"",consumption_mix_calcs!AA33,"") -> 4.625560398e-11 | AC73: =IF(consumption_mix_calcs!AB33<>"",consumption_mix_calcs!AB33,"") -> 1.135475009e-08 | AD73: =IF(consumption_mix_calcs!AC33<>"",consumption_mix_calcs!AC33,"") -> 1.79106784e-07 | AE73: =IF(consumption_mix_calcs!AD33<>"",consumption_mix_calcs!AD33,"") -> 1.122762475e-09 | AF73: =IF(consumption_mix_calcs!AE33<>"",consumption_mix_calcs!AE33,"") -> 8.695060933e-10 | AG73: =IF(consumption_mix_calcs!AF33<>"",consumption_mix_calcs!AF33,"") -> 3.922543205e-08 | AH73: =IF(consumption_mix_calcs!AG33<>"",consumption_mix_calcs!AG33,"") -> 3.106410666e-08 | AI73: =IF(consumption_mix_calcs!AH33<>"",consumption_mix_calcs!AH33,"") -> 2.17756358e-08 | AJ73: =IF(consumption_mix_calcs!AI33<>"",consumption_mix_calcs!AI33,"") -> 0 | AK73: =IF(consumption_mix_calcs!AJ33<>"",consumption_mix_calcs!AJ33,"") -> 4.825312204e-07 | AL73: =IF(consumption_mix_calcs!AK33<>"",consumption_mix_calcs!AK33,"") -> 1.755994629e-11 | AM73: =IF(consumption_mix_calcs!AL33<>"",consumption_mix_calcs!AL33,"") -> 1.907308304e-12 | AN73: =IF(consumption_mix_calcs!AM33<>"",consumption_mix_calcs!AM33,"") -> 1.121890325e-08 | AO73: =IF(consumption_mix_calcs!AN33<>"",consumption_mix_calcs!AN33,"") -> 3.915720004e-09 | AP73: =IF(consumption_mix_calcs!AO33<>"",consumption_mix_calcs!AO33,"") -> 1.436288843e-09 | AQ73: =IF(consumption_mix_calcs!AP33<>"",consumption_mix_calcs!AP33,"") -> 0 | AR73: =IF(consumption_mix_calcs!AQ33<>"",consumption_mix_calcs!AQ33,"") -> 1.211163425e-07 | AS73: =IF(consumption_mix_calcs!AR33<>"",consumption_mix_calcs!AR33,"") -> 1.076161506e-08 | AT73: =IF(consumption_mix_calcs!AS33<>"",consumption_mix_calcs!AS33,"") -> 7.854042335e-09 | AU73: =IF(consumption_mix_calcs!AT33<>"",consumption_mix_calcs!AT33,"") -> 9.958770966e-09 | AV73: =IF(consumption_mix_calcs!AU33<>"",consumption_mix_calcs!AU33,"") -> 7.592104614e-07 | AW73: =IF(consumption_mix_calcs!AV33<>"",consumption_mix_calcs!AV33,"") -> 0 | AX73: =IF(consumption_mix_calcs!AW33<>"",consumption_mix_calcs!AW33,"") -> 3.547186586e-08 | AY73: =IF(consumption_mix_calcs!AX33<>"",consumption_mix_calcs!AX33,"") -> 6.978639272e-08 | AZ73: =IF(consumption_mix_calcs!AY33<>"",consumption_mix_calcs!AY33,"") -> 3.363937839e-09 | BA73: =IF(consumption_mix_calcs!AZ33<>"",consumption_mix_calcs!AZ33,"") -> 6.651885472e-09 | BB73: =IF(consumption_mix_calcs!BA33<>"",consumption_mix_calcs!BA33,"") -> 1.882828488e-08 | BC73: =IF(consumption_mix_calcs!BB33<>"",consumption_mix_calcs!BB33,"") -> 1.134230802e-08 | BD73: =IF(consumption_mix_calcs!BC33<>"",consumption_mix_calcs!BC33,"") -> 0 | BE73: =IF(consumption_mix_calcs!BD33<>"",consumption_mix_calcs!BD33,"") -> 0 | BF73: =IF(consumption_mix_calcs!BE33<>"",consumption_mix_calcs!BE33,"") -> 4.201504713e-09 | BG73: =IF(consumption_mix_calcs!BF33<>"",consumption_mix_calcs!BF33,"") -> 2.023769454e-08 | BH73: =IF(consumption_mix_calcs!BG33<>"",consumption_mix_calcs!BG33,"") -> 0 | BI73: =IF(consumption_mix_calcs!BH33<>"",consumption_mix_calcs!BH33,"") -> 6.126253489e-09 | BJ73: =IF(consumption_mix_calcs!BI33<>"",consumption_mix_calcs!BI33,"") -> 1.80893753e-08 | BK73: =IF(consumption_mix_calcs!BJ33<>"",consumption_mix_calcs!BJ33,"") -> 2.474239935e-07 | BL73: =IF(consumption_mix_calcs!BK33<>"",consumption_mix_calcs!BK33,"") -> 1.921180802e-10 | BM73: =IF(consumption_mix_calcs!BL33<>"",consumption_mix_calcs!BL33,"") -> 4.219940098e-07 | BN73: =IF(consumption_mix_calcs!BM33<>"",consumption_mix_calcs!BM33,"") -> 2.014680985e-07 | BO73: =IF(consumption_mix_calcs!BN33<>"",consumption_mix_calcs!BN33,"") -> 8.409237294e-10 | BP73: =IF(consumption_mix_calcs!BO33<>"",consumption_mix_calcs!BO33,"") -> 1.596206776e-09 | BQ73: =IF(consumption_mix_calcs!BP33<>"",consumption_mix_calcs!BP33,"") -> 1.803298855e-08 | BR73: =IF(consumption_mix_calcs!BQ33<>"",consumption_mix_calcs!BQ33,"") -> 8.756017398e-08 | BS73: =IF(consumption_mix_calcs!BR33<>"",consumption_mix_calcs!BR33,"") -> 2.117745011e-08 | BT73: =IF(consumption_mix_calcs!BS33<>"",consumption_mix_calcs!BS33,"") -> 2.45834969e-09 | BU73: =IF(consumption_mix_calcs!BT33<>"",consumption_mix_calcs!BT33,"") -> 7.674766875e-09 | BV73: =IF(consumption_mix_calcs!BU33<>"",consumption_mix_calcs!BU33,"") -> 2.296641152e-08 | BW73: =IF(consumption_mix_calcs!BV33<>"",consumption_mix_calcs!BV33,"") -> 0 | BX73: =IF(consumption_mix_calcs!BW33<>"",consumption_mix_calcs!BW33,"") -> 0
A74: air | B74: 1,1,2,2-Tetrachloroethane | C74: 3.245904094e-06 | D74: =IF(consumption_mix_calcs!C34<>"",consumption_mix_calcs!C34,"") -> 0 | E74: =IF(consumption_mix_calcs!D34<>"",consumption_mix_calcs!D34,"") -> 1.90562336e-10 | F74: =IF(consumption_mix_calcs!E34<>"",consumption_mix_calcs!E34,"") -> 9.318456219e-12 | G74: =IF(consumption_mix_calcs!F34<>"",consumption_mix_calcs!F34,"") -> 1.661094646e-10 | H74: =IF(consumption_mix_calcs!G34<>"",consumption_mix_calcs!G34,"") -> 1.048993737e-08 | I74: =IF(consumption_mix_calcs!H34<>"",consumption_mix_calcs!H34,"") -> 7.774968932e-08 | J74: =IF(consumption_mix_calcs!I34<>"",consumption_mix_calcs!I34,"") -> 4.254323606e-11 | K74: =IF(consumption_mix_calcs!J34<>"",consumption_mix_calcs!J34,"") -> 1.581103282e-10 | L74: =IF(consumption_mix_calcs!K34<>"",consumption_mix_calcs!K34,"") -> 8.058903679e-08 | M74: =IF(consumption_mix_calcs!L34<>"",consumption_mix_calcs!L34,"") -> 3.20608648e-16 | N74: =IF(consumption_mix_calcs!M34<>"",consumption_mix_calcs!M34,"") -> 2.25357023e-07 | O74: =IF(consumption_mix_calcs!N34<>"",consumption_mix_calcs!N34,"") -> 2.736570581e-10 | P74: =IF(consumption_mix_calcs!O34<>"",consumption_mix_calcs!O34,"") -> 2.912259336e-07 | Q74: =IF(consumption_mix_calcs!P34<>"",consumption_mix_calcs!P34,"") -> 0 | R74: =IF(consumption_mix_calcs!Q34<>"",consumption_mix_calcs!Q34,"") -> 5.951410127e-11 | S74: =IF(consumption_mix_calcs!R34<>"",consumption_mix_calcs!R34,"") -> 4.67832545e-11 | T74: =IF(consumption_mix_calcs!S34<>"",consumption_mix_calcs!S34,"") -> 4.247669948e-08 | U74: =IF(consumption_mix_calcs!T34<>"",consumption_mix_calcs!T34,"") -> 1.466724909e-10 | V74: =IF(consumption_mix_calcs!U34<>"",consumption_mix_calcs!U34,"") -> 3.82660979e-10 | W74: =IF(consumption_mix_calcs!V34<>"",consumption_mix_calcs!V34,"") -> 2.050842128e-11 | X74: =IF(consumption_mix_calcs!W34<>"",consumption_mix_calcs!W34,"") -> 2.000453762e-11 | Y74: =IF(consumption_mix_calcs!X34<>"",consumption_mix_calcs!X34,"") -> 0 | Z74: =IF(consumption_mix_calcs!Y34<>"",consumption_mix_calcs!Y34,"") -> 0 | AA74: =IF(consumption_mix_calcs!Z34<>"",consumption_mix_calcs!Z34,"") -> 8.541302496e-12 | AB74: =IF(consumption_mix_calcs!AA34<>"",consumption_mix_calcs!AA34,"") -> 5.573870074e-13 | AC74: =IF(consumption_mix_calcs!AB34<>"",consumption_mix_calcs!AB34,"") -> 1.627378855e-08 | AD74: =IF(consumption_mix_calcs!AC34<>"",consumption_mix_calcs!AC34,"") -> 1.992575203e-08 | AE74: =IF(consumption_mix_calcs!AD34<>"",consumption_mix_calcs!AD34,"") -> 1.354471698e-11 | AF74: =IF(consumption_mix_calcs!AE34<>"",consumption_mix_calcs!AE34,"") -> 3.224954267e-10 | AG74: =IF(consumption_mix_calcs!AF34<>"",consumption_mix_calcs!AF34,"") -> 9.180033255e-08 | AH74: =IF(consumption_mix_calcs!AG34<>"",consumption_mix_calcs!AG34,"") -> 3.305923201e-10 | AI74: =IF(consumption_mix_calcs!AH34<>"",consumption_mix_calcs!AH34,"") -> 2.627944383e-10 | AJ74: =IF(consumption_mix_calcs!AI34<>"",consumption_mix_calcs!AI34,"") -> 0 | AK74: =IF(consumption_mix_calcs!AJ34<>"",consumption_mix_calcs!AJ34,"") -> 9.909777096e-08 | AL74: =IF(consumption_mix_calcs!AK34<>"",consumption_mix_calcs!AK34,"") -> 1.94735114e-13 | AM74: =IF(consumption_mix_calcs!AL34<>"",consumption_mix_calcs!AL34,"") -> 2.060423797e-14 | AN74: =IF(consumption_mix_calcs!AM34<>"",consumption_mix_calcs!AM34,"") -> 1.350755705e-10 | AO74: =IF(consumption_mix_calcs!AN34<>"",consumption_mix_calcs!AN34,"") -> 4.499592351e-09 | AP74: =IF(consumption_mix_calcs!AO34<>"",consumption_mix_calcs!AO34,"") -> 1.732203179e-11 | AQ74: =IF(consumption_mix_calcs!AP34<>"",consumption_mix_calcs!AP34,"") -> 0 | AR74: =IF(consumption_mix_calcs!AQ34<>"",consumption_mix_calcs!AQ34,"") -> 1.099146014e-07 | AS74: =IF(consumption_mix_calcs!AR34<>"",consumption_mix_calcs!AR34,"") -> 1.402204481e-10 | AT74: =IF(consumption_mix_calcs!AS34<>"",consumption_mix_calcs!AS34,"") -> 1.027127013e-10 | AU74: =IF(consumption_mix_calcs!AT34<>"",consumption_mix_calcs!AT34,"") -> 1.322732886e-08 | AV74: =IF(consumption_mix_calcs!AU34<>"",consumption_mix_calcs!AU34,"") -> 2.136534159e-07 | AW74: =IF(consumption_mix_calcs!AV34<>"",consumption_mix_calcs!AV34,"") -> 0 | AX74: =IF(consumption_mix_calcs!AW34<>"",consumption_mix_calcs!AW34,"") -> 4.491815411e-10 | AY74: =IF(consumption_mix_calcs!AX34<>"",consumption_mix_calcs!AX34,"") -> 1.938956816e-07 | AZ74: =IF(consumption_mix_calcs!AY34<>"",consumption_mix_calcs!AY34,"") -> 4.026481699e-11 | BA74: =IF(consumption_mix_calcs!AZ34<>"",consumption_mix_calcs!AZ34,"") -> 6.60597275e-08 | BB74: =IF(consumption_mix_calcs!BA34<>"",consumption_mix_calcs!BA34,"") -> 2.315317195e-10 | BC74: =IF(consumption_mix_calcs!BB34<>"",consumption_mix_calcs!BB34,"") -> 1.430857133e-10 | BD74: =IF(consumption_mix_calcs!BC34<>"",consumption_mix_calcs!BC34,"") -> 0 | BE74: =IF(consumption_mix_calcs!BD34<>"",consumption_mix_calcs!BD34,"") -> 0 | BF74: =IF(consumption_mix_calcs!BE34<>"",consumption_mix_calcs!BE34,"") -> 5.06965732e-11 | BG74: =IF(consumption_mix_calcs!BF34<>"",consumption_mix_calcs!BF34,"") -> 2.529160921e-10 | BH74: =IF(consumption_mix_calcs!BG34<>"",consumption_mix_calcs!BG34,"") -> 0 | BI74: =IF(consumption_mix_calcs!BH34<>"",consumption_mix_calcs!BH34,"") -> 7.907058329e-11 | BJ74: =IF(consumption_mix_calcs!BI34<>"",consumption_mix_calcs!BI34,"") -> 1.295663511e-10 | BK74: =IF(consumption_mix_calcs!BJ34<>"",consumption_mix_calcs!BJ34,"") -> 6.003047738e-07 | BL74: =IF(consumption_mix_calcs!BK34<>"",consumption_mix_calcs!BK34,"") -> 3.21483807e-14 | BM74: =IF(consumption_mix_calcs!BL34<>"",consumption_mix_calcs!BL34,"") -> 9.151709591e-07 | BN74: =IF(consumption_mix_calcs!BM34<>"",consumption_mix_calcs!BM34,"") -> 1.142782901e-07 | BO74: =IF(consumption_mix_calcs!BN34<>"",consumption_mix_calcs!BN34,"") -> 1.09719337e-11 | BP74: =IF(consumption_mix_calcs!BO34<>"",consumption_mix_calcs!BO34,"") -> 1.926251543e-11 | BQ74: =IF(consumption_mix_calcs!BP34<>"",consumption_mix_calcs!BP34,"") -> 1.459194103e-10 | BR74: =IF(consumption_mix_calcs!BQ34<>"",consumption_mix_calcs!BQ34,"") -> 5.502083162e-08 | BS74: =IF(consumption_mix_calcs!BR34<>"",consumption_mix_calcs!BR34,"") -> 1.082038363e-10 | BT74: =IF(consumption_mix_calcs!BS34<>"",consumption_mix_calcs!BS34,"") -> 2.965795106e-11 | BU74: =IF(consumption_mix_calcs!BT34<>"",consumption_mix_calcs!BT34,"") -> 9.522882999e-11 | BV74: =IF(consumption_mix_calcs!BU34<>"",consumption_mix_calcs!BU34,"") -> 2.568216398e-10 | BW74: =IF(consumption_mix_calcs!BV34<>"",consumption_mix_calcs!BV34,"") -> 0 | BX74: =IF(consumption_mix_calcs!BW34<>"",consumption_mix_calcs!BW34,"") -> 0
A75: air | B75: 1,1,2-Trichloroethane | C75: 5.414214555e-07 | D75: =IF(consumption_mix_calcs!C35<>"",consumption_mix_calcs!C35,"") -> 0 | E75: =IF(consumption_mix_calcs!D35<>"",consumption_mix_calcs!D35,"") -> 2.145457316e-08 | F75: =IF(consumption_mix_calcs!E35<>"",consumption_mix_calcs!E35,"") -> 1.124124062e-11 | G75: =IF(consumption_mix_calcs!F35<>"",consumption_mix_calcs!F35,"") -> 2.150757904e-10 | H75: =IF(consumption_mix_calcs!G35<>"",consumption_mix_calcs!G35,"") -> 1.207759465e-11 | I75: =IF(consumption_mix_calcs!H35<>"",consumption_mix_calcs!H35,"") -> 1.05399898e-08 | J75: =IF(consumption_mix_calcs!I35<>"",consumption_mix_calcs!I35,"") -> 5.138456052e-11 | K75: =IF(consumption_mix_calcs!J35<>"",consumption_mix_calcs!J35,"") -> 2.04389974e-10 | L75: =IF(consumption_mix_calcs!K35<>"",consumption_mix_calcs!K35,"") -> 7.289538431e-10 | M75: =IF(consumption_mix_calcs!L35<>"",consumption_mix_calcs!L35,"") -> 3.540783213e-25 | N75: =IF(consumption_mix_calcs!M35<>"",consumption_mix_calcs!M35,"") -> 2.083557279e-08 | O75: =IF(consumption_mix_calcs!N35<>"",consumption_mix_calcs!N35,"") -> 3.446292672e-10 | P75: =IF(consumption_mix_calcs!O35<>"",consumption_mix_calcs!O35,"") -> 3.458131311e-10 | Q75: =IF(consumption_mix_calcs!P35<>"",consumption_mix_calcs!P35,"") -> 0 | R75: =IF(consumption_mix_calcs!Q35<>"",consumption_mix_calcs!Q35,"") -> 7.188425408e-11 | S75: =IF(consumption_mix_calcs!R35<>"",consumption_mix_calcs!R35,"") -> 6.210000106e-11 | T75: =IF(consumption_mix_calcs!S35<>"",consumption_mix_calcs!S35,"") -> 1.928940593e-09 | U75: =IF(consumption_mix_calcs!T35<>"",consumption_mix_calcs!T35,"") -> 1.879152998e-10 | V75: =IF(consumption_mix_calcs!U35<>"",consumption_mix_calcs!U35,"") -> 1.866149191e-09 | W75: =IF(consumption_mix_calcs!V35<>"",consumption_mix_calcs!V35,"") -> 2.644641697e-11 | X75: =IF(consumption_mix_calcs!W35<>"",consumption_mix_calcs!W35,"") -> 2.408709873e-11 | Y75: =IF(consumption_mix_calcs!X35<>"",consumption_mix_calcs!X35,"") -> 0 | Z75: =IF(consumption_mix_calcs!Y35<>"",consumption_mix_calcs!Y35,"") -> 0 | AA75: =IF(consumption_mix_calcs!Z35<>"",consumption_mix_calcs!Z35,"") -> 1.029833774e-11 | AB75: =IF(consumption_mix_calcs!AA35<>"",consumption_mix_calcs!AA35,"") -> 6.721714352e-13 | AC75: =IF(consumption_mix_calcs!AB35<>"",consumption_mix_calcs!AB35,"") -> 2.206124521e-09 | AD75: =IF(consumption_mix_calcs!AC35<>"",consumption_mix_calcs!AC35,"") -> 5.280622324e-10 | AE75: =IF(consumption_mix_calcs!AD35<>"",consumption_mix_calcs!AD35,"") -> 1.666390492e-11 | AF75: =IF(consumption_mix_calcs!AE35<>"",consumption_mix_calcs!AE35,"") -> 1.014234113e-11 | AG75: =IF(consumption_mix_calcs!AF35<>"",consumption_mix_calcs!AF35,"") -> 1.788560439e-07 | AH75: =IF(consumption_mix_calcs!AG35<>"",consumption_mix_calcs!AG35,"") -> 4.333450983e-10 | AI75: =IF(consumption_mix_calcs!AH35<>"",consumption_mix_calcs!AH35,"") -> 1.870435168e-08 | AJ75: =IF(consumption_mix_calcs!AI35<>"",consumption_mix_calcs!AI35,"") -> 0 | AK75: =IF(consumption_mix_calcs!AJ35<>"",consumption_mix_calcs!AJ35,"") -> 6.008594865e-09 | AL75: =IF(consumption_mix_calcs!AK35<>"",consumption_mix_calcs!AK35,"") -> 5.952108978e-13 | AM75: =IF(consumption_mix_calcs!AL35<>"",consumption_mix_calcs!AL35,"") -> 6.205897129e-14 | AN75: =IF(consumption_mix_calcs!AM35<>"",consumption_mix_calcs!AM35,"") -> 1.67959163e-10 | AO75: =IF(consumption_mix_calcs!AN35<>"",consumption_mix_calcs!AN35,"") -> 6.361330559e-10 | AP75: =IF(consumption_mix_calcs!AO35<>"",consumption_mix_calcs!AO35,"") -> 2.090079638e-11 | AQ75: =IF(consumption_mix_calcs!AP35<>"",consumption_mix_calcs!AP35,"") -> 0 | AR75: =IF(consumption_mix_calcs!AQ35<>"",consumption_mix_calcs!AQ35,"") -> 2.157751528e-07 | AS75: =IF(consumption_mix_calcs!AR35<>"",consumption_mix_calcs!AR35,"") -> 1.855170996e-10 | AT75: =IF(consumption_mix_calcs!AS35<>"",consumption_mix_calcs!AS35,"") -> 1.362932005e-10 | AU75: =IF(consumption_mix_calcs!AT35<>"",consumption_mix_calcs!AT35,"") -> 1.78025131e-09 | AV75: =IF(consumption_mix_calcs!AU35<>"",consumption_mix_calcs!AU35,"") -> 5.032195353e-09 | AW75: =IF(consumption_mix_calcs!AV35<>"",consumption_mix_calcs!AV35,"") -> 0 | AX75: =IF(consumption_mix_calcs!AW35<>"",consumption_mix_calcs!AW35,"") -> 1.459593229e-08 | AY75: =IF(consumption_mix_calcs!AX35<>"",consumption_mix_calcs!AX35,"") -> 4.560585394e-11 | AZ75: =IF(consumption_mix_calcs!AY35<>"",consumption_mix_calcs!AY35,"") -> 4.859441563e-11 | BA75: =IF(consumption_mix_calcs!AZ35<>"",consumption_mix_calcs!AZ35,"") -> 1.943009932e-08 | BB75: =IF(consumption_mix_calcs!BA35<>"",consumption_mix_calcs!BA35,"") -> 2.952153053e-10 | BC75: =IF(consumption_mix_calcs!BB35<>"",consumption_mix_calcs!BB35,"") -> 1.859424497e-10 | BD75: =IF(consumption_mix_calcs!BC35<>"",consumption_mix_calcs!BC35,"") -> 0 | BE75: =IF(consumption_mix_calcs!BD35<>"",consumption_mix_calcs!BD35,"") -> 0 | BF75: =IF(consumption_mix_calcs!BE35<>"",consumption_mix_calcs!BE35,"") -> 6.134978052e-11 | BG75: =IF(consumption_mix_calcs!BF35<>"",consumption_mix_calcs!BF35,"") -> 7.761919863e-09 | BH75: =IF(consumption_mix_calcs!BG35<>"",consumption_mix_calcs!BG35,"") -> 0 | BI75: =IF(consumption_mix_calcs!BH35<>"",consumption_mix_calcs!BH35,"") -> 1.034192411e-10 | BJ75: =IF(consumption_mix_calcs!BI35<>"",consumption_mix_calcs!BI35,"") -> 1.667918082e-10 | BK75: =IF(consumption_mix_calcs!BJ35<>"",consumption_mix_calcs!BJ35,"") -> 3.864376043e-09 | BL75: =IF(consumption_mix_calcs!BK35<>"",consumption_mix_calcs!BK35,"") -> 1.113661304e-13 | BM75: =IF(consumption_mix_calcs!BL35<>"",consumption_mix_calcs!BL35,"") -> 1.562447628e-09 | BN75: =IF(consumption_mix_calcs!BM35<>"",consumption_mix_calcs!BM35,"") -> 2.095568285e-09 | BO75: =IF(consumption_mix_calcs!BN35<>"",consumption_mix_calcs!BN35,"") -> 1.452185298e-11 | BP75: =IF(consumption_mix_calcs!BO35<>"",consumption_mix_calcs!BO35,"") -> 2.322631186e-11 | BQ75: =IF(consumption_mix_calcs!BP35<>"",consumption_mix_calcs!BP35,"") -> 1.864316018e-10 | BR75: =IF(consumption_mix_calcs!BQ35<>"",consumption_mix_calcs!BQ35,"") -> 9.254076657e-10 | BS75: =IF(consumption_mix_calcs!BR35<>"",consumption_mix_calcs!BR35,"") -> 1.407976901e-10 | BT75: =IF(consumption_mix_calcs!BS35<>"",consumption_mix_calcs!BS35,"") -> 3.577376972e-11 | BU75: =IF(consumption_mix_calcs!BT35<>"",consumption_mix_calcs!BT35,"") -> 1.194043385e-10 | BV75: =IF(consumption_mix_calcs!BU35<>"",consumption_mix_calcs!BU35,"") -> 3.379355473e-10 | BW75: =IF(consumption_mix_calcs!BV35<>"",consumption_mix_calcs!BV35,"") -> 0 | BX75: =IF(consumption_mix_calcs!BW35<>"",consumption_mix_calcs!BW35,"") -> 0
A76: air | B76: 1,1-Dichloroethane | C76: 4.034119934e-06 | D76: =IF(consumption_mix_calcs!C36<>"",consumption_mix_calcs!C36,"") -> 0 | E76: =IF(consumption_mix_calcs!D36<>"",consumption_mix_calcs!D36,"") -> 4.367308119e-15 | F76: =IF(consumption_mix_calcs!E36<>"",consumption_mix_calcs!E36,"") -> 0 | G76: =IF(consumption_mix_calcs!F36<>"",consumption_mix_calcs!F36,"") -> 8.260665474e-15 | H76: =IF(consumption_mix_calcs!G36<>"",consumption_mix_calcs!G36,"") -> 1.308237843e-08 | I76: =IF(consumption_mix_calcs!H36<>"",consumption_mix_calcs!H36,"") -> 1.00943479e-07 | J76: =IF(consumption_mix_calcs!I36<>"",consumption_mix_calcs!I36,"") -> 2.591608072e-15 | K76: =IF(consumption_mix_calcs!J36<>"",consumption_mix_calcs!J36,"") -> 4.112592812e-10 | L76: =IF(consumption_mix_calcs!K36<>"",consumption_mix_calcs!K36,"") -> 9.994192187e-08 | M76: =IF(consumption_mix_calcs!L36<>"",consumption_mix_calcs!L36,"") -> 3.540783213e-25 | N76: =IF(consumption_mix_calcs!M36<>"",consumption_mix_calcs!M36,"") -> 3.273905366e-07 | O76: =IF(consumption_mix_calcs!N36<>"",consumption_mix_calcs!N36,"") -> 5.252104868e-14 | P76: =IF(consumption_mix_calcs!O36<>"",consumption_mix_calcs!O36,"") -> 3.743885871e-07 | Q76: =IF(consumption_mix_calcs!P36<>"",consumption_mix_calcs!P36,"") -> 0 | R76: =IF(consumption_mix_calcs!Q36<>"",consumption_mix_calcs!Q36,"") -> 3.993486199e-17 | S76: =IF(consumption_mix_calcs!R36<>"",consumption_mix_calcs!R36,"") -> 2.358411472e-25 | T76: =IF(consumption_mix_calcs!S36<>"",consumption_mix_calcs!S36,"") -> 9.215313012e-08 | U76: =IF(consumption_mix_calcs!T36<>"",consumption_mix_calcs!T36,"") -> 1.91180329e-15 | V76: =IF(consumption_mix_calcs!U36<>"",consumption_mix_calcs!U36,"") -> 2.622932721e-13 | W76: =IF(consumption_mix_calcs!V36<>"",consumption_mix_calcs!V36,"") -> 2.075820468e-16 | X76: =IF(consumption_mix_calcs!W36<>"",consumption_mix_calcs!W36,"") -> 0 | Y76: =IF(consumption_mix_calcs!X36<>"",consumption_mix_calcs!X36,"") -> 0 | Z76: =IF(consumption_mix_calcs!Y36<>"",consumption_mix_calcs!Y36,"") -> 0 | AA76: =IF(consumption_mix_calcs!Z36<>"",consumption_mix_calcs!Z36,"") -> 0 | AB76: =IF(consumption_mix_calcs!AA36<>"",consumption_mix_calcs!AA36,"") -> 5.346079481e-16 | AC76: =IF(consumption_mix_calcs!AB36<>"",consumption_mix_calcs!AB36,"") -> 2.112856818e-08 | AD76: =IF(consumption_mix_calcs!AC36<>"",consumption_mix_calcs!AC36,"") -> 3.892347367e-08 | AE76: =IF(consumption_mix_calcs!AD36<>"",consumption_mix_calcs!AD36,"") -> 2.013910484e-17 | AF76: =IF(consumption_mix_calcs!AE36<>"",consumption_mix_calcs!AE36,"") -> 7.826860519e-17 | AG76: =IF(consumption_mix_calcs!AF36<>"",consumption_mix_calcs!AF36,"") -> 4.444310574e-08 | AH76: =IF(consumption_mix_calcs!AG36<>"",consumption_mix_calcs!AG36,"") -> 3.223009071e-14 | AI76: =IF(consumption_mix_calcs!AH36<>"",consumption_mix_calcs!AH36,"") -> 1.490363776e-14 | AJ76: =IF(consumption_mix_calcs!AI36<>"",consumption_mix_calcs!AI36,"") -> 0 | AK76: =IF(consumption_mix_calcs!AJ36<>"",consumption_mix_calcs!AJ36,"") -> 1.190248625e-07 | AL76: =IF(consumption_mix_calcs!AK36<>"",consumption_mix_calcs!AK36,"") -> 0 | AM76: =IF(consumption_mix_calcs!AL36<>"",consumption_mix_calcs!AL36,"") -> 0 | AN76: =IF(consumption_mix_calcs!AM36<>"",consumption_mix_calcs!AM36,"") -> 6.847128725e-15 | AO76: =IF(consumption_mix_calcs!AN36<>"",consumption_mix_calcs!AN36,"") -> 5.827472295e-09 | AP76: =IF(consumption_mix_calcs!AO36<>"",consumption_mix_calcs!AO36,"") -> 0 | AQ76: =IF(consumption_mix_calcs!AP36<>"",consumption_mix_calcs!AP36,"") -> 0 | AR76: =IF(consumption_mix_calcs!AQ36<>"",consumption_mix_calcs!AQ36,"") -> 2.950479817e-07 | AS76: =IF(consumption_mix_calcs!AR36<>"",consumption_mix_calcs!AR36,"") -> 9.205993951e-15 | AT76: =IF(consumption_mix_calcs!AS36<>"",consumption_mix_calcs!AS36,"") -> 1.146683978e-14 | AU76: =IF(consumption_mix_calcs!AT36<>"",consumption_mix_calcs!AT36,"") -> 1.69478428e-08 | AV76: =IF(consumption_mix_calcs!AU36<>"",consumption_mix_calcs!AU36,"") -> 9.040833744e-08 | AW76: =IF(consumption_mix_calcs!AV36<>"",consumption_mix_calcs!AV36,"") -> 0 | AX76: =IF(consumption_mix_calcs!AW36<>"",consumption_mix_calcs!AW36,"") -> 2.803467381e-14 | AY76: =IF(consumption_mix_calcs!AX36<>"",consumption_mix_calcs!AX36,"") -> 2.419971564e-07 | AZ76: =IF(consumption_mix_calcs!AY36<>"",consumption_mix_calcs!AY36,"") -> 6.692104362e-25 | BA76: =IF(consumption_mix_calcs!AZ36<>"",consumption_mix_calcs!AZ36,"") -> 1.323487756e-14 | BB76: =IF(consumption_mix_calcs!BA36<>"",consumption_mix_calcs!BA36,"") -> 2.34723253e-15 | BC76: =IF(consumption_mix_calcs!BB36<>"",consumption_mix_calcs!BB36,"") -> 3.525676618e-14 | BD76: =IF(consumption_mix_calcs!BC36<>"",consumption_mix_calcs!BC36,"") -> 0 | BE76: =IF(consumption_mix_calcs!BD36<>"",consumption_mix_calcs!BD36,"") -> 0 | BF76: =IF(consumption_mix_calcs!BE36<>"",consumption_mix_calcs!BE36,"") -> 9.365457849e-15 | BG76: =IF(consumption_mix_calcs!BF36<>"",consumption_mix_calcs!BF36,"") -> 2.651428895e-14 | BH76: =IF(consumption_mix_calcs!BG36<>"",consumption_mix_calcs!BG36,"") -> 0 | BI76: =IF(consumption_mix_calcs!BH36<>"",consumption_mix_calcs!BH36,"") -> 1.002713307e-14 | BJ76: =IF(consumption_mix_calcs!BI36<>"",consumption_mix_calcs!BI36,"") -> 2.057176732e-14 | BK76: =IF(consumption_mix_calcs!BJ36<>"",consumption_mix_calcs!BJ36,"") -> 7.642497871e-07 | BL76: =IF(consumption_mix_calcs!BK36<>"",consumption_mix_calcs!BK36,"") -> 0 | BM76: =IF(consumption_mix_calcs!BL36<>"",consumption_mix_calcs!BL36,"") -> 1.141594713e-06 | BN76: =IF(consumption_mix_calcs!BM36<>"",consumption_mix_calcs!BM36,"") -> 1.406195928e-07 | BO76: =IF(consumption_mix_calcs!BN36<>"",consumption_mix_calcs!BN36,"") -> 1.442441237e-15 | BP76: =IF(consumption_mix_calcs!BO36<>"",consumption_mix_calcs!BO36,"") -> 9.131855555e-16 | BQ76: =IF(consumption_mix_calcs!BP36<>"",consumption_mix_calcs!BP36,"") -> 1.562094097e-16 | BR76: =IF(consumption_mix_calcs!BQ36<>"",consumption_mix_calcs!BQ36,"") -> 1.055951682e-07 | BS76: =IF(consumption_mix_calcs!BR36<>"",consumption_mix_calcs!BR36,"") -> 9.566193789e-15 | BT76: =IF(consumption_mix_calcs!BS36<>"",consumption_mix_calcs!BS36,"") -> 0 | BU76: =IF(consumption_mix_calcs!BT36<>"",consumption_mix_calcs!BT36,"") -> 6.900647162e-17 | BV76: =IF(consumption_mix_calcs!BU36<>"",consumption_mix_calcs!BU36,"") -> 1.465443753e-14 | BW76: =IF(consumption_mix_calcs!BV36<>"",consumption_mix_calcs!BV36,"") -> 0 | BX76: =IF(consumption_mix_calcs!BW36<>"",consumption_mix_calcs!BW36,"") -> 0
A77: air | B77: 1,1-Dichloroethylene | C77: 3.649976028e-07 | D77: =IF(consumption_mix_calcs!C37<>"",consumption_mix_calcs!C37,"") -> 0 | E77: =IF(consumption_mix_calcs!D37<>"",consumption_mix_calcs!D37,"") -> 4.397351149e-08 | F77: =IF(consumption_mix_calcs!E37<>"",consumption_mix_calcs!E37,"") -> 7.222268313e-12 | G77: =IF(consumption_mix_calcs!F37<>"",consumption_mix_calcs!F37,"") -> 1.761328432e-10 | H77: =IF(consumption_mix_calcs!G37<>"",consumption_mix_calcs!G37,"") -> 1.098372823e-09 | I77: =IF(consumption_mix_calcs!H37<>"",consumption_mix_calcs!H37,"") -> 7.492181391e-09 | J77: =IF(consumption_mix_calcs!I37<>"",consumption_mix_calcs!I37,"") -> 3.326840299e-11 | K77: =IF(consumption_mix_calcs!J37<>"",consumption_mix_calcs!J37,"") -> 1.661559913e-10 | L77: =IF(consumption_mix_calcs!K37<>"",consumption_mix_calcs!K37,"") -> 8.981310389e-09 | M77: =IF(consumption_mix_calcs!L37<>"",consumption_mix_calcs!L37,"") -> 0 | N77: =IF(consumption_mix_calcs!M37<>"",consumption_mix_calcs!M37,"") -> 2.527034456e-08 | O77: =IF(consumption_mix_calcs!N37<>"",consumption_mix_calcs!N37,"") -> 2.597768603e-10 | P77: =IF(consumption_mix_calcs!O37<>"",consumption_mix_calcs!O37,"") -> 3.108861155e-08 | Q77: =IF(consumption_mix_calcs!P37<>"",consumption_mix_calcs!P37,"") -> 0 | R77: =IF(consumption_mix_calcs!Q37<>"",consumption_mix_calcs!Q37,"") -> 4.643684706e-11 | S77: =IF(consumption_mix_calcs!R37<>"",consumption_mix_calcs!R37,"") -> 5.45861913e-11 | T77: =IF(consumption_mix_calcs!S37<>"",consumption_mix_calcs!S37,"") -> 1.487204055e-09 | U77: =IF(consumption_mix_calcs!T37<>"",consumption_mix_calcs!T37,"") -> 1.493417193e-10 | V77: =IF(consumption_mix_calcs!U37<>"",consumption_mix_calcs!U37,"") -> 3.029454315e-10 | W77: =IF(consumption_mix_calcs!V37<>"",consumption_mix_calcs!V37,"") -> 2.143632315e-11 | X77: =IF(consumption_mix_calcs!W37<>"",consumption_mix_calcs!W37,"") -> 1.54754707e-11 | Y77: =IF(consumption_mix_calcs!X37<>"",consumption_mix_calcs!X37,"") -> 0 | Z77: =IF(consumption_mix_calcs!Y37<>"",consumption_mix_calcs!Y37,"") -> 0 | AA77: =IF(consumption_mix_calcs!Z37<>"",consumption_mix_calcs!Z37,"") -> 6.6164724e-12 | AB77: =IF(consumption_mix_calcs!AA37<>"",consumption_mix_calcs!AA37,"") -> 4.313168287e-13 | AC77: =IF(consumption_mix_calcs!AB37<>"",consumption_mix_calcs!AB37,"") -> 1.568374646e-09 | AD77: =IF(consumption_mix_calcs!AC37<>"",consumption_mix_calcs!AC37,"") -> 2.60263373e-09 | AE77: =IF(consumption_mix_calcs!AD37<>"",consumption_mix_calcs!AD37,"") -> 1.131949688e-11 | AF77: =IF(consumption_mix_calcs!AE37<>"",consumption_mix_calcs!AE37,"") -> 6.801932222e-12 | AG77: =IF(consumption_mix_calcs!AF37<>"",consumption_mix_calcs!AF37,"") -> 2.519271671e-10 | AH77: =IF(consumption_mix_calcs!AG37<>"",consumption_mix_calcs!AG37,"") -> 3.681567541e-10 | AI77: =IF(consumption_mix_calcs!AH37<>"",consumption_mix_calcs!AH37,"") -> 2.609230138e-10 | AJ77: =IF(consumption_mix_calcs!AI37<>"",consumption_mix_calcs!AI37,"") -> 0 | AK77: =IF(consumption_mix_calcs!AJ37<>"",consumption_mix_calcs!AJ37,"") -> 4.441723269e-09 | AL77: =IF(consumption_mix_calcs!AK37<>"",consumption_mix_calcs!AK37,"") -> 1.077507084e-12 | AM77: =IF(consumption_mix_calcs!AL37<>"",consumption_mix_calcs!AL37,"") -> 1.117686473e-13 | AN77: =IF(consumption_mix_calcs!AM37<>"",consumption_mix_calcs!AM37,"") -> 1.211406899e-10 | AO77: =IF(consumption_mix_calcs!AN37<>"",consumption_mix_calcs!AN37,"") -> 4.52510809e-10 | AP77: =IF(consumption_mix_calcs!AO37<>"",consumption_mix_calcs!AO37,"") -> 1.342833629e-11 | AQ77: =IF(consumption_mix_calcs!AP37<>"",consumption_mix_calcs!AP37,"") -> 0 | AR77: =IF(consumption_mix_calcs!AQ37<>"",consumption_mix_calcs!AQ37,"") -> 2.787394655e-08 | AS77: =IF(consumption_mix_calcs!AR37<>"",consumption_mix_calcs!AR37,"") -> 1.615787757e-10 | AT77: =IF(consumption_mix_calcs!AS37<>"",consumption_mix_calcs!AS37,"") -> 1.197839149e-10 | AU77: =IF(consumption_mix_calcs!AT37<>"",consumption_mix_calcs!AT37,"") -> 1.26434457e-09 | AV77: =IF(consumption_mix_calcs!AU37<>"",consumption_mix_calcs!AU37,"") -> 2.127679933e-08 | AW77: =IF(consumption_mix_calcs!AV37<>"",consumption_mix_calcs!AV37,"") -> 0 | AX77: =IF(consumption_mix_calcs!AW37<>"",consumption_mix_calcs!AW37,"") -> 5.066087325e-10 | AY77: =IF(consumption_mix_calcs!AX37<>"",consumption_mix_calcs!AX37,"") -> 2.020325777e-08 | AZ77: =IF(consumption_mix_calcs!AY37<>"",consumption_mix_calcs!AY37,"") -> 3.126152698e-11 | BA77: =IF(consumption_mix_calcs!AZ37<>"",consumption_mix_calcs!AZ37,"") -> 8.377952445e-11 | BB77: =IF(consumption_mix_calcs!BA37<>"",consumption_mix_calcs!BA37,"") -> 2.298061657e-10 | BC77: =IF(consumption_mix_calcs!BB37<>"",consumption_mix_calcs!BB37,"") -> 1.544102961e-10 | BD77: =IF(consumption_mix_calcs!BC37<>"",consumption_mix_calcs!BC37,"") -> 0 | BE77: =IF(consumption_mix_calcs!BD37<>"",consumption_mix_calcs!BD37,"") -> 0 | BF77: =IF(consumption_mix_calcs!BE37<>"",consumption_mix_calcs!BE37,"") -> 3.984730311e-11 | BG77: =IF(consumption_mix_calcs!BF37<>"",consumption_mix_calcs!BF37,"") -> 2.583532316e-10 | BH77: =IF(consumption_mix_calcs!BG37<>"",consumption_mix_calcs!BG37,"") -> 0 | BI77: =IF(consumption_mix_calcs!BH37<>"",consumption_mix_calcs!BH37,"") -> 8.735815097e-11 | BJ77: =IF(consumption_mix_calcs!BI37<>"",consumption_mix_calcs!BI37,"") -> 1.34560922e-10 | BK77: =IF(consumption_mix_calcs!BJ37<>"",consumption_mix_calcs!BJ37,"") -> 4.711426059e-08 | BL77: =IF(consumption_mix_calcs!BK37<>"",consumption_mix_calcs!BK37,"") -> 2.187263162e-13 | BM77: =IF(consumption_mix_calcs!BL37<>"",consumption_mix_calcs!BL37,"") -> 9.419728755e-08 | BN77: =IF(consumption_mix_calcs!BM37<>"",consumption_mix_calcs!BM37,"") -> 1.342714704e-08 | BO77: =IF(consumption_mix_calcs!BN37<>"",consumption_mix_calcs!BN37,"") -> 1.267570644e-11 | BP77: =IF(consumption_mix_calcs!BO37<>"",consumption_mix_calcs!BO37,"") -> 1.492151087e-11 | BQ77: =IF(consumption_mix_calcs!BP37<>"",consumption_mix_calcs!BP37,"") -> 1.468292298e-10 | BR77: =IF(consumption_mix_calcs!BQ37<>"",consumption_mix_calcs!BQ37,"") -> 6.409061806e-09 | BS77: =IF(consumption_mix_calcs!BR37<>"",consumption_mix_calcs!BR37,"") -> 1.169803828e-10 | BT77: =IF(consumption_mix_calcs!BS37<>"",consumption_mix_calcs!BS37,"") -> 2.298391895e-11 | BU77: =IF(consumption_mix_calcs!BT37<>"",consumption_mix_calcs!BT37,"") -> 8.802244862e-11 | BV77: =IF(consumption_mix_calcs!BU37<>"",consumption_mix_calcs!BU37,"") -> 2.900255674e-10 | BW77: =IF(consumption_mix_calcs!BV37<>"",consumption_mix_calcs!BV37,"") -> 0 | BX77: =IF(consumption_mix_calcs!BW37<>"",consumption_mix_calcs!BW37,"") -> 0
A78: air | B78: 1,1-Dimethylhydrazine | C78: 2.283869155e-11 | D78: =IF(consumption_mix_calcs!C38<>"",consumption_mix_calcs!C38,"") -> 0 | E78: =IF(consumption_mix_calcs!D38<>"",consumption_mix_calcs!D38,"") -> 4.922061822e-14 | F78: =IF(consumption_mix_calcs!E38<>"",consumption_mix_calcs!E38,"") -> 2.694766339e-15 | G78: =IF(consumption_mix_calcs!F38<>"",consumption_mix_calcs!F38,"") -> 4.338577482e-14 | H78: =IF(consumption_mix_calcs!G38<>"",consumption_mix_calcs!G38,"") -> 2.882963937e-15 | I78: =IF(consumption_mix_calcs!H38<>"",consumption_mix_calcs!H38,"") -> 3.976582604e-16 | J78: =IF(consumption_mix_calcs!I38<>"",consumption_mix_calcs!I38,"") -> 1.226956178e-14 | K78: =IF(consumption_mix_calcs!J38<>"",consumption_mix_calcs!J38,"") -> 4.150979093e-14 | L78: =IF(consumption_mix_calcs!K38<>"",consumption_mix_calcs!K38,"") -> 1.639837327e-13 | M78: =IF(consumption_mix_calcs!L38<>"",consumption_mix_calcs!L38,"") -> 0 | N78: =IF(consumption_mix_calcs!M38<>"",consumption_mix_calcs!M38,"") -> 1.761279442e-11 | O78: =IF(consumption_mix_calcs!N38<>"",consumption_mix_calcs!N38,"") -> 7.432895849e-14 | P78: =IF(consumption_mix_calcs!O38<>"",consumption_mix_calcs!O38,"") -> 7.075496972e-14 | Q78: =IF(consumption_mix_calcs!P38<>"",consumption_mix_calcs!P38,"") -> 0 | R78: =IF(consumption_mix_calcs!Q38<>"",consumption_mix_calcs!Q38,"") -> 1.718478981e-14 | S78: =IF(consumption_mix_calcs!R38<>"",consumption_mix_calcs!R38,"") -> 1.172473871e-14 | T78: =IF(consumption_mix_calcs!S38<>"",consumption_mix_calcs!S38,"") -> 4.090888979e-13 | U78: =IF(consumption_mix_calcs!T38<>"",consumption_mix_calcs!T38,"") -> 3.888725568e-14 | V78: =IF(consumption_mix_calcs!U38<>"",consumption_mix_calcs!U38,"") -> 1.095347779e-13 | W78: =IF(consumption_mix_calcs!V38<>"",consumption_mix_calcs!V38,"") -> 5.383021047e-15 | X78: =IF(consumption_mix_calcs!W38<>"",consumption_mix_calcs!W38,"") -> 5.774193885e-15 | Y78: =IF(consumption_mix_calcs!X38<>"",consumption_mix_calcs!X38,"") -> 0 | Z78: =IF(consumption_mix_calcs!Y38<>"",consumption_mix_calcs!Y38,"") -> 0 | AA78: =IF(consumption_mix_calcs!Z38<>"",consumption_mix_calcs!Z38,"") -> 2.468732306e-15 | AB78: =IF(consumption_mix_calcs!AA38<>"",consumption_mix_calcs!AA38,"") -> 1.609325521e-16 | AC78: =IF(consumption_mix_calcs!AB38<>"",consumption_mix_calcs!AB38,"") -> 6.065324046e-17 | AD78: =IF(consumption_mix_calcs!AC38<>"",consumption_mix_calcs!AC38,"") -> 1.190794782e-13 | AE78: =IF(consumption_mix_calcs!AD38<>"",consumption_mix_calcs!AD38,"") -> 3.87179292e-15 | AF78: =IF(consumption_mix_calcs!AE38<>"",consumption_mix_calcs!AE38,"") -> 2.37862148e-15 | AG78: =IF(consumption_mix_calcs!AF38<>"",consumption_mix_calcs!AF38,"") -> 6.213384179e-14 | AH78: =IF(consumption_mix_calcs!AG38<>"",consumption_mix_calcs!AG38,"") -> 8.454278602e-14 | AI78: =IF(consumption_mix_calcs!AH38<>"",consumption_mix_calcs!AH38,"") -> 7.047037672e-14 | AJ78: =IF(consumption_mix_calcs!AI38<>"",consumption_mix_calcs!AI38,"") -> 0 | AK78: =IF(consumption_mix_calcs!AJ38<>"",consumption_mix_calcs!AJ38,"") -> 1.005332097e-12 | AL78: =IF(consumption_mix_calcs!AK38<>"",consumption_mix_calcs!AK38,"") -> 0 | AM78: =IF(consumption_mix_calcs!AL38<>"",consumption_mix_calcs!AL38,"") -> 0 | AN78: =IF(consumption_mix_calcs!AM38<>"",consumption_mix_calcs!AM38,"") -> 3.742128039e-14 | AO78: =IF(consumption_mix_calcs!AN38<>"",consumption_mix_calcs!AN38,"") -> 2.478407846e-15 | AP78: =IF(consumption_mix_calcs!AO38<>"",consumption_mix_calcs!AO38,"") -> 5.010368911e-15 | AQ78: =IF(consumption_mix_calcs!AP38<>"",consumption_mix_calcs!AP38,"") -> 0 | AR78: =IF(consumption_mix_calcs!AQ38<>"",consumption_mix_calcs!AQ38,"") -> 1.211103376e-13 | AS78: =IF(consumption_mix_calcs!AR38<>"",consumption_mix_calcs!AR38,"") -> 3.534374891e-14 | AT78: =IF(consumption_mix_calcs!AS38<>"",consumption_mix_calcs!AS38,"") -> 2.572876163e-14 | AU78: =IF(consumption_mix_calcs!AT38<>"",consumption_mix_calcs!AT38,"") -> 2.195979273e-15 | AV78: =IF(consumption_mix_calcs!AU38<>"",consumption_mix_calcs!AU38,"") -> 1.021000494e-12 | AW78: =IF(consumption_mix_calcs!AV38<>"",consumption_mix_calcs!AV38,"") -> 0 | AX78: =IF(consumption_mix_calcs!AW38<>"",consumption_mix_calcs!AW38,"") -> 1.143934315e-13 | AY78: =IF(consumption_mix_calcs!AX38<>"",consumption_mix_calcs!AX38,"") -> 1.07464959e-14 | AZ78: =IF(consumption_mix_calcs!AY38<>"",consumption_mix_calcs!AY38,"") -> 1.164163809e-14 | BA78: =IF(consumption_mix_calcs!AZ38<>"",consumption_mix_calcs!AZ38,"") -> 2.242120839e-14 | BB78: =IF(consumption_mix_calcs!BA38<>"",consumption_mix_calcs!BA38,"") -> 6.216098085e-14 | BC78: =IF(consumption_mix_calcs!BB38<>"",consumption_mix_calcs!BB38,"") -> 3.703175176e-14 | BD78: =IF(consumption_mix_calcs!BC38<>"",consumption_mix_calcs!BC38,"") -> 0 | BE78: =IF(consumption_mix_calcs!BD38<>"",consumption_mix_calcs!BD38,"") -> 0 | BF78: =IF(consumption_mix_calcs!BE38<>"",consumption_mix_calcs!BE38,"") -> 1.46124876e-14 | BG78: =IF(consumption_mix_calcs!BF38<>"",consumption_mix_calcs!BF38,"") -> 6.699618897e-14 | BH78: =IF(consumption_mix_calcs!BG38<>"",consumption_mix_calcs!BG38,"") -> 0 | BI78: =IF(consumption_mix_calcs!BH38<>"",consumption_mix_calcs!BH38,"") -> 2.028378048e-14 | BJ78: =IF(consumption_mix_calcs!BI38<>"",consumption_mix_calcs!BI38,"") -> 3.407276935e-14 | BK78: =IF(consumption_mix_calcs!BJ38<>"",consumption_mix_calcs!BJ38,"") -> 6.332588388e-14 | BL78: =IF(consumption_mix_calcs!BK38<>"",consumption_mix_calcs!BK38,"") -> 0 | BM78: =IF(consumption_mix_calcs!BL38<>"",consumption_mix_calcs!BL38,"") -> 3.22069188e-13 | BN78: =IF(consumption_mix_calcs!BM38<>"",consumption_mix_calcs!BM38,"") -> 4.244351884e-13 | BO78: =IF(consumption_mix_calcs!BN38<>"",consumption_mix_calcs!BN38,"") -> 2.759962757e-15 | BP78: =IF(consumption_mix_calcs!BO38<>"",consumption_mix_calcs!BO38,"") -> 5.567500886e-15 | BQ78: =IF(consumption_mix_calcs!BP38<>"",consumption_mix_calcs!BP38,"") -> 3.886912173e-14 | BR78: =IF(consumption_mix_calcs!BQ38<>"",consumption_mix_calcs!BQ38,"") -> 1.865985604e-13 | BS78: =IF(consumption_mix_calcs!BR38<>"",consumption_mix_calcs!BR38,"") -> 2.804316874e-14 | BT78: =IF(consumption_mix_calcs!BS38<>"",consumption_mix_calcs!BS38,"") -> 8.575739429e-15 | BU78: =IF(consumption_mix_calcs!BT38<>"",consumption_mix_calcs!BT38,"") -> 2.618952216e-14 | BV78: =IF(consumption_mix_calcs!BU38<>"",consumption_mix_calcs!BU38,"") -> 6.530740853e-14 | BW78: =IF(consumption_mix_calcs!BV38<>"",consumption_mix_calcs!BV38,"") -> 0 | BX78: =IF(consumption_mix_calcs!BW38<>"",consumption_mix_calcs!BW38,"") -> 0
A79: air | B79: 1,2,3,4,6,7,8,9-Octachlorodibenzo-p-dioxin | C79: 7.97721888e-16 | D79: =IF(consumption_mix_calcs!C39<>"",consumption_mix_calcs!C39,"") -> 0 | E79: =IF(consumption_mix_calcs!D39<>"",consumption_mix_calcs!D39,"") -> 9.849813103e-19 | F79: =IF(consumption_mix_calcs!E39<>"",consumption_mix_calcs!E39,"") -> 0 | G79: =IF(consumption_mix_calcs!F39<>"",consumption_mix_calcs!F39,"") -> 1.913217639e-18 | H79: =IF(consumption_mix_calcs!G39<>"",consumption_mix_calcs!G39,"") -> 8.415385573e-21 | I79: =IF(consumption_mix_calcs!H39<>"",consumption_mix_calcs!H39,"") -> 3.188309704e-19 | J79: =IF(consumption_mix_calcs!I39<>"",consumption_mix_calcs!I39,"") -> 5.84498276e-19 | K79: =IF(consumption_mix_calcs!J39<>"",consumption_mix_calcs!J39,"") -> 2.32262082e-18 | L79: =IF(consumption_mix_calcs!K39<>"",consumption_mix_calcs!K39,"") -> 5.865569959e-18 | M79: =IF(consumption_mix_calcs!L39<>"",consumption_mix_calcs!L39,"") -> 3.540783213e-25 | N79: =IF(consumption_mix_calcs!M39<>"",consumption_mix_calcs!M39,"") -> 2.212265309e-17 | O79: =IF(consumption_mix_calcs!N39<>"",consumption_mix_calcs!N39,"") -> 1.533122664e-17 | P79: =IF(consumption_mix_calcs!O39<>"",consumption_mix_calcs!O39,"") -> 1.93786224e-17 | Q79: =IF(consumption_mix_calcs!P39<>"",consumption_mix_calcs!P39,"") -> 0 | R79: =IF(consumption_mix_calcs!Q39<>"",consumption_mix_calcs!Q39,"") -> 1.101478268e-20 | S79: =IF(consumption_mix_calcs!R39<>"",consumption_mix_calcs!R39,"") -> 2.358411472e-25 | T79: =IF(consumption_mix_calcs!S39<>"",consumption_mix_calcs!S39,"") -> 9.499758868e-18 | U79: =IF(consumption_mix_calcs!T39<>"",consumption_mix_calcs!T39,"") -> 5.714173652e-19 | V79: =IF(consumption_mix_calcs!U39<>"",consumption_mix_calcs!U39,"") -> 9.664350521e-17 | W79: =IF(consumption_mix_calcs!V39<>"",consumption_mix_calcs!V39,"") -> 8.202082882e-20 | X79: =IF(consumption_mix_calcs!W39<>"",consumption_mix_calcs!W39,"") -> 0 | Y79: =IF(consumption_mix_calcs!X39<>"",consumption_mix_calcs!X39,"") -> 0 | Z79: =IF(consumption_mix_calcs!Y39<>"",consumption_mix_calcs!Y39,"") -> 0 | AA79: =IF(consumption_mix_calcs!Z39<>"",consumption_mix_calcs!Z39,"") -> 0 | AB79: =IF(consumption_mix_calcs!AA39<>"",consumption_mix_calcs!AA39,"") -> 1.56055421e-19 | AC79: =IF(consumption_mix_calcs!AB39<>"",consumption_mix_calcs!AB39,"") -> 8.154844537e-20 | AD79: =IF(consumption_mix_calcs!AC39<>"",consumption_mix_calcs!AC39,"") -> 9.708004788e-17 | AE79: =IF(consumption_mix_calcs!AD39<>"",consumption_mix_calcs!AD39,"") -> 3.940778842e-21 | AF79: =IF(consumption_mix_calcs!AE39<>"",consumption_mix_calcs!AE39,"") -> 1.765253033e-20 | AG79: =IF(consumption_mix_calcs!AF39<>"",consumption_mix_calcs!AF39,"") -> 9.904292316e-18 | AH79: =IF(consumption_mix_calcs!AG39<>"",consumption_mix_calcs!AG39,"") -> 7.356384974e-18 | AI79: =IF(consumption_mix_calcs!AH39<>"",consumption_mix_calcs!AH39,"") -> 2.916316201e-18 | AJ79: =IF(consumption_mix_calcs!AI39<>"",consumption_mix_calcs!AI39,"") -> 0 | AK79: =IF(consumption_mix_calcs!AJ39<>"",consumption_mix_calcs!AJ39,"") -> 8.005076229e-17 | AL79: =IF(consumption_mix_calcs!AK39<>"",consumption_mix_calcs!AK39,"") -> 0 | AM79: =IF(consumption_mix_calcs!AL39<>"",consumption_mix_calcs!AL39,"") -> 0 | AN79: =IF(consumption_mix_calcs!AM39<>"",consumption_mix_calcs!AM39,"") -> 1.544266632e-18 | AO79: =IF(consumption_mix_calcs!AN39<>"",consumption_mix_calcs!AN39,"") -> 2.084374884e-18 | AP79: =IF(consumption_mix_calcs!AO39<>"",consumption_mix_calcs!AO39,"") -> 0 | AQ79: =IF(consumption_mix_calcs!AP39<>"",consumption_mix_calcs!AP39,"") -> 0 | AR79: =IF(consumption_mix_calcs!AQ39<>"",consumption_mix_calcs!AQ39,"") -> 7.653342521e-17 | AS79: =IF(consumption_mix_calcs!AR39<>"",consumption_mix_calcs!AR39,"") -> 1.801410066e-18 | AT79: =IF(consumption_mix_calcs!AS39<>"",consumption_mix_calcs!AS39,"") -> 2.61725878e-18 | AU79: =IF(consumption_mix_calcs!AT39<>"",consumption_mix_calcs!AT39,"") -> 3.440827e-19 | AV79: =IF(consumption_mix_calcs!AU39<>"",consumption_mix_calcs!AU39,"") -> 2.257193456e-16 | AW79: =IF(consumption_mix_calcs!AV39<>"",consumption_mix_calcs!AV39,"") -> 0 | AX79: =IF(consumption_mix_calcs!AW39<>"",consumption_mix_calcs!AW39,"") -> 5.485768504e-18 | AY79: =IF(consumption_mix_calcs!AX39<>"",consumption_mix_calcs!AX39,"") -> 1.012797824e-24 | AZ79: =IF(consumption_mix_calcs!AY39<>"",consumption_mix_calcs!AY39,"") -> 6.692104362e-25 | BA79: =IF(consumption_mix_calcs!AZ39<>"",consumption_mix_calcs!AZ39,"") -> 3.65016957e-18 | BB79: =IF(consumption_mix_calcs!BA39<>"",consumption_mix_calcs!BA39,"") -> 4.593027675e-19 | BC79: =IF(consumption_mix_calcs!BB39<>"",consumption_mix_calcs!BB39,"") -> 9.723790734e-18 | BD79: =IF(consumption_mix_calcs!BC39<>"",consumption_mix_calcs!BC39,"") -> 0 | BE79: =IF(consumption_mix_calcs!BD39<>"",consumption_mix_calcs!BD39,"") -> 0 | BF79: =IF(consumption_mix_calcs!BE39<>"",consumption_mix_calcs!BE39,"") -> 2.112237609e-18 | BG79: =IF(consumption_mix_calcs!BF39<>"",consumption_mix_calcs!BF39,"") -> 5.979895856e-18 | BH79: =IF(consumption_mix_calcs!BG39<>"",consumption_mix_calcs!BG39,"") -> 0 | BI79: =IF(consumption_mix_calcs!BH39<>"",consumption_mix_calcs!BH39,"") -> 2.926983181e-18 | BJ79: =IF(consumption_mix_calcs!BI39<>"",consumption_mix_calcs!BI39,"") -> 6.005028465e-18 | BK79: =IF(consumption_mix_calcs!BJ39<>"",consumption_mix_calcs!BJ39,"") -> 6.151805929e-18 | BL79: =IF(consumption_mix_calcs!BK39<>"",consumption_mix_calcs!BK39,"") -> 0 | BM79: =IF(consumption_mix_calcs!BL39<>"",consumption_mix_calcs!BL39,"") -> 2.225350976e-17 | BN79: =IF(consumption_mix_calcs!BM39<>"",consumption_mix_calcs!BM39,"") -> 2.134452688e-17 | BO79: =IF(consumption_mix_calcs!BN39<>"",consumption_mix_calcs!BN39,"") -> 3.292319659e-19 | BP79: =IF(consumption_mix_calcs!BO39<>"",consumption_mix_calcs!BO39,"") -> 2.665649641e-19 | BQ79: =IF(consumption_mix_calcs!BP39<>"",consumption_mix_calcs!BP39,"") -> 4.559948441e-20 | BR79: =IF(consumption_mix_calcs!BQ39<>"",consumption_mix_calcs!BQ39,"") -> 2.198025605e-17 | BS79: =IF(consumption_mix_calcs!BR39<>"",consumption_mix_calcs!BR39,"") -> 2.157509915e-18 | BT79: =IF(consumption_mix_calcs!BS39<>"",consumption_mix_calcs!BS39,"") -> 0 | BU79: =IF(consumption_mix_calcs!BT39<>"",consumption_mix_calcs!BT39,"") -> 1.55638518e-20 | BV79: =IF(consumption_mix_calcs!BU39<>"",consumption_mix_calcs!BU39,"") -> 2.984622032e-18 | BW79: =IF(consumption_mix_calcs!BV39<>"",consumption_mix_calcs!BV39,"") -> 0 | BX79: =IF(consumption_mix_calcs!BW39<>"",consumption_mix_calcs!BW39,"") -> 0
